Workbook

Sheet 巻末資料表紙
A1: 令和5年度 巻末資料
A2: バージョン 日付 内容
A3: Vol.1.0 R6.7.29 新規作成

Sheet 2-Ⅰ
A1: 【年齢区分】
K2: データ貼り付け箇所
A3: 〔全状態像〕 | E3: 〔寛解・院内寛解群〕 | K3: 年齢区分 | L3: 患者全体 | N3: 年齢区分 | O3: 寛解 | P3: 年齢区分 | Q3: 院内寛解
B4: 人数 | C4: 割合 | F4: 寛解 | G4: 院内寛解 | H4: 計 | I4: 割合 | K4: 行ラベル | L4: データの個数 / 年齢 | N4: 行ラベル | O4: データの個数 / 年齢 | P4: 行ラベル | Q4: データの個数 / 年齢
A5: 19歳以下 | B5: =IFERROR(VLOOKUP($A5,年齢区分[#All],2,FALSE),0) -> 181 | C5: =IFERROR(B5/B$14,"-") -> 0.01242363923 | E5: 19歳以下 | F5: =IFERROR(VLOOKUP($A5,年齢区分＿寛解[#All],2,FALSE),0) -> 9 | G5: =IFERROR(VLOOKUP($A5,年齢区分＿院内寛解[#All],2,FALSE),0) -> 20 | H5: =SUM(F5:G5) -> 29 | I5: =IFERROR(H5/H$14,"-") -> 0.0164399093 | K5: 19歳以下 | L5: 181 | N5: 19歳以下 | O5: 9 | P5: 19歳以下 | Q5: 20
A6: 20歳代 | B6: =IFERROR(VLOOKUP($A6,年齢区分[#All],2,FALSE),0) -> 297 | C6: =IFERROR(B6/B$14,"-") -> 0.02038575057 | E6: 20歳代 | F6: =IFERROR(VLOOKUP($A6,年齢区分＿寛解[#All],2,FALSE),0) -> 15 | G6: =IFERROR(VLOOKUP($A6,年齢区分＿院内寛解[#All],2,FALSE),0) -> 55 | H6: =SUM(F6:G6) -> 70 | I6: =IFERROR(H6/H$14,"-") -> 0.03968253968 | K6: 20歳代 | L6: 297 | N6: 20歳代 | O6: 15 | P6: 20歳代 | Q6: 55
A7: 30歳代 | B7: =IFERROR(VLOOKUP($A7,年齢区分[#All],2,FALSE),0) -> 553 | C7: =IFERROR(B7/B$14,"-") -> 0.03795730661 | E7: 30歳代 | F7: =IFERROR(VLOOKUP($A7,年齢区分＿寛解[#All],2,FALSE),0) -> 21 | G7: =IFERROR(VLOOKUP($A7,年齢区分＿院内寛解[#All],2,FALSE),0) -> 83 | H7: 104 | I7: 0.0589569161 | K7: 30歳代 | L7: 553 | N7: 30歳代 | O7: 21 | P7: 30歳代 | Q7: 83
A8: 40歳代 | B8: =IFERROR(VLOOKUP($A8,年齢区分[#All],2,FALSE),0) -> 1181 | C8: 0.08106253003 | E8: 40歳代 | F8: =IFERROR(VLOOKUP($A8,年齢区分＿寛解[#All],2,FALSE),0) -> 36 | G8: =IFERROR(VLOOKUP($A8,年齢区分＿院内寛解[#All],2,FALSE),0) -> 147 | H8: 183 | I8: 0.1037414966 | K8: 40歳代 | L8: 1181 | N8: 40歳代 | O8: 36 | P8: 40歳代 | Q8: 147
A9: 50歳代 | B9: =IFERROR(VLOOKUP($A9,年齢区分[#All],2,FALSE),0) -> 2335 | C9: 0.16027181 | E9: 50歳代 | F9: =IFERROR(VLOOKUP($A9,年齢区分＿寛解[#All],2,FALSE),0) -> 62 | G9: =IFERROR(VLOOKUP($A9,年齢区分＿院内寛解[#All],2,FALSE),0) -> 234 | H9: 296 | I9: 0.1678004535 | K9: 50歳代 | L9: 2335 | N9: 50歳代 | O9: 62 | P9: 50歳代 | Q9: 234
A10: 60歳代 | B10: =IFERROR(VLOOKUP($A10,年齢区分[#All],2,FALSE),0) -> 2406 | C10: 0.1651451713 | E10: 60歳代 | F10: =IFERROR(VLOOKUP($A10,年齢区分＿寛解[#All],2,FALSE),0) -> 55 | G10: =IFERROR(VLOOKUP($A10,年齢区分＿院内寛解[#All],2,FALSE),0) -> 249 | H10: 304 | I10: 0.1723356009 | K10: 60歳代 | L10: 2406 | N10: 60歳代 | O10: 55 | P10: 60歳代 | Q10: 249
A11: 70歳代 | B11: =IFERROR(VLOOKUP($A11,年齢区分[#All],2,FALSE),0) -> 3548 | C11: 0.2435307845 | E11: 70歳代 | F11: =IFERROR(VLOOKUP($A11,年齢区分＿寛解[#All],2,FALSE),0) -> 63 | G11: =IFERROR(VLOOKUP($A11,年齢区分＿院内寛解[#All],2,FALSE),0) -> 343 | H11: 406 | I11: 0.2301587302 | K11: 70歳代 | L11: 3548 | N11: 70歳代 | O11: 63 | P11: 70歳代 | Q11: 343
A12: 80歳代 | B12: =IFERROR(VLOOKUP($A12,年齢区分[#All],2,FALSE),0) -> 3249 | C12: 0.2230077562 | E12: 80歳代 | F12: =IFERROR(VLOOKUP($A12,年齢区分＿寛解[#All],2,FALSE),0) -> 55 | G12: =IFERROR(VLOOKUP($A12,年齢区分＿院内寛解[#All],2,FALSE),0) -> 255 | H12: 310 | I12: 0.1757369615 | K12: 80歳代 | L12: 3249 | N12: 80歳代 | O12: 55 | P12: 80歳代 | Q12: 255
A13: 90歳以上 | B13: =IFERROR(VLOOKUP($A13,年齢区分[#All],2,FALSE),0) -> 819 | C13: 0.05621525156 | E13: 90歳以上 | F13: =IFERROR(VLOOKUP($A13,年齢区分＿寛解[#All],2,FALSE),0) -> 12 | G13: =IFERROR(VLOOKUP($A13,年齢区分＿院内寛解[#All],2,FALSE),0) -> 50 | H13: 62 | I13: 0.03514739229 | K13: 90歳以上 | L13: 819 | N13: 90歳以上 | O13: 12 | P13: 90歳以上 | Q13: 50
A14: 総計 | B14: =SUM(B5:B13) -> 14569 | C14: =SUM(C5:C13) -> 1 | E14: 総計 | F14: =SUM(F5:F13) -> 328 | G14: 1436 | H14: =SUM(H5:H13) -> 1764 | I14: =SUM(I5:I13) -> 1
A15: 65歳未満（再掲） | B15: =B14-B16 -> 5781 | C15: =IFERROR(B15/B$14,"-") -> 0.3968014277 | E15: 65歳未満（再掲） | F15: =F14-F16 -> 171 | G15: =G14-G16 -> 669 | H15: 840 | I15: =IFERROR(H15/H$14,"-") -> 0.4761904762 | K15: 65歳以上（再掲） | L15: 8788 | N15: 65歳以上（再掲） | O15: 157 | P15: 65歳以上（再掲） | Q15: 767
A16: 65歳以上（再掲） | B16: =L15 -> 8788 | C16: =IFERROR(B16/B$14,"-") -> 0.6031985723 | E16: 65歳以上（再掲） | F16: =O15 -> 157 | G16: =Q15 -> 767 | H16: 924 | I16: =IFERROR(H16/H$14,"-") -> 0.5238095238

Sheet ２-Ⅱ
A1: 【入院形態区分】
G2: データ貼り付け箇所
A3: 〔全状態像〕 | G3: 入院形態 | H3: 全体
B4: 人数 | C4: 割合 | G4: 行ラベル | H4: データの個数 / 入院
A5: 措置入院・緊急措置入院 | B5: =IFERROR(VLOOKUP("措置入院",入院形態[#All],2,FALSE),0)+IFERROR(VLOOKUP("緊急措置入院",入院形態[#All],2,FALSE),0) -> 76 | C5: =IFERROR(B5/B$10,"-") -> 0.0052165557 | G5: 任意入院 | H5: 6282
A6: 医療保護入院 | B6: =IFERROR(VLOOKUP(A6,入院形態[#All],2,FALSE),0) -> 8169 | C6: =IFERROR(B6/B$10,"-") -> 0.5607110989 | G6: 措置入院 | H6: 76
A7: 任意入院 | B7: =IFERROR(VLOOKUP(A7,入院形態[#All],2,FALSE),0) -> 6282 | C7: 0.431189512 | G7: 鑑定入院 | H7: 6
A8: 応急入院 | B8: =IFERROR(VLOOKUP(A8,入院形態[#All],2,FALSE),0) -> 4 | C8: 0.0002745555632 | G8: 応急入院 | H8: 4
A9: その他 | B9: =IFERROR(VLOOKUP("鑑定入院",入院形態[#All],2,FALSE),0)+IFERROR(VLOOKUP("医療観察法による入院",入院形態[#All],2,FALSE),0)+IFERROR(VLOOKUP("不明",入院形態[#All],2,FALSE),0) -> 38 | C9: 0.00260827785 | G9: 医療保護入院 | H9: 8169
A10: 総計 | B10: =SUM(B5:B9) -> 14569 | C10: =SUM(C5:C9) -> 1 | G10: 医療観察法による入院 | H10: 32
G11: 緊急措置入院 | H11: 0
G12: 不明 | H12: 0
G13: 入院形態 | H13: 寛解 | J13: 入院形態 | K13: 院内寛解
A14: 〔寛解・院内寛解群〕 | G14: 行ラベル | H14: データの個数 / 入院 | J14: 行ラベル | K14: データの個数 / 入院
B15: 寛解 | C15: 院内寛解 | D15: 計 | E15: 割合 | G15: 任意入院 | H15: 201 | J15: 任意入院 | K15: 914
A16: 措置入院・緊急措置入院 | B16: =IFERROR(VLOOKUP("措置入院",入院形態_寛解[#All],2,FALSE),0)+IFERROR(VLOOKUP("緊急措置入院",入院形態_寛解[#All],2,FALSE),0) -> 4 | C16: =IFERROR(VLOOKUP("措置入院",入院形態_院内寛解[#All],2,FALSE),0)+IFERROR(VLOOKUP("緊急措置入院",入院形態_院内寛解[#All],2,FALSE),0) -> 11 | D16: =SUM(B16:C16) -> 15 | E16: =IFERROR(D16/D$21,"-") -> 0.008503401361 | G16: 措置入院 | H16: 4 | J16: 措置入院 | K16: 11
A17: 医療保護入院 | B17: =IFERROR(VLOOKUP(A17,入院形態_寛解[#All],2,FALSE),0) -> 123 | C17: =IFERROR(VLOOKUP(A17,入院形態_院内寛解[#All],2,FALSE),0) -> 509 | D17: =SUM(B17:C17) -> 632 | E17: =IFERROR(D17/D$21,"-") -> 0.358276644 | G17: 鑑定入院 | H17: 0 | J17: 鑑定入院 | K17: 1
A18: 任意入院 | B18: =IFERROR(VLOOKUP(A18,入院形態_寛解[#All],2,FALSE),0) -> 201 | C18: =IFERROR(VLOOKUP(A18,入院形態_院内寛解[#All],2,FALSE),0) -> 914 | D18: 1115 | E18: 0.6320861678 | G18: 応急入院 | H18: 0 | J18: 応急入院 | K18: 0
A19: 応急入院 | B19: =IFERROR(VLOOKUP(A19,入院形態_寛解[#All],2,FALSE),0) -> 0 | C19: =IFERROR(VLOOKUP(A19,入院形態_院内寛解[#All],2,FALSE),0) -> 0 | D19: 0 | E19: 0 | G19: 医療保護入院 | H19: 123 | J19: 医療保護入院 | K19: 509
A20: その他 | B20: =IFERROR(VLOOKUP("鑑定入院",入院形態_寛解[#All],2,FALSE),0)+IFERROR(VLOOKUP("医療観察法による入院",入院形態_寛解[#All],2,FALSE),0)+IFERROR(VLOOKUP("不明",入院形態_寛解[#All],2,FALSE),0) -> 0 | C20: =IFERROR(VLOOKUP("鑑定入院",入院形態_院内寛解[#All],2,FALSE),0)+IFERROR(VLOOKUP("医療観察法による入院",入院形態_院内寛解[#All],2,FALSE),0)+IFERROR(VLOOKUP("不明",入院形態_院内寛解[#All],2,FALSE),0) -> 2 | D20: 2 | E20: 0.001133786848 | G20: 医療観察法による入院 | H20: 0 | J20: 医療観察法による入院 | K20: 1
A21: 総計 | B21: =SUM(B16:B20) -> 328 | C21: =SUM(C16:C20) -> 1436 | D21: =SUM(D16:D20) -> 1764 | E21: =SUM(E16:E20) -> 1 | G21: 緊急措置入院 | H21: 0 | J21: 緊急措置入院 | K21: 0
G22: 不明 | H22: 0 | J22: 不明 | K22: 0

Sheet ２-Ⅲ
A1: 【疾患名区分】
A3: 〔全状態像〕 | F3: 〔寛解・院内寛解群〕
C4: 人数 | D4: 割合 | H4: 寛解 | I4: 院内寛解 | J4: 計 | K4: 割合 | M4: F00アルツハイマー病型認知症 | N4: F0 | O4: データ貼り付けは表の下にあります。
A5: 症状性を含む器質性精神障害（F0） | C5: =SUM(C6:C8) -> 4241 | D5: =SUM(D6:D8) -> 0.2910975359 | F5: 症状性を含む器質性精神障害（F0） | H5: =SUM(H6:H8) -> 84 | I5: 332 | J5: =SUM(H5:I5) -> 416 | K5: =IFERROR(J5/J$21,"-") -> 0.2358276644 | M5: F01血管性認知症 | N5: F1 | O5: 直接入力しないようにご注意ください。
B6: アルツハイマー病の認知症を含む器質性精神障害（F00） | C6: =IFERROR(VLOOKUP($M4,疾患別[#All],2,FALSE),0) -> 2181 | D6: =IFERROR(C6/C$21,"-") -> 0.1497014208 | G6: アルツハイマー病の認知症を含む器質性精神障害（F00） | H6: =IFERROR(VLOOKUP($M4,疾患別＿寛解[#All],2,FALSE),0) -> 33 | I6: =IFERROR(VLOOKUP($M4,疾患別＿院内寛解[#All],2,FALSE),0) -> 154 | J6: =SUM(H6:I6) -> 187 | K6: 0.1060090703 | M6: F02-09上記以外の症状性を含む器質性精神障害 | N6: F2
B7: 血管性認知症を含む器質性精神障害（F01） | C7: =IFERROR(VLOOKUP($M5,疾患別[#All],2,FALSE),0) -> 343 | D7: 0.02354313954 | G7: 血管性認知症を含む器質性精神障害（F01） | H7: =IFERROR(VLOOKUP($M5,疾患別＿寛解[#All],2,FALSE),0) -> 6 | I7: =IFERROR(VLOOKUP($M5,疾患別＿院内寛解[#All],2,FALSE),0) -> 32 | J7: 38 | K7: 0.02154195011 | M7: F10アルコール使用による精神及び行動の障害 | N7: F3
B8: アルツハイマー病の認知症・血管性認知症以外の、 症状性を含む器質性精神障害（F02-F09） | C8: =IFERROR(VLOOKUP($M6,疾患別[#All],2,FALSE),0) -> 1717 | D8: 0.1178529755 | G8: アルツハイマー病の認知症・血管性認知症以外の、症状性を含む器質性精神障害（F02-F09） | H8: =IFERROR(VLOOKUP($M6,疾患別＿寛解[#All],2,FALSE),0) -> 45 | I8: =IFERROR(VLOOKUP($M6,疾患別＿院内寛解[#All],2,FALSE),0) -> 146 | J8: 191 | K8: 0.108276644 | M8: アルコール覚せい剤を除く精神作用物質使用による精神及び行動の障害※ | N8: F4
A9: 精神作用物質使用による精神及び行動の障害（F1） | C9: =IFERROR(VLOOKUP($M7,疾患別[#All],2,FALSE),0)+IFERROR(VLOOKUP($M8,疾患別[#All],2,FALSE),0)+IFERROR(VLOOKUP($M9,疾患別[#All],2,FALSE),0) -> 826 | D9: 0.0566957238 | F9: 精神作用物質使用による精神及び行動の障害（F1） | H9: =IFERROR(VLOOKUP($M7,疾患別＿寛解[#All],2,FALSE),0)+IFERROR(VLOOKUP($M8,疾患別＿寛解[#All],2,FALSE),0)+IFERROR(VLOOKUP($M9,疾患別＿寛解[#All],2,FALSE),0) -> 25 | I9: =IFERROR(VLOOKUP($M7,疾患別＿院内寛解[#All],2,FALSE),0)+IFERROR(VLOOKUP($M8,疾患別＿院内寛解[#All],2,FALSE),0)+IFERROR(VLOOKUP($M9,疾患別＿院内寛解[#All],2,FALSE),0) -> 190 | J9: 215 | K9: 0.1218820862 | M9: 覚せい剤による精神及び行動の障害※ | N9: F5
A10: 統合失調症、統合失調症型障害及び妄想性障害（F2） | C10: =IFERROR(VLOOKUP($M10,疾患別[#All],2,FALSE),0) -> 6942 | D10: 0.4764911799 | F10: 統合失調症、統合失調症型障害及び妄想性障害（F2） | H10: =IFERROR(VLOOKUP($M10,疾患別＿寛解[#All],2,FALSE),0) -> 110 | I10: =IFERROR(VLOOKUP($M10,疾患別＿院内寛解[#All],2,FALSE),0) -> 540 | J10: 650 | K10: 0.3684807256 | M10: F2統合失調症、統合失調症型障害及び妄想性障害 | N10: F6
A11: 気分（感情）障害（F3） | C11: =IFERROR(VLOOKUP($M11,疾患別[#All],2,FALSE),0)+IFERROR(VLOOKUP($M12,疾患別[#All],2,FALSE),0) -> 1519 | D11: 0.1042624751 | F11: 気分（感情）障害（F3） | H11: =IFERROR(VLOOKUP($M11,疾患別＿寛解[#All],2,FALSE),0)+IFERROR(VLOOKUP($M12,疾患別＿寛解[#All],2,FALSE),0) -> 81 | I11: =IFERROR(VLOOKUP($M11,疾患別＿院内寛解[#All],2,FALSE),0)+IFERROR(VLOOKUP($M12,疾患別＿院内寛解[#All],2,FALSE),0) -> 240 | J11: 321 | K11: 0.1819727891 | M11: F30‐31 躁病エピソード・双極性感情障害［躁うつ病］ | N11: F7
A12: 神経症性障害、ストレス関連障害及び身体表現性障害（F4） | C12: =IFERROR(VLOOKUP($M13,疾患別[#All],2,FALSE),0) -> 238 | D12: 0.01633605601 | F12: 神経症性障害、ストレス関連障害及び身体表現性障害（F4） | H12: =IFERROR(VLOOKUP($M13,疾患別＿寛解[#All],2,FALSE),0) -> 8 | I12: =IFERROR(VLOOKUP($M13,疾患別＿院内寛解[#All],2,FALSE),0) -> 46 | J12: 54 | K12: 0.0306122449 | M12: F32-39 その他の気分障害 | N12: F8
A13: 生理的障害及び身体的要因に関連した行動症候群（F5） | C13: =IFERROR(VLOOKUP($M14,疾患別[#All],2,FALSE),0) -> 55 | D13: 0.003775138994 | F13: 生理的障害及び身体的要因に関連した行動症候群（F5） | H13: =IFERROR(VLOOKUP($M14,疾患別＿寛解[#All],2,FALSE),0) -> 4 | I13: =IFERROR(VLOOKUP($M14,疾患別＿院内寛解[#All],2,FALSE),0) -> 8 | J13: 12 | K13: 0.006802721088 | M13: F4神経症性障害、ストレス関連障害及び身体表現性障害 | N13: F9
A14: 成人のパーソナリティ及び行動の障害（F6) | C14: =IFERROR(VLOOKUP($M15,疾患別[#All],2,FALSE),0) -> 35 | D14: 0.002402361178 | F14: 成人のパーソナリティ及び行動の障害（F6) | H14: =IFERROR(VLOOKUP($M15,疾患別＿寛解[#All],2,FALSE),0) -> 1 | I14: =IFERROR(VLOOKUP($M15,疾患別＿院内寛解[#All],2,FALSE),0) -> 7 | J14: 8 | K14: 0.004535147392 | M14: F5生理的障害及び身体的要因に関連した行動症候群 | N14: てんかん
A15: 精神遅滞〔知的障害〕（F7) | C15: =IFERROR(VLOOKUP($M16,疾患別[#All],2,FALSE),0) -> 305 | D15: 0.02093486169 | F15: 精神遅滞〔知的障害〕（F7) | H15: =IFERROR(VLOOKUP($M16,疾患別＿寛解[#All],2,FALSE),0) -> 6 | I15: =IFERROR(VLOOKUP($M16,疾患別＿院内寛解[#All],2,FALSE),0) -> 22 | J15: 28 | K15: 0.01587301587 | M15: F6成人のパーソナリティ及び行動の障害 | N15: その他
A16: 心理的発達の障害（F8） | C16: =IFERROR(VLOOKUP($M17,疾患別[#All],2,FALSE),0) -> 162 | D16: 0.01111950031 | F16: 心理的発達の障害（F8） | H16: =IFERROR(VLOOKUP($M17,疾患別＿寛解[#All],2,FALSE),0) -> 5 | I16: =IFERROR(VLOOKUP($M17,疾患別＿院内寛解[#All],2,FALSE),0) -> 25 | J16: 30 | K16: 0.01700680272 | M16: F7精神遅滞〔知的障害〕 | N16: 不明
A17: 小児期及び青年期に通常発症する行動及び情緒の障害及び特定不能の精神障害（F9) | C17: =IFERROR(VLOOKUP($M18,疾患別[#All],2,FALSE),0) -> 60 | D17: 0.004118333448 | F17: 小児期及び青年期に通常発症する行動及び情緒の障害及び特定不能の精神障害（F9) | H17: =IFERROR(VLOOKUP($M18,疾患別＿寛解[#All],2,FALSE),0) -> 2 | I17: =IFERROR(VLOOKUP($M18,疾患別＿院内寛解[#All],2,FALSE),0) -> 8 | J17: 10 | K17: 0.00566893424 | M17: F8心理的発達の障害
A18: てんかん（症状性を含む器質性障害(F0)に属さないもの） | C18: =IFERROR(VLOOKUP($M19,疾患別[#All],2,FALSE),0) -> 42 | D18: 0.002882833413 | F18: てんかん（症状性を含む器質性障害(F0)に属さないもの） | H18: =IFERROR(VLOOKUP($M19,疾患別＿寛解[#All],2,FALSE),0) -> 0 | I18: =IFERROR(VLOOKUP($M19,疾患別＿院内寛解[#All],2,FALSE),0) -> 4 | J18: =SUM(H18:I18) -> 4 | K18: 0.002267573696 | M18: F9小児期及び青年期に通常発症する行動及び情緒の障害及び特定不能の精神障害
A19: その他 | C19: =IFERROR(VLOOKUP($M20,疾患別[#All],2,FALSE),0) -> 143 | D19: 0.009815361384 | F19: その他 | H19: =IFERROR(VLOOKUP($M20,疾患別＿寛解[#All],2,FALSE),0) -> 2 | I19: =IFERROR(VLOOKUP($M20,疾患別＿院内寛解[#All],2,FALSE),0) -> 14 | J19: 16 | K19: 0.009070294785 | M19: てんかん（F0に属さないものを計上する）
A20: 不明 | C20: =IFERROR(VLOOKUP($M21,疾患別[#All],2,FALSE),0) -> 1 | D20: 6.86388908e-05 | F20: 不明 | H20: =IFERROR(VLOOKUP($M21,疾患別＿寛解[#All],2,FALSE),0) -> 0 | I20: =IFERROR(VLOOKUP($M21,疾患別＿院内寛解[#All],2,FALSE),0) -> 0 | J20: =SUM(H20:I20) -> 0 | K20: 0 | M20: その他
A21: 総計 | C21: =SUM(C6:C20) -> 14569 | D21: =SUM(D6:D20) -> 1 | F21: 総計 | H21: =SUM(H6:H20) -> 328 | I21: =SUM(I6:I20) -> 1436 | J21: =SUM(J6:J20) -> 1764 | K21: =SUM(K6:K20) -> 1 | M21: 不明
B22: データ貼り付け箇所 | G22: データ貼り付け箇所
B23: 疾患名 | C23: 人数 | G23: 疾患名 | H23: 寛解
B24: 行ラベル | C24: データの個数 / 疾患名 | G24: 行ラベル | H24: データの個数 / 疾患名
B25: F00アルツハイマー病型認知症 | C25: 2181 | G25: F00アルツハイマー病型認知症 | H25: 33
B26: F01血管性認知症 | C26: 343 | G26: F01血管性認知症 | H26: 6
B27: F02-09上記以外の症状性を含む器質性精神障害 | C27: 1717 | G27: F02-09上記以外の症状性を含む器質性精神障害 | H27: 45
B28: F10アルコール使用による精神及び行動の障害 | C28: 678 | G28: F10アルコール使用による精神及び行動の障害 | H28: 25
B29: アルコール覚せい剤を除く精神作用物質使用による精神及び行動の障害※ | C29: 57 | G29: アルコール覚せい剤を除く精神作用物質使用による精神及び行動の障害※ | H29: 0
B30: 覚せい剤による精神及び行動の障害※ | C30: 91 | G30: 覚せい剤による精神及び行動の障害※ | H30: 0
B31: F2統合失調症、統合失調症型障害及び妄想性障害 | C31: 6942 | G31: F2統合失調症、統合失調症型障害及び妄想性障害 | H31: 110
B32: F30‐31 躁病エピソード・双極性感情障害［躁うつ病］ | C32: 756 | G32: F30‐31 躁病エピソード・双極性感情障害［躁うつ病］ | H32: 48
B33: F32-39 その他の気分障害 | C33: 763 | G33: F32-39 その他の気分障害 | H33: 33
B34: F4神経症性障害、ストレス関連障害及び身体表現性障害 | C34: 238 | G34: F4神経症性障害、ストレス関連障害及び身体表現性障害 | H34: 8
B35: F5生理的障害及び身体的要因に関連した行動症候群 | C35: 55 | G35: F5生理的障害及び身体的要因に関連した行動症候群 | H35: 4
B36: F6成人のパーソナリティ及び行動の障害 | C36: 35 | G36: F6成人のパーソナリティ及び行動の障害 | H36: 1
B37: F7精神遅滞〔知的障害〕 | C37: 305 | G37: F7精神遅滞〔知的障害〕 | H37: 6
B38: F8心理的発達の障害 | C38: 162 | G38: F8心理的発達の障害 | H38: 5
B39: F9小児期及び青年期に通常発症する行動及び情緒の障害及び特定不能の精神障害 | C39: 60 | G39: F9小児期及び青年期に通常発症する行動及び情緒の障害及び特定不能の精神障害 | H39: 2
B40: その他 | C40: 143 | G40: その他 | H40: 2
B41: てんかん（F0に属さないものを計上する） | C41: 42 | G41: てんかん（F0に属さないものを計上する） | H41: 0
B42: 不明 | C42: 1 | G42: 不明 | H42: 0
G43: 疾患名 | H43: 院内寛解
G44: 行ラベル | H44: データの個数 / 疾患名
G45: F00アルツハイマー病型認知症 | H45: 154
G46: F01血管性認知症 | H46: 32
G47: F02-09上記以外の症状性を含む器質性精神障害 | H47: 146
G48: F10アルコール使用による精神及び行動の障害 | H48: 168
G49: アルコール覚せい剤を除く精神作用物質使用による精神及び行動の障害※ | H49: 12
G50: 覚せい剤による精神及び行動の障害※ | H50: 10
G51: F2統合失調症、統合失調症型障害及び妄想性障害 | H51: 540
G52: F30‐31 躁病エピソード・双極性感情障害［躁うつ病］ | H52: 104
G53: F32-39 その他の気分障害 | H53: 136
G54: F4神経症性障害、ストレス関連障害及び身体表現性障害 | H54: 46
G55: F5生理的障害及び身体的要因に関連した行動症候群 | H55: 8
G56: F6成人のパーソナリティ及び行動の障害 | H56: 7
G57: F7精神遅滞〔知的障害〕 | H57: 22
G58: F8心理的発達の障害 | H58: 25
G59: F9小児期及び青年期に通常発症する行動及び情緒の障害及び特定不能の精神障害 | H59: 8
G60: その他 | H60: 14
G61: てんかん（F0に属さないものを計上する） | H61: 4
G62: 不明 | H62: 0

Sheet ２-Ⅳ
A1: 【在院期間区分】
K2: データ貼り付け箇所
A3: 〔全状態像〕 | E3: 〔寛解・院内寛解群〕 | K3: 在院期間 | L3: 患者全体 | N3: 在院期間 | O3: 寛解 | P3: 在院期間 | Q3: 院内寛解
B4: 人数 | C4: 割合 | F4: 寛解 | G4: 院内寛解 | H4: 計 | I4: 割合 | K4: 行ラベル | L4: データの個数 / 在院 | N4: 行ラベル | O4: データの個数 / 在院 | P4: 行ラベル | Q4: データの個数 / 在院
A5: 1ヶ月未満 | B5: =IFERROR(VLOOKUP($T5,在院期間[#All],2,FALSE),0) -> 1817 | C5: =IFERROR(B5/B$21,"-") -> 0.1247168646 | E5: 1ヶ月未満 | F5: =IFERROR(VLOOKUP($T5,在院期間＿寛解[#All],2,FALSE),0) -> 91 | G5: =IFERROR(VLOOKUP($T5,在院期間＿院内寛解[#All],2,FALSE),0) -> 294 | H5: =SUM(F5:G5) -> 385 | I5: =IFERROR(H5/H$21,"-") -> 0.2182539683 | K5: 01_1ヶ月未満 | L5: 1817 | N5: 01_1ヶ月未満 | O5: 91 | P5: 01_1ヶ月未満 | Q5: 294 | T5: 01_1ヶ月未満
A6: 1ヶ月～3ヶ月未満 | B6: =IFERROR(VLOOKUP($T6,在院期間[#All],2,FALSE),0) -> 2135 | C6: =IFERROR(B6/B$21,"-") -> 0.1465440318 | E6: 1ヶ月～3ヶ月未満 | F6: =IFERROR(VLOOKUP($T6,在院期間＿寛解[#All],2,FALSE),0) -> 96 | G6: =IFERROR(VLOOKUP($T6,在院期間＿院内寛解[#All],2,FALSE),0) -> 395 | H6: =SUM(F6:G6) -> 491 | I6: =IFERROR(H6/H$21,"-") -> 0.2783446712 | K6: 02_1ヶ月～3ヶ月未満 | L6: 2135 | N6: 02_1ヶ月～3ヶ月未満 | O6: 96 | P6: 02_1ヶ月～3ヶ月未満 | Q6: 395 | T6: 02_1ヶ月～3ヶ月未満
A7: 3ヶ月～6ヶ月未満 | B7: =IFERROR(VLOOKUP($T7,在院期間[#All],2,FALSE),0) -> 1208 | C7: 0.08291578008 | E7: 3ヶ月～6ヶ月未満 | F7: =IFERROR(VLOOKUP($T7,在院期間＿寛解[#All],2,FALSE),0) -> 39 | G7: =IFERROR(VLOOKUP($T7,在院期間＿院内寛解[#All],2,FALSE),0) -> 149 | H7: 188 | I7: 0.1065759637 | K7: 03_3ヶ月～6ヶ月未満 | L7: 1208 | N7: 03_3ヶ月～6ヶ月未満 | O7: 39 | P7: 03_3ヶ月～6ヶ月未満 | Q7: 149 | T7: 03_3ヶ月～6ヶ月未満
A8: 6ヶ月～1年未満 | B8: =IFERROR(VLOOKUP($T8,在院期間[#All],2,FALSE),0) -> 1277 | C8: 0.08765186355 | E8: 6ヶ月～1年未満 | F8: =IFERROR(VLOOKUP($T8,在院期間＿寛解[#All],2,FALSE),0) -> 25 | G8: =IFERROR(VLOOKUP($T8,在院期間＿院内寛解[#All],2,FALSE),0) -> 126 | H8: 151 | I8: 0.08560090703 | K8: 04_6ヶ月～1年未満 | L8: 1277 | N8: 04_6ヶ月～1年未満 | O8: 25 | P8: 04_6ヶ月～1年未満 | Q8: 126 | T8: 04_6ヶ月～1年未満
A9: 1年～1年6ヶ月未満 | B9: =IFERROR(VLOOKUP($T9,在院期間[#All],2,FALSE),0) -> 839 | C9: 0.05758802938 | E9: 1年～1年6ヶ月未満 | F9: =IFERROR(VLOOKUP($T9,在院期間＿寛解[#All],2,FALSE),0) -> 17 | G9: =IFERROR(VLOOKUP($T9,在院期間＿院内寛解[#All],2,FALSE),0) -> 64 | H9: 81 | I9: 0.04591836735 | K9: 05_1年～1年6ヶ月未満 | L9: 839 | N9: 05_1年～1年6ヶ月未満 | O9: 17 | P9: 05_1年～1年6ヶ月未満 | Q9: 64 | T9: 05_1年～1年6ヶ月未満
A10: 1年6ヶ月～2年未満 | B10: =IFERROR(VLOOKUP($T10,在院期間[#All],2,FALSE),0) -> 728 | C10: 0.0499691125 | E10: 1年6ヶ月～2年未満 | F10: =IFERROR(VLOOKUP($T10,在院期間＿寛解[#All],2,FALSE),0) -> 4 | G10: =IFERROR(VLOOKUP($T10,在院期間＿院内寛解[#All],2,FALSE),0) -> 55 | H10: 59 | I10: 0.03344671202 | K10: 06_1年6ヶ月～2年未満 | L10: 728 | N10: 06_1年6ヶ月～2年未満 | O10: 4 | P10: 06_1年6ヶ月～2年未満 | Q10: 55 | T10: 06_1年6ヶ月～2年未満
A11: 2年～3年未満 | B11: =IFERROR(VLOOKUP($T11,在院期間[#All],2,FALSE),0) -> 1041 | C11: 0.07145308532 | E11: 2年～3年未満 | F11: =IFERROR(VLOOKUP($T11,在院期間＿寛解[#All],2,FALSE),0) -> 12 | G11: =IFERROR(VLOOKUP($T11,在院期間＿院内寛解[#All],2,FALSE),0) -> 60 | H11: 72 | I11: 0.04081632653 | K11: 07_2年～3年未満 | L11: 1041 | N11: 07_2年～3年未満 | O11: 12 | P11: 07_2年～3年未満 | Q11: 60 | T11: 07_2年～3年未満
A12: 3年～4年未満 | B12: =IFERROR(VLOOKUP($T12,在院期間[#All],2,FALSE),0) -> 894 | C12: 0.06136316837 | E12: 3年～4年未満 | F12: =IFERROR(VLOOKUP($T12,在院期間＿寛解[#All],2,FALSE),0) -> 7 | G12: =IFERROR(VLOOKUP($T12,在院期間＿院内寛解[#All],2,FALSE),0) -> 65 | H12: 72 | I12: 0.04081632653 | K12: 08_3年～4年未満 | L12: 894 | N12: 08_3年～4年未満 | O12: 7 | P12: 08_3年～4年未満 | Q12: 65 | T12: 08_3年～4年未満
A13: 4年～5年未満 | B13: =IFERROR(VLOOKUP($T13,在院期間[#All],2,FALSE),0) -> 676 | C13: 0.04639989018 | E13: 4年～5年未満 | F13: =IFERROR(VLOOKUP($T13,在院期間＿寛解[#All],2,FALSE),0) -> 6 | G13: =IFERROR(VLOOKUP($T13,在院期間＿院内寛解[#All],2,FALSE),0) -> 44 | H13: 50 | I13: 0.0283446712 | K13: 09_4年～5年未満 | L13: 676 | N13: 09_4年～5年未満 | O13: 6 | P13: 09_4年～5年未満 | Q13: 44 | T13: 09_4年～5年未満
A14: 5年～6年未満 | B14: =IFERROR(VLOOKUP($T14,在院期間[#All],2,FALSE),0) -> 574 | C14: 0.03939872332 | E14: 5年～6年未満 | F14: =IFERROR(VLOOKUP($T14,在院期間＿寛解[#All],2,FALSE),0) -> 4 | G14: =IFERROR(VLOOKUP($T14,在院期間＿院内寛解[#All],2,FALSE),0) -> 20 | H14: 24 | I14: 0.01360544218 | K14: 10_5年～6年未満 | L14: 574 | N14: 10_5年～6年未満 | O14: 4 | P14: 10_5年～6年未満 | Q14: 20 | T14: 10_5年～6年未満
A15: 6年～7年未満 | B15: =IFERROR(VLOOKUP($T15,在院期間[#All],2,FALSE),0) -> 431 | C15: 0.02958336193 | E15: 6年～7年未満 | F15: =IFERROR(VLOOKUP($T15,在院期間＿寛解[#All],2,FALSE),0) -> 5 | G15: =IFERROR(VLOOKUP($T15,在院期間＿院内寛解[#All],2,FALSE),0) -> 23 | H15: 28 | I15: 0.01587301587 | K15: 11_6年～7年未満 | L15: 431 | N15: 11_6年～7年未満 | O15: 5 | P15: 11_6年～7年未満 | Q15: 23 | T15: 11_6年～7年未満
A16: 7年～8年未満 | B16: =IFERROR(VLOOKUP($T16,在院期間[#All],2,FALSE),0) -> 304 | C16: 0.0208662228 | E16: 7年～8年未満 | F16: =IFERROR(VLOOKUP($T16,在院期間＿寛解[#All],2,FALSE),0) -> 5 | G16: =IFERROR(VLOOKUP($T16,在院期間＿院内寛解[#All],2,FALSE),0) -> 15 | H16: 20 | I16: 0.01133786848 | K16: 12_7年～8年未満 | L16: 304 | N16: 12_7年～8年未満 | O16: 5 | P16: 12_7年～8年未満 | Q16: 15 | T16: 12_7年～8年未満
A17: 8年～9年未満 | B17: =IFERROR(VLOOKUP($T17,在院期間[#All],2,FALSE),0) -> 316 | C17: 0.02168988949 | E17: 8年～9年未満 | F17: =IFERROR(VLOOKUP($T17,在院期間＿寛解[#All],2,FALSE),0) -> 3 | G17: =IFERROR(VLOOKUP($T17,在院期間＿院内寛解[#All],2,FALSE),0) -> 13 | H17: 16 | I17: 0.009070294785 | K17: 13_8年～9年未満 | L17: 316 | N17: 13_8年～9年未満 | O17: 3 | P17: 13_8年～9年未満 | Q17: 13 | T17: 13_8年～9年未満
A18: 9年～10年未満 | B18: =IFERROR(VLOOKUP($T18,在院期間[#All],2,FALSE),0) -> 244 | C18: 0.01674788935 | E18: 9年～10年未満 | F18: =IFERROR(VLOOKUP($T18,在院期間＿寛解[#All],2,FALSE),0) -> 2 | G18: =IFERROR(VLOOKUP($T18,在院期間＿院内寛解[#All],2,FALSE),0) -> 8 | H18: 10 | I18: 0.00566893424 | K18: 14_9年～10年未満 | L18: 244 | N18: 14_9年～10年未満 | O18: 2 | P18: 14_9年～10年未満 | Q18: 8 | T18: 14_9年～10年未満
A19: 10年～20年未満 | B19: =IFERROR(VLOOKUP($T19,在院期間[#All],2,FALSE),0) -> 1308 | C19: 0.08977966916 | E19: 10年～20年未満 | F19: =IFERROR(VLOOKUP($T19,在院期間＿寛解[#All],2,FALSE),0) -> 9 | G19: =IFERROR(VLOOKUP($T19,在院期間＿院内寛解[#All],2,FALSE),0) -> 64 | H19: 73 | I19: 0.04138321995 | K19: 15_10年～20年未満 | L19: 1308 | N19: 15_10年～20年未満 | O19: 9 | P19: 15_10年～20年未満 | Q19: 64 | T19: 15_10年～20年未満
A20: 20年以上 | B20: =IFERROR(VLOOKUP($T20,在院期間[#All],2,FALSE),0) -> 777 | C20: 0.05333241815 | E20: 20年以上 | F20: =IFERROR(VLOOKUP($T20,在院期間＿寛解[#All],2,FALSE),0) -> 3 | G20: =IFERROR(VLOOKUP($T20,在院期間＿院内寛解[#All],2,FALSE),0) -> 41 | H20: 44 | I20: 0.02494331066 | K20: 16_ 20年以上 | L20: 777 | N20: 16_ 20年以上 | O20: 3 | P20: 16_ 20年以上 | Q20: 41 | T20: 16_ 20年以上
A21: 総計 | B21: =SUM(B5:B20) -> 14569 | C21: =SUM(C5:C20) -> 1 | E21: 総計 | F21: =SUM(F5:F20) -> 328 | G21: =SUM(G5:G20) -> 1436 | H21: =SUM(H5:H20) -> 1764 | I21: =SUM(I5:I20) -> 1
A22: 1年未満（再掲） | B22: =SUM(B5:B8) -> 6437 | C22: =IFERROR(B22/B$21,"-") -> 0.4418285401 | E22: 1年未満（再掲） | F22: =SUM(F5:F8) -> 251 | G22: =SUM(G5:G8) -> 964 | H22: =SUM(H5:H8) -> 1215 | I22: =IFERROR(H22/H$21,"-") -> 0.6887755102
A23: 1年以上5年未満（再掲） | B23: =SUM(B9:B13) -> 4178 | C23: 0.2867732857 | E23: 1年以上5年未満（再掲） | F23: =SUM(F9:F13) -> 46 | G23: =SUM(G9:G13) -> 288 | H23: =SUM(H9:H13) -> 334 | I23: 0.1893424036
A24: 5年以上10年未満（再掲） | B24: =SUM(B14:B18) -> 1869 | C24: 0.1282860869 | E24: 5年以上10年未満（再掲） | F24: =SUM(F14:F18) -> 19 | G24: =SUM(G14:G18) -> 79 | H24: =SUM(H14:H18) -> 98 | I24: 0.05555555556
A25: 10年以上（再掲） | B25: =SUM(B19:B20) -> 2085 | C25: 0.1431120873 | E25: 10年以上（再掲） | F25: =SUM(F19:F20) -> 12 | G25: =SUM(G19:G20) -> 105 | H25: =SUM(H19:H20) -> 117 | I25: 0.06632653061

Sheet ２-Ⅴ
A1: 【状態像区分】
A3: 〔全状態像〕
B4: 人数 | C4: 割合
A5: 寛解 | B5: 328 | C5: =IFERROR(B5/B$11,"-") -> 0.02251355618
A6: 院内寛解 | B6: 1436 | C6: =IFERROR(B6/B$11,"-") -> 0.09856544718
A7: 軽度 | B7: 2711 | C7: 0.1860800329
A8: 中等度 | B8: 5984 | C8: 0.4107351225
A9: 重度 | B9: 3467 | C9: 0.2379710344
A10: 最重度 | B10: 643 | C10: 0.04413480678
A11: 総計 | B11: =SUM(B5:B10) -> 14569 | C11: =SUM(C5:C10) -> 1
B13: こちらのシートは直接貼り付けです。

Sheet ２-Ⅵ
A1: 【退院予定の有無】
A3: 〔全状態像〕 | E3: 〔寛解・院内寛解群〕
B4: 人数 | C4: 割合 | F4: 寛解 | G4: 院内寛解 | H4: 計 | I4: 割合
A5: 病状（主症状）が落ち着き、入院によらない形で治療ができるまで回復 | B5: 2188 | C5: =IFERROR(B5/B$8,"-") -> 0.1501818931 | E5: 病状（主症状）が落ち着き、入院によらない形で治療ができるまで回復 | F5: 108 | G5: 528 | H5: =SUM(F5:G5) -> 636 | I5: =IFERROR(H5/H$8,"-") -> 0.3605442177
A6: 病状（主症状）が不安定で入院による治療が必要 | B6: 10815 | C6: =IFERROR(B6/B$8,"-") -> 0.742329604 | E6: 病状（主症状）が不安定で入院による治療が必要 | F6: 12 | G6: 350 | H6: =SUM(F6:G6) -> 362 | I6: =IFERROR(H6/H$8,"-") -> 0.2052154195
A7: 退院予定 | B7: 1566 | C7: 0.107488503 | E7: 退院予定 | F7: 208 | G7: 558 | H7: 766 | I7: 0.4342403628
A8: 総計 | B8: =SUM(B5:B7) -> 14569 | C8: =SUM(C5:C7) -> 1 | E8: 総計 | F8: =SUM(F5:F7) -> 328 | G8: =SUM(G5:G7) -> 1436 | H8: =SUM(H5:H7) -> 1764 | I8: =SUM(I5:I7) -> 1 | K8: こちらのシートは直接入力です。
A10: 【退院阻害要因の有無】
A12: 〔全状態像〕 | E12: 〔寛解・院内寛解群〕
B13: 人数 | C13: 割合 | F13: 寛解 | G13: 院内寛解 | H13: 計 | I13: 割合
A14: 退院阻害要因がある | B14: 1956 | C14: =IFERROR(B14/B$16,"-") -> 0.8939670932 | E14: 退院阻害要因がある | F14: 96 | G14: 464 | H14: =SUM(F14:G14) -> 560 | I14: =IFERROR(H14/H$16,"-") -> 0.8805031447
A15: 退院阻害要因はない | B15: 232 | C15: =IFERROR(B15/B$16,"-") -> 0.1060329068 | E15: 退院阻害要因はない | F15: 12 | G15: 64 | H15: =SUM(F15:G15) -> 76 | I15: =IFERROR(H15/H$16,"-") -> 0.1194968553
A16: 総計 | B16: =SUM(B14:B15) -> 2188 | C16: =SUM(C14:C15) -> 1 | E16: 総計 | F16: =SUM(F14:F15) -> 108 | G16: =SUM(G14:G15) -> 528 | H16: =SUM(H14:H15) -> 636 | I16: =SUM(I14:I15) -> 1
A18: 【退院阻害要因（複数回答）】
A20: 〔全状態像〕 | E20: 〔寛解・院内寛解群〕
A21: =B14 -> 1956 | E21: =H14 -> 560
B22: 回答数 | C22: 割合 | F22: 寛解 | G22: 院内寛解 | H22: 計 | I22: 割合
A23: 病状は落ち着いているが、ときどき不安定な病状が見られ、そのことが退院を阻害する要因になっている | B23: 660 | C23: =IFERROR(B23/B$14,"-") -> 0.3374233129 | E23: 病状は落ち着いているが、ときどき不安定な病状が見られ、そのことが退院を阻害する要因になっている | F23: 21 | G23: 142 | H23: =SUM(F23:G23) -> 163 | I23: =IFERROR(H23/H$14,"-") -> 0.2910714286
A24: 病識がなく通院服薬の中断が予測される | B24: 509 | C24: =IFERROR(B24/B$14,"-") -> 0.2602249489 | E24: 病識がなく通院服薬の中断が予測される | F24: 14 | G24: 89 | H24: =SUM(F24:G24) -> 103 | I24: =IFERROR(H24/H$14,"-") -> 0.1839285714
A25: 反社会的行動が予測される | B25: 82 | C25: 0.04192229039 | E25: 反社会的行動が予測される | F25: 1 | G25: 12 | H25: 13 | I25: 0.02321428571
A26: 退院意欲が乏しい | B26: 726 | C26: 0.3711656442 | E26: 退院意欲が乏しい | F26: 29 | G26: 167 | H26: 196 | I26: 0.35
A27: 現実認識が乏しい | B27: 737 | C27: 0.3767893661 | E27: 現実認識が乏しい | F27: 24 | G27: 127 | H27: 151 | I27: 0.2696428571
A28: 退院による環境変化への不安が強い | B28: 499 | C28: 0.2551124744 | E28: 退院による環境変化への不安が強い | F28: 25 | G28: 121 | H28: 146 | I28: 0.2607142857
A29: 援助者との対人関係がもてない | B29: 151 | C29: 0.07719836401 | E29: 援助者との対人関係がもてない | F29: 4 | G29: 17 | H29: 21 | I29: 0.0375
A30: 家事（食事・洗濯・金銭管理など）ができない | B30: 579 | C30: 0.2960122699 | E30: 家事（食事・洗濯・金銭管理など）ができない | F30: 23 | G30: 110 | H30: 133 | I30: 0.2375
A31: 家族がいない、本人をサポートする機能が実質ない | B31: 317 | C31: 0.1620654397 | E31: 家族がいない、本人をサポートする機能が実質ない | F31: 20 | G31: 70 | H31: 90 | I31: 0.1607142857
A32: 家族が退院に反対している | B32: 420 | C32: 0.2147239264 | E32: 家族が退院に反対している | F32: 30 | G32: 90 | H32: 120 | I32: 0.2142857143
A33: 住まいの確保ができない | B33: 615 | C33: 0.3144171779 | E33: 住まいの確保ができない | F33: 38 | G33: 145 | H33: 183 | I33: 0.3267857143
A34: 生活費の確保ができない | B34: 114 | C34: 0.05828220859 | E34: 生活費の確保ができない | F34: 4 | G34: 29 | H34: 33 | I34: 0.05892857143
A35: 日常生活を支える制度がない | B35: 132 | C35: 0.06748466258 | E35: 日常生活を支える制度がない | F35: 2 | G35: 22 | H35: 24 | I35: 0.04285714286
A36: 救急診療体制がない | B36: 5 | C36: 0.002556237219 | E36: 救急診療体制がない | F36: 0 | G36: 1 | H36: 1 | I36: 0.001785714286
A37: 退院に向けてサポートする人的資源が乏しい | B37: 146 | C37: 0.07464212679 | E37: 退院に向けてサポートする人的資源が乏しい | F37: 8 | G37: 38 | H37: 46 | I37: 0.08214285714
A38: 退院後サポート・マネジメントする人的資源が乏しい | B38: 110 | C38: 0.05623721881 | E38: 退院後サポート・マネジメントする人的資源が乏しい | F38: 4 | G38: 32 | H38: 36 | I38: 0.06428571429
A39: 住所地と入院先の距離があり支援体制がとりにくい | B39: 30 | C39: 0.01533742331 | E39: 住所地と入院先の距離があり支援体制がとりにくい | F39: 2 | G39: 9 | H39: 11 | I39: 0.01964285714
A40: 身体的機能や状態を原因としたADLの低下がある | B40: 331 | C40: 0.1692229039 | E40: 身体的機能や状態を原因としたADLの低下がある | F40: 12 | G40: 41 | H40: 53 | I40: 0.09464285714
A41: 身体合併症の程度が重いなど身体面のフォローが必要であり、地域での生活が困難 | B41: 211 | C41: 0.1078732106 | E41: 身体合併症の程度が重いなど身体面のフォローが必要であり、地域での生活が困難 | F41: 4 | G41: 13 | H41: 17 | I41: 0.03035714286
A42: その他の退院阻害要因がある | B42: 44 | C42: 0.02249488753 | E42: その他の退院阻害要因がある | F42: 5 | G42: 13 | H42: 18 | I42: 0.03214285714

Sheet ３-Ⅰ
A1: 【年齢区分（在院期間１年以上）】
K2: データ貼り付け箇所
A3: 〔全状態像〕 | E3: 〔寛解・院内寛解群〕 | K3: 年齢区分 | L3: 患者全体 | N3: 年齢区分 | O3: 寛解 | P3: 年齢区分 | Q3: 院内寛解
B4: 人数 | C4: 割合 | F4: 寛解 | G4: 院内寛解 | H4: 計 | I4: 割合 | K4: 行ラベル | L4: データの個数 / 年齢 | N4: 行ラベル | O4: データの個数 / 年齢 | P4: 行ラベル | Q4: データの個数 / 年齢
A5: 19歳以下 | B5: =IFERROR(VLOOKUP($A5,年齢区分＿1年以上[#All],2,FALSE),0) -> 3 | C5: =IFERROR(B5/B$14,"-") -> 0.0003689129365 | E5: 19歳以下 | F5: =IFERROR(VLOOKUP($A5,年齢区分＿1年以上＿寛解[#All],2,FALSE),0) -> 0 | G5: =IFERROR(VLOOKUP($A5,年齢区分＿1年以上＿院内寛解[#All],2,FALSE),0) -> 0 | H5: =SUM(F5:G5) -> 0 | I5: =IFERROR(H5/H$14,"-") -> 0 | K5: 19歳以下 | L5: 3 | N5: 19歳以下 | O5: 0 | P5: 19歳以下 | Q5: 0
A6: 20歳代 | B6: =IFERROR(VLOOKUP($A6,年齢区分＿1年以上[#All],2,FALSE),0) -> 50 | C6: =IFERROR(B6/B$14,"-") -> 0.006148548942 | E6: 20歳代 | F6: =IFERROR(VLOOKUP($A6,年齢区分＿1年以上＿寛解[#All],2,FALSE),0) -> 0 | G6: =IFERROR(VLOOKUP($A6,年齢区分＿1年以上＿院内寛解[#All],2,FALSE),0) -> 4 | H6: =SUM(F6:G6) -> 4 | I6: =IFERROR(H6/H$14,"-") -> 0.007285974499 | K6: 20歳代 | L6: 50 | N6: 20歳代 | O6: 0 | P6: 20歳代 | Q6: 4
A7: 30歳代 | B7: =IFERROR(VLOOKUP($A7,年齢区分＿1年以上[#All],2,FALSE),0) -> 192 | C7: 0.02361042794 | E7: 30歳代 | F7: =IFERROR(VLOOKUP($A7,年齢区分＿1年以上＿寛解[#All],2,FALSE),0) -> 3 | G7: =IFERROR(VLOOKUP($A7,年齢区分＿1年以上＿院内寛解[#All],2,FALSE),0) -> 11 | H7: 14 | I7: 0.02550091075 | K7: 30歳代 | L7: 192 | N7: 30歳代 | O7: 3 | P7: 30歳代 | Q7: 11
A8: 40歳代 | B8: =IFERROR(VLOOKUP($A8,年齢区分＿1年以上[#All],2,FALSE),0) -> 580 | C8: 0.07132316773 | E8: 40歳代 | F8: =IFERROR(VLOOKUP($A8,年齢区分＿1年以上＿寛解[#All],2,FALSE),0) -> 4 | G8: =IFERROR(VLOOKUP($A8,年齢区分＿1年以上＿院内寛解[#All],2,FALSE),0) -> 29 | H8: 33 | I8: 0.06010928962 | K8: 40歳代 | L8: 580 | N8: 40歳代 | O8: 4 | P8: 40歳代 | Q8: 29
A9: 50歳代 | B9: =IFERROR(VLOOKUP($A9,年齢区分＿1年以上[#All],2,FALSE),0) -> 1394 | C9: 0.1714215445 | E9: 50歳代 | F9: =IFERROR(VLOOKUP($A9,年齢区分＿1年以上＿寛解[#All],2,FALSE),0) -> 14 | G9: =IFERROR(VLOOKUP($A9,年齢区分＿1年以上＿院内寛解[#All],2,FALSE),0) -> 69 | H9: 83 | I9: 0.1511839709 | K9: 50歳代 | L9: 1394 | N9: 50歳代 | O9: 14 | P9: 50歳代 | Q9: 69
A10: 60歳代 | B10: =IFERROR(VLOOKUP($A10,年齢区分＿1年以上[#All],2,FALSE),0) -> 1519 | C10: 0.1867929169 | E10: 60歳代 | F10: =IFERROR(VLOOKUP($A10,年齢区分＿1年以上＿寛解[#All],2,FALSE),0) -> 18 | G10: =IFERROR(VLOOKUP($A10,年齢区分＿1年以上＿院内寛解[#All],2,FALSE),0) -> 97 | H10: 115 | I10: 0.2094717668 | K10: 60歳代 | L10: 1519 | N10: 60歳代 | O10: 18 | P10: 60歳代 | Q10: 97
A11: 70歳代 | B11: =IFERROR(VLOOKUP($A11,年齢区分＿1年以上[#All],2,FALSE),0) -> 2184 | C11: 0.2685686178 | E11: 70歳代 | F11: =IFERROR(VLOOKUP($A11,年齢区分＿1年以上＿寛解[#All],2,FALSE),0) -> 22 | G11: =IFERROR(VLOOKUP($A11,年齢区分＿1年以上＿院内寛解[#All],2,FALSE),0) -> 139 | H11: 161 | I11: 0.2932604736 | K11: 70歳代 | L11: 2184 | N11: 70歳代 | O11: 22 | P11: 70歳代 | Q11: 139
A12: 80歳代 | B12: =IFERROR(VLOOKUP($A12,年齢区分＿1年以上[#All],2,FALSE),0) -> 1738 | C12: 0.2137235612 | E12: 80歳代 | F12: =IFERROR(VLOOKUP($A12,年齢区分＿1年以上＿寛解[#All],2,FALSE),0) -> 11 | G12: =IFERROR(VLOOKUP($A12,年齢区分＿1年以上＿院内寛解[#All],2,FALSE),0) -> 100 | H12: 111 | I12: 0.2021857923 | K12: 80歳代 | L12: 1738 | N12: 80歳代 | O12: 11 | P12: 80歳代 | Q12: 100
A13: 90歳以上 | B13: =IFERROR(VLOOKUP($A13,年齢区分＿1年以上[#All],2,FALSE),0) -> 472 | C13: 0.05804230202 | E13: 90歳以上 | F13: =IFERROR(VLOOKUP($A13,年齢区分＿1年以上＿寛解[#All],2,FALSE),0) -> 5 | G13: =IFERROR(VLOOKUP($A13,年齢区分＿1年以上＿院内寛解[#All],2,FALSE),0) -> 23 | H13: 28 | I13: 0.05100182149 | K13: 90歳以上 | L13: 472 | N13: 90歳以上 | O13: 5 | P13: 90歳以上 | Q13: 23
A14: 総計 | B14: =SUM(B5:B13) -> 8132 | C14: =SUM(C5:C13) -> 1 | E14: 総計 | F14: =SUM(F5:F13) -> 77 | G14: =SUM(G5:G13) -> 472 | H14: =SUM(H5:H13) -> 549 | I14: =SUM(I5:I13) -> 1
A15: 65歳未満（再掲） | B15: =B14-B16 -> 3015 | C15: =IFERROR(B15/B$14,"-") -> 0.3707575012 | E15: 65歳未満（再掲） | F15: =F14-F16 -> 30 | G15: 167 | H15: =SUM(F15:G15) -> 197 | I15: 0.3588342441 | K15: 65歳以上（再掲） | L15: 5117 | N15: 65歳以上（再掲） | O15: 47 | P15: 65歳以上（再掲） | Q15: 305
A16: 65歳以上（再掲） | B16: =L15 -> 5117 | C16: 0.6292424988 | E16: 65歳以上（再掲） | F16: =O15 -> 47 | G16: =Q15 -> 305 | H16: =SUM(F16:G16) -> 352 | I16: 0.6411657559

Sheet ３-Ⅱ
A1: 【入院形態区分（在院期間１年以上）】
G2: データ貼り付け箇所
A3: 〔全状態像〕 | G3: 入院形態 | H3: 人数
B4: 人数 | C4: 割合 | G4: 行ラベル | H4: データの個数 / 入院
A5: 措置入院・緊急措置入院 | B5: =IFERROR(VLOOKUP("措置入院",入院形態＿1年以上[#All],2,FALSE),0)+IFERROR(VLOOKUP("緊急措置入院",入院形態＿1年以上[#All],2,FALSE),0) -> 5 | C5: =IFERROR(B5/B$10,"-") -> 0.0006148548942 | G5: 任意入院 | H5: 3692
A6: 医療保護入院 | B6: =IFERROR(VLOOKUP(A6,入院形態＿1年以上[#All],2,FALSE),0) -> 4413 | C6: =IFERROR(B6/B$10,"-") -> 0.5426709297 | G6: 措置入院 | H6: 5
A7: 任意入院 | B7: =IFERROR(VLOOKUP(A7,入院形態＿1年以上[#All],2,FALSE),0) -> 3692 | C7: 0.4540088539 | G7: 鑑定入院 | H7: 0
A8: 応急入院 | B8: =IFERROR(VLOOKUP(A8,入院形態＿1年以上[#All],2,FALSE),0) -> 0 | C8: 0 | G8: 応急入院 | H8: 0
A9: その他 | B9: =IFERROR(VLOOKUP("鑑定入院",入院形態＿1年以上[#All],2,FALSE),0)+IFERROR(VLOOKUP("医療観察法による入院",入院形態＿1年以上[#All],2,FALSE),0)+IFERROR(VLOOKUP("不明",入院形態＿1年以上[#All],2,FALSE),0) -> 22 | C9: 0.002705361535 | G9: 医療保護入院 | H9: 4413
A10: 総計 | B10: =SUM(B5:B9) -> 8132 | C10: =SUM(C5:C9) -> 1 | G10: 医療観察法による入院 | H10: 22
G11: 緊急措置入院 | H11: 0
G12: 不明 | H12: 0
A14: 〔寛解・院内寛解群〕
B15: 寛解 | C15: 院内寛解 | D15: 計 | E15: 割合 | G15: 入院形態 | H15: 寛解 | J15: 入院形態 | K15: 院内寛解
A16: 措置入院・緊急措置入院 | B16: =IFERROR(VLOOKUP("措置入院",入院形態＿1年以上＿寛解[#All],2,FALSE),0)+IFERROR(VLOOKUP("緊急措置入院",入院形態＿1年以上＿寛解[#All],2,FALSE),0) -> 1 | C16: =IFERROR(VLOOKUP("措置入院",入院形態＿1年以上＿院内寛解[#All],2,FALSE),0)+IFERROR(VLOOKUP("緊急措置入院",入院形態＿1年以上＿院内寛解[#All],2,FALSE),0) -> 0 | D16: =SUM(B16:C16) -> 1 | E16: =IFERROR(D16/D$21,"-") -> 0.001821493625 | G16: 行ラベル | H16: データの個数 / 入院 | J16: 行ラベル | K16: データの個数 / 入院
A17: 医療保護入院 | B17: =IFERROR(VLOOKUP($A17,入院形態＿1年以上＿寛解[#All],2,FALSE),0) -> 32 | C17: =IFERROR(VLOOKUP($A17,入院形態＿1年以上＿院内寛解[#All],2,FALSE),0) -> 121 | D17: =SUM(B17:C17) -> 153 | E17: =IFERROR(D17/D$21,"-") -> 0.2786885246 | G17: 任意入院 | H17: 44 | J17: 任意入院 | K17: 350
A18: 任意入院 | B18: =IFERROR(VLOOKUP($A18,入院形態＿1年以上＿寛解[#All],2,FALSE),0) -> 44 | C18: =IFERROR(VLOOKUP($A18,入院形態＿1年以上＿院内寛解[#All],2,FALSE),0) -> 350 | D18: 394 | E18: 0.7176684882 | G18: 措置入院 | H18: 1 | J18: 措置入院 | K18: 0
A19: 応急入院 | B19: =IFERROR(VLOOKUP($A19,入院形態＿1年以上＿寛解[#All],2,FALSE),0) -> 0 | C19: =IFERROR(VLOOKUP($A19,入院形態＿1年以上＿院内寛解[#All],2,FALSE),0) -> 0 | D19: 0 | E19: 0 | G19: 鑑定入院 | H19: 0 | J19: 鑑定入院 | K19: 0
A20: その他 | B20: =IFERROR(VLOOKUP("鑑定入院",入院形態＿1年以上＿寛解[#All],2,FALSE),0)+IFERROR(VLOOKUP("医療観察法による入院",入院形態＿1年以上＿寛解[#All],2,FALSE),0)+IFERROR(VLOOKUP("不明",入院形態＿1年以上＿寛解[#All],2,FALSE),0) -> 0 | C20: =IFERROR(VLOOKUP("鑑定入院",入院形態＿1年以上＿院内寛解[#All],2,FALSE),0)+IFERROR(VLOOKUP("医療観察法による入院",入院形態＿1年以上＿院内寛解[#All],2,FALSE),0)+IFERROR(VLOOKUP("不明",入院形態＿1年以上＿院内寛解[#All],2,FALSE),0)+IFERROR(VLOOKUP("不明",入院形態＿1年以上＿院内寛解[#All],2,FALSE),0) -> 1 | D20: 1 | E20: 0.001821493625 | G20: 応急入院 | H20: 0 | J20: 応急入院 | K20: 0
A21: 総計 | B21: =SUM(B16:B20) -> 77 | C21: =SUM(C16:C20) -> 472 | D21: =SUM(D16:D20) -> 549 | E21: =SUM(E16:E20) -> 1 | G21: 医療保護入院 | H21: 32 | J21: 医療保護入院 | K21: 121
G22: 医療観察法による入院 | H22: 0 | J22: 医療観察法による入院 | K22: 1
G23: 緊急措置入院 | H23: 0 | J23: 緊急措置入院 | K23: 0
G24: 不明 | H24: 0 | J24: 不明 | K24: 0

Sheet ３-Ⅲ
A1: 【疾患名区分（在院期間１年以上）】
A3: 〔全状態像〕 | F3: 〔寛解・院内寛解群〕
C4: 人数 | D4: 割合 | H4: 寛解 | I4: 院内寛解 | J4: 計 | K4: 割合 | M4: F00アルツハイマー病型認知症 | O4: F0 | Q4: データ貼り付けは表の下にあります。
A5: 症状性を含む器質性精神障害（F0） | C5: =SUM(C6:C8) -> 2031 | D5: =IFERROR(C5/C$21,"-") -> 0.249754058 | F5: 症状性を含む器質性精神障害（F0） | H5: =SUM(H6:H8) -> 22 | I5: =SUM(I6:I8) -> 117 | J5: =SUM(H5:I5) -> 139 | K5: =IFERROR(J5/J$21,"-") -> 0.2531876138 | M5: F01血管性認知症 | O5: F1 | Q5: 直接入力しないようにご注意ください。
B6: アルツハイマー病の認知症を含む器質性精神障害（F00） | C6: =IFERROR(VLOOKUP($M4,疾患別＿1年以上[#All],2,FALSE),0) -> 998 | D6: 0.1227250369 | G6: アルツハイマー病の認知症を含む器質性精神障害（F00） | H6: =IFERROR(VLOOKUP($M4,疾患別＿1年以上＿寛解[#All],2,FALSE),0) -> 7 | I6: =IFERROR(VLOOKUP($M4,疾患別＿1年以上＿院内寛解[#All],2,FALSE),0) -> 43 | J6: =SUM(H6:I6) -> 50 | K6: 0.09107468124 | M6: F02-09上記以外の症状性を含む器質性精神障害 | O6: F2
B7: 血管性認知症を含む器質性精神障害（F01） | C7: =IFERROR(VLOOKUP($M5,疾患別＿1年以上[#All],2,FALSE),0) -> 180 | D7: 0.02213477619 | G7: 血管性認知症を含む器質性精神障害（F01） | H7: =IFERROR(VLOOKUP($M5,疾患別＿1年以上＿寛解[#All],2,FALSE),0) -> 3 | I7: =IFERROR(VLOOKUP($M5,疾患別＿1年以上＿院内寛解[#All],2,FALSE),0) -> 10 | J7: 13 | K7: 0.02367941712 | M7: F10アルコール使用による精神及び行動の障害 | O7: F3
B8: アルツハイマー病の認知症・血管性認知症以外の、 症状性を含む器質性精神障害（F02-F09） | C8: =IFERROR(VLOOKUP($M6,疾患別＿1年以上[#All],2,FALSE),0) -> 853 | D8: 0.104894245 | G8: アルツハイマー病の認知症・血管性認知症以外の、 症状性を含む器質性精神障害（F02-F09） | H8: =IFERROR(VLOOKUP($M6,疾患別＿1年以上＿寛解[#All],2,FALSE),0) -> 12 | I8: =IFERROR(VLOOKUP($M6,疾患別＿1年以上＿院内寛解[#All],2,FALSE),0) -> 64 | J8: 76 | K8: 0.1384335155 | M8: アルコール覚せい剤を除く精神作用物質使用による精神及び行動の障害※ | O8: F4
A9: 精神作用物質使用による精神及び行動の障害（F1） | C9: =IFERROR(VLOOKUP($M7,疾患別＿1年以上[#All],2,FALSE),0)+IFERROR(VLOOKUP($M8,疾患別＿1年以上[#All],2,FALSE),0)+IFERROR(VLOOKUP($M9,疾患別＿1年以上[#All],2,FALSE),0) -> 320 | D9: 0.03935071323 | F9: 精神作用物質使用による精神及び行動の障害（F1） | H9: =IFERROR(VLOOKUP($M7,疾患別＿1年以上＿寛解[#All],2,FALSE),0)+IFERROR(VLOOKUP($M8,疾患別＿1年以上＿寛解[#All],2,FALSE),0)+IFERROR(VLOOKUP($M9,疾患別＿1年以上＿寛解[#All],2,FALSE),0) -> 4 | I9: =IFERROR(VLOOKUP($M7,疾患別＿1年以上＿院内寛解[#All],2,FALSE),0)+IFERROR(VLOOKUP($M8,疾患別＿1年以上＿院内寛解[#All],2,FALSE),0)+IFERROR(VLOOKUP($M9,疾患別＿1年以上＿院内寛解[#All],2,FALSE),0) -> 35 | J9: 39 | K9: 0.07103825137 | M9: 覚せい剤による精神及び行動の障害※ | O9: F5
A10: 統合失調症、統合失調症型障害及び妄想性障害（F2） | C10: =IFERROR(VLOOKUP($M10,疾患別＿1年以上[#All],2,FALSE),0) -> 4793 | D10: 0.5893999016 | F10: 統合失調症、統合失調症型障害及び妄想性障害（F2） | H10: =IFERROR(VLOOKUP($M10,疾患別＿1年以上＿寛解[#All],2,FALSE),0) -> 34 | I10: =IFERROR(VLOOKUP($M10,疾患別＿1年以上＿院内寛解[#All],2,FALSE),0) -> 244 | J10: 278 | K10: 0.5063752277 | M10: F2統合失調症、統合失調症型障害及び妄想性障害 | O10: F6
A11: 気分（感情）障害（F3） | C11: =IFERROR(VLOOKUP($M11,疾患別＿1年以上[#All],2,FALSE),0)+IFERROR(VLOOKUP($M12,疾患別＿1年以上[#All],2,FALSE),0) -> 597 | D11: 0.07341367437 | F11: 気分（感情）障害（F3） | H11: =IFERROR(VLOOKUP($M11,疾患別＿1年以上＿寛解[#All],2,FALSE),0)+IFERROR(VLOOKUP($M12,疾患別＿1年以上＿寛解[#All],2,FALSE),0) -> 14 | I11: =IFERROR(VLOOKUP($M11,疾患別＿1年以上＿院内寛解[#All],2,FALSE),0)+IFERROR(VLOOKUP($M12,疾患別＿1年以上＿院内寛解[#All],2,FALSE),0) -> 52 | J11: 66 | K11: 0.1202185792 | M11: F30‐31 躁病エピソード・双極性感情障害［躁うつ病］ | O11: F7
A12: 神経症性障害、ストレス関連障害及び身体表現性障害（F4） | C12: =IFERROR(VLOOKUP($M13,疾患別＿1年以上[#All],2,FALSE),0) -> 75 | D12: 0.009222823414 | F12: 神経症性障害、ストレス関連障害及び身体表現性障害（F4） | H12: =IFERROR(VLOOKUP($M13,疾患別＿1年以上＿寛解[#All],2,FALSE),0) -> 0 | I12: =IFERROR(VLOOKUP($M13,疾患別＿1年以上＿院内寛解[#All],2,FALSE),0) -> 10 | J12: 10 | K12: 0.01821493625 | M12: F32-39 その他の気分障害 | O12: F8
A13: 生理的障害及び身体的要因に関連した行動症候群（F5） | C13: =IFERROR(VLOOKUP($M14,疾患別＿1年以上[#All],2,FALSE),0) -> 5 | D13: 0.0006148548942 | F13: 生理的障害及び身体的要因に関連した行動症候群（F5） | H13: =IFERROR(VLOOKUP($M14,疾患別＿1年以上＿寛解[#All],2,FALSE),0) -> 0 | I13: =IFERROR(VLOOKUP($M14,疾患別＿1年以上＿院内寛解[#All],2,FALSE),0) -> 1 | J13: 1 | K13: 0.001821493625 | M13: F4神経症性障害、ストレス関連障害及び身体表現性障害 | O13: F9
A14: 成人のパーソナリティ及び行動の障害（F6) | C14: =IFERROR(VLOOKUP($M15,疾患別＿1年以上[#All],2,FALSE),0) -> 14 | D14: 0.001721593704 | F14: 成人のパーソナリティ及び行動の障害（F6) | H14: =IFERROR(VLOOKUP($M15,疾患別＿1年以上＿寛解[#All],2,FALSE),0) -> 0 | I14: =IFERROR(VLOOKUP($M15,疾患別＿1年以上＿院内寛解[#All],2,FALSE),0) -> 1 | J14: 1 | K14: 0.001821493625 | M14: F5生理的障害及び身体的要因に関連した行動症候群 | O14: てんかん
A15: 精神遅滞〔知的障害〕（F7) | C15: =IFERROR(VLOOKUP($M16,疾患別＿1年以上[#All],2,FALSE),0) -> 153 | D15: 0.01881455976 | F15: 精神遅滞〔知的障害〕（F7) | H15: =IFERROR(VLOOKUP($M16,疾患別＿1年以上＿寛解[#All],2,FALSE),0) -> 1 | I15: =IFERROR(VLOOKUP($M16,疾患別＿1年以上＿院内寛解[#All],2,FALSE),0) -> 5 | J15: 6 | K15: 0.01092896175 | M15: F6成人のパーソナリティ及び行動の障害 | O15: その他
A16: 心理的発達の障害（F8） | C16: =IFERROR(VLOOKUP($M17,疾患別＿1年以上[#All],2,FALSE),0) -> 46 | D16: 0.005656665027 | F16: 心理的発達の障害（F8） | H16: =IFERROR(VLOOKUP($M17,疾患別＿1年以上＿寛解[#All],2,FALSE),0) -> 0 | I16: =IFERROR(VLOOKUP($M17,疾患別＿1年以上＿院内寛解[#All],2,FALSE),0) -> 5 | J16: 5 | K16: 0.009107468124 | M16: F7精神遅滞〔知的障害〕
A17: 小児期及び青年期に通常発症する行動及び情緒の障害及び特定不能の精神障害（F9) | C17: =IFERROR(VLOOKUP($M18,疾患別＿1年以上[#All],2,FALSE),0) -> 7 | D17: 0.0008607968519 | F17: 小児期及び青年期に通常発症する行動及び情緒の障害及び特定不能の精神障害（F9) | H17: =IFERROR(VLOOKUP($M18,疾患別＿1年以上＿寛解[#All],2,FALSE),0) -> 0 | I17: =IFERROR(VLOOKUP($M18,疾患別＿1年以上＿院内寛解[#All],2,FALSE),0) -> 1 | J17: 1 | K17: 0.001821493625 | M17: F8心理的発達の障害
A18: てんかん（症状性を含む器質性障害(F0)に属さないもの） | C18: =IFERROR(VLOOKUP($M19,疾患別＿1年以上[#All],2,FALSE),0) -> 31 | D18: 0.003812100344 | F18: てんかん（症状性を含む器質性障害(F0)に属さないもの） | H18: =IFERROR(VLOOKUP($M19,疾患別＿1年以上＿寛解[#All],2,FALSE),0) -> 0 | I18: =IFERROR(VLOOKUP($M19,疾患別＿1年以上＿院内寛解[#All],2,FALSE),0) -> 1 | J18: 1 | K18: 0.001821493625 | M18: F9小児期及び青年期に通常発症する行動及び情緒の障害及び特定不能の精神障害
A19: その他 | C19: =IFERROR(VLOOKUP($M21,疾患別＿1年以上[#All],2,FALSE),0) -> 60 | D19: 0.007378258731 | F19: その他 | H19: =IFERROR(VLOOKUP($M21,疾患別＿1年以上＿寛解[#All],2,FALSE),0) -> 2 | I19: =IFERROR(VLOOKUP($M21,疾患別＿1年以上＿院内寛解[#All],2,FALSE),0) -> 0 | J19: 2 | K19: 0.00364298725 | M19: てんかん（F0に属さないものを計上する）
A20: 不明 | C20: =IFERROR(VLOOKUP($M22,疾患別＿1年以上[#All],2,FALSE),0) -> 0 | D20: 0 | F20: 不明 | H20: =IFERROR(VLOOKUP($M22,疾患別＿1年以上＿寛解[#All],2,FALSE),0) -> 0 | I20: =IFERROR(VLOOKUP($M22,疾患別＿1年以上＿院内寛解[#All],2,FALSE),0) -> 0 | J20: =SUM(H20:I20) -> 0 | K20: 0 | M20: その他
A21: 総計 | C21: =SUM(C6:C20) -> 8132 | D21: =SUM(D6:D20) -> 1 | F21: 総計 | H21: =SUM(H6:H20) -> 77 | I21: =SUM(I6:I20) -> 472 | J21: =SUM(J6:J20) -> 549 | K21: =SUM(K6:K20) -> 1 | M21: その他
B22: データ貼り付け箇所
B23: 疾患名 | C23: 人数 | G23: 疾患名 | H23: 寛解
B24: 行ラベル | C24: データの個数 / 疾患名 | G24: 行ラベル | H24: データの個数 / 疾患名
B25: F00アルツハイマー病型認知症 | C25: 998 | G25: F00アルツハイマー病型認知症 | H25: 7
B26: F01血管性認知症 | C26: 180 | G26: F01血管性認知症 | H26: 3
B27: F02-09上記以外の症状性を含む器質性精神障害 | C27: 853 | G27: F02-09上記以外の症状性を含む器質性精神障害 | H27: 12
B28: F10アルコール使用による精神及び行動の障害 | C28: 256 | G28: F10アルコール使用による精神及び行動の障害 | H28: 4
B29: アルコール覚せい剤を除く精神作用物質使用による精神及び行動の障害※ | C29: 20 | G29: アルコール覚せい剤を除く精神作用物質使用による精神及び行動の障害※ | H29: 0
B30: 覚せい剤による精神及び行動の障害※ | C30: 44 | G30: 覚せい剤による精神及び行動の障害※ | H30: 0
B31: F2統合失調症、統合失調症型障害及び妄想性障害 | C31: 4793 | G31: F2統合失調症、統合失調症型障害及び妄想性障害 | H31: 34
B32: F30‐31 躁病エピソード・双極性感情障害［躁うつ病］ | C32: 329 | G32: F30‐31 躁病エピソード・双極性感情障害［躁うつ病］ | H32: 6
B33: F32-39 その他の気分障害 | C33: 268 | G33: F32-39 その他の気分障害 | H33: 8
B34: F4神経症性障害、ストレス関連障害及び身体表現性障害 | C34: 75 | G34: F4神経症性障害、ストレス関連障害及び身体表現性障害 | H34: 0
B35: F5生理的障害及び身体的要因に関連した行動症候群 | C35: 5 | G35: F5生理的障害及び身体的要因に関連した行動症候群 | H35: 0
B36: F6成人のパーソナリティ及び行動の障害 | C36: 14 | G36: F6成人のパーソナリティ及び行動の障害 | H36: 0
B37: F7精神遅滞〔知的障害〕 | C37: 153 | G37: F7精神遅滞〔知的障害〕 | H37: 1
B38: F8心理的発達の障害 | C38: 46 | G38: F8心理的発達の障害 | H38: 0
B39: F9小児期及び青年期に通常発症する行動及び情緒の障害及び特定不能の精神障害 | C39: 7 | G39: F9小児期及び青年期に通常発症する行動及び情緒の障害及び特定不能の精神障害 | H39: 0
B40: その他 | C40: 60 | G40: その他 | H40: 2
B41: てんかん（F0に属さないものを計上する） | C41: 31 | G41: てんかん（F0に属さないものを計上する） | H41: 0
B42: 不明 | C42: 0 | G42: 不明 | H42: 0
G43: 疾患名 | H43: 院内寛解
G44: 行ラベル | H44: データの個数 / 疾患名
G45: F00アルツハイマー病型認知症 | H45: 43
G46: F01血管性認知症 | H46: 10
G47: F02-09上記以外の症状性を含む器質性精神障害 | H47: 64
G48: F10アルコール使用による精神及び行動の障害 | H48: 33
G49: アルコール覚せい剤を除く精神作用物質使用による精神及び行動の障害※ | H49: 0
G50: 覚せい剤による精神及び行動の障害※ | H50: 2
G51: F2統合失調症、統合失調症型障害及び妄想性障害 | H51: 244
G52: F30‐31 躁病エピソード・双極性感情障害［躁うつ病］ | H52: 21
G53: F32-39 その他の気分障害 | H53: 31
G54: F4神経症性障害、ストレス関連障害及び身体表現性障害 | H54: 10
G55: F5生理的障害及び身体的要因に関連した行動症候群 | H55: 1
G56: F6成人のパーソナリティ及び行動の障害 | H56: 1
G57: F7精神遅滞〔知的障害〕 | H57: 5
G58: F8心理的発達の障害 | H58: 5
G59: F9小児期及び青年期に通常発症する行動及び情緒の障害及び特定不能の精神障害 | H59: 1
G60: その他 | H60: 0
G61: てんかん（F0に属さないものを計上する） | H61: 1
G62: 不明 | H62: 0

Sheet ３-Ⅳ
A1: 【状態像区分（在院期間１年以上）】
A3: 〔全状態像〕
B4: 人数 | C4: 割合
A5: 寛解 | B5: 77 | C5: =IFERROR(B5/B$11,"-") -> 0.009468765371
A6: 院内寛解 | B6: 472 | C6: =IFERROR(B6/B$11,"-") -> 0.05804230202
A7: 軽度 | B7: 1294 | C7: 0.1591244466
A8: 中等度 | B8: 3801 | C8: 0.4674126906
A9: 重度 | B9: 2106 | C9: 0.2589768815
A10: 最重度 | B10: 382 | C10: 0.04697491392
A11: 総計 | B11: =SUM(B5:B10) -> 8132 | C11: =SUM(C5:C10) -> 1
B13: こちらのシートは直接入力です。

Sheet ３-Ⅴ
A1: 【退院予定の有無（在院期間１年以上）】
A3: 〔全状態像〕 | E3: 〔寛解・院内寛解群〕
B4: 人数 | C4: 割合 | F4: 寛解 | G4: 院内寛解 | H4: 計 | I4: 割合
A5: 病状（主症状）が落ち着き、入院によらない形で治療ができるまで回復 | B5: 1325 | C5: =IFERROR(B5/B$8,"-") -> 0.162936547 | E5: 病状（主症状）が落ち着き、入院によらない形で治療ができるまで回復 | F5: 48 | G5: 297 | H5: =SUM(F5:G5) -> 345 | I5: =IFERROR(H5/H$8,"-") -> 0.6284153005
A6: 病状（主症状）が不安定で入院による治療が必要 | B6: 6579 | C6: =IFERROR(B6/B$8,"-") -> 0.8090260698 | E6: 病状（主症状）が不安定で入院による治療が必要 | F6: 0 | G6: 103 | H6: =SUM(F6:G6) -> 103 | I6: =IFERROR(H6/H$8,"-") -> 0.1876138434
A7: 退院予定 | B7: 228 | C7: 0.02803738318 | E7: 退院予定 | F7: 29 | G7: 72 | H7: 101 | I7: 0.1839708561
A8: 総計 | B8: =SUM(B5:B7) -> 8132 | C8: =SUM(C5:C7) -> 1 | E8: 総計 | F8: =SUM(F5:F7) -> 77 | G8: =SUM(G5:G7) -> 472 | H8: =SUM(H5:H7) -> 549 | I8: =SUM(I5:I7) -> 1 | L8: こちらのシートは直接入力です。
A10: 【退院阻害要因の有無（在院期間１年以上）】
A12: 〔全状態像〕 | E12: 〔寛解・院内寛解群〕
B13: 人数 | C13: 割合 | F13: 寛解 | G13: 院内寛解 | H13: 計 | I13: 割合
A14: 退院阻害要因がある | B14: 1291 | C14: =IFERROR(B14/B$16,"-") -> 0.9743396226 | E14: 退院阻害要因がある | F14: 46 | G14: 287 | H14: =SUM(F14:G14) -> 333 | I14: =IFERROR(H14/H$16,"-") -> 0.9652173913
A15: 退院阻害要因はない | B15: 34 | C15: =IFERROR(B15/B$16,"-") -> 0.02566037736 | E15: 退院阻害要因はない | F15: 2 | G15: 10 | H15: =SUM(F15:G15) -> 12 | I15: =IFERROR(H15/H$16,"-") -> 0.0347826087
A16: 総計 | B16: =SUM(B14:B15) -> 1325 | C16: =SUM(C14:C15) -> 1 | E16: 総計 | F16: =SUM(F14:F15) -> 48 | G16: =SUM(G14:G15) -> 297 | H16: =SUM(H14:H15) -> 345 | I16: =SUM(I14:I15) -> 1
A18: 【退院阻害要因（複数回答）（在院期間１年以上）】
A20: 〔全状態像〕 | E20: 〔寛解・院内寛解群〕
A21: =B14 -> 1291 | E21: =H14 -> 333
B22: 回答数 | C22: 割合 | F22: 寛解 | G22: 院内寛解 | H22: 計 | I22: 割合
A23: 病状は落ち着いているが、ときどき不安定な病状が見られ、そのことが退院を阻害する要因になっている | B23: 439 | C23: =IFERROR(B23/B$14,"-") -> 0.3400464756 | E23: 病状は落ち着いているが、ときどき不安定な病状が見られ、そのことが退院を阻害する要因になっている | F23: 8 | G23: 82 | H23: =SUM(F23:G23) -> 90 | I23: =IFERROR(H23/H$14,"-") -> 0.2702702703
A24: 病識がなく通院服薬の中断が予測される | B24: 347 | C24: =IFERROR(B24/B$14,"-") -> 0.2687838885 | E24: 病識がなく通院服薬の中断が予測される | F24: 5 | G24: 52 | H24: =SUM(F24:G24) -> 57 | I24: =IFERROR(H24/H$14,"-") -> 0.1711711712
A25: 反社会的行動が予測される | B25: 53 | C25: 0.04105344694 | E25: 反社会的行動が予測される | F25: 1 | G25: 5 | H25: 6 | I25: 0.01801801802
A26: 退院意欲が乏しい | B26: 575 | C26: 0.4453911696 | E26: 退院意欲が乏しい | F26: 19 | G26: 132 | H26: 151 | I26: 0.4534534535
A27: 現実認識が乏しい | B27: 520 | C27: 0.402788536 | E27: 現実認識が乏しい | F27: 15 | G27: 80 | H27: 95 | I27: 0.2852852853
A28: 退院による環境変化への不安が強い | B28: 366 | C28: 0.2835011619 | E28: 退院による環境変化への不安が強い | F28: 12 | G28: 78 | H28: 90 | I28: 0.2702702703
A29: 援助者との対人関係がもてない | B29: 112 | C29: 0.08675445391 | E29: 援助者との対人関係がもてない | F29: 2 | G29: 10 | H29: 12 | I29: 0.03603603604
A30: 家事（食事・洗濯・金銭管理など）ができない | B30: 387 | C30: 0.299767622 | E30: 家事（食事・洗濯・金銭管理など）ができない | F30: 16 | G30: 67 | H30: 83 | I30: 0.2492492492
A31: 家族がいない、本人をサポートする機能が実質ない | B31: 231 | C31: 0.1789310612 | E31: 家族がいない、本人をサポートする機能が実質ない | F31: 10 | G31: 42 | H31: 52 | I31: 0.1561561562
A32: 家族が退院に反対している | B32: 309 | C32: 0.2393493416 | E32: 家族が退院に反対している | F32: 17 | G32: 62 | H32: 79 | I32: 0.2372372372
A33: 住まいの確保ができない | B33: 357 | C33: 0.2765298218 | E33: 住まいの確保ができない | F33: 18 | G33: 74 | H33: 92 | I33: 0.2762762763
A34: 生活費の確保ができない | B34: 71 | C34: 0.05499612703 | E34: 生活費の確保ができない | F34: 2 | G34: 16 | H34: 18 | I34: 0.05405405405
A35: 日常生活を支える制度がない | B35: 79 | C35: 0.06119287374 | E35: 日常生活を支える制度がない | F35: 1 | G35: 13 | H35: 14 | I35: 0.04204204204
A36: 救急診療体制がない | B36: 5 | C36: 0.003872966692 | E36: 救急診療体制がない | F36: 0 | G36: 1 | H36: 1 | I36: 0.003003003003
A37: 退院に向けてサポートする人的資源が乏しい | B37: 107 | C37: 0.08288148722 | E37: 退院に向けてサポートする人的資源が乏しい | F37: 4 | G37: 25 | H37: 29 | I37: 0.08708708709
A38: 退院後サポート・マネジメントする人的資源が乏しい | B38: 76 | C38: 0.05886909373 | E38: 退院後サポート・マネジメントする人的資源が乏しい | F38: 2 | G38: 17 | H38: 19 | I38: 0.05705705706
A39: 住所地と入院先の距離があり支援体制がとりにくい | B39: 18 | C39: 0.01394268009 | E39: 住所地と入院先の距離があり支援体制がとりにくい | F39: 1 | G39: 5 | H39: 6 | I39: 0.01801801802
A40: 身体的機能や状態を原因としたADLの低下がある | B40: 216 | C40: 0.1673121611 | E40: 身体的機能や状態を原因としたADLの低下がある | F40: 5 | G40: 26 | H40: 31 | I40: 0.09309309309
A41: 身体合併症の程度が重いなど身体面のフォローが必要であり、 地域での生活が困難 | B41: 135 | C41: 0.1045701007 | E41: 身体合併症の程度が重いなど身体面の フォローが必要であり、地域での生活が困難 | F41: 1 | G41: 6 | H41: 7 | I41: 0.02102102102
A42: その他の退院阻害要因がある | B42: 16 | C42: =IFERROR(B42/B$14,"-") -> 0.01239349342 | E42: その他の退院阻害要因がある | F42: 3 | G42: 1 | H42: 4 | I42: 0.01201201201

Sheet ４-Ⅰ
A1: 【年齢区分（65歳以上在院患者）】
I2: データ貼り付け箇所
A3: 〔全状態像〕 | E3: 〔寛解・院内寛解群〕 | I3: 年齢区分 | J3: 患者全体 | L3: 年齢区分 | M3: 寛解・院内寛解
B4: 人数 | C4: 割合 | F4: 人数 | G4: 割合 | I4: 行ラベル | J4: データの個数 / 年齢 | L4: 行ラベル | M4: データの個数 / 年齢
A5: 65歳～69歳 | B5: =IFERROR(VLOOKUP($O5,年齢区分＿65歳以上[#All],2,FALSE),0) -> 1172 | C5: =IFERROR(B5/B$11,"-") -> 0.1333636777 | E5: 65歳～69歳 | F5: =IFERROR(VLOOKUP($O5,年齢区分＿65歳以上＿寛解・院内寛解[#All],2,FALSE),0) -> 146 | G5: =IFERROR(F5/F$11,"-") -> 0.158008658 | I5: 65-69歳 | J5: 1172 | L5: 65-69歳 | M5: 146 | O5: 65-69歳
A6: 70歳～74歳 | B6: =IFERROR(VLOOKUP($O6,年齢区分＿65歳以上[#All],2,FALSE),0) -> 1733 | C6: =IFERROR(B6/B$11,"-") -> 0.1972007283 | E6: 70歳～74歳 | F6: =IFERROR(VLOOKUP($O6,年齢区分＿65歳以上＿寛解・院内寛解[#All],2,FALSE),0) -> 203 | G6: =IFERROR(F6/F$11,"-") -> 0.2196969697 | I6: 70-74歳 | J6: 1733 | L6: 70-74歳 | M6: 203 | O6: 70-74歳
A7: 75歳～79歳 | B7: =IFERROR(VLOOKUP($O7,年齢区分＿65歳以上[#All],2,FALSE),0) -> 1815 | C7: 0.206531634 | E7: 75歳～79歳 | F7: =IFERROR(VLOOKUP($O7,年齢区分＿65歳以上＿寛解・院内寛解[#All],2,FALSE),0) -> 203 | G7: 0.2196969697 | I7: 75-79歳 | J7: 1815 | L7: 75-79歳 | M7: 203 | O7: 75-79歳
A8: 80歳～84歳 | B8: =IFERROR(VLOOKUP($O8,年齢区分＿65歳以上[#All],2,FALSE),0) -> 1882 | C8: 0.2141556668 | E8: 80歳～84歳 | F8: =IFERROR(VLOOKUP($O8,年齢区分＿65歳以上＿寛解・院内寛解[#All],2,FALSE),0) -> 189 | G8: 0.2045454545 | I8: 80-84歳 | J8: 1882 | L8: 80-84歳 | M8: 189 | O8: 80-84歳
A9: 85歳～89歳 | B9: =IFERROR(VLOOKUP($O9,年齢区分＿65歳以上[#All],2,FALSE),0) -> 1367 | C9: 0.1555530269 | E9: 85歳～89歳 | F9: =IFERROR(VLOOKUP($O9,年齢区分＿65歳以上＿寛解・院内寛解[#All],2,FALSE),0) -> 121 | G9: 0.130952381 | I9: 85-89歳 | J9: 1367 | L9: 85-89歳 | M9: 121 | O9: 85-89歳
A10: 90歳～ | B10: =IFERROR(VLOOKUP($O10,年齢区分＿65歳以上[#All],2,FALSE),0) -> 819 | C10: 0.09319526627 | E10: 90歳～ | F10: =IFERROR(VLOOKUP($O10,年齢区分＿65歳以上＿寛解・院内寛解[#All],2,FALSE),0) -> 62 | G10: 0.0670995671 | I10: 90歳以上 | J10: 819 | L10: 90歳以上 | M10: 62 | O10: 90歳以上
A11: 総計 | B11: =SUM(B5:B10) -> 8788 | C11: =SUM(C5:C10) -> 1 | E11: 総計 | F11: =SUM(F5:F10) -> 924 | G11: =SUM(G5:G10) -> 1
A12: 75歳未満（再掲） | B12: =B5+B6 -> 2905 | C12: =IFERROR(B12/B$11,"-") -> 0.330564406 | E12: 75歳未満（再掲） | F12: =F5+F6 -> 349 | G12: =IFERROR(F12/F$11,"-") -> 0.3777056277
A13: 75歳以上（再掲） | B13: =B7+B8+B9+B10 -> 5883 | C13: =IFERROR(B13/B$11,"-") -> 0.669435594 | E13: 75歳以上（再掲） | F13: =F7+F8+F9+F10 -> 575 | G13: =IFERROR(F13/F$11,"-") -> 0.6222943723

Sheet ４-Ⅱ
A1: 【入院形態区分（65歳以上在院患者）】
E2: データ貼り付け箇所
A3: 〔全状態像〕 | E3: 入院形態 | F3: 人数
B4: 人数 | C4: 割合 | E4: 行ラベル | F4: データの個数 / 入院
A5: 措置入院・緊急措置入院 | B5: =IFERROR(VLOOKUP("措置入院",入院形態＿65歳以上[#All],2,FALSE),0)+IFERROR(VLOOKUP("緊急措置入院",入院形態＿65歳以上[#All],2,FALSE),0) -> 7 | C5: =IFERROR(B5/B$10,"-") -> 0.0007965407374 | E5: 任意入院 | F5: 3690
A6: 医療保護入院 | B6: =IFERROR(VLOOKUP(A6,入院形態＿65歳以上[#All],2,FALSE),0) -> 5084 | C6: =IFERROR(B6/B$10,"-") -> 0.5785161584 | E6: 措置入院 | F6: 7
A7: 任意入院 | B7: =IFERROR(VLOOKUP(A7,入院形態＿65歳以上[#All],2,FALSE),0) -> 3690 | C7: 0.4198907601 | E7: 鑑定入院 | F7: 1
A8: 応急入院 | B8: =IFERROR(VLOOKUP(A8,入院形態＿65歳以上[#All],2,FALSE),0) -> 2 | C8: 0.0002275830678 | E8: 応急入院 | F8: 2
A9: その他 | B9: =IFERROR(VLOOKUP("鑑定入院",入院形態＿65歳以上[#All],2,FALSE),0)+IFERROR(VLOOKUP("医療観察法による入院",入院形態＿65歳以上[#All],2,FALSE),0)+IFERROR(VLOOKUP("不明",入院形態＿65歳以上[#All],2,FALSE),0) -> 5 | C9: 0.0005689576695 | E9: 医療保護入院 | F9: 5084
A10: 総計 | B10: =SUM(B5:B9) -> 8788 | C10: =SUM(C5:C9) -> 1 | E10: 医療観察法による入院 | F10: 4
E11: 緊急措置入院 | F11: 0
E12: 不明 | F12: 0
E13: データ貼り付け箇所
A14: 〔寛解・院内寛解群〕 | E14: 入院形態 | F14: 寛解・院内寛解
B15: 人数 | C15: 割合 | E15: 行ラベル | F15: データの個数 / 入院
A16: 措置入院・緊急措置入院 | B16: =IFERROR(VLOOKUP("措置入院",入院形態＿65歳以上＿寛解・院内寛解[#All],2,FALSE),0)+IFERROR(VLOOKUP("緊急措置入院",入院形態＿65歳以上＿寛解・院内寛解[#All],2,FALSE),0) -> 2 | C16: =IFERROR(B16/B$21,"-") -> 0.002164502165 | E16: 任意入院 | F16: 528
A17: 医療保護入院 | B17: =IFERROR(VLOOKUP(A17,入院形態＿65歳以上＿寛解・院内寛解[#All],2,FALSE),0) -> 393 | C17: =IFERROR(B17/B$21,"-") -> 0.4253246753 | E17: 措置入院 | F17: 2
A18: 任意入院 | B18: =IFERROR(VLOOKUP(A18,入院形態＿65歳以上＿寛解・院内寛解[#All],2,FALSE),0) -> 528 | C18: 0.5714285714 | E18: 鑑定入院 | F18: 1
A19: 応急入院 | B19: =IFERROR(VLOOKUP(A19,入院形態＿65歳以上＿寛解・院内寛解[#All],2,FALSE),0) -> 0 | C19: 0 | E19: 応急入院 | F19: 0
A20: その他 | B20: =IFERROR(VLOOKUP("鑑定入院",入院形態＿65歳以上＿寛解・院内寛解[#All],2,FALSE),0)+IFERROR(VLOOKUP("医療観察法による入院",入院形態＿65歳以上＿寛解・院内寛解[#All],2,FALSE),0)+IFERROR(VLOOKUP("不明",入院形態＿65歳以上＿寛解・院内寛解[#All],2,FALSE),0) -> 1 | C20: 0.001082251082 | E20: 医療保護入院 | F20: 393
A21: 総計 | B21: =SUM(B16:B20) -> 924 | C21: =SUM(C16:C20) -> 1 | E21: 医療観察法による入院 | F21: 0
E22: 緊急措置入院 | F22: 0
E23: 不明 | F23: 0

Sheet ４-Ⅲ
B1: 【疾患名区分（65歳以上在院患者）】
B3: 〔全状態像〕 | J3: データ貼り付け箇所
G4: (再掲：患者全体) | J4: 疾患名 | K4: 人数
D5: 人数 | E5: 割合 | G5: 人数 | H5: 割合 | J5: 行ラベル | K5: データの個数 / 疾患名 | O5: F00アルツハイマー病型認知症 | T5: F0
B6: 症状性を含む器質性精神障害（F0） | D6: =SUM(D7:D9) -> 3963 | E6: =SUM(E7:E9) -> 0.4509558489 | G6: ='２-Ⅲ'!C5 -> 4241 | H6: =SUM(H7:H9) -> 0.2910975359 | J6: F00アルツハイマー病型認知症 | K6: 2150 | O6: F01血管性認知症 | T6: F1
C7: アルツハイマー病の認知症を含む器質性精神障害（F00） | D7: =IFERROR(VLOOKUP($O5,疾患別＿65歳以上[#All],2,FALSE),0) -> 2150 | E7: =IFERROR(D7/D$22,"-") -> 0.2446517979 | G7: ='２-Ⅲ'!C6 -> 2181 | H7: =IFERROR(G7/G$22,"-") -> 0.1497014208 | J7: F01血管性認知症 | K7: 327 | O7: F02-09上記以外の症状性を含む器質性精神障害 | T7: F2
C8: 血管性認知症を含む器質性精神障害（F01） | D8: =IFERROR(VLOOKUP($O6,疾患別＿65歳以上[#All],2,FALSE),0) -> 327 | E8: =IFERROR(D8/D$22,"-") -> 0.03720983159 | G8: ='２-Ⅲ'!C7 -> 343 | H8: =IFERROR(G8/G$22,"-") -> 0.02354313954 | J8: F02-09上記以外の症状性を含む器質性精神障害 | K8: 1486 | O8: F10アルコール使用による精神及び行動の障害 | T8: F3
C9: アルツハイマー病の認知症・血管性認知症以外の、症状性を含む器質性精神障害（F02-F09） | D9: =IFERROR(VLOOKUP($O7,疾患別＿65歳以上[#All],2,FALSE),0) -> 1486 | E9: 0.1690942194 | G9: ='２-Ⅲ'!C8 -> 1717 | H9: 0.1178529755 | J9: F10アルコール使用による精神及び行動の障害 | K9: 336 | O9: アルコール覚せい剤を除く精神作用物質使用による精神及び行動の障害※ | T9: F4
B10: 精神作用物質使用による精神及び行動の障害（F1） | D10: =IFERROR(VLOOKUP($O8,疾患別＿65歳以上[#All],2,FALSE),0)+IFERROR(VLOOKUP($O9,疾患別＿65歳以上[#All],2,FALSE),0)+IFERROR(VLOOKUP($O10,疾患別＿65歳以上[#All],2,FALSE),0) -> 369 | E10: 0.04198907601 | G10: ='２-Ⅲ'!C9 -> 826 | H10: 0.0566957238 | J10: アルコール覚せい剤を除く精神作用物質使用による精神及び行動の障害※ | K10: 15 | O10: 覚せい剤による精神及び行動の障害※ | T10: F5
B11: 統合失調症、統合失調症型障害及び妄想性障害（F2） | D11: =IFERROR(VLOOKUP($O11,疾患別＿65歳以上[#All],2,FALSE),0) -> 3225 | E11: 0.3669776969 | G11: ='２-Ⅲ'!C10 -> 6942 | H11: 0.4764911799 | J11: 覚せい剤による精神及び行動の障害※ | K11: 18 | O11: F2統合失調症、統合失調症型障害及び妄想性障害 | T11: F6
B12: 気分（感情）障害（F3） | D12: =IFERROR(VLOOKUP($O12,疾患別＿65歳以上[#All],2,FALSE),0)+IFERROR(VLOOKUP($O13,疾患別＿65歳以上[#All],2,FALSE),0) -> 936 | E12: 0.1065088757 | G12: ='２-Ⅲ'!C11 -> 1519 | H12: 0.1042624751 | J12: F2統合失調症、統合失調症型障害及び妄想性障害 | K12: 3225 | O12: F30‐31 躁病エピソード・双極性感情障害［躁うつ病］ | T12: F7
B13: 神経症性障害、ストレス関連障害及び身体表現性障害（F4） | D13: =IFERROR(VLOOKUP($O14,疾患別＿65歳以上[#All],2,FALSE),0) -> 97 | E13: 0.01103777879 | G13: ='２-Ⅲ'!C12 -> 238 | H13: 0.01633605601 | J13: F30‐31 躁病エピソード・双極性感情障害［躁うつ病］ | K13: 456 | O13: F32-39 その他の気分障害 | T13: F8
B14: 生理的障害及び身体的要因に関連した行動症候群（F5） | D14: =IFERROR(VLOOKUP($O15,疾患別＿65歳以上[#All],2,FALSE),0) -> 2 | E14: 0.0002275830678 | G14: ='２-Ⅲ'!C13 -> 55 | H14: 0.003775138994 | J14: F32-39 その他の気分障害 | K14: 480 | O14: F4神経症性障害、ストレス関連障害及び身体表現性障害 | T14: F9
B15: 成人のパーソナリティ及び行動の障害（F6) | D15: =IFERROR(VLOOKUP($O16,疾患別＿65歳以上[#All],2,FALSE),0) -> 8 | E15: 0.0009103322713 | G15: ='２-Ⅲ'!C14 -> 35 | H15: 0.002402361178 | J15: F4神経症性障害、ストレス関連障害及び身体表現性障害 | K15: 97 | O15: F5生理的障害及び身体的要因に関連した行動症候群 | T15: てんかん
B16: 精神遅滞〔知的障害〕（F7） | D16: =IFERROR(VLOOKUP($O17,疾患別＿65歳以上[#All],2,FALSE),0) -> 59 | E16: 0.006713700501 | G16: ='２-Ⅲ'!C15 -> 305 | H16: 0.02093486169 | J16: F5生理的障害及び身体的要因に関連した行動症候群 | K16: 2 | O16: F6成人のパーソナリティ及び行動の障害 | T16: その他
B17: 心理的発達の障害（F8） | D17: =IFERROR(VLOOKUP($O18,疾患別＿65歳以上[#All],2,FALSE),0) -> 5 | E17: 0.0005689576695 | G17: ='２-Ⅲ'!C16 -> 162 | H17: 0.01111950031 | J17: F6成人のパーソナリティ及び行動の障害 | K17: 8 | O17: F7精神遅滞〔知的障害〕
B18: 小児期及び青年期に通常発症する行動及び情緒の障害及び特定不能の精神障害（F9) | D18: =IFERROR(VLOOKUP($O19,疾患別＿65歳以上[#All],2,FALSE),0) -> 12 | E18: 0.001365498407 | G18: ='２-Ⅲ'!C17 -> 60 | H18: 0.004118333448 | J18: F7精神遅滞〔知的障害〕 | K18: 59 | O18: F8心理的発達の障害
B19: てんかん（症状性を含む器質性障害(F0)に属さないもの） | D19: =IFERROR(VLOOKUP($O20,疾患別＿65歳以上[#All],2,FALSE),0) -> 17 | E19: 0.001934456076 | G19: ='２-Ⅲ'!C18 -> 42 | H19: 0.002882833413 | J19: F8心理的発達の障害 | K19: 5 | O19: F9小児期及び青年期に通常発症する行動及び情緒の障害及び特定不能の精神障害
B20: その他 | D20: =IFERROR(VLOOKUP($O21,疾患別＿65歳以上[#All],2,FALSE),0) -> 94 | E20: 0.01069640419 | G20: ='２-Ⅲ'!C19 -> 143 | H20: 0.009815361384 | J20: F9小児期及び青年期に通常発症する行動及び情緒の障害及び特定不能の精神障害 | K20: 12 | O20: てんかん（F0に属さないものを計上する）
B21: 不明 | D21: =IFERROR(VLOOKUP($O22,疾患別＿65歳以上[#All],2,FALSE),0) -> 1 | E21: =IFERROR(D21/D$22,"-") -> 0.0001137915339 | G21: ='２-Ⅲ'!C20 -> 1 | H21: =IFERROR(G21/G$22,"-") -> 6.86388908e-05 | J21: その他 | K21: 94 | O21: その他
B22: 総計 | D22: =SUM(D7:D21) -> 8788 | E22: =SUM(E7:E20) -> 0.9998862085 | G22: =SUM(G7:G21) -> 14569 | H22: =SUM(H7:H20) -> 0.9999313611 | J22: てんかん（F0に属さないものを計上する） | K22: 17 | O22: 不明
J23: 不明 | K23: 1
B24: 〔寛解・院内寛解群〕
G25: (再掲：患者全体) | J25: 疾患名 | K25: 寛解・院内寛解
D26: 人数 | E26: 割合 | G26: 人数 | H26: 割合 | J26: 行ラベル | K26: データの個数 / 疾患名
B27: 症状性を含む器質性精神障害（F0） | D27: =SUM(D28:D30) -> 388 | E27: =SUM(E28:E30) -> 0.4199134199 | G27: ='２-Ⅲ'!J5 -> 416 | H27: =SUM(H28:H30) -> 0.2358276644 | J27: F00アルツハイマー病型認知症 | K27: 184
C28: アルツハイマー病の認知症を含む器質性精神障害（F00） | D28: =IFERROR(VLOOKUP($O5,疾患別＿65歳以上＿寛解・院内寛解[#All],2,FALSE),0) -> 184 | E28: =IFERROR(D28/D$43,"-") -> 0.1991341991 | G28: ='２-Ⅲ'!J6 -> 187 | H28: =IFERROR(G28/G$43,"-") -> 0.1060090703 | J28: F01血管性認知症 | K28: 36
C29: 血管性認知症を含む器質性精神障害（F01） | D29: =IFERROR(VLOOKUP($O6,疾患別＿65歳以上＿寛解・院内寛解[#All],2,FALSE),0) -> 36 | E29: =IFERROR(D29/D$43,"-") -> 0.03896103896 | G29: ='２-Ⅲ'!J7 -> 38 | H29: =IFERROR(G29/G$43,"-") -> 0.02154195011 | J29: F02-09上記以外の症状性を含む器質性精神障害 | K29: 168
C30: アルツハイマー病の認知症・血管性認知症以外の、症状性を含む器質性精神障害（F02-F09） | D30: =IFERROR(VLOOKUP($O7,疾患別＿65歳以上＿寛解・院内寛解[#All],2,FALSE),0) -> 168 | E30: 0.1818181818 | G30: ='２-Ⅲ'!J8 -> 191 | H30: 0.108276644 | J30: F10アルコール使用による精神及び行動の障害 | K30: 75
B31: 精神作用物質使用による精神及び行動の障害（F1） | D31: =IFERROR(VLOOKUP($O8,疾患別＿65歳以上＿寛解・院内寛解[#All],2,FALSE),0)+IFERROR(VLOOKUP($O9,疾患別＿65歳以上＿寛解・院内寛解[#All],2,FALSE),0)+IFERROR(VLOOKUP($O10,疾患別＿65歳以上＿寛解・院内寛解[#All],2,FALSE),0) -> 81 | E31: 0.08766233766 | G31: ='２-Ⅲ'!J9 -> 215 | H31: 0.1218820862 | J31: アルコール覚せい剤を除く精神作用物質使用による精神及び行動の障害※ | K31: 2
B32: 統合失調症、統合失調症型障害及び妄想性障害（F2） | D32: =IFERROR(VLOOKUP($O11,疾患別＿65歳以上＿寛解・院内寛解[#All],2,FALSE),0) -> 259 | E32: 0.2803030303 | G32: ='２-Ⅲ'!J10 -> 650 | H32: 0.3684807256 | J32: 覚せい剤による精神及び行動の障害※ | K32: 4
B33: 気分（感情）障害（F3） | D33: =IFERROR(VLOOKUP($O12,疾患別＿65歳以上＿寛解・院内寛解[#All],2,FALSE),0)+IFERROR(VLOOKUP($O13,疾患別＿65歳以上＿寛解・院内寛解[#All],2,FALSE),0) -> 153 | E33: 0.1655844156 | G33: ='２-Ⅲ'!J11 -> 321 | H33: 0.1819727891 | J33: F2統合失調症、統合失調症型障害及び妄想性障害 | K33: 259
B34: 神経症性障害、ストレス関連障害及び身体表現性障害（F4） | D34: =IFERROR(VLOOKUP($O14,疾患別＿65歳以上＿寛解・院内寛解[#All],2,FALSE),0) -> 23 | E34: 0.02489177489 | G34: ='２-Ⅲ'!J12 -> 54 | H34: 0.0306122449 | J34: F30‐31 躁病エピソード・双極性感情障害［躁うつ病］ | K34: 60
B35: 生理的障害及び身体的要因に関連した行動症候群（F5） | D35: =IFERROR(VLOOKUP($O15,疾患別＿65歳以上＿寛解・院内寛解[#All],2,FALSE),0) -> 0 | E35: 0 | G35: ='２-Ⅲ'!J13 -> 12 | H35: 0.006802721088 | J35: F32-39 その他の気分障害 | K35: 93
B36: 成人のパーソナリティ及び行動の障害（F6) | D36: =IFERROR(VLOOKUP($O16,疾患別＿65歳以上＿寛解・院内寛解[#All],2,FALSE),0) -> 2 | E36: 0.002164502165 | G36: ='２-Ⅲ'!J14 -> 8 | H36: 0.004535147392 | J36: F4神経症性障害、ストレス関連障害及び身体表現性障害 | K36: 23
B37: 精神遅滞〔知的障害〕（F7） | D37: =IFERROR(VLOOKUP($O17,疾患別＿65歳以上＿寛解・院内寛解[#All],2,FALSE),0) -> 3 | E37: 0.003246753247 | G37: ='２-Ⅲ'!J15 -> 28 | H37: 0.01587301587 | J37: F5生理的障害及び身体的要因に関連した行動症候群 | K37: 0
B38: 心理的発達の障害（F8） | D38: =IFERROR(VLOOKUP($O18,疾患別＿65歳以上＿寛解・院内寛解[#All],2,FALSE),0) -> 0 | E38: 0 | G38: ='２-Ⅲ'!J16 -> 30 | H38: 0.01700680272 | J38: F6成人のパーソナリティ及び行動の障害 | K38: 2
B39: 小児期及び青年期に通常発症する行動及び情緒の障害及び特定不能の精神障害（F9) | D39: =IFERROR(VLOOKUP($O19,疾患別＿65歳以上＿寛解・院内寛解[#All],2,FALSE),0) -> 2 | E39: 0.002164502165 | G39: ='２-Ⅲ'!J17 -> 10 | H39: 0.00566893424 | J39: F7精神遅滞〔知的障害〕 | K39: 3
B40: てんかん（症状性を含む器質性障害(F0)に属さないもの） | D40: =IFERROR(VLOOKUP($O20,疾患別＿65歳以上＿寛解・院内寛解[#All],2,FALSE),0) -> 3 | E40: 0.003246753247 | G40: ='２-Ⅲ'!J18 -> 4 | H40: 0.002267573696 | J40: F8心理的発達の障害 | K40: 0
B41: その他 | D41: =IFERROR(VLOOKUP($O21,疾患別＿65歳以上＿寛解・院内寛解[#All],2,FALSE),0) -> 10 | E41: 0.01082251082 | G41: ='２-Ⅲ'!J19 -> 16 | H41: 0.009070294785 | J41: F9小児期及び青年期に通常発症する行動及び情緒の障害及び特定不能の精神障害 | K41: 2
B42: 不明 | D42: =IFERROR(VLOOKUP($O22,疾患別＿65歳以上＿寛解・院内寛解[#All],2,FALSE),0) -> 0 | E42: =IFERROR(D42/D$22,"-") -> 0 | G42: ='２-Ⅲ'!J20 -> 0 | H42: =IFERROR(G42/G$22,"-") -> 0 | J42: その他 | K42: 10
B43: 総計 | D43: =SUM(D28:D42) -> 924 | E43: =SUM(E28:E41) -> 1 | G43: =SUM(G28:G42) -> 1764 | H43: =IFERROR(G43/$G$43,0) -> 1 | J43: てんかん（F0に属さないものを計上する） | K43: 3
J44: 不明 | K44: 0

Sheet ４-Ⅳ
A1: 【在院期間区分（65歳以上在院患者）】
B3: 65歳以上全体 | G3: (再掲：患者全体) | J3: データ貼り付け箇所
D4: うち寛解・院内寛解群 | J4: 在院期間 | K4: 患者全体 | M4: 在院期間 | N4: 寛解・院内寛解
B5: 人数 | C5: 割合 | D5: 人数 | E5: 割合 | G5: 人数 | H5: 割合 | J5: 行ラベル | K5: データの個数 / 在院 | M5: 行ラベル | N5: データの個数 / 在院
A6: 1ヶ月未満 | B6: =IFERROR(VLOOKUP($Q6,在院期間＿65歳以上[#All],2,FALSE),0) -> 800 | C6: =IFERROR(B6/B$22,"-") -> 0.09103322713 | D6: =IFERROR(VLOOKUP($Q6,在院期間＿65歳以上＿寛解・院内寛解[#All],2,FALSE),0) -> 147 | E6: =IFERROR(D6/D$22,"-") -> 0.1590909091 | G6: ='２-Ⅳ'!B5 -> 1817 | H6: =IFERROR(G6/G$22,"-") -> 0.1247168646 | J6: 01_1ヶ月未満 | K6: 800 | M6: 01_1ヶ月未満 | N6: 147 | Q6: 01_1ヶ月未満
A7: 1ヶ月～3ヶ月未満 | B7: =IFERROR(VLOOKUP($Q7,在院期間＿65歳以上[#All],2,FALSE),0) -> 1155 | C7: =IFERROR(B7/B$22,"-") -> 0.1314292217 | D7: =IFERROR(VLOOKUP($Q7,在院期間＿65歳以上＿寛解・院内寛解[#All],2,FALSE),0) -> 218 | E7: =IFERROR(D7/D$22,"-") -> 0.2359307359 | G7: ='２-Ⅳ'!B6 -> 2135 | H7: =IFERROR(G7/G$22,"-") -> 0.1465440318 | J7: 02_1ヶ月～3ヶ月未満 | K7: 1155 | M7: 02_1ヶ月～3ヶ月未満 | N7: 218 | Q7: 02_1ヶ月～3ヶ月未満
A8: 3ヶ月～6ヶ月未満 | B8: =IFERROR(VLOOKUP($Q8,在院期間＿65歳以上[#All],2,FALSE),0) -> 824 | C8: 0.09376422394 | D8: =IFERROR(VLOOKUP($Q8,在院期間＿65歳以上＿寛解・院内寛解[#All],2,FALSE),0) -> 108 | E8: 0.1168831169 | G8: ='２-Ⅳ'!B7 -> 1208 | H8: 0.08291578008 | J8: 03_3ヶ月～6ヶ月未満 | K8: 824 | M8: 03_3ヶ月～6ヶ月未満 | N8: 108 | Q8: 03_3ヶ月～6ヶ月未満
A9: 6ヶ月～1年未満 | B9: =IFERROR(VLOOKUP($Q9,在院期間＿65歳以上[#All],2,FALSE),0) -> 892 | C9: 0.1015020482 | D9: =IFERROR(VLOOKUP($Q9,在院期間＿65歳以上＿寛解・院内寛解[#All],2,FALSE),0) -> 99 | E9: 0.1071428571 | G9: ='２-Ⅳ'!B8 -> 1277 | H9: 0.08765186355 | J9: 04_6ヶ月～1年未満 | K9: 892 | M9: 04_6ヶ月～1年未満 | N9: 99 | Q9: 04_6ヶ月～1年未満
A10: 1年～1年6ヶ月未満 | B10: =IFERROR(VLOOKUP($Q10,在院期間＿65歳以上[#All],2,FALSE),0) -> 584 | C10: 0.0664542558 | D10: =IFERROR(VLOOKUP($Q10,在院期間＿65歳以上＿寛解・院内寛解[#All],2,FALSE),0) -> 54 | E10: 0.05844155844 | G10: ='２-Ⅳ'!B9 -> 839 | H10: 0.05758802938 | J10: 05_1年～1年6ヶ月未満 | K10: 584 | M10: 05_1年～1年6ヶ月未満 | N10: 54 | Q10: 05_1年～1年6ヶ月未満
A11: 1年6ヶ月～2年未満 | B11: =IFERROR(VLOOKUP($Q11,在院期間＿65歳以上[#All],2,FALSE),0) -> 508 | C11: 0.05780609923 | D11: =IFERROR(VLOOKUP($Q11,在院期間＿65歳以上＿寛解・院内寛解[#All],2,FALSE),0) -> 35 | E11: 0.03787878788 | G11: ='２-Ⅳ'!B10 -> 728 | H11: 0.0499691125 | J11: 06_1年6ヶ月～2年未満 | K11: 508 | M11: 06_1年6ヶ月～2年未満 | N11: 35 | Q11: 06_1年6ヶ月～2年未満
A12: 2年～3年未満 | B12: =IFERROR(VLOOKUP($Q12,在院期間＿65歳以上[#All],2,FALSE),0) -> 725 | C12: 0.08249886208 | D12: =IFERROR(VLOOKUP($Q12,在院期間＿65歳以上＿寛解・院内寛解[#All],2,FALSE),0) -> 58 | E12: 0.06277056277 | G12: ='２-Ⅳ'!B11 -> 1041 | H12: 0.07145308532 | J12: 07_2年～3年未満 | K12: 725 | M12: 07_2年～3年未満 | N12: 58 | Q12: 07_2年～3年未満
A13: 3年～4年未満 | B13: =IFERROR(VLOOKUP($Q13,在院期間＿65歳以上[#All],2,FALSE),0) -> 585 | C13: 0.06656804734 | D13: =IFERROR(VLOOKUP($Q13,在院期間＿65歳以上＿寛解・院内寛解[#All],2,FALSE),0) -> 40 | E13: 0.04329004329 | G13: ='２-Ⅳ'!B12 -> 894 | H13: 0.06136316837 | J13: 08_3年～4年未満 | K13: 585 | M13: 08_3年～4年未満 | N13: 40 | Q13: 08_3年～4年未満
A14: 4年～5年未満 | B14: =IFERROR(VLOOKUP($Q14,在院期間＿65歳以上[#All],2,FALSE),0) -> 451 | C14: 0.05131998179 | D14: =IFERROR(VLOOKUP($Q14,在院期間＿65歳以上＿寛解・院内寛解[#All],2,FALSE),0) -> 35 | E14: 0.03787878788 | G14: ='２-Ⅳ'!B13 -> 676 | H14: 0.04639989018 | J14: 09_4年～5年未満 | K14: 451 | M14: 09_4年～5年未満 | N14: 35 | Q14: 09_4年～5年未満
A15: 5年～6年未満 | B15: =IFERROR(VLOOKUP($Q15,在院期間＿65歳以上[#All],2,FALSE),0) -> 348 | C15: 0.0395994538 | D15: =IFERROR(VLOOKUP($Q15,在院期間＿65歳以上＿寛解・院内寛解[#All],2,FALSE),0) -> 13 | E15: 0.01406926407 | G15: ='２-Ⅳ'!B14 -> 574 | H15: 0.03939872332 | J15: 10_5年～6年未満 | K15: 348 | M15: 10_5年～6年未満 | N15: 13 | Q15: 10_5年～6年未満
A16: 6年～7年未満 | B16: =IFERROR(VLOOKUP($Q16,在院期間＿65歳以上[#All],2,FALSE),0) -> 263 | C16: 0.02992717342 | D16: =IFERROR(VLOOKUP($Q16,在院期間＿65歳以上＿寛解・院内寛解[#All],2,FALSE),0) -> 21 | E16: 0.02272727273 | G16: ='２-Ⅳ'!B15 -> 431 | H16: 0.02958336193 | J16: 11_6年～7年未満 | K16: 263 | M16: 11_6年～7年未満 | N16: 21 | Q16: 11_6年～7年未満
A17: 7年～8年未満 | B17: =IFERROR(VLOOKUP($Q17,在院期間＿65歳以上[#All],2,FALSE),0) -> 171 | C17: 0.0194583523 | D17: =IFERROR(VLOOKUP($Q17,在院期間＿65歳以上＿寛解・院内寛解[#All],2,FALSE),0) -> 13 | E17: 0.01406926407 | G17: ='２-Ⅳ'!B16 -> 304 | H17: 0.0208662228 | J17: 12_7年～8年未満 | K17: 171 | M17: 12_7年～8年未満 | N17: 13 | Q17: 12_7年～8年未満
A18: 8年～9年未満 | B18: =IFERROR(VLOOKUP($Q18,在院期間＿65歳以上[#All],2,FALSE),0) -> 154 | C18: 0.01752389622 | D18: =IFERROR(VLOOKUP($Q18,在院期間＿65歳以上＿寛解・院内寛解[#All],2,FALSE),0) -> 9 | E18: 0.00974025974 | G18: ='２-Ⅳ'!B17 -> 316 | H18: 0.02168988949 | J18: 13_8年～9年未満 | K18: 154 | M18: 13_8年～9年未満 | N18: 9 | Q18: 13_8年～9年未満
A19: 9年～10年未満 | B19: =IFERROR(VLOOKUP($Q19,在院期間＿65歳以上[#All],2,FALSE),0) -> 139 | C19: 0.01581702321 | D19: =IFERROR(VLOOKUP($Q19,在院期間＿65歳以上＿寛解・院内寛解[#All],2,FALSE),0) -> 7 | E19: 0.007575757576 | G19: ='２-Ⅳ'!B18 -> 244 | H19: 0.01674788935 | J19: 14_9年～10年未満 | K19: 139 | M19: 14_9年～10年未満 | N19: 7 | Q19: 14_9年～10年未満
A20: 10年～20年未満 | B20: =IFERROR(VLOOKUP($Q20,在院期間＿65歳以上[#All],2,FALSE),0) -> 692 | C20: 0.07874374147 | D20: =IFERROR(VLOOKUP($Q20,在院期間＿65歳以上＿寛解・院内寛解[#All],2,FALSE),0) -> 38 | E20: 0.04112554113 | G20: ='２-Ⅳ'!B19 -> 1308 | H20: 0.08977966916 | J20: 15_10年～20年未満 | K20: 692 | M20: 15_10年～20年未満 | N20: 38 | Q20: 15_10年～20年未満
A21: 20年以上 | B21: =IFERROR(VLOOKUP($Q21,在院期間＿65歳以上[#All],2,FALSE),0) -> 497 | C21: 0.05655439235 | D21: =IFERROR(VLOOKUP($Q21,在院期間＿65歳以上＿寛解・院内寛解[#All],2,FALSE),0) -> 29 | E21: 0.03138528139 | G21: ='２-Ⅳ'!B20 -> 777 | H21: 0.05333241815 | J21: 16_ 20年以上 | K21: 497 | M21: 16_ 20年以上 | N21: 29 | Q21: 16_ 20年以上
A22: 総計 | B22: =SUM(B6:B21) -> 8788 | C22: =SUM(C6:C21) -> 1 | D22: 924 | E22: =SUM(E6:E21) -> 1 | G22: =SUM(G6:G21) -> 14569 | H22: =SUM(H6:H21) -> 1
A23: 1年未満（再掲） | B23: =SUM(B6:B9) -> 3671 | C23: 0.417728721 | D23: =SUM(D6:D9) -> 572 | E23: =IFERROR(D23/D$22,"-") -> 0.619047619 | G23: =SUM(G6:G9) -> 6437 | H23: 0.4418285401
A24: 1年以上5年未満（再掲） | B24: =SUM(B10:B14) -> 2853 | C24: 0.3246472462 | D24: =SUM(D10:D14) -> 222 | E24: =IFERROR(D24/D$22,"-") -> 0.2402597403 | G24: =SUM(G10:G14) -> 4178 | H24: 0.2867732857
A25: 5年以上10年未満（再掲） | B25: =SUM(B15:B19) -> 1075 | C25: 0.122325899 | D25: =SUM(D15:D19) -> 63 | E25: 0.06818181818 | G25: =SUM(G15:G19) -> 1869 | H25: 0.1282860869
A26: 10年以上（再掲） | B26: =SUM(B20:B21) -> 1189 | C26: 0.1352981338 | D26: =SUM(D20:D21) -> 67 | E26: 0.07251082251 | G26: =SUM(G20:G21) -> 2085 | H26: 0.1431120873

Sheet ４-Ⅴ
A1: 【状態像区分（65歳以上在院患者）】
A3: 〔全在院期間〕
E4: (再掲：患者全体)
B5: 人数 | C5: 割合 | E5: 人数 | F5: 割合
A6: 寛解 | B6: 157 | C6: =IFERROR(B6/B$12,"-") -> 0.01786527082 | E6: ='２-Ⅴ'!B5 -> 328 | F6: =IFERROR(E6/E$12,"-") -> 0.02251355618
A7: 院内寛解 | B7: 767 | C7: =IFERROR(B7/B$12,"-") -> 0.08727810651 | E7: ='２-Ⅴ'!B6 -> 1436 | F7: =IFERROR(E7/E$12,"-") -> 0.09856544718
A8: 軽度 | B8: 1558 | C8: 0.1772872098 | E8: ='２-Ⅴ'!B7 -> 2711 | F8: 0.1860800329
A9: 中等度 | B9: 3779 | C9: 0.4300182066 | E9: ='２-Ⅴ'!B8 -> 5984 | F9: 0.4107351225
A10: 重度 | B10: 2154 | C10: 0.245106964 | E10: ='２-Ⅴ'!B9 -> 3467 | F10: 0.2379710344
A11: 最重度 | B11: 373 | C11: 0.04244424215 | E11: ='２-Ⅴ'!B10 -> 643 | F11: 0.04413480678
A12: 総計 | B12: =SUM(B6:B11) -> 8788 | C12: =SUM(C6:C11) -> 1 | E12: =SUM(E6:E11) -> 14569 | F12: =SUM(F6:F11) -> 1
A14: 〔1年以上在院患者〕
E15: (再掲：患者全体)
B16: 人数 | C16: 割合 | E16: 人数 | F16: 割合
A17: 寛解 | B17: 47 | C17: =IFERROR(B17/B$23,"-") -> 0.009185069377 | E17: ='３-Ⅳ'!B5 -> 77 | F17: =IFERROR(E17/E$23,"-") -> 0.009468765371
A18: 院内寛解 | B18: 305 | C18: =IFERROR(B18/B$23,"-") -> 0.05960523744 | E18: ='３-Ⅳ'!B6 -> 472 | F18: =IFERROR(E18/E$23,"-") -> 0.05804230202
A19: 軽度 | B19: 851 | C19: 0.1663083838 | E19: ='３-Ⅳ'!B7 -> 1294 | F19: 0.1591244466
A20: 中等度 | B20: 2445 | C20: 0.4778190346 | E20: ='３-Ⅳ'!B8 -> 3801 | F20: 0.4674126906
A21: 重度 | B21: 1264 | C21: 0.2470197381 | E21: ='３-Ⅳ'!B9 -> 2106 | F21: 0.2589768815
A22: 最重度 | B22: 205 | C22: 0.04006253664 | E22: ='３-Ⅳ'!B10 -> 382 | F22: 0.04697491392
A23: 総計 | B23: =SUM(B17:B22) -> 5117 | C23: =SUM(C17:C22) -> 1 | E23: =SUM(E17:E22) -> 8132 | F23: =SUM(F17:F22) -> 1
B25: こちらのシートは直接入力です。

Sheet ４-Ⅵ
A1: 【退院予定の有無（65歳以上在院患者）】
A2: 〔全状態像〕 | G2: 〔寛解・院内寛解群〕
D3: (再掲：患者全体) | J3: (再掲：患者全体)
B4: 人数 | C4: 割合 | D4: 人数 | E4: 割合 | H4: 人数 | I4: 割合 | J4: 人数 | K4: 割合
A5: 病状（主症状）が落ち着き、入院によらない形で治療ができるまで回復 | B5: 1442 | C5: =IFERROR(B5/B$8,"-") -> 0.1640873919 | D5: ='２-Ⅵ'!B5 -> 2188 | E5: =IFERROR(D5/D$8,"-") -> 0.1501818931 | G5: 病状（主症状）が落ち着き、入院によらない形で治療ができるまで回復 | H5: 385 | I5: =IFERROR(H5/H$8,"-") -> 0.4166666667 | J5: ='２-Ⅵ'!H5 -> 636 | K5: =IFERROR(J5/J$8,"-") -> 0.3605442177
A6: 病状（主症状）が不安定で入院による治療が必要 | B6: 6615 | C6: =IFERROR(B6/B$8,"-") -> 0.7527309968 | D6: ='２-Ⅵ'!B6 -> 10815 | E6: =IFERROR(D6/D$8,"-") -> 0.742329604 | G6: 病状（主症状）が不安定で入院による治療が必要 | H6: 195 | I6: =IFERROR(H6/H$8,"-") -> 0.211038961 | J6: ='２-Ⅵ'!H6 -> 362 | K6: =IFERROR(J6/J$8,"-") -> 0.2052154195
A7: 退院予定 | B7: 731 | C7: 0.08318161129 | D7: ='２-Ⅵ'!B7 -> 1566 | E7: 0.107488503 | G7: 退院予定 | H7: 344 | I7: 0.3722943723 | J7: ='２-Ⅵ'!H7 -> 766 | K7: 0.4342403628
A8: 総計 | B8: =SUM(B5:B7) -> 8788 | C8: =SUM(C5:C7) -> 1 | D8: =SUM(D5:D7) -> 14569 | E8: =SUM(E5:E7) -> 1 | G8: 総計 | H8: =SUM(H5:H7) -> 924 | I8: =SUM(I5:I7) -> 1 | J8: =SUM(J5:J7) -> 1764 | K8: =SUM(K5:K7) -> 1
A10: 〔全状態像〕 | G10: 〔寛解・院内寛解群〕
D11: (再掲：患者全体) | J11: (再掲：患者全体)
B12: 人数 | C12: 割合 | D12: 人数 | E12: 割合 | H12: 人数 | I12: 割合 | J12: 人数 | K12: 割合
A13: 退院阻害要因がある | B13: 1336 | C13: =IFERROR(B13/B$15,"-") -> 0.9264909847 | D13: ='２-Ⅵ'!B14 -> 1956 | E13: =IFERROR(D13/D$15,"-") -> 0.8939670932 | G13: 退院阻害要因がある | H13: 357 | I13: =IFERROR(H13/H$15,"-") -> 0.9272727273 | J13: ='２-Ⅵ'!H14 -> 560 | K13: =IFERROR(J13/J$15,"-") -> 0.8805031447
A14: 退院阻害要因はない | B14: 106 | C14: =IFERROR(B14/B$15,"-") -> 0.07350901526 | D14: ='２-Ⅵ'!B15 -> 232 | E14: =IFERROR(D14/D$15,"-") -> 0.1060329068 | G14: 退院阻害要因はない | H14: 28 | I14: =IFERROR(H14/H$15,"-") -> 0.07272727273 | J14: ='２-Ⅵ'!H15 -> 76 | K14: =IFERROR(J14/J$15,"-") -> 0.1194968553
A15: 総計 | B15: =SUM(B13:B14) -> 1442 | C15: =SUM(C13:C14) -> 1 | D15: =SUM(D13:D14) -> 2188 | E15: =SUM(E13:E14) -> 1 | G15: 総計 | H15: =SUM(H13:H14) -> 385 | I15: =SUM(I13:I14) -> 1 | J15: =SUM(J13:J14) -> 636 | K15: =SUM(K13:K14) -> 1
A17: 【退院阻害要因（複数回答）】
A18: 割合には「退院阻害要因がある」それぞれの人数に対する割合を表示しています。 | G18: 割合には「退院阻害要因がある」それぞれの人数に対する割合を表示しています。
D19: (再掲：患者全体) | J19: (再掲：患者全体)
B20: 人数 | C20: 割合 | D20: 人数 | E20: 割合 | H20: 人数 | I20: 割合 | J20: 人数 | K20: 割合
A21: 病状は落ち着いているが、ときどき不安定な病状が見られ、そのことが退院を阻害する要因になっている | B21: 406 | C21: =IFERROR(B21/B$13,"-") -> 0.3038922156 | D21: ='２-Ⅵ'!B23 -> 660 | E21: =IFERROR(D21/D$13,"-") -> 0.3374233129 | G21: 病状は落ち着いているが、ときどき不安定な病状が見られ、そのことが退院を阻害する要因になっている | H21: 89 | I21: =IFERROR(H21/H$13,"-") -> 0.2492997199 | J21: ='２-Ⅵ'!H23 -> 163 | K21: =IFERROR(J21/J$13,"-") -> 0.2910714286
A22: 病識がなく通院服薬の中断が予測される | B22: 337 | C22: =IFERROR(B22/B$13,"-") -> 0.252245509 | D22: ='２-Ⅵ'!B24 -> 509 | E22: =IFERROR(D22/D$13,"-") -> 0.2602249489 | G22: 病識がなく通院服薬の中断が予測される | H22: 68 | I22: =IFERROR(H22/H$13,"-") -> 0.1904761905 | J22: ='２-Ⅵ'!H24 -> 103 | K22: =IFERROR(J22/J$13,"-") -> 0.1839285714
A23: 反社会的行動が予測される | B23: 34 | C23: 0.0254491018 | D23: ='２-Ⅵ'!B25 -> 82 | E23: 0.04192229039 | G23: 反社会的行動が予測される | H23: 7 | I23: 0.01960784314 | J23: ='２-Ⅵ'!H25 -> 13 | K23: 0.02321428571
A24: 退院意欲が乏しい | B24: 526 | C24: 0.3937125749 | D24: ='２-Ⅵ'!B26 -> 726 | E24: 0.3711656442 | G24: 退院意欲が乏しい | H24: 135 | I24: 0.3781512605 | J24: ='２-Ⅵ'!H26 -> 196 | K24: 0.35
A25: 現実認識が乏しい | B25: 505 | C25: 0.377994012 | D25: ='２-Ⅵ'!B27 -> 737 | E25: 0.3767893661 | G25: 現実認識が乏しい | H25: 102 | I25: 0.2857142857 | J25: ='２-Ⅵ'!H27 -> 151 | K25: 0.2696428571
A26: 退院による環境変化への不安が強い | B26: 310 | C26: 0.2320359281 | D26: ='２-Ⅵ'!B28 -> 499 | E26: 0.2551124744 | G26: 退院による環境変化への不安が強い | H26: 90 | I26: 0.2521008403 | J26: ='２-Ⅵ'!H28 -> 146 | K26: 0.2607142857
A27: 援助者との対人関係がもてない | B27: 84 | C27: 0.0628742515 | D27: ='２-Ⅵ'!B29 -> 151 | E27: 0.07719836401 | G27: 援助者との対人関係がもてない | H27: 9 | I27: 0.02521008403 | J27: ='２-Ⅵ'!H29 -> 21 | K27: 0.0375
A28: 家事（食事・洗濯・金銭管理など）ができない | B28: 406 | C28: 0.3038922156 | D28: ='２-Ⅵ'!B30 -> 579 | E28: 0.2960122699 | G28: 家事（食事・洗濯・金銭管理など）ができない | H28: 92 | I28: 0.2577030812 | J28: ='２-Ⅵ'!H30 -> 133 | K28: 0.2375
A29: 家族がいない、本人をサポートする機能が実質ない | B29: 201 | C29: 0.1504491018 | D29: ='２-Ⅵ'!B31 -> 317 | E29: 0.1620654397 | G29: 家族がいない、本人をサポートする機能が実質ない | H29: 61 | I29: 0.1708683473 | J29: ='２-Ⅵ'!H31 -> 90 | K29: 0.1607142857
A30: 家族が退院に反対している | B30: 303 | C30: 0.2267964072 | D30: ='２-Ⅵ'!B32 -> 420 | E30: 0.2147239264 | G30: 家族が退院に反対している | H30: 82 | I30: 0.2296918768 | J30: ='２-Ⅵ'!H32 -> 120 | K30: 0.2142857143
A31: 住まいの確保ができない | B31: 416 | C31: 0.3113772455 | D31: ='２-Ⅵ'!B33 -> 615 | E31: 0.3144171779 | G31: 住まいの確保ができない | H31: 115 | I31: 0.3221288515 | J31: ='２-Ⅵ'!H33 -> 183 | K31: 0.3267857143
A32: 生活費の確保ができない | B32: 81 | C32: 0.06062874251 | D32: ='２-Ⅵ'!B34 -> 114 | E32: 0.05828220859 | G32: 生活費の確保ができない | H32: 20 | I32: 0.05602240896 | J32: ='２-Ⅵ'!H34 -> 33 | K32: 0.05892857143
A33: 日常生活を支える制度がない | B33: 92 | C33: 0.06886227545 | D33: ='２-Ⅵ'!B35 -> 132 | E33: 0.06748466258 | G33: 日常生活を支える制度がない | H33: 18 | I33: 0.05042016807 | J33: ='２-Ⅵ'!H35 -> 24 | K33: 0.04285714286
A34: 救急診療体制がない | B34: 1 | C34: 0.000748502994 | D34: ='２-Ⅵ'!B36 -> 5 | E34: 0.002556237219 | G34: 救急診療体制がない | H34: 0 | I34: 0 | J34: ='２-Ⅵ'!H36 -> 1 | K34: 0.001785714286
A35: 退院に向けてサポートする人的資源が乏しい | B35: 97 | C35: 0.07260479042 | D35: ='２-Ⅵ'!B37 -> 146 | E35: 0.07464212679 | G35: 退院に向けてサポートする人的資源が乏しい | H35: 25 | I35: 0.0700280112 | J35: ='２-Ⅵ'!H37 -> 46 | K35: 0.08214285714
A36: 退院後サポート・マネジメントする人的資源が乏しい | B36: 68 | C36: 0.05089820359 | D36: ='２-Ⅵ'!B38 -> 110 | E36: 0.05623721881 | G36: 退院後サポート・マネジメントする人的資源が乏しい | H36: 21 | I36: 0.05882352941 | J36: ='２-Ⅵ'!H38 -> 36 | K36: 0.06428571429
A37: 住所地と入院先の距離があり支援体制がとりにくい | B37: 20 | C37: 0.01497005988 | D37: ='２-Ⅵ'!B39 -> 30 | E37: 0.01533742331 | G37: 住所地と入院先の距離があり支援体制がとりにくい | H37: 8 | I37: 0.02240896359 | J37: ='２-Ⅵ'!H39 -> 11 | K37: 0.01964285714
A38: 身体的機能や状態を原因としたADLの低下がある | B38: 287 | C38: 0.2148203593 | D38: ='２-Ⅵ'!B40 -> 331 | E38: =IFERROR(D38/D$13,"-") -> 0.1692229039 | G38: 身体的機能や状態を原因としたADLの低下がある | H38: 47 | I38: 0.1316526611 | J38: ='２-Ⅵ'!H40 -> 53 | K38: =IFERROR(J38/J$13,"-") -> 0.09464285714
A39: 身体合併症の程度が重いなど身体面のフォローが必要であり、地域での生活が困難 | B39: 186 | C39: 0.1392215569 | D39: ='２-Ⅵ'!B41 -> 211 | E39: 0.1078732106 | G39: 身体合併症の程度が重いなど身体面のフォローが必要であり、地域での生活が困難 | H39: 13 | I39: 0.03641456583 | J39: ='２-Ⅵ'!H41 -> 17 | K39: 0.03035714286
A40: その他の退院阻害要因がある | B40: 26 | C40: 0.01946107784 | D40: ='２-Ⅵ'!B42 -> 44 | E40: 0.02249488753 | G40: その他の退院阻害要因がある | H40: 10 | I40: 0.02801120448 | J40: ='２-Ⅵ'!H42 -> 18 | K40: 0.03214285714
A43: こちらのシートは直接入力です。

Sheet 5-Ⅰ①
B1: 【退院阻害要因×年齢階層】 | H1: データ貼り付け箇所
B2: 退院予定の有無 | C2: 年齢
C3: 65歳未満 | E3: 65歳以上 | G3: 合計 | H3: 行ラベル | I3: 65歳以上 | J3: 65歳未満 | N3: 65歳未満 | O3: 65歳以上
B4: 病状（主症状）が落ち着き、入院によらない形で治療ができるまで回復 | C4: =IFERROR(INDEX(退院予定有無×年齢階層[#All],MATCH($M4,退院予定有無×年齢階層[[#All],[行ラベル]],0),MATCH($N$3,退院予定有無×年齢階層[#Headers],0)),0) -> 746 | D4: =IFERROR(C4/C$7,"-") -> 0.1290434181 | E4: =IFERROR(INDEX(退院予定有無×年齢階層[#All],MATCH($M4,退院予定有無×年齢階層[[#All],[行ラベル]],0),MATCH($O$3,退院予定有無×年齢階層[#Headers],0)),0) -> 1442 | F4: =IFERROR(E4/E$7,"-") -> 0.1640873919 | G4: =C4+E4 -> 2188 | H4: 97 | I4: 1442 | J4: 746 | M4: 97
B5: 病状（主症状）が不安定で入院による治療が必要 | C5: =IFERROR(INDEX(退院予定有無×年齢階層[#All],MATCH($M5,退院予定有無×年齢階層[[#All],[行ラベル]],0),MATCH($N$3,退院予定有無×年齢階層[#Headers],0)),0) -> 4200 | D5: =IFERROR(C5/C$7,"-") -> 0.7265179035 | E5: =IFERROR(INDEX(退院予定有無×年齢階層[#All],MATCH($M5,退院予定有無×年齢階層[[#All],[行ラベル]],0),MATCH($O$3,退院予定有無×年齢階層[#Headers],0)),0) -> 6615 | F5: =IFERROR(E5/E$7,"-") -> 0.7527309968 | G5: =C5+E5 -> 10815 | H5: 98 | I5: 6615 | J5: 4200 | M5: 98
B6: 退院予定 | C6: =IFERROR(INDEX(退院予定有無×年齢階層[#All],MATCH($M6,退院予定有無×年齢階層[[#All],[行ラベル]],0),MATCH($N$3,退院予定有無×年齢階層[#Headers],0)),0) -> 835 | D6: =IFERROR(C6/C$7,"-") -> 0.1444386784 | E6: =IFERROR(INDEX(退院予定有無×年齢階層[#All],MATCH($M6,退院予定有無×年齢階層[[#All],[行ラベル]],0),MATCH($O$3,退院予定有無×年齢階層[#Headers],0)),0) -> 731 | F6: =IFERROR(E6/E$7,"-") -> 0.08318161129 | G6: =C6+E6 -> 1566 | H6: 99 | I6: 731 | J6: 835 | M6: 99
B7: 総計 | C7: =SUM(C4:C6) -> 5781 | D7: 1 | E7: 8788 | F7: 1 | G7: =C7+E7 -> 14569
B9: 退院阻害要因 | H9: 行ラベル | I9: 65歳以上 | J9: 65歳未満
B10: 退院阻害要因がある | C10: =IFERROR(INDEX(阻害要因有無×年齢階層[#All],MATCH($M10,阻害要因有無×年齢階層[[#All],[行ラベル]],0),MATCH($N$3,阻害要因有無×年齢階層[#Headers],0)),0) -> 620 | D10: =IFERROR(C10/C$4,"-") -> 0.8310991957 | E10: =IFERROR(INDEX(阻害要因有無×年齢階層[#All],MATCH($M10,阻害要因有無×年齢階層[[#All],[行ラベル]],0),MATCH($O$3,阻害要因有無×年齢階層[#Headers],0)),0) -> 1336 | F10: =IFERROR(E10/E$4,"-") -> 0.9264909847 | G10: =C10+E10 -> 1956 | H10: 91 | I10: 1336 | J10: 620 | M10: 91
B11: 退院阻害要因はない | C11: =IFERROR(INDEX(阻害要因有無×年齢階層[#All],MATCH($M11,阻害要因有無×年齢階層[[#All],[行ラベル]],0),MATCH($N$3,阻害要因有無×年齢階層[#Headers],0)),0) -> 126 | D11: =IFERROR(C11/C$4,"-") -> 0.1689008043 | E11: =IFERROR(INDEX(阻害要因有無×年齢階層[#All],MATCH($M11,阻害要因有無×年齢階層[[#All],[行ラベル]],0),MATCH($O$3,阻害要因有無×年齢階層[#Headers],0)),0) -> 106 | F11: =IFERROR(E11/E$4,"-") -> 0.07350901526 | G11: =C11+E11 -> 232 | H11: 90 | I11: 106 | J11: 126 | M11: 90
B12: ＜複数回答＞
B13: 割合には「退院阻害要因がある」それぞれの人数に対する割合を表示しています。 | H13: 値 | I13: 65歳以上 | J13: 65歳未満
B14: 病状は落ち着いているが、ときどき不安定な病状が見られ、そのことが退院を阻害する要因になっている | C14: =IFERROR(INDEX(阻害要因×年齢階層[#All],MATCH($M14,阻害要因×年齢階層[[#All],[値]],0),MATCH($N$3,阻害要因×年齢階層[#Headers],0)),0) -> 254 | D14: =IFERROR(C14/C$10,"-") -> 0.4096774194 | E14: =IFERROR(INDEX(阻害要因×年齢階層[#All],MATCH($M14,阻害要因×年齢階層[[#All],[値]],0),MATCH($O$3,阻害要因×年齢階層[#Headers],0)),0) -> 406 | F14: =IFERROR(E14/E$10,"-") -> 0.3038922156 | G14: =SUM(C14,E14) -> 660 | H14: 合計 / 病状は落ち着いているが、ときどき不安定な病状が見られ、そのことが退院を阻害する要因になっている | I14: 406 | J14: 254 | M14: 合計 / 病状は落ち着いているが、ときどき不安定な病状が見られ、そのことが退院を阻害する要因になっている
B15: 病識がなく通院服薬の中断が予測される | C15: =IFERROR(INDEX(阻害要因×年齢階層[#All],MATCH($M15,阻害要因×年齢階層[[#All],[値]],0),MATCH($N$3,阻害要因×年齢階層[#Headers],0)),0) -> 172 | D15: 0.2774193548 | E15: =IFERROR(INDEX(阻害要因×年齢階層[#All],MATCH($M15,阻害要因×年齢階層[[#All],[値]],0),MATCH($O$3,阻害要因×年齢階層[#Headers],0)),0) -> 337 | F15: 0.252245509 | G15: =SUM(C15,E15) -> 509 | H15: 合計 / 病識がなく通院服薬の中断が予測される | I15: 337 | J15: 172 | M15: 合計 / 病識がなく通院服薬の中断が予測される
B16: 反社会的行動が予測される | C16: =IFERROR(INDEX(阻害要因×年齢階層[#All],MATCH($M16,阻害要因×年齢階層[[#All],[値]],0),MATCH($N$3,阻害要因×年齢階層[#Headers],0)),0) -> 48 | D16: 0.07741935484 | E16: =IFERROR(INDEX(阻害要因×年齢階層[#All],MATCH($M16,阻害要因×年齢階層[[#All],[値]],0),MATCH($O$3,阻害要因×年齢階層[#Headers],0)),0) -> 34 | F16: 0.0254491018 | G16: 82 | H16: 合計 / 反社会的行動が予測される | I16: 34 | J16: 48 | M16: 合計 / 反社会的行動が予測される
B17: 退院意欲が乏しい | C17: =IFERROR(INDEX(阻害要因×年齢階層[#All],MATCH($M17,阻害要因×年齢階層[[#All],[値]],0),MATCH($N$3,阻害要因×年齢階層[#Headers],0)),0) -> 200 | D17: 0.3225806452 | E17: =IFERROR(INDEX(阻害要因×年齢階層[#All],MATCH($M17,阻害要因×年齢階層[[#All],[値]],0),MATCH($O$3,阻害要因×年齢階層[#Headers],0)),0) -> 526 | F17: 0.3937125749 | G17: 726 | H17: 合計 / 退院意欲が乏しい | I17: 526 | J17: 200 | M17: 合計 / 退院意欲が乏しい
B18: 現実認識が乏しい | C18: =IFERROR(INDEX(阻害要因×年齢階層[#All],MATCH($M18,阻害要因×年齢階層[[#All],[値]],0),MATCH($N$3,阻害要因×年齢階層[#Headers],0)),0) -> 232 | D18: 0.3741935484 | E18: =IFERROR(INDEX(阻害要因×年齢階層[#All],MATCH($M18,阻害要因×年齢階層[[#All],[値]],0),MATCH($O$3,阻害要因×年齢階層[#Headers],0)),0) -> 505 | F18: 0.377994012 | G18: 737 | H18: 合計 / 現実認識が乏しい | I18: 505 | J18: 232 | M18: 合計 / 現実認識が乏しい
B19: 退院による環境変化への不安が強い | C19: =IFERROR(INDEX(阻害要因×年齢階層[#All],MATCH($M19,阻害要因×年齢階層[[#All],[値]],0),MATCH($N$3,阻害要因×年齢階層[#Headers],0)),0) -> 189 | D19: 0.3048387097 | E19: =IFERROR(INDEX(阻害要因×年齢階層[#All],MATCH($M19,阻害要因×年齢階層[[#All],[値]],0),MATCH($O$3,阻害要因×年齢階層[#Headers],0)),0) -> 310 | F19: 0.2320359281 | G19: 499 | H19: 合計 / 退院による環境変化への不安が強い | I19: 310 | J19: 189 | M19: 合計 / 退院による環境変化への不安が強い
B20: 援助者との対人関係がもてない | C20: =IFERROR(INDEX(阻害要因×年齢階層[#All],MATCH($M20,阻害要因×年齢階層[[#All],[値]],0),MATCH($N$3,阻害要因×年齢階層[#Headers],0)),0) -> 67 | D20: 0.1080645161 | E20: =IFERROR(INDEX(阻害要因×年齢階層[#All],MATCH($M20,阻害要因×年齢階層[[#All],[値]],0),MATCH($O$3,阻害要因×年齢階層[#Headers],0)),0) -> 84 | F20: 0.0628742515 | G20: 151 | H20: 合計 / 援助者との対人関係がもてない | I20: 84 | J20: 67 | M20: 合計 / 援助者との対人関係がもてない
B21: 家事（食事・洗濯・金銭管理など）ができない | C21: =IFERROR(INDEX(阻害要因×年齢階層[#All],MATCH($M21,阻害要因×年齢階層[[#All],[値]],0),MATCH($N$3,阻害要因×年齢階層[#Headers],0)),0) -> 173 | D21: =IFERROR(C21/C$10,"-") -> 0.2790322581 | E21: =IFERROR(INDEX(阻害要因×年齢階層[#All],MATCH($M21,阻害要因×年齢階層[[#All],[値]],0),MATCH($O$3,阻害要因×年齢階層[#Headers],0)),0) -> 406 | F21: 0.3038922156 | G21: 579 | H21: 合計 / 家事（食事,洗濯,金銭管理など）ができない | I21: 406 | J21: 173 | M21: 合計 / 家事（食事,洗濯,金銭管理など）ができない
B22: 家族がいない、本人をサポートする機能が実質ない | C22: =IFERROR(INDEX(阻害要因×年齢階層[#All],MATCH($M22,阻害要因×年齢階層[[#All],[値]],0),MATCH($N$3,阻害要因×年齢階層[#Headers],0)),0) -> 116 | D22: 0.1870967742 | E22: =IFERROR(INDEX(阻害要因×年齢階層[#All],MATCH($M22,阻害要因×年齢階層[[#All],[値]],0),MATCH($O$3,阻害要因×年齢階層[#Headers],0)),0) -> 201 | F22: 0.1504491018 | G22: 317 | H22: 合計 / 家族がいない、本人をサポートする機能が実質ない | I22: 201 | J22: 116 | M22: 合計 / 家族がいない、本人をサポートする機能が実質ない
B23: 家族から退院に反対がある | C23: =IFERROR(INDEX(阻害要因×年齢階層[#All],MATCH($M23,阻害要因×年齢階層[[#All],[値]],0),MATCH($N$3,阻害要因×年齢階層[#Headers],0)),0) -> 117 | D23: 0.1887096774 | E23: =IFERROR(INDEX(阻害要因×年齢階層[#All],MATCH($M23,阻害要因×年齢階層[[#All],[値]],0),MATCH($O$3,阻害要因×年齢階層[#Headers],0)),0) -> 303 | F23: 0.2267964072 | G23: 420 | H23: 合計 / 家族から退院に反対がある | I23: 303 | J23: 117 | M23: 合計 / 家族から退院に反対がある
B24: 住まいの確保ができない | C24: =IFERROR(INDEX(阻害要因×年齢階層[#All],MATCH($M24,阻害要因×年齢階層[[#All],[値]],0),MATCH($N$3,阻害要因×年齢階層[#Headers],0)),0) -> 199 | D24: 0.3209677419 | E24: =IFERROR(INDEX(阻害要因×年齢階層[#All],MATCH($M24,阻害要因×年齢階層[[#All],[値]],0),MATCH($O$3,阻害要因×年齢階層[#Headers],0)),0) -> 416 | F24: 0.3113772455 | G24: 615 | H24: 合計 / 住まいの確保ができない | I24: 416 | J24: 199 | M24: 合計 / 住まいの確保ができない
B25: 生活費の確保ができない | C25: =IFERROR(INDEX(阻害要因×年齢階層[#All],MATCH($M25,阻害要因×年齢階層[[#All],[値]],0),MATCH($N$3,阻害要因×年齢階層[#Headers],0)),0) -> 33 | D25: 0.05322580645 | E25: =IFERROR(INDEX(阻害要因×年齢階層[#All],MATCH($M25,阻害要因×年齢階層[[#All],[値]],0),MATCH($O$3,阻害要因×年齢階層[#Headers],0)),0) -> 81 | F25: 0.06062874251 | G25: 114 | H25: 合計 / 生活費の確保ができない | I25: 81 | J25: 33 | M25: 合計 / 生活費の確保ができない
B26: 日常生活を支える制度がない | C26: =IFERROR(INDEX(阻害要因×年齢階層[#All],MATCH($M26,阻害要因×年齢階層[[#All],[値]],0),MATCH($N$3,阻害要因×年齢階層[#Headers],0)),0) -> 40 | D26: 0.06451612903 | E26: =IFERROR(INDEX(阻害要因×年齢階層[#All],MATCH($M26,阻害要因×年齢階層[[#All],[値]],0),MATCH($O$3,阻害要因×年齢階層[#Headers],0)),0) -> 92 | F26: 0.06886227545 | G26: 132 | H26: 合計 / 日常生活を支える制度がない | I26: 92 | J26: 40 | M26: 合計 / 日常生活を支える制度がない
B27: 救急診療体制がない | C27: =IFERROR(INDEX(阻害要因×年齢階層[#All],MATCH($M27,阻害要因×年齢階層[[#All],[値]],0),MATCH($N$3,阻害要因×年齢階層[#Headers],0)),0) -> 4 | D27: 0.006451612903 | E27: =IFERROR(INDEX(阻害要因×年齢階層[#All],MATCH($M27,阻害要因×年齢階層[[#All],[値]],0),MATCH($O$3,阻害要因×年齢階層[#Headers],0)),0) -> 1 | F27: 0.000748502994 | G27: 5 | H27: 合計 / 救急診療体制がない | I27: 1 | J27: 4 | M27: 合計 / 救急診療体制がない
B28: 退院に向けてサポートする人的資源が乏しい | C28: =IFERROR(INDEX(阻害要因×年齢階層[#All],MATCH($M28,阻害要因×年齢階層[[#All],[値]],0),MATCH($N$3,阻害要因×年齢階層[#Headers],0)),0) -> 49 | D28: 0.07903225806 | E28: =IFERROR(INDEX(阻害要因×年齢階層[#All],MATCH($M28,阻害要因×年齢階層[[#All],[値]],0),MATCH($O$3,阻害要因×年齢階層[#Headers],0)),0) -> 97 | F28: 0.07260479042 | G28: 146 | H28: 合計 / 退院に向けてサポートする人的資源が乏しい | I28: 97 | J28: 49 | M28: 合計 / 退院に向けてサポートする人的資源が乏しい
B29: 退院後サポート・マネジメントする人的資源が乏しい | C29: =IFERROR(INDEX(阻害要因×年齢階層[#All],MATCH($M29,阻害要因×年齢階層[[#All],[値]],0),MATCH($N$3,阻害要因×年齢階層[#Headers],0)),0) -> 42 | D29: 0.06774193548 | E29: =IFERROR(INDEX(阻害要因×年齢階層[#All],MATCH($M29,阻害要因×年齢階層[[#All],[値]],0),MATCH($O$3,阻害要因×年齢階層[#Headers],0)),0) -> 68 | F29: 0.05089820359 | G29: 110 | H29: 合計 / 退院後サポート・マネジメントする人的資源が乏しい | I29: 68 | J29: 42 | M29: 合計 / 退院後サポート・マネジメントする人的資源が乏しい
B30: 住所地と入院先の距離があり支援体制をとりにくい | C30: =IFERROR(INDEX(阻害要因×年齢階層[#All],MATCH($M30,阻害要因×年齢階層[[#All],[値]],0),MATCH($N$3,阻害要因×年齢階層[#Headers],0)),0) -> 10 | D30: 0.01612903226 | E30: =IFERROR(INDEX(阻害要因×年齢階層[#All],MATCH($M30,阻害要因×年齢階層[[#All],[値]],0),MATCH($O$3,阻害要因×年齢階層[#Headers],0)),0) -> 20 | F30: 0.01497005988 | G30: 30 | H30: 合計 / 住所地と入院先の距離があり支援体制をとりにくい | I30: 20 | J30: 10 | M30: 合計 / 住所地と入院先の距離があり支援体制をとりにくい
B31: 身体的機能や状態を原因としたADLの低下がある | C31: =IFERROR(INDEX(阻害要因×年齢階層[#All],MATCH($M31,阻害要因×年齢階層[[#All],[値]],0),MATCH($N$3,阻害要因×年齢階層[#Headers],0)),0) -> 44 | D31: =IFERROR(C31/C$10,"-") -> 0.07096774194 | E31: =IFERROR(INDEX(阻害要因×年齢階層[#All],MATCH($M31,阻害要因×年齢階層[[#All],[値]],0),MATCH($O$3,阻害要因×年齢階層[#Headers],0)),0) -> 287 | F31: =IFERROR(E31/E$10,"-") -> 0.2148203593 | G31: 331 | H31: 合計 / 身体的機能や状態を原因としたADLの低下がある | I31: 287 | J31: 44 | M31: 合計 / 身体的機能や状態を原因としたADLの低下がある
B32: 身体合併症の程度が重いなど身体面のフォローが必要であり、地域での生活が困難 | C32: =IFERROR(INDEX(阻害要因×年齢階層[#All],MATCH($M32,阻害要因×年齢階層[[#All],[値]],0),MATCH($N$3,阻害要因×年齢階層[#Headers],0)),0) -> 25 | D32: 0.04032258065 | E32: =IFERROR(INDEX(阻害要因×年齢階層[#All],MATCH($M32,阻害要因×年齢階層[[#All],[値]],0),MATCH($O$3,阻害要因×年齢階層[#Headers],0)),0) -> 186 | F32: 0.1392215569 | G32: 211 | H32: 合計 / 身体合併症の程度が重いなど身体面のフォローが必要であり、地域での生活が困難 | I32: 186 | J32: 25 | M32: 合計 / 身体合併症の程度が重いなど身体面のフォローが必要であり、地域での生活が困難
B33: その他の退院阻害要因がある | C33: =IFERROR(INDEX(阻害要因×年齢階層[#All],MATCH($M33,阻害要因×年齢階層[[#All],[値]],0),MATCH($N$3,阻害要因×年齢階層[#Headers],0)),0) -> 18 | D33: 0.02903225806 | E33: =IFERROR(INDEX(阻害要因×年齢階層[#All],MATCH($M33,阻害要因×年齢階層[[#All],[値]],0),MATCH($O$3,阻害要因×年齢階層[#Headers],0)),0) -> 26 | F33: 0.01946107784 | G33: 44 | H33: 合計 / その他の退院阻害要因がある | I33: 26 | J33: 18 | M33: 合計 / その他の退院阻害要因がある
B35: 【退院阻害要因×年齢階層】〔寛解・院内寛解群〕
B36: 退院予定の有無 | C36: 年齢階層 | H36: データ貼り付け箇所 | I36: 寛解・院内寛解群
C37: 65歳未満 | E37: 65歳以上 | H37: 行ラベル | I37: 65歳以上 | J37: 65歳未満
B38: 病状（主症状）が落ち着き、入院によらない形で治療ができるまで回復 | C38: =IFERROR(INDEX(退院予定有無×年齢階層＿寛解・院内寛解[#All],MATCH($M4,退院予定有無×年齢階層＿寛解・院内寛解[[#All],[行ラベル]],0),MATCH($N$3,退院予定有無×年齢階層＿寛解・院内寛解[#Headers],0)),0) -> 251 | D38: =IFERROR(C38/C$41,"-") -> 0.2988095238 | E38: =IFERROR(INDEX(退院予定有無×年齢階層＿寛解・院内寛解[#All],MATCH($M4,退院予定有無×年齢階層＿寛解・院内寛解[[#All],[行ラベル]],0),MATCH($O$3,退院予定有無×年齢階層＿寛解・院内寛解[#Headers],0)),0) -> 385 | F38: =IFERROR(E38/E$41,"-") -> 0.4166666667 | G38: =SUM(C38,E38) -> 636 | H38: 97 | I38: 385 | J38: 251
B39: 病状（主症状）が不安定で入院による治療が必要 | C39: =IFERROR(INDEX(退院予定有無×年齢階層＿寛解・院内寛解[#All],MATCH($M5,退院予定有無×年齢階層＿寛解・院内寛解[[#All],[行ラベル]],0),MATCH($N$3,退院予定有無×年齢階層＿寛解・院内寛解[#Headers],0)),0) -> 167 | D39: =IFERROR(C39/C$41,"-") -> 0.1988095238 | E39: =IFERROR(INDEX(退院予定有無×年齢階層＿寛解・院内寛解[#All],MATCH($M5,退院予定有無×年齢階層＿寛解・院内寛解[[#All],[行ラベル]],0),MATCH($O$3,退院予定有無×年齢階層＿寛解・院内寛解[#Headers],0)),0) -> 195 | F39: =IFERROR(E39/E$41,"-") -> 0.211038961 | G39: =SUM(C39,E39) -> 362 | H39: 98 | I39: 195 | J39: 167
B40: 退院予定 | C40: =IFERROR(INDEX(退院予定有無×年齢階層＿寛解・院内寛解[#All],MATCH($M6,退院予定有無×年齢階層＿寛解・院内寛解[[#All],[行ラベル]],0),MATCH($N$3,退院予定有無×年齢階層＿寛解・院内寛解[#Headers],0)),0) -> 422 | D40: =IFERROR(C40/C$41,"-") -> 0.5023809524 | E40: =IFERROR(INDEX(退院予定有無×年齢階層＿寛解・院内寛解[#All],MATCH($M6,退院予定有無×年齢階層＿寛解・院内寛解[[#All],[行ラベル]],0),MATCH($O$3,退院予定有無×年齢階層＿寛解・院内寛解[#Headers],0)),0) -> 344 | F40: =IFERROR(E40/E$41,"-") -> 0.3722943723 | G40: =SUM(C40,E40,K39) -> 766 | H40: 99 | I40: 344 | J40: 422
B41: 総計 | C41: =SUM(C38:C40) -> 840 | D41: 1 | E41: =SUM(E38:E40) -> 924 | F41: 1 | G41: 1764
B43: 退院阻害要因 | H43: 行ラベル | I43: 65歳以上 | J43: 65歳未満
B44: 退院阻害要因がある | C44: =IFERROR(INDEX(阻害要因有無×年齢階層＿寛解・院内寛解[#All],MATCH($M10,阻害要因有無×年齢階層＿寛解・院内寛解[[#All],[行ラベル]],0),MATCH($N$3,阻害要因有無×年齢階層＿寛解・院内寛解[#Headers],0)),0) -> 203 | D44: =IFERROR(C44/C$38,"-") -> 0.8087649402 | E44: =IFERROR(INDEX(阻害要因有無×年齢階層＿寛解・院内寛解[#All],MATCH($M10,阻害要因有無×年齢階層＿寛解・院内寛解[[#All],[行ラベル]],0),MATCH($O$3,阻害要因有無×年齢階層＿寛解・院内寛解[#Headers],0)),0) -> 357 | F44: =IFERROR(E44/E$38,"-") -> 0.9272727273 | G44: =SUM(C44,E44) -> 560 | H44: 91 | I44: 357 | J44: 203
B45: 退院阻害要因はない | C45: =IFERROR(INDEX(阻害要因有無×年齢階層＿寛解・院内寛解[#All],MATCH($M11,阻害要因有無×年齢階層＿寛解・院内寛解[[#All],[行ラベル]],0),MATCH($N$3,阻害要因有無×年齢階層＿寛解・院内寛解[#Headers],0)),0) -> 48 | D45: =IFERROR(C45/C$38,"-") -> 0.1912350598 | E45: =IFERROR(INDEX(阻害要因有無×年齢階層＿寛解・院内寛解[#All],MATCH($M11,阻害要因有無×年齢階層＿寛解・院内寛解[[#All],[行ラベル]],0),MATCH($O$3,阻害要因有無×年齢階層＿寛解・院内寛解[#Headers],0)),0) -> 28 | F45: =IFERROR(E45/E$38,"-") -> 0.07272727273 | G45: =SUM(C45,E45) -> 76 | H45: 90 | I45: 28 | J45: 48
B46: ＜複数回答＞
B47: 割合には「退院阻害要因がある」それぞれの人数に対する割合を表示しています。 | G47: =SUM(C48,E48) -> 163 | H47: 値 | I47: 65歳以上 | J47: 65歳未満
B48: 病状は落ち着いているが、ときどき不安定な病状が見られ、そのことが退院を阻害する要因になっている | C48: =IFERROR(INDEX(阻害要因×年齢階層＿寛解・院内寛解[#All],MATCH($M14,阻害要因×年齢階層＿寛解・院内寛解[[#All],[値]],0),MATCH($N$3,阻害要因×年齢階層＿寛解・院内寛解[#Headers],0)),0) -> 74 | D48: =IFERROR(C48/C$44,"-") -> 0.3645320197 | E48: =IFERROR(INDEX(阻害要因×年齢階層＿寛解・院内寛解[#All],MATCH($M14,阻害要因×年齢階層＿寛解・院内寛解[[#All],[値]],0),MATCH($O$3,阻害要因×年齢階層＿寛解・院内寛解[#Headers],0)),0) -> 89 | F48: =IFERROR(E48/E$44,"-") -> 0.2492997199 | G48: 103 | H48: 合計 / 病状は落ち着いているが、ときどき不安定な病状が見られ、そのことが退院を阻害する要因になっている | I48: 89 | J48: 74
B49: 病識がなく通院服薬の中断が予測される | C49: =IFERROR(INDEX(阻害要因×年齢階層＿寛解・院内寛解[#All],MATCH($M15,阻害要因×年齢階層＿寛解・院内寛解[[#All],[値]],0),MATCH($N$3,阻害要因×年齢階層＿寛解・院内寛解[#Headers],0)),0) -> 35 | D49: 0.1724137931 | E49: =IFERROR(INDEX(阻害要因×年齢階層＿寛解・院内寛解[#All],MATCH($M15,阻害要因×年齢階層＿寛解・院内寛解[[#All],[値]],0),MATCH($O$3,阻害要因×年齢階層＿寛解・院内寛解[#Headers],0)),0) -> 68 | F49: 0.1904761905 | G49: 13 | H49: 合計 / 病識がなく通院服薬の中断が予測される | I49: 68 | J49: 35
B50: 反社会的行動が予測される | C50: =IFERROR(INDEX(阻害要因×年齢階層＿寛解・院内寛解[#All],MATCH($M16,阻害要因×年齢階層＿寛解・院内寛解[[#All],[値]],0),MATCH($N$3,阻害要因×年齢階層＿寛解・院内寛解[#Headers],0)),0) -> 6 | D50: 0.02955665025 | E50: =IFERROR(INDEX(阻害要因×年齢階層＿寛解・院内寛解[#All],MATCH($M16,阻害要因×年齢階層＿寛解・院内寛解[[#All],[値]],0),MATCH($O$3,阻害要因×年齢階層＿寛解・院内寛解[#Headers],0)),0) -> 7 | F50: 0.01960784314 | G50: 196 | H50: 合計 / 反社会的行動が予測される | I50: 7 | J50: 6
B51: 退院意欲が乏しい | C51: =IFERROR(INDEX(阻害要因×年齢階層＿寛解・院内寛解[#All],MATCH($M17,阻害要因×年齢階層＿寛解・院内寛解[[#All],[値]],0),MATCH($N$3,阻害要因×年齢階層＿寛解・院内寛解[#Headers],0)),0) -> 61 | D51: 0.3004926108 | E51: =IFERROR(INDEX(阻害要因×年齢階層＿寛解・院内寛解[#All],MATCH($M17,阻害要因×年齢階層＿寛解・院内寛解[[#All],[値]],0),MATCH($O$3,阻害要因×年齢階層＿寛解・院内寛解[#Headers],0)),0) -> 135 | F51: 0.3781512605 | G51: 151 | H51: 合計 / 退院意欲が乏しい | I51: 135 | J51: 61
B52: 現実認識が乏しい | C52: =IFERROR(INDEX(阻害要因×年齢階層＿寛解・院内寛解[#All],MATCH($M18,阻害要因×年齢階層＿寛解・院内寛解[[#All],[値]],0),MATCH($N$3,阻害要因×年齢階層＿寛解・院内寛解[#Headers],0)),0) -> 49 | D52: 0.2413793103 | E52: =IFERROR(INDEX(阻害要因×年齢階層＿寛解・院内寛解[#All],MATCH($M18,阻害要因×年齢階層＿寛解・院内寛解[[#All],[値]],0),MATCH($O$3,阻害要因×年齢階層＿寛解・院内寛解[#Headers],0)),0) -> 102 | F52: 0.2857142857 | G52: 146 | H52: 合計 / 現実認識が乏しい | I52: 102 | J52: 49
B53: 退院による環境変化への不安が強い | C53: =IFERROR(INDEX(阻害要因×年齢階層＿寛解・院内寛解[#All],MATCH($M19,阻害要因×年齢階層＿寛解・院内寛解[[#All],[値]],0),MATCH($N$3,阻害要因×年齢階層＿寛解・院内寛解[#Headers],0)),0) -> 56 | D53: 0.275862069 | E53: =IFERROR(INDEX(阻害要因×年齢階層＿寛解・院内寛解[#All],MATCH($M19,阻害要因×年齢階層＿寛解・院内寛解[[#All],[値]],0),MATCH($O$3,阻害要因×年齢階層＿寛解・院内寛解[#Headers],0)),0) -> 90 | F53: 0.2521008403 | G53: 21 | H53: 合計 / 退院による環境変化への不安が強い | I53: 90 | J53: 56
B54: 援助者との対人関係がもてない | C54: =IFERROR(INDEX(阻害要因×年齢階層＿寛解・院内寛解[#All],MATCH($M20,阻害要因×年齢階層＿寛解・院内寛解[[#All],[値]],0),MATCH($N$3,阻害要因×年齢階層＿寛解・院内寛解[#Headers],0)),0) -> 12 | D54: 0.05911330049 | E54: =IFERROR(INDEX(阻害要因×年齢階層＿寛解・院内寛解[#All],MATCH($M20,阻害要因×年齢階層＿寛解・院内寛解[[#All],[値]],0),MATCH($O$3,阻害要因×年齢階層＿寛解・院内寛解[#Headers],0)),0) -> 9 | F54: 0.02521008403 | G54: 133 | H54: 合計 / 援助者との対人関係がもてない | I54: 9 | J54: 12
B55: 家事（食事・洗濯・金銭管理など）ができない | C55: =IFERROR(INDEX(阻害要因×年齢階層＿寛解・院内寛解[#All],MATCH($M21,阻害要因×年齢階層＿寛解・院内寛解[[#All],[値]],0),MATCH($N$3,阻害要因×年齢階層＿寛解・院内寛解[#Headers],0)),0) -> 41 | D55: 0.2019704433 | E55: =IFERROR(INDEX(阻害要因×年齢階層＿寛解・院内寛解[#All],MATCH($M21,阻害要因×年齢階層＿寛解・院内寛解[[#All],[値]],0),MATCH($O$3,阻害要因×年齢階層＿寛解・院内寛解[#Headers],0)),0) -> 92 | F55: 0.2577030812 | G55: 90 | H55: 合計 / 家事（食事,洗濯,金銭管理など）ができない | I55: 92 | J55: 41
B56: 家族がいない、本人をサポートする機能が実質ない | C56: =IFERROR(INDEX(阻害要因×年齢階層＿寛解・院内寛解[#All],MATCH($M22,阻害要因×年齢階層＿寛解・院内寛解[[#All],[値]],0),MATCH($N$3,阻害要因×年齢階層＿寛解・院内寛解[#Headers],0)),0) -> 29 | D56: 0.1428571429 | E56: =IFERROR(INDEX(阻害要因×年齢階層＿寛解・院内寛解[#All],MATCH($M22,阻害要因×年齢階層＿寛解・院内寛解[[#All],[値]],0),MATCH($O$3,阻害要因×年齢階層＿寛解・院内寛解[#Headers],0)),0) -> 61 | F56: 0.1708683473 | G56: 120 | H56: 合計 / 家族がいない、本人をサポートする機能が実質ない | I56: 61 | J56: 29
B57: 家族から退院に反対がある | C57: =IFERROR(INDEX(阻害要因×年齢階層＿寛解・院内寛解[#All],MATCH($M23,阻害要因×年齢階層＿寛解・院内寛解[[#All],[値]],0),MATCH($N$3,阻害要因×年齢階層＿寛解・院内寛解[#Headers],0)),0) -> 38 | D57: 0.1871921182 | E57: =IFERROR(INDEX(阻害要因×年齢階層＿寛解・院内寛解[#All],MATCH($M23,阻害要因×年齢階層＿寛解・院内寛解[[#All],[値]],0),MATCH($O$3,阻害要因×年齢階層＿寛解・院内寛解[#Headers],0)),0) -> 82 | F57: 0.2296918768 | G57: 183 | H57: 合計 / 家族から退院に反対がある | I57: 82 | J57: 38
B58: 住まいの確保ができない | C58: =IFERROR(INDEX(阻害要因×年齢階層＿寛解・院内寛解[#All],MATCH($M24,阻害要因×年齢階層＿寛解・院内寛解[[#All],[値]],0),MATCH($N$3,阻害要因×年齢階層＿寛解・院内寛解[#Headers],0)),0) -> 68 | D58: 0.3349753695 | E58: =IFERROR(INDEX(阻害要因×年齢階層＿寛解・院内寛解[#All],MATCH($M24,阻害要因×年齢階層＿寛解・院内寛解[[#All],[値]],0),MATCH($O$3,阻害要因×年齢階層＿寛解・院内寛解[#Headers],0)),0) -> 115 | F58: 0.3221288515 | G58: 33 | H58: 合計 / 住まいの確保ができない | I58: 115 | J58: 68
B59: 生活費の確保ができない | C59: =IFERROR(INDEX(阻害要因×年齢階層＿寛解・院内寛解[#All],MATCH($M25,阻害要因×年齢階層＿寛解・院内寛解[[#All],[値]],0),MATCH($N$3,阻害要因×年齢階層＿寛解・院内寛解[#Headers],0)),0) -> 13 | D59: 0.06403940887 | E59: =IFERROR(INDEX(阻害要因×年齢階層＿寛解・院内寛解[#All],MATCH($M25,阻害要因×年齢階層＿寛解・院内寛解[[#All],[値]],0),MATCH($O$3,阻害要因×年齢階層＿寛解・院内寛解[#Headers],0)),0) -> 20 | F59: 0.05602240896 | G59: 24 | H59: 合計 / 生活費の確保ができない | I59: 20 | J59: 13
B60: 日常生活を支える制度がない | C60: =IFERROR(INDEX(阻害要因×年齢階層＿寛解・院内寛解[#All],MATCH($M26,阻害要因×年齢階層＿寛解・院内寛解[[#All],[値]],0),MATCH($N$3,阻害要因×年齢階層＿寛解・院内寛解[#Headers],0)),0) -> 6 | D60: 0.02955665025 | E60: =IFERROR(INDEX(阻害要因×年齢階層＿寛解・院内寛解[#All],MATCH($M26,阻害要因×年齢階層＿寛解・院内寛解[[#All],[値]],0),MATCH($O$3,阻害要因×年齢階層＿寛解・院内寛解[#Headers],0)),0) -> 18 | F60: 0.05042016807 | G60: 1 | H60: 合計 / 日常生活を支える制度がない | I60: 18 | J60: 6
B61: 救急診療体制がない | C61: =IFERROR(INDEX(阻害要因×年齢階層＿寛解・院内寛解[#All],MATCH($M27,阻害要因×年齢階層＿寛解・院内寛解[[#All],[値]],0),MATCH($N$3,阻害要因×年齢階層＿寛解・院内寛解[#Headers],0)),0) -> 1 | D61: 0.004926108374 | E61: =IFERROR(INDEX(阻害要因×年齢階層＿寛解・院内寛解[#All],MATCH($M27,阻害要因×年齢階層＿寛解・院内寛解[[#All],[値]],0),MATCH($O$3,阻害要因×年齢階層＿寛解・院内寛解[#Headers],0)),0) -> 0 | F61: 0 | G61: 46 | H61: 合計 / 救急診療体制がない | I61: 0 | J61: 1
B62: 退院に向けてサポートする人的資源が乏しい | C62: =IFERROR(INDEX(阻害要因×年齢階層＿寛解・院内寛解[#All],MATCH($M28,阻害要因×年齢階層＿寛解・院内寛解[[#All],[値]],0),MATCH($N$3,阻害要因×年齢階層＿寛解・院内寛解[#Headers],0)),0) -> 21 | D62: 0.1034482759 | E62: =IFERROR(INDEX(阻害要因×年齢階層＿寛解・院内寛解[#All],MATCH($M28,阻害要因×年齢階層＿寛解・院内寛解[[#All],[値]],0),MATCH($O$3,阻害要因×年齢階層＿寛解・院内寛解[#Headers],0)),0) -> 25 | F62: 0.0700280112 | G62: 36 | H62: 合計 / 退院に向けてサポートする人的資源が乏しい | I62: 25 | J62: 21
B63: 退院後サポート・マネジメントする人的資源が乏しい | C63: =IFERROR(INDEX(阻害要因×年齢階層＿寛解・院内寛解[#All],MATCH($M29,阻害要因×年齢階層＿寛解・院内寛解[[#All],[値]],0),MATCH($N$3,阻害要因×年齢階層＿寛解・院内寛解[#Headers],0)),0) -> 15 | D63: 0.07389162562 | E63: =IFERROR(INDEX(阻害要因×年齢階層＿寛解・院内寛解[#All],MATCH($M29,阻害要因×年齢階層＿寛解・院内寛解[[#All],[値]],0),MATCH($O$3,阻害要因×年齢階層＿寛解・院内寛解[#Headers],0)),0) -> 21 | F63: 0.05882352941 | G63: 11 | H63: 合計 / 退院後サポート・マネジメントする人的資源が乏しい | I63: 21 | J63: 15
B64: 住所地と入院先の距離があり支援体制をとりにくい | C64: =IFERROR(INDEX(阻害要因×年齢階層＿寛解・院内寛解[#All],MATCH($M30,阻害要因×年齢階層＿寛解・院内寛解[[#All],[値]],0),MATCH($N$3,阻害要因×年齢階層＿寛解・院内寛解[#Headers],0)),0) -> 3 | D64: 0.01477832512 | E64: =IFERROR(INDEX(阻害要因×年齢階層＿寛解・院内寛解[#All],MATCH($M30,阻害要因×年齢階層＿寛解・院内寛解[[#All],[値]],0),MATCH($O$3,阻害要因×年齢階層＿寛解・院内寛解[#Headers],0)),0) -> 8 | F64: 0.02240896359 | G64: =SUM(C67,E67) -> 18 | H64: 合計 / 住所地と入院先の距離があり支援体制をとりにくい | I64: 8 | J64: 3
B65: 身体的機能や状態を原因としたADLの低下がある | C65: =IFERROR(INDEX(阻害要因×年齢階層＿寛解・院内寛解[#All],MATCH($M31,阻害要因×年齢階層＿寛解・院内寛解[[#All],[値]],0),MATCH($N$3,阻害要因×年齢階層＿寛解・院内寛解[#Headers],0)),0) -> 6 | D65: =IFERROR(C65/C$44,"-") -> 0.02955665025 | E65: =IFERROR(INDEX(阻害要因×年齢階層＿寛解・院内寛解[#All],MATCH($M31,阻害要因×年齢階層＿寛解・院内寛解[[#All],[値]],0),MATCH($O$3,阻害要因×年齢階層＿寛解・院内寛解[#Headers],0)),0) -> 47 | F65: =IFERROR(E65/E$44,"-") -> 0.1316526611 | G65: =SUM(C68,E68) -> 0 | H65: 合計 / 身体的機能や状態を原因としたADLの低下がある | I65: 47 | J65: 6
B66: 身体合併症の程度が重いなど身体面のフォローが必要であり、地域での生活が困難 | C66: =IFERROR(INDEX(阻害要因×年齢階層＿寛解・院内寛解[#All],MATCH($M32,阻害要因×年齢階層＿寛解・院内寛解[[#All],[値]],0),MATCH($N$3,阻害要因×年齢階層＿寛解・院内寛解[#Headers],0)),0) -> 4 | D66: 0.0197044335 | E66: =IFERROR(INDEX(阻害要因×年齢階層＿寛解・院内寛解[#All],MATCH($M32,阻害要因×年齢階層＿寛解・院内寛解[[#All],[値]],0),MATCH($O$3,阻害要因×年齢階層＿寛解・院内寛解[#Headers],0)),0) -> 13 | F66: 0.03641456583 | G66: 0 | H66: 合計 / 身体合併症の程度が重いなど身体面のフォローが必要であり、地域での生活が困難 | I66: 13 | J66: 4
B67: その他の退院阻害要因がある | C67: =IFERROR(INDEX(阻害要因×年齢階層＿寛解・院内寛解[#All],MATCH($M33,阻害要因×年齢階層＿寛解・院内寛解[[#All],[値]],0),MATCH($N$3,阻害要因×年齢階層＿寛解・院内寛解[#Headers],0)),0) -> 8 | D67: 0.039408867 | E67: =IFERROR(INDEX(阻害要因×年齢階層＿寛解・院内寛解[#All],MATCH($M33,阻害要因×年齢階層＿寛解・院内寛解[[#All],[値]],0),MATCH($O$3,阻害要因×年齢階層＿寛解・院内寛解[#Headers],0)),0) -> 10 | F67: 0.02801120448 | G67: 0 | H67: 合計 / その他の退院阻害要因がある | I67: 10 | J67: 8

Sheet ５-Ⅰ②
B1: 【退院阻害要因×在院期間区分】
B2: 退院予定の有無 | C2: 在院期間区分 | L2: データ貼り付け箇所
C3: 1年未満 | E3: 1年以上5年未満 | G3: 5年以上10年未満 | I3: 10年以上 | L3: 行ラベル | M3: 01_1ヶ月未満 | N3: 02_1ヶ月～3ヶ月未満 | O3: 03_3ヶ月～6ヶ月未満 | P3: 04_6ヶ月～1年未満 | Q3: 05_1年～1年6ヶ月未満 | R3: 06_1年6ヶ月～2年未満 | S3: 07_2年～3年未満 | T3: 08_3年～4年未満 | U3: 09_4年～5年未満 | V3: 10_5年～6年未満 | W3: 11_6年～7年未満 | X3: 12_7年～8年未満 | Y3: 13_8年～9年未満 | Z3: 14_9年～10年未満 | AA3: 15_10年～20年未満 | AB3: 16_ 20年以上
B4: 病状（主症状）が落ち着き、入院によらない形で治療ができるまで回復 | C4: =IFERROR(INDEX(退院予定有無×在院期間区分[#All],MATCH($AI5,退院予定有無×在院期間区分[[#All],[行ラベル]],0),MATCH($AJ$4,退院予定有無×在院期間区分[#Headers],0)),)+IFERROR(INDEX(退院予定有無×在院期間区分[#All],MATCH($AI5,退院予定有無×在院期間区分[[#All],[行ラベル]],0),MATCH($AK$4,退院予定有無×在院期間区分[#Headers],0)),0)+IFERROR(INDEX(退院予定有無×在院期間区分[#All],MATCH($AI5,退院予定有無×在院期間区分[[#All],[行ラベル]],0),MATCH($AL$4,退院予定有無×在院期間区分[#Headers],0)),0)+IFERROR(INDEX(退院予定有無×在院期間区分[#All],MATCH($AI5,退院予定有無×在院期間区分[[#All],[行ラベル]],0),MATCH($AM$4,退院予定有無×在院期間区分[#Headers],0)),0) -> 863 | D4: =IFERROR(C4/C$7,"-") -> 0.1340686655 | E4: =IFERROR(INDEX(退院予定有無×在院期間区分[#All],MATCH($AI5,退院予定有無×在院期間区分[[#All],[行ラベル]],0),MATCH($AN$4,退院予定有無×在院期間区分[#Headers],0)),0)+IFERROR(INDEX(退院予定有無×在院期間区分[#All],MATCH($AI5,退院予定有無×在院期間区分[[#All],[行ラベル]],0),MATCH($AO$4,退院予定有無×在院期間区分[#Headers],0)),0)+IFERROR(INDEX(退院予定有無×在院期間区分[#All],MATCH($AI5,退院予定有無×在院期間区分[[#All],[行ラベル]],0),MATCH($AP$4,退院予定有無×在院期間区分[#Headers],0)),0)+IFERROR(INDEX(退院予定有無×在院期間区分[#All],MATCH($AI5,退院予定有無×在院期間区分[[#All],[行ラベル]],0),MATCH($AQ$4,退院予定有無×在院期間区分[#Headers],0)),0)+IFERROR(INDEX(退院予定有無×在院期間区分[#All],MATCH($AI5,退院予定有無×在院期間区分[[#All],[行ラベル]],0),MATCH($AR$4,退院予定有無×在院期間区分[#Headers],0)),0) -> 693 | F4: =IFERROR(E4/E$7,"-") -> 0.1658688368 | G4: =IFERROR(INDEX(退院予定有無×在院期間区分[#All],MATCH($AI5,退院予定有無×在院期間区分[[#All],[行ラベル]],0),MATCH($AS$4,退院予定有無×在院期間区分[#Headers],0))+INDEX(退院予定有無×在院期間区分[#All],MATCH($AI5,退院予定有無×在院期間区分[[#All],[行ラベル]],0),MATCH($AT$4,退院予定有無×在院期間区分[#Headers],0)),0)+IFERROR(INDEX(退院予定有無×在院期間区分[#All],MATCH($AI5,退院予定有無×在院期間区分[[#All],[行ラベル]],0),MATCH($AU$4,退院予定有無×在院期間区分[#Headers],0)),0)+IFERROR(INDEX(退院予定有無×在院期間区分[#All],MATCH($AI5,退院予定有無×在院期間区分[[#All],[行ラベル]],0),MATCH($AV$4,退院予定有無×在院期間区分[#Headers],0)),0)+IFERROR(INDEX(退院予定有無×在院期間区分[#All],MATCH($AI5,退院予定有無×在院期間区分[[#All],[行ラベル]],0),MATCH($AW$4,退院予定有無×在院期間区分[#Headers],0)),0) -> 302 | H4: =IFERROR(G4/G$7,"-") -> 0.1615837346 | I4: =IFERROR(INDEX(退院予定有無×在院期間区分[#All],MATCH($AI5,退院予定有無×在院期間区分[[#All],[行ラベル]],0),MATCH($AX$4,退院予定有無×在院期間区分[#Headers],0)),0)+IFERROR(INDEX(退院予定有無×在院期間区分[#All],MATCH($AI5,退院予定有無×在院期間区分[[#All],[行ラベル]],0),MATCH($AY$4,退院予定有無×在院期間区分[#Headers],0)),0) -> 330 | J4: =IFERROR(I4/I$7,"-") -> 0.1582733813 | K4: =C4+E4+G4+I4 -> 2188 | L4: 98 | M4: 1186 | N4: 1293 | O4: 816 | P4: 941 | Q4: 635 | R4: 585 | S4: 840 | T4: 722 | U4: 544 | V4: 470 | W4: 362 | X4: 238 | Y4: 262 | Z4: 198 | AA4: 1078 | AB4: 645 | AJ4: 01_1ヶ月未満 | AK4: 02_1ヶ月～3ヶ月未満 | AL4: 03_3ヶ月～6ヶ月未満 | AM4: 04_6ヶ月～1年未満 | AN4: 05_1年～1年6ヶ月未満 | AO4: 06_1年6ヶ月～2年未満 | AP4: 07_2年～3年未満 | AQ4: 08_3年～4年未満 | AR4: 09_4年～5年未満 | AS4: 10_5年～6年未満 | AT4: 11_6年～7年未満 | AU4: 12_7年～8年未満 | AV4: 13_8年～9年未満 | AW4: 14_9年～10年未満 | AX4: 15_10年～20年未満 | AY4: 16_ 20年以上
B5: 病状（主症状）が不安定で入院による治療が必要 | C5: =IFERROR(INDEX(退院予定有無×在院期間区分[#All],MATCH($AI6,退院予定有無×在院期間区分[[#All],[行ラベル]],0),MATCH($AJ$4,退院予定有無×在院期間区分[#Headers],0)),)+IFERROR(INDEX(退院予定有無×在院期間区分[#All],MATCH($AI6,退院予定有無×在院期間区分[[#All],[行ラベル]],0),MATCH($AK$4,退院予定有無×在院期間区分[#Headers],0)),0)+IFERROR(INDEX(退院予定有無×在院期間区分[#All],MATCH($AI6,退院予定有無×在院期間区分[[#All],[行ラベル]],0),MATCH($AL$4,退院予定有無×在院期間区分[#Headers],0)),0)+IFERROR(INDEX(退院予定有無×在院期間区分[#All],MATCH($AI6,退院予定有無×在院期間区分[[#All],[行ラベル]],0),MATCH($AM$4,退院予定有無×在院期間区分[#Headers],0)),0) -> 4236 | D5: =IFERROR(C5/C$7,"-") -> 0.6580705297 | E5: =IFERROR(INDEX(退院予定有無×在院期間区分[#All],MATCH($AI6,退院予定有無×在院期間区分[[#All],[行ラベル]],0),MATCH($AN$4,退院予定有無×在院期間区分[#Headers],0)),0)+IFERROR(INDEX(退院予定有無×在院期間区分[#All],MATCH($AI6,退院予定有無×在院期間区分[[#All],[行ラベル]],0),MATCH($AO$4,退院予定有無×在院期間区分[#Headers],0)),0)+IFERROR(INDEX(退院予定有無×在院期間区分[#All],MATCH($AI6,退院予定有無×在院期間区分[[#All],[行ラベル]],0),MATCH($AP$4,退院予定有無×在院期間区分[#Headers],0)),0)+IFERROR(INDEX(退院予定有無×在院期間区分[#All],MATCH($AI6,退院予定有無×在院期間区分[[#All],[行ラベル]],0),MATCH($AQ$4,退院予定有無×在院期間区分[#Headers],0)),0)+IFERROR(INDEX(退院予定有無×在院期間区分[#All],MATCH($AI6,退院予定有無×在院期間区分[[#All],[行ラベル]],0),MATCH($AR$4,退院予定有無×在院期間区分[#Headers],0)),0) -> 3326 | F5: =IFERROR(E5/E$7,"-") -> 0.7960746769 | G5: =IFERROR(INDEX(退院予定有無×在院期間区分[#All],MATCH($AI6,退院予定有無×在院期間区分[[#All],[行ラベル]],0),MATCH($AS$4,退院予定有無×在院期間区分[#Headers],0))+INDEX(退院予定有無×在院期間区分[#All],MATCH($AI6,退院予定有無×在院期間区分[[#All],[行ラベル]],0),MATCH($AT$4,退院予定有無×在院期間区分[#Headers],0)),0)+IFERROR(INDEX(退院予定有無×在院期間区分[#All],MATCH($AI6,退院予定有無×在院期間区分[[#All],[行ラベル]],0),MATCH($AU$4,退院予定有無×在院期間区分[#Headers],0)),0)+IFERROR(INDEX(退院予定有無×在院期間区分[#All],MATCH($AI6,退院予定有無×在院期間区分[[#All],[行ラベル]],0),MATCH($AV$4,退院予定有無×在院期間区分[#Headers],0)),0)+IFERROR(INDEX(退院予定有無×在院期間区分[#All],MATCH($AI6,退院予定有無×在院期間区分[[#All],[行ラベル]],0),MATCH($AW$4,退院予定有無×在院期間区分[#Headers],0)),0) -> 1530 | H5: =IFERROR(G5/G$7,"-") -> 0.8186195827 | I5: =IFERROR(INDEX(退院予定有無×在院期間区分[#All],MATCH($AI6,退院予定有無×在院期間区分[[#All],[行ラベル]],0),MATCH($AX$4,退院予定有無×在院期間区分[#Headers],0)),0)+IFERROR(INDEX(退院予定有無×在院期間区分[#All],MATCH($AI6,退院予定有無×在院期間区分[[#All],[行ラベル]],0),MATCH($AY$4,退院予定有無×在院期間区分[#Headers],0)),0) -> 1723 | J5: =IFERROR(I5/I$7,"-") -> 0.8263788969 | K5: =C5+E5+G5+I5 -> 10815 | L5: 97 | M5: 173 | N5: 267 | O5: 197 | P5: 226 | Q5: 146 | R5: 120 | S5: 170 | T5: 139 | U5: 118 | V5: 89 | W5: 62 | X5: 59 | Y5: 49 | Z5: 43 | AA5: 208 | AB5: 122 | AI5: 97
B6: 退院予定 | C6: =IFERROR(INDEX(退院予定有無×在院期間区分[#All],MATCH($AI7,退院予定有無×在院期間区分[[#All],[行ラベル]],0),MATCH($AJ$4,退院予定有無×在院期間区分[#Headers],0)),)+IFERROR(INDEX(退院予定有無×在院期間区分[#All],MATCH($AI7,退院予定有無×在院期間区分[[#All],[行ラベル]],0),MATCH($AK$4,退院予定有無×在院期間区分[#Headers],0)),0)+IFERROR(INDEX(退院予定有無×在院期間区分[#All],MATCH($AI7,退院予定有無×在院期間区分[[#All],[行ラベル]],0),MATCH($AL$4,退院予定有無×在院期間区分[#Headers],0)),0)+IFERROR(INDEX(退院予定有無×在院期間区分[#All],MATCH($AI7,退院予定有無×在院期間区分[[#All],[行ラベル]],0),MATCH($AM$4,退院予定有無×在院期間区分[#Headers],0)),0) -> 1338 | D6: =IFERROR(C6/C$7,"-") -> 0.2078608047 | E6: =IFERROR(INDEX(退院予定有無×在院期間区分[#All],MATCH($AI7,退院予定有無×在院期間区分[[#All],[行ラベル]],0),MATCH($AN$4,退院予定有無×在院期間区分[#Headers],0)),0)+IFERROR(INDEX(退院予定有無×在院期間区分[#All],MATCH($AI7,退院予定有無×在院期間区分[[#All],[行ラベル]],0),MATCH($AO$4,退院予定有無×在院期間区分[#Headers],0)),0)+IFERROR(INDEX(退院予定有無×在院期間区分[#All],MATCH($AI7,退院予定有無×在院期間区分[[#All],[行ラベル]],0),MATCH($AP$4,退院予定有無×在院期間区分[#Headers],0)),0)+IFERROR(INDEX(退院予定有無×在院期間区分[#All],MATCH($AI7,退院予定有無×在院期間区分[[#All],[行ラベル]],0),MATCH($AQ$4,退院予定有無×在院期間区分[#Headers],0)),0)+IFERROR(INDEX(退院予定有無×在院期間区分[#All],MATCH($AI7,退院予定有無×在院期間区分[[#All],[行ラベル]],0),MATCH($AR$4,退院予定有無×在院期間区分[#Headers],0)),0) -> 159 | F6: =IFERROR(E6/E$7,"-") -> 0.03805648636 | G6: =IFERROR(INDEX(退院予定有無×在院期間区分[#All],MATCH($AI7,退院予定有無×在院期間区分[[#All],[行ラベル]],0),MATCH($AS$4,退院予定有無×在院期間区分[#Headers],0))+INDEX(退院予定有無×在院期間区分[#All],MATCH($AI7,退院予定有無×在院期間区分[[#All],[行ラベル]],0),MATCH($AT$4,退院予定有無×在院期間区分[#Headers],0)),0)+IFERROR(INDEX(退院予定有無×在院期間区分[#All],MATCH($AI7,退院予定有無×在院期間区分[[#All],[行ラベル]],0),MATCH($AU$4,退院予定有無×在院期間区分[#Headers],0)),0)+IFERROR(INDEX(退院予定有無×在院期間区分[#All],MATCH($AI7,退院予定有無×在院期間区分[[#All],[行ラベル]],0),MATCH($AV$4,退院予定有無×在院期間区分[#Headers],0)),0)+IFERROR(INDEX(退院予定有無×在院期間区分[#All],MATCH($AI7,退院予定有無×在院期間区分[[#All],[行ラベル]],0),MATCH($AW$4,退院予定有無×在院期間区分[#Headers],0)),0) -> 37 | H6: =IFERROR(G6/G$7,"-") -> 0.01979668272 | I6: =IFERROR(INDEX(退院予定有無×在院期間区分[#All],MATCH($AI7,退院予定有無×在院期間区分[[#All],[行ラベル]],0),MATCH($AX$4,退院予定有無×在院期間区分[#Headers],0)),0)+IFERROR(INDEX(退院予定有無×在院期間区分[#All],MATCH($AI7,退院予定有無×在院期間区分[[#All],[行ラベル]],0),MATCH($AY$4,退院予定有無×在院期間区分[#Headers],0)),0) -> 32 | J6: =IFERROR(I6/I$7,"-") -> 0.01534772182 | K6: =C6+E6+G6+I6 -> 1566 | L6: 99 | M6: 458 | N6: 575 | O6: 195 | P6: 110 | Q6: 58 | R6: 23 | S6: 31 | T6: 33 | U6: 14 | V6: 15 | W6: 7 | X6: 7 | Y6: 5 | Z6: 3 | AA6: 22 | AB6: 10 | AI6: 98
B7: 総計 | C7: =SUM(C4:C6) -> 6437 | D7: 1 | E7: 4178 | F7: 1 | G7: 1869 | H7: 1 | I7: 2085 | J7: 1 | K7: =C7+E7+G7+I7 -> 14569 | AI7: 99
B9: 退院阻害要因 | L9: 行ラベル | M9: 01_1ヶ月未満 | N9: 02_1ヶ月～3ヶ月未満 | O9: 03_3ヶ月～6ヶ月未満 | P9: 04_6ヶ月～1年未満 | Q9: 05_1年～1年6ヶ月未満 | R9: 06_1年6ヶ月～2年未満 | S9: 07_2年～3年未満 | T9: 08_3年～4年未満 | U9: 09_4年～5年未満 | V9: 10_5年～6年未満 | W9: 11_6年～7年未満 | X9: 12_7年～8年未満 | Y9: 13_8年～9年未満 | Z9: 14_9年～10年未満 | AA9: 15_10年～20年未満 | AB9: 16_ 20年以上
B10: 退院阻害要因がある | C10: =IFERROR(INDEX(阻害要因有無×在院期間区分[#All],MATCH($AI11,阻害要因有無×在院期間区分[[#All],[行ラベル]],0),MATCH($AJ$4,阻害要因有無×在院期間区分[#Headers],0)),0)+IFERROR(INDEX(阻害要因有無×在院期間区分[#All],MATCH($AI11,阻害要因有無×在院期間区分[[#All],[行ラベル]],0),MATCH($AK$4,阻害要因有無×在院期間区分[#Headers],0)),0)+IFERROR(INDEX(阻害要因有無×在院期間区分[#All],MATCH($AI11,阻害要因有無×在院期間区分[[#All],[行ラベル]],0),MATCH($AL$4,阻害要因有無×在院期間区分[#Headers],0)),0)+IFERROR(INDEX(阻害要因有無×在院期間区分[#All],MATCH($AI11,阻害要因有無×在院期間区分[[#All],[行ラベル]],0),MATCH($AM$4,阻害要因有無×在院期間区分[#Headers],0)),0) -> 665 | D10: =IFERROR(C10/C$4,"-") -> 0.7705677868 | E10: =IFERROR(INDEX(阻害要因有無×在院期間区分[#All],MATCH($AI11,阻害要因有無×在院期間区分[[#All],[行ラベル]],0),MATCH($AN$4,阻害要因有無×在院期間区分[#Headers],0)),0)+IFERROR(INDEX(阻害要因有無×在院期間区分[#All],MATCH($AI11,阻害要因有無×在院期間区分[[#All],[行ラベル]],0),MATCH($AO$4,阻害要因有無×在院期間区分[#Headers],0)),0)+IFERROR(INDEX(阻害要因有無×在院期間区分[#All],MATCH($AI11,阻害要因有無×在院期間区分[[#All],[行ラベル]],0),MATCH($AP$4,阻害要因有無×在院期間区分[#Headers],0)),0)+IFERROR(INDEX(阻害要因有無×在院期間区分[#All],MATCH($AI11,阻害要因有無×在院期間区分[[#All],[行ラベル]],0),MATCH($AQ$4,阻害要因有無×在院期間区分[#Headers],0)),0)+IFERROR(INDEX(阻害要因有無×在院期間区分[#All],MATCH($AI11,阻害要因有無×在院期間区分[[#All],[行ラベル]],0),MATCH($AR$4,阻害要因有無×在院期間区分[#Headers],0)),0) -> 673 | F10: =IFERROR(E10/E$4,"-") -> 0.9711399711 | G10: =IFERROR(INDEX(阻害要因有無×在院期間区分[#All],MATCH($AI11,阻害要因有無×在院期間区分[[#All],[行ラベル]],0),MATCH($AS$4,阻害要因有無×在院期間区分[#Headers],0)),0)+IFERROR(INDEX(阻害要因有無×在院期間区分[#All],MATCH($AI11,阻害要因有無×在院期間区分[[#All],[行ラベル]],0),MATCH($AT$4,阻害要因有無×在院期間区分[#Headers],0)),0)+IFERROR(INDEX(阻害要因有無×在院期間区分[#All],MATCH($AI11,阻害要因有無×在院期間区分[[#All],[行ラベル]],0),MATCH($AU$4,阻害要因有無×在院期間区分[#Headers],0)),0)+IFERROR(INDEX(阻害要因有無×在院期間区分[#All],MATCH($AI11,阻害要因有無×在院期間区分[[#All],[行ラベル]],0),MATCH($AV$4,阻害要因有無×在院期間区分[#Headers],0)),0)+IFERROR(INDEX(阻害要因有無×在院期間区分[#All],MATCH($AI11,阻害要因有無×在院期間区分[[#All],[行ラベル]],0),MATCH($AW$4,阻害要因有無×在院期間区分[#Headers],0)),0) -> 293 | H10: =IFERROR(G10/G$4,"-") -> 0.9701986755 | I10: =IFERROR(INDEX(阻害要因有無×在院期間区分[#All],MATCH($AI11,阻害要因有無×在院期間区分[[#All],[行ラベル]],0),MATCH($AX$4,阻害要因有無×在院期間区分[#Headers],0)),0)+IFERROR(INDEX(阻害要因有無×在院期間区分[#All],MATCH($AI11,阻害要因有無×在院期間区分[[#All],[行ラベル]],0),MATCH($AY$4,阻害要因有無×在院期間区分[#Headers],0)),0) -> 325 | J10: =IFERROR(I10/I$4,"-") -> 0.9848484848 | K10: =C10+E10+G10+I10 -> 1956 | L10: 91 | M10: 108 | N10: 190 | O10: 167 | P10: 200 | Q10: 143 | R10: 118 | S10: 164 | T10: 133 | U10: 115 | V10: 86 | W10: 61 | X10: 57 | Y10: 47 | Z10: 42 | AA10: 204 | AB10: 121
B11: 退院阻害要因はない | C11: =IFERROR(INDEX(阻害要因有無×在院期間区分[#All],MATCH($AI12,阻害要因有無×在院期間区分[[#All],[行ラベル]],0),MATCH($AJ$4,阻害要因有無×在院期間区分[#Headers],0)),0)+IFERROR(INDEX(阻害要因有無×在院期間区分[#All],MATCH($AI12,阻害要因有無×在院期間区分[[#All],[行ラベル]],0),MATCH($AK$4,阻害要因有無×在院期間区分[#Headers],0)),0)+IFERROR(INDEX(阻害要因有無×在院期間区分[#All],MATCH($AI12,阻害要因有無×在院期間区分[[#All],[行ラベル]],0),MATCH($AL$4,阻害要因有無×在院期間区分[#Headers],0)),0)+IFERROR(INDEX(阻害要因有無×在院期間区分[#All],MATCH($AI12,阻害要因有無×在院期間区分[[#All],[行ラベル]],0),MATCH($AM$4,阻害要因有無×在院期間区分[#Headers],0)),0) -> 198 | D11: =IFERROR(C11/C$4,"-") -> 0.2294322132 | E11: =IFERROR(INDEX(阻害要因有無×在院期間区分[#All],MATCH($AI12,阻害要因有無×在院期間区分[[#All],[行ラベル]],0),MATCH($AN$4,阻害要因有無×在院期間区分[#Headers],0)),0)+IFERROR(INDEX(阻害要因有無×在院期間区分[#All],MATCH($AI12,阻害要因有無×在院期間区分[[#All],[行ラベル]],0),MATCH($AO$4,阻害要因有無×在院期間区分[#Headers],0)),0)+IFERROR(INDEX(阻害要因有無×在院期間区分[#All],MATCH($AI12,阻害要因有無×在院期間区分[[#All],[行ラベル]],0),MATCH($AP$4,阻害要因有無×在院期間区分[#Headers],0)),0)+IFERROR(INDEX(阻害要因有無×在院期間区分[#All],MATCH($AI12,阻害要因有無×在院期間区分[[#All],[行ラベル]],0),MATCH($AQ$4,阻害要因有無×在院期間区分[#Headers],0)),0)+IFERROR(INDEX(阻害要因有無×在院期間区分[#All],MATCH($AI12,阻害要因有無×在院期間区分[[#All],[行ラベル]],0),MATCH($AR$4,阻害要因有無×在院期間区分[#Headers],0)),0) -> 20 | F11: =IFERROR(E11/E$4,"-") -> 0.02886002886 | G11: =IFERROR(INDEX(阻害要因有無×在院期間区分[#All],MATCH($AI12,阻害要因有無×在院期間区分[[#All],[行ラベル]],0),MATCH($AS$4,阻害要因有無×在院期間区分[#Headers],0)),0)+IFERROR(INDEX(阻害要因有無×在院期間区分[#All],MATCH($AI12,阻害要因有無×在院期間区分[[#All],[行ラベル]],0),MATCH($AT$4,阻害要因有無×在院期間区分[#Headers],0)),0)+IFERROR(INDEX(阻害要因有無×在院期間区分[#All],MATCH($AI12,阻害要因有無×在院期間区分[[#All],[行ラベル]],0),MATCH($AU$4,阻害要因有無×在院期間区分[#Headers],0)),0)+IFERROR(INDEX(阻害要因有無×在院期間区分[#All],MATCH($AI12,阻害要因有無×在院期間区分[[#All],[行ラベル]],0),MATCH($AV$4,阻害要因有無×在院期間区分[#Headers],0)),0)+IFERROR(INDEX(阻害要因有無×在院期間区分[#All],MATCH($AI12,阻害要因有無×在院期間区分[[#All],[行ラベル]],0),MATCH($AW$4,阻害要因有無×在院期間区分[#Headers],0)),0) -> 9 | H11: =IFERROR(G11/G$4,"-") -> 0.0298013245 | I11: =IFERROR(INDEX(阻害要因有無×在院期間区分[#All],MATCH($AI12,阻害要因有無×在院期間区分[[#All],[行ラベル]],0),MATCH($AX$4,阻害要因有無×在院期間区分[#Headers],0)),0)+IFERROR(INDEX(阻害要因有無×在院期間区分[#All],MATCH($AI12,阻害要因有無×在院期間区分[[#All],[行ラベル]],0),MATCH($AY$4,阻害要因有無×在院期間区分[#Headers],0)),0) -> 5 | J11: =IFERROR(I11/I$4,"-") -> 0.01515151515 | K11: =C11+E11+G11+I11 -> 232 | L11: 90 | M11: 65 | N11: 77 | O11: 30 | P11: 26 | Q11: 3 | R11: 2 | S11: 6 | T11: 6 | U11: 3 | V11: 3 | W11: 1 | X11: 2 | Y11: 2 | Z11: 1 | AA11: 4 | AB11: 1 | AI11: 91
B12: ＜複数回答＞ | M12: 1641 | N12: 1868 | O12: 1010 | P12: 1050 | Q12: 692 | R12: 606 | S12: 871 | T12: 754 | U12: 558 | V12: 485 | W12: 369 | X12: 244 | Y12: 267 | Z12: 201 | AA12: 1097 | AB12: 654 | AI12: 90
B13: 割合には「退院阻害要因がある」それぞれの人数に対する割合を表示しています。 | L13: 値 | M13: 01_1ヶ月未満 | N13: 02_1ヶ月～3ヶ月未満 | O13: 03_3ヶ月～6ヶ月未満 | P13: 04_6ヶ月～1年未満 | Q13: 05_1年～1年6ヶ月未満 | R13: 06_1年6ヶ月～2年未満 | S13: 07_2年～3年未満 | T13: 08_3年～4年未満 | U13: 09_4年～5年未満 | V13: 10_5年～6年未満 | W13: 11_6年～7年未満 | X13: 12_7年～8年未満 | Y13: 13_8年～9年未満 | Z13: 14_9年～10年未満 | AA13: 15_10年～20年未満 | AB13: 16_ 20年以上
B14: 病状は落ち着いているが、ときどき不安定な病状が見られ、そのことが退院を阻害する要因になっている | C14: =IFERROR(INDEX(阻害要因×在院期間区分[#All],MATCH($AI15,阻害要因×在院期間区分[[#All],[値]],0),MATCH($AJ$4,阻害要因×在院期間区分[#Headers],0)),0)+IFERROR(INDEX(阻害要因×在院期間区分[#All],MATCH($AI15,阻害要因×在院期間区分[[#All],[値]],0),MATCH($AK$4,阻害要因×在院期間区分[#Headers],0)),0)+IFERROR(INDEX(阻害要因×在院期間区分[#All],MATCH($AI15,阻害要因×在院期間区分[[#All],[値]],0),MATCH($AL$4,阻害要因×在院期間区分[#Headers],0)),0)+IFERROR(INDEX(阻害要因×在院期間区分[#All],MATCH($AI15,阻害要因×在院期間区分[[#All],[値]],0),MATCH($AM$4,阻害要因×在院期間区分[#Headers],0)),0) -> 221 | D14: =IFERROR(C14/C$10,"-") -> 0.3323308271 | E14: =IFERROR(INDEX(阻害要因×在院期間区分[#All],MATCH($AI15,阻害要因×在院期間区分[[#All],[値]],0),MATCH($AN$4,阻害要因×在院期間区分[#Headers],0)),0)+IFERROR(INDEX(阻害要因×在院期間区分[#All],MATCH($AI15,阻害要因×在院期間区分[[#All],[値]],0),MATCH($AO$4,阻害要因×在院期間区分[#Headers],0)),0)+IFERROR(INDEX(阻害要因×在院期間区分[#All],MATCH($AI15,阻害要因×在院期間区分[[#All],[値]],0),MATCH($AP$4,阻害要因×在院期間区分[#Headers],0)),0)+IFERROR(INDEX(阻害要因×在院期間区分[#All],MATCH($AI15,阻害要因×在院期間区分[[#All],[値]],0),MATCH($AQ$4,阻害要因×在院期間区分[#Headers],0)),0)+IFERROR(INDEX(阻害要因×在院期間区分[#All],MATCH($AI15,阻害要因×在院期間区分[[#All],[値]],0),MATCH($AR$4,阻害要因×在院期間区分[#Headers],0)),0) -> 225 | F14: =IFERROR(E14/E$10,"-") -> 0.3343239227 | G14: =IFERROR(INDEX(阻害要因×在院期間区分[#All],MATCH($AI15,阻害要因×在院期間区分[[#All],[値]],0),MATCH($AS$4,阻害要因×在院期間区分[#Headers],0)),0)+IFERROR(INDEX(阻害要因×在院期間区分[#All],MATCH($AI15,阻害要因×在院期間区分[[#All],[値]],0),MATCH($AT$4,阻害要因×在院期間区分[#Headers],0)),0)+IFERROR(INDEX(阻害要因×在院期間区分[#All],MATCH($AI15,阻害要因×在院期間区分[[#All],[値]],0),MATCH($AU$4,阻害要因×在院期間区分[#Headers],0)),0)+IFERROR(INDEX(阻害要因×在院期間区分[#All],MATCH($AI15,阻害要因×在院期間区分[[#All],[値]],0),MATCH($AV$4,阻害要因×在院期間区分[#Headers],0)),0)+IFERROR(INDEX(阻害要因×在院期間区分[#All],MATCH($AI15,阻害要因×在院期間区分[[#All],[値]],0),MATCH($AW$4,阻害要因×在院期間区分[#Headers],0)),0) -> 112 | H14: =IFERROR(G14/G$10,"-") -> 0.3822525597 | I14: =IFERROR(INDEX(阻害要因×在院期間区分[#All],MATCH($AI15,阻害要因×在院期間区分[[#All],[値]],0),MATCH($AX$4,阻害要因×在院期間区分[#Headers],0)),0)+IFERROR(INDEX(阻害要因×在院期間区分[#All],MATCH($AI15,阻害要因×在院期間区分[[#All],[値]],0),MATCH($AY$4,阻害要因×在院期間区分[#Headers],0)),0) -> 102 | J14: =IFERROR(I14/I$10,"-") -> 0.3138461538 | K14: =C14+E14+G14+I14 -> 660 | L14: 合計 / 病状は落ち着いているが、ときどき不安定な病状が見られ、そのことが退院を阻害する要因になっている | M14: 37 | N14: 66 | O14: 55 | P14: 63 | Q14: 42 | R14: 45 | S14: 56 | T14: 40 | U14: 42 | V14: 31 | W14: 23 | X14: 19 | Y14: 20 | Z14: 19 | AA14: 71 | AB14: 31
B15: 病識がなく通院服薬の中断が予測される | C15: =IFERROR(INDEX(阻害要因×在院期間区分[#All],MATCH($AI16,阻害要因×在院期間区分[[#All],[値]],0),MATCH($AJ$4,阻害要因×在院期間区分[#Headers],0)),0)+IFERROR(INDEX(阻害要因×在院期間区分[#All],MATCH($AI16,阻害要因×在院期間区分[[#All],[値]],0),MATCH($AK$4,阻害要因×在院期間区分[#Headers],0)),0)+IFERROR(INDEX(阻害要因×在院期間区分[#All],MATCH($AI16,阻害要因×在院期間区分[[#All],[値]],0),MATCH($AL$4,阻害要因×在院期間区分[#Headers],0)),0)+IFERROR(INDEX(阻害要因×在院期間区分[#All],MATCH($AI16,阻害要因×在院期間区分[[#All],[値]],0),MATCH($AM$4,阻害要因×在院期間区分[#Headers],0)),0) -> 162 | D15: 0.2436090226 | E15: =IFERROR(INDEX(阻害要因×在院期間区分[#All],MATCH($AI16,阻害要因×在院期間区分[[#All],[値]],0),MATCH($AN$4,阻害要因×在院期間区分[#Headers],0)),0)+IFERROR(INDEX(阻害要因×在院期間区分[#All],MATCH($AI16,阻害要因×在院期間区分[[#All],[値]],0),MATCH($AO$4,阻害要因×在院期間区分[#Headers],0)),0)+IFERROR(INDEX(阻害要因×在院期間区分[#All],MATCH($AI16,阻害要因×在院期間区分[[#All],[値]],0),MATCH($AP$4,阻害要因×在院期間区分[#Headers],0)),0)+IFERROR(INDEX(阻害要因×在院期間区分[#All],MATCH($AI16,阻害要因×在院期間区分[[#All],[値]],0),MATCH($AQ$4,阻害要因×在院期間区分[#Headers],0)),0)+IFERROR(INDEX(阻害要因×在院期間区分[#All],MATCH($AI16,阻害要因×在院期間区分[[#All],[値]],0),MATCH($AR$4,阻害要因×在院期間区分[#Headers],0)),0) -> 182 | F15: 0.2704309064 | G15: =IFERROR(INDEX(阻害要因×在院期間区分[#All],MATCH($AI16,阻害要因×在院期間区分[[#All],[値]],0),MATCH($AS$4,阻害要因×在院期間区分[#Headers],0)),0)+IFERROR(INDEX(阻害要因×在院期間区分[#All],MATCH($AI16,阻害要因×在院期間区分[[#All],[値]],0),MATCH($AT$4,阻害要因×在院期間区分[#Headers],0)),0)+IFERROR(INDEX(阻害要因×在院期間区分[#All],MATCH($AI16,阻害要因×在院期間区分[[#All],[値]],0),MATCH($AU$4,阻害要因×在院期間区分[#Headers],0)),0)+IFERROR(INDEX(阻害要因×在院期間区分[#All],MATCH($AI16,阻害要因×在院期間区分[[#All],[値]],0),MATCH($AV$4,阻害要因×在院期間区分[#Headers],0)),0)+IFERROR(INDEX(阻害要因×在院期間区分[#All],MATCH($AI16,阻害要因×在院期間区分[[#All],[値]],0),MATCH($AW$4,阻害要因×在院期間区分[#Headers],0)),0) -> 78 | H15: 0.2662116041 | I15: =IFERROR(INDEX(阻害要因×在院期間区分[#All],MATCH($AI16,阻害要因×在院期間区分[[#All],[値]],0),MATCH($AX$4,阻害要因×在院期間区分[#Headers],0)),0)+IFERROR(INDEX(阻害要因×在院期間区分[#All],MATCH($AI16,阻害要因×在院期間区分[[#All],[値]],0),MATCH($AY$4,阻害要因×在院期間区分[#Headers],0)),0) -> 87 | J15: 0.2676923077 | K15: =SUM(C15,E15,G15,I15) -> 509 | L15: 合計 / 病識がなく通院服薬の中断が予測される | M15: 20 | N15: 43 | O15: 42 | P15: 57 | Q15: 34 | R15: 37 | S15: 41 | T15: 36 | U15: 34 | V15: 20 | W15: 13 | X15: 17 | Y15: 15 | Z15: 13 | AA15: 56 | AB15: 31 | AI15: 合計 / 病状は落ち着いているが、ときどき不安定な病状が見られ、そのことが退院を阻害する要因になっている
B16: 反社会的行動が予測される | C16: =IFERROR(INDEX(阻害要因×在院期間区分[#All],MATCH($AI17,阻害要因×在院期間区分[[#All],[値]],0),MATCH($AJ$4,阻害要因×在院期間区分[#Headers],0)),0)+IFERROR(INDEX(阻害要因×在院期間区分[#All],MATCH($AI17,阻害要因×在院期間区分[[#All],[値]],0),MATCH($AK$4,阻害要因×在院期間区分[#Headers],0)),0)+IFERROR(INDEX(阻害要因×在院期間区分[#All],MATCH($AI17,阻害要因×在院期間区分[[#All],[値]],0),MATCH($AL$4,阻害要因×在院期間区分[#Headers],0)),0)+IFERROR(INDEX(阻害要因×在院期間区分[#All],MATCH($AI17,阻害要因×在院期間区分[[#All],[値]],0),MATCH($AM$4,阻害要因×在院期間区分[#Headers],0)),0) -> 29 | D16: 0.04360902256 | E16: =IFERROR(INDEX(阻害要因×在院期間区分[#All],MATCH($AI17,阻害要因×在院期間区分[[#All],[値]],0),MATCH($AN$4,阻害要因×在院期間区分[#Headers],0)),0)+IFERROR(INDEX(阻害要因×在院期間区分[#All],MATCH($AI17,阻害要因×在院期間区分[[#All],[値]],0),MATCH($AO$4,阻害要因×在院期間区分[#Headers],0)),0)+IFERROR(INDEX(阻害要因×在院期間区分[#All],MATCH($AI17,阻害要因×在院期間区分[[#All],[値]],0),MATCH($AP$4,阻害要因×在院期間区分[#Headers],0)),0)+IFERROR(INDEX(阻害要因×在院期間区分[#All],MATCH($AI17,阻害要因×在院期間区分[[#All],[値]],0),MATCH($AQ$4,阻害要因×在院期間区分[#Headers],0)),0)+IFERROR(INDEX(阻害要因×在院期間区分[#All],MATCH($AI17,阻害要因×在院期間区分[[#All],[値]],0),MATCH($AR$4,阻害要因×在院期間区分[#Headers],0)),0) -> 26 | F16: 0.03863298663 | G16: =IFERROR(INDEX(阻害要因×在院期間区分[#All],MATCH($AI17,阻害要因×在院期間区分[[#All],[値]],0),MATCH($AS$4,阻害要因×在院期間区分[#Headers],0)),0)+IFERROR(INDEX(阻害要因×在院期間区分[#All],MATCH($AI17,阻害要因×在院期間区分[[#All],[値]],0),MATCH($AT$4,阻害要因×在院期間区分[#Headers],0)),0)+IFERROR(INDEX(阻害要因×在院期間区分[#All],MATCH($AI17,阻害要因×在院期間区分[[#All],[値]],0),MATCH($AU$4,阻害要因×在院期間区分[#Headers],0)),0)+IFERROR(INDEX(阻害要因×在院期間区分[#All],MATCH($AI17,阻害要因×在院期間区分[[#All],[値]],0),MATCH($AV$4,阻害要因×在院期間区分[#Headers],0)),0)+IFERROR(INDEX(阻害要因×在院期間区分[#All],MATCH($AI17,阻害要因×在院期間区分[[#All],[値]],0),MATCH($AW$4,阻害要因×在院期間区分[#Headers],0)),0) -> 17 | H16: 0.05802047782 | I16: =IFERROR(INDEX(阻害要因×在院期間区分[#All],MATCH($AI17,阻害要因×在院期間区分[[#All],[値]],0),MATCH($AX$4,阻害要因×在院期間区分[#Headers],0)),0)+IFERROR(INDEX(阻害要因×在院期間区分[#All],MATCH($AI17,阻害要因×在院期間区分[[#All],[値]],0),MATCH($AY$4,阻害要因×在院期間区分[#Headers],0)),0) -> 10 | J16: 0.03076923077 | K16: 82 | L16: 合計 / 反社会的行動が予測される | M16: 8 | N16: 8 | O16: 3 | P16: 10 | Q16: 6 | R16: 4 | S16: 5 | T16: 4 | U16: 7 | V16: 7 | W16: 2 | X16: 3 | Y16: 4 | Z16: 1 | AA16: 8 | AB16: 2 | AI16: 合計 / 病識がなく通院服薬の中断が予測される
B17: 退院意欲が乏しい | C17: =IFERROR(INDEX(阻害要因×在院期間区分[#All],MATCH($AI18,阻害要因×在院期間区分[[#All],[値]],0),MATCH($AJ$4,阻害要因×在院期間区分[#Headers],0)),0)+IFERROR(INDEX(阻害要因×在院期間区分[#All],MATCH($AI18,阻害要因×在院期間区分[[#All],[値]],0),MATCH($AK$4,阻害要因×在院期間区分[#Headers],0)),0)+IFERROR(INDEX(阻害要因×在院期間区分[#All],MATCH($AI18,阻害要因×在院期間区分[[#All],[値]],0),MATCH($AL$4,阻害要因×在院期間区分[#Headers],0)),0)+IFERROR(INDEX(阻害要因×在院期間区分[#All],MATCH($AI18,阻害要因×在院期間区分[[#All],[値]],0),MATCH($AM$4,阻害要因×在院期間区分[#Headers],0)),0) -> 151 | D17: 0.2270676692 | E17: =IFERROR(INDEX(阻害要因×在院期間区分[#All],MATCH($AI18,阻害要因×在院期間区分[[#All],[値]],0),MATCH($AN$4,阻害要因×在院期間区分[#Headers],0)),0)+IFERROR(INDEX(阻害要因×在院期間区分[#All],MATCH($AI18,阻害要因×在院期間区分[[#All],[値]],0),MATCH($AO$4,阻害要因×在院期間区分[#Headers],0)),0)+IFERROR(INDEX(阻害要因×在院期間区分[#All],MATCH($AI18,阻害要因×在院期間区分[[#All],[値]],0),MATCH($AP$4,阻害要因×在院期間区分[#Headers],0)),0)+IFERROR(INDEX(阻害要因×在院期間区分[#All],MATCH($AI18,阻害要因×在院期間区分[[#All],[値]],0),MATCH($AQ$4,阻害要因×在院期間区分[#Headers],0)),0)+IFERROR(INDEX(阻害要因×在院期間区分[#All],MATCH($AI18,阻害要因×在院期間区分[[#All],[値]],0),MATCH($AR$4,阻害要因×在院期間区分[#Headers],0)),0) -> 269 | F17: 0.3997028232 | G17: =IFERROR(INDEX(阻害要因×在院期間区分[#All],MATCH($AI18,阻害要因×在院期間区分[[#All],[値]],0),MATCH($AS$4,阻害要因×在院期間区分[#Headers],0)),0)+IFERROR(INDEX(阻害要因×在院期間区分[#All],MATCH($AI18,阻害要因×在院期間区分[[#All],[値]],0),MATCH($AT$4,阻害要因×在院期間区分[#Headers],0)),0)+IFERROR(INDEX(阻害要因×在院期間区分[#All],MATCH($AI18,阻害要因×在院期間区分[[#All],[値]],0),MATCH($AU$4,阻害要因×在院期間区分[#Headers],0)),0)+IFERROR(INDEX(阻害要因×在院期間区分[#All],MATCH($AI18,阻害要因×在院期間区分[[#All],[値]],0),MATCH($AV$4,阻害要因×在院期間区分[#Headers],0)),0)+IFERROR(INDEX(阻害要因×在院期間区分[#All],MATCH($AI18,阻害要因×在院期間区分[[#All],[値]],0),MATCH($AW$4,阻害要因×在院期間区分[#Headers],0)),0) -> 127 | H17: 0.433447099 | I17: =IFERROR(INDEX(阻害要因×在院期間区分[#All],MATCH($AI18,阻害要因×在院期間区分[[#All],[値]],0),MATCH($AX$4,阻害要因×在院期間区分[#Headers],0)),0)+IFERROR(INDEX(阻害要因×在院期間区分[#All],MATCH($AI18,阻害要因×在院期間区分[[#All],[値]],0),MATCH($AY$4,阻害要因×在院期間区分[#Headers],0)),0) -> 179 | J17: 0.5507692308 | K17: 726 | L17: 合計 / 退院意欲が乏しい | M17: 19 | N17: 27 | O17: 40 | P17: 65 | Q17: 49 | R17: 49 | S17: 70 | T17: 55 | U17: 46 | V17: 30 | W17: 29 | X17: 25 | Y17: 19 | Z17: 24 | AA17: 112 | AB17: 67 | AI17: 合計 / 反社会的行動が予測される
B18: 現実認識が乏しい | C18: =IFERROR(INDEX(阻害要因×在院期間区分[#All],MATCH($AI19,阻害要因×在院期間区分[[#All],[値]],0),MATCH($AJ$4,阻害要因×在院期間区分[#Headers],0)),0)+IFERROR(INDEX(阻害要因×在院期間区分[#All],MATCH($AI19,阻害要因×在院期間区分[[#All],[値]],0),MATCH($AK$4,阻害要因×在院期間区分[#Headers],0)),0)+IFERROR(INDEX(阻害要因×在院期間区分[#All],MATCH($AI19,阻害要因×在院期間区分[[#All],[値]],0),MATCH($AL$4,阻害要因×在院期間区分[#Headers],0)),0)+IFERROR(INDEX(阻害要因×在院期間区分[#All],MATCH($AI19,阻害要因×在院期間区分[[#All],[値]],0),MATCH($AM$4,阻害要因×在院期間区分[#Headers],0)),0) -> 217 | D18: 0.3263157895 | E18: =IFERROR(INDEX(阻害要因×在院期間区分[#All],MATCH($AI19,阻害要因×在院期間区分[[#All],[値]],0),MATCH($AN$4,阻害要因×在院期間区分[#Headers],0)),0)+IFERROR(INDEX(阻害要因×在院期間区分[#All],MATCH($AI19,阻害要因×在院期間区分[[#All],[値]],0),MATCH($AO$4,阻害要因×在院期間区分[#Headers],0)),0)+IFERROR(INDEX(阻害要因×在院期間区分[#All],MATCH($AI19,阻害要因×在院期間区分[[#All],[値]],0),MATCH($AP$4,阻害要因×在院期間区分[#Headers],0)),0)+IFERROR(INDEX(阻害要因×在院期間区分[#All],MATCH($AI19,阻害要因×在院期間区分[[#All],[値]],0),MATCH($AQ$4,阻害要因×在院期間区分[#Headers],0)),0)+IFERROR(INDEX(阻害要因×在院期間区分[#All],MATCH($AI19,阻害要因×在院期間区分[[#All],[値]],0),MATCH($AR$4,阻害要因×在院期間区分[#Headers],0)),0) -> 259 | F18: 0.3848439822 | G18: =IFERROR(INDEX(阻害要因×在院期間区分[#All],MATCH($AI19,阻害要因×在院期間区分[[#All],[値]],0),MATCH($AS$4,阻害要因×在院期間区分[#Headers],0)),0)+IFERROR(INDEX(阻害要因×在院期間区分[#All],MATCH($AI19,阻害要因×在院期間区分[[#All],[値]],0),MATCH($AT$4,阻害要因×在院期間区分[#Headers],0)),0)+IFERROR(INDEX(阻害要因×在院期間区分[#All],MATCH($AI19,阻害要因×在院期間区分[[#All],[値]],0),MATCH($AU$4,阻害要因×在院期間区分[#Headers],0)),0)+IFERROR(INDEX(阻害要因×在院期間区分[#All],MATCH($AI19,阻害要因×在院期間区分[[#All],[値]],0),MATCH($AV$4,阻害要因×在院期間区分[#Headers],0)),0)+IFERROR(INDEX(阻害要因×在院期間区分[#All],MATCH($AI19,阻害要因×在院期間区分[[#All],[値]],0),MATCH($AW$4,阻害要因×在院期間区分[#Headers],0)),0) -> 116 | H18: 0.3959044369 | I18: =IFERROR(INDEX(阻害要因×在院期間区分[#All],MATCH($AI19,阻害要因×在院期間区分[[#All],[値]],0),MATCH($AX$4,阻害要因×在院期間区分[#Headers],0)),0)+IFERROR(INDEX(阻害要因×在院期間区分[#All],MATCH($AI19,阻害要因×在院期間区分[[#All],[値]],0),MATCH($AY$4,阻害要因×在院期間区分[#Headers],0)),0) -> 145 | J18: 0.4461538462 | K18: 737 | L18: 合計 / 現実認識が乏しい | M18: 32 | N18: 60 | O18: 60 | P18: 65 | Q18: 54 | R18: 44 | S18: 56 | T18: 55 | U18: 50 | V18: 35 | W18: 21 | X18: 26 | Y18: 20 | Z18: 14 | AA18: 86 | AB18: 59 | AI18: 合計 / 退院意欲が乏しい
B19: 退院による環境変化への不安が強い | C19: =IFERROR(INDEX(阻害要因×在院期間区分[#All],MATCH($AI20,阻害要因×在院期間区分[[#All],[値]],0),MATCH($AJ$4,阻害要因×在院期間区分[#Headers],0)),0)+IFERROR(INDEX(阻害要因×在院期間区分[#All],MATCH($AI20,阻害要因×在院期間区分[[#All],[値]],0),MATCH($AK$4,阻害要因×在院期間区分[#Headers],0)),0)+IFERROR(INDEX(阻害要因×在院期間区分[#All],MATCH($AI20,阻害要因×在院期間区分[[#All],[値]],0),MATCH($AL$4,阻害要因×在院期間区分[#Headers],0)),0)+IFERROR(INDEX(阻害要因×在院期間区分[#All],MATCH($AI20,阻害要因×在院期間区分[[#All],[値]],0),MATCH($AM$4,阻害要因×在院期間区分[#Headers],0)),0) -> 133 | D19: 0.2 | E19: =IFERROR(INDEX(阻害要因×在院期間区分[#All],MATCH($AI20,阻害要因×在院期間区分[[#All],[値]],0),MATCH($AN$4,阻害要因×在院期間区分[#Headers],0)),0)+IFERROR(INDEX(阻害要因×在院期間区分[#All],MATCH($AI20,阻害要因×在院期間区分[[#All],[値]],0),MATCH($AO$4,阻害要因×在院期間区分[#Headers],0)),0)+IFERROR(INDEX(阻害要因×在院期間区分[#All],MATCH($AI20,阻害要因×在院期間区分[[#All],[値]],0),MATCH($AP$4,阻害要因×在院期間区分[#Headers],0)),0)+IFERROR(INDEX(阻害要因×在院期間区分[#All],MATCH($AI20,阻害要因×在院期間区分[[#All],[値]],0),MATCH($AQ$4,阻害要因×在院期間区分[#Headers],0)),0)+IFERROR(INDEX(阻害要因×在院期間区分[#All],MATCH($AI20,阻害要因×在院期間区分[[#All],[値]],0),MATCH($AR$4,阻害要因×在院期間区分[#Headers],0)),0) -> 151 | F19: 0.2243684993 | G19: =IFERROR(INDEX(阻害要因×在院期間区分[#All],MATCH($AI20,阻害要因×在院期間区分[[#All],[値]],0),MATCH($AS$4,阻害要因×在院期間区分[#Headers],0)),0)+IFERROR(INDEX(阻害要因×在院期間区分[#All],MATCH($AI20,阻害要因×在院期間区分[[#All],[値]],0),MATCH($AT$4,阻害要因×在院期間区分[#Headers],0)),0)+IFERROR(INDEX(阻害要因×在院期間区分[#All],MATCH($AI20,阻害要因×在院期間区分[[#All],[値]],0),MATCH($AU$4,阻害要因×在院期間区分[#Headers],0)),0)+IFERROR(INDEX(阻害要因×在院期間区分[#All],MATCH($AI20,阻害要因×在院期間区分[[#All],[値]],0),MATCH($AV$4,阻害要因×在院期間区分[#Headers],0)),0)+IFERROR(INDEX(阻害要因×在院期間区分[#All],MATCH($AI20,阻害要因×在院期間区分[[#All],[値]],0),MATCH($AW$4,阻害要因×在院期間区分[#Headers],0)),0) -> 95 | H19: 0.3242320819 | I19: =IFERROR(INDEX(阻害要因×在院期間区分[#All],MATCH($AI20,阻害要因×在院期間区分[[#All],[値]],0),MATCH($AX$4,阻害要因×在院期間区分[#Headers],0)),0)+IFERROR(INDEX(阻害要因×在院期間区分[#All],MATCH($AI20,阻害要因×在院期間区分[[#All],[値]],0),MATCH($AY$4,阻害要因×在院期間区分[#Headers],0)),0) -> 120 | J19: 0.3692307692 | K19: 499 | L19: 合計 / 退院による環境変化への不安が強い | M19: 22 | N19: 31 | O19: 37 | P19: 43 | Q19: 32 | R19: 28 | S19: 37 | T19: 24 | U19: 30 | V19: 23 | W19: 23 | X19: 22 | Y19: 12 | Z19: 15 | AA19: 76 | AB19: 44 | AI19: 合計 / 現実認識が乏しい
B20: 援助者との対人関係がもてない | C20: =IFERROR(INDEX(阻害要因×在院期間区分[#All],MATCH($AI21,阻害要因×在院期間区分[[#All],[値]],0),MATCH($AJ$4,阻害要因×在院期間区分[#Headers],0)),0)+IFERROR(INDEX(阻害要因×在院期間区分[#All],MATCH($AI21,阻害要因×在院期間区分[[#All],[値]],0),MATCH($AK$4,阻害要因×在院期間区分[#Headers],0)),0)+IFERROR(INDEX(阻害要因×在院期間区分[#All],MATCH($AI21,阻害要因×在院期間区分[[#All],[値]],0),MATCH($AL$4,阻害要因×在院期間区分[#Headers],0)),0)+IFERROR(INDEX(阻害要因×在院期間区分[#All],MATCH($AI21,阻害要因×在院期間区分[[#All],[値]],0),MATCH($AM$4,阻害要因×在院期間区分[#Headers],0)),0) -> 39 | D20: 0.05864661654 | E20: =IFERROR(INDEX(阻害要因×在院期間区分[#All],MATCH($AI21,阻害要因×在院期間区分[[#All],[値]],0),MATCH($AN$4,阻害要因×在院期間区分[#Headers],0)),0)+IFERROR(INDEX(阻害要因×在院期間区分[#All],MATCH($AI21,阻害要因×在院期間区分[[#All],[値]],0),MATCH($AO$4,阻害要因×在院期間区分[#Headers],0)),0)+IFERROR(INDEX(阻害要因×在院期間区分[#All],MATCH($AI21,阻害要因×在院期間区分[[#All],[値]],0),MATCH($AP$4,阻害要因×在院期間区分[#Headers],0)),0)+IFERROR(INDEX(阻害要因×在院期間区分[#All],MATCH($AI21,阻害要因×在院期間区分[[#All],[値]],0),MATCH($AQ$4,阻害要因×在院期間区分[#Headers],0)),0)+IFERROR(INDEX(阻害要因×在院期間区分[#All],MATCH($AI21,阻害要因×在院期間区分[[#All],[値]],0),MATCH($AR$4,阻害要因×在院期間区分[#Headers],0)),0) -> 58 | F20: 0.08618127786 | G20: =IFERROR(INDEX(阻害要因×在院期間区分[#All],MATCH($AI21,阻害要因×在院期間区分[[#All],[値]],0),MATCH($AS$4,阻害要因×在院期間区分[#Headers],0)),0)+IFERROR(INDEX(阻害要因×在院期間区分[#All],MATCH($AI21,阻害要因×在院期間区分[[#All],[値]],0),MATCH($AT$4,阻害要因×在院期間区分[#Headers],0)),0)+IFERROR(INDEX(阻害要因×在院期間区分[#All],MATCH($AI21,阻害要因×在院期間区分[[#All],[値]],0),MATCH($AU$4,阻害要因×在院期間区分[#Headers],0)),0)+IFERROR(INDEX(阻害要因×在院期間区分[#All],MATCH($AI21,阻害要因×在院期間区分[[#All],[値]],0),MATCH($AV$4,阻害要因×在院期間区分[#Headers],0)),0)+IFERROR(INDEX(阻害要因×在院期間区分[#All],MATCH($AI21,阻害要因×在院期間区分[[#All],[値]],0),MATCH($AW$4,阻害要因×在院期間区分[#Headers],0)),0) -> 27 | H20: 0.09215017065 | I20: =IFERROR(INDEX(阻害要因×在院期間区分[#All],MATCH($AI21,阻害要因×在院期間区分[[#All],[値]],0),MATCH($AX$4,阻害要因×在院期間区分[#Headers],0)),0)+IFERROR(INDEX(阻害要因×在院期間区分[#All],MATCH($AI21,阻害要因×在院期間区分[[#All],[値]],0),MATCH($AY$4,阻害要因×在院期間区分[#Headers],0)),0) -> 27 | J20: 0.08307692308 | K20: 151 | L20: 合計 / 援助者との対人関係がもてない | M20: 11 | N20: 14 | O20: 6 | P20: 8 | Q20: 11 | R20: 9 | S20: 14 | T20: 11 | U20: 13 | V20: 10 | W20: 5 | X20: 4 | Y20: 3 | Z20: 5 | AA20: 19 | AB20: 8 | AI20: 合計 / 退院による環境変化への不安が強い
B21: 家事（食事・洗濯・金銭管理など）ができない | C21: =IFERROR(INDEX(阻害要因×在院期間区分[#All],MATCH($AI22,阻害要因×在院期間区分[[#All],[値]],0),MATCH($AJ$4,阻害要因×在院期間区分[#Headers],0)),0)+IFERROR(INDEX(阻害要因×在院期間区分[#All],MATCH($AI22,阻害要因×在院期間区分[[#All],[値]],0),MATCH($AK$4,阻害要因×在院期間区分[#Headers],0)),0)+IFERROR(INDEX(阻害要因×在院期間区分[#All],MATCH($AI22,阻害要因×在院期間区分[[#All],[値]],0),MATCH($AL$4,阻害要因×在院期間区分[#Headers],0)),0)+IFERROR(INDEX(阻害要因×在院期間区分[#All],MATCH($AI22,阻害要因×在院期間区分[[#All],[値]],0),MATCH($AM$4,阻害要因×在院期間区分[#Headers],0)),0) -> 192 | D21: 0.2887218045 | E21: =IFERROR(INDEX(阻害要因×在院期間区分[#All],MATCH($AI22,阻害要因×在院期間区分[[#All],[値]],0),MATCH($AN$4,阻害要因×在院期間区分[#Headers],0)),0)+IFERROR(INDEX(阻害要因×在院期間区分[#All],MATCH($AI22,阻害要因×在院期間区分[[#All],[値]],0),MATCH($AO$4,阻害要因×在院期間区分[#Headers],0)),0)+IFERROR(INDEX(阻害要因×在院期間区分[#All],MATCH($AI22,阻害要因×在院期間区分[[#All],[値]],0),MATCH($AP$4,阻害要因×在院期間区分[#Headers],0)),0)+IFERROR(INDEX(阻害要因×在院期間区分[#All],MATCH($AI22,阻害要因×在院期間区分[[#All],[値]],0),MATCH($AQ$4,阻害要因×在院期間区分[#Headers],0)),0)+IFERROR(INDEX(阻害要因×在院期間区分[#All],MATCH($AI22,阻害要因×在院期間区分[[#All],[値]],0),MATCH($AR$4,阻害要因×在院期間区分[#Headers],0)),0) -> 209 | F21: 0.3105497771 | G21: =IFERROR(INDEX(阻害要因×在院期間区分[#All],MATCH($AI22,阻害要因×在院期間区分[[#All],[値]],0),MATCH($AS$4,阻害要因×在院期間区分[#Headers],0)),0)+IFERROR(INDEX(阻害要因×在院期間区分[#All],MATCH($AI22,阻害要因×在院期間区分[[#All],[値]],0),MATCH($AT$4,阻害要因×在院期間区分[#Headers],0)),0)+IFERROR(INDEX(阻害要因×在院期間区分[#All],MATCH($AI22,阻害要因×在院期間区分[[#All],[値]],0),MATCH($AU$4,阻害要因×在院期間区分[#Headers],0)),0)+IFERROR(INDEX(阻害要因×在院期間区分[#All],MATCH($AI22,阻害要因×在院期間区分[[#All],[値]],0),MATCH($AV$4,阻害要因×在院期間区分[#Headers],0)),0)+IFERROR(INDEX(阻害要因×在院期間区分[#All],MATCH($AI22,阻害要因×在院期間区分[[#All],[値]],0),MATCH($AW$4,阻害要因×在院期間区分[#Headers],0)),0) -> 90 | H21: 0.3071672355 | I21: =IFERROR(INDEX(阻害要因×在院期間区分[#All],MATCH($AI22,阻害要因×在院期間区分[[#All],[値]],0),MATCH($AX$4,阻害要因×在院期間区分[#Headers],0)),0)+IFERROR(INDEX(阻害要因×在院期間区分[#All],MATCH($AI22,阻害要因×在院期間区分[[#All],[値]],0),MATCH($AY$4,阻害要因×在院期間区分[#Headers],0)),0) -> 88 | J21: 0.2707692308 | K21: 579 | L21: 合計 / 家事（食事,洗濯,金銭管理など）ができない | M21: 22 | N21: 52 | O21: 52 | P21: 66 | Q21: 43 | R21: 43 | S21: 52 | T21: 39 | U21: 32 | V21: 23 | W21: 21 | X21: 19 | Y21: 17 | Z21: 10 | AA21: 59 | AB21: 29 | AI21: 合計 / 援助者との対人関係がもてない
B22: 家族がいない、本人をサポートする機能が実質ない | C22: =IFERROR(INDEX(阻害要因×在院期間区分[#All],MATCH($AI23,阻害要因×在院期間区分[[#All],[値]],0),MATCH($AJ$4,阻害要因×在院期間区分[#Headers],0)),0)+IFERROR(INDEX(阻害要因×在院期間区分[#All],MATCH($AI23,阻害要因×在院期間区分[[#All],[値]],0),MATCH($AK$4,阻害要因×在院期間区分[#Headers],0)),0)+IFERROR(INDEX(阻害要因×在院期間区分[#All],MATCH($AI23,阻害要因×在院期間区分[[#All],[値]],0),MATCH($AL$4,阻害要因×在院期間区分[#Headers],0)),0)+IFERROR(INDEX(阻害要因×在院期間区分[#All],MATCH($AI23,阻害要因×在院期間区分[[#All],[値]],0),MATCH($AM$4,阻害要因×在院期間区分[#Headers],0)),0) -> 86 | D22: 0.1293233083 | E22: =IFERROR(INDEX(阻害要因×在院期間区分[#All],MATCH($AI23,阻害要因×在院期間区分[[#All],[値]],0),MATCH($AN$4,阻害要因×在院期間区分[#Headers],0)),0)+IFERROR(INDEX(阻害要因×在院期間区分[#All],MATCH($AI23,阻害要因×在院期間区分[[#All],[値]],0),MATCH($AO$4,阻害要因×在院期間区分[#Headers],0)),0)+IFERROR(INDEX(阻害要因×在院期間区分[#All],MATCH($AI23,阻害要因×在院期間区分[[#All],[値]],0),MATCH($AP$4,阻害要因×在院期間区分[#Headers],0)),0)+IFERROR(INDEX(阻害要因×在院期間区分[#All],MATCH($AI23,阻害要因×在院期間区分[[#All],[値]],0),MATCH($AQ$4,阻害要因×在院期間区分[#Headers],0)),0)+IFERROR(INDEX(阻害要因×在院期間区分[#All],MATCH($AI23,阻害要因×在院期間区分[[#All],[値]],0),MATCH($AR$4,阻害要因×在院期間区分[#Headers],0)),0) -> 104 | F22: 0.1545319465 | G22: =IFERROR(INDEX(阻害要因×在院期間区分[#All],MATCH($AI23,阻害要因×在院期間区分[[#All],[値]],0),MATCH($AS$4,阻害要因×在院期間区分[#Headers],0)),0)+IFERROR(INDEX(阻害要因×在院期間区分[#All],MATCH($AI23,阻害要因×在院期間区分[[#All],[値]],0),MATCH($AT$4,阻害要因×在院期間区分[#Headers],0)),0)+IFERROR(INDEX(阻害要因×在院期間区分[#All],MATCH($AI23,阻害要因×在院期間区分[[#All],[値]],0),MATCH($AU$4,阻害要因×在院期間区分[#Headers],0)),0)+IFERROR(INDEX(阻害要因×在院期間区分[#All],MATCH($AI23,阻害要因×在院期間区分[[#All],[値]],0),MATCH($AV$4,阻害要因×在院期間区分[#Headers],0)),0)+IFERROR(INDEX(阻害要因×在院期間区分[#All],MATCH($AI23,阻害要因×在院期間区分[[#All],[値]],0),MATCH($AW$4,阻害要因×在院期間区分[#Headers],0)),0) -> 63 | H22: 0.2150170648 | I22: =IFERROR(INDEX(阻害要因×在院期間区分[#All],MATCH($AI23,阻害要因×在院期間区分[[#All],[値]],0),MATCH($AX$4,阻害要因×在院期間区分[#Headers],0)),0)+IFERROR(INDEX(阻害要因×在院期間区分[#All],MATCH($AI23,阻害要因×在院期間区分[[#All],[値]],0),MATCH($AY$4,阻害要因×在院期間区分[#Headers],0)),0) -> 64 | J22: 0.1969230769 | K22: 317 | L22: 合計 / 家族がいない、本人をサポートする機能が実質ない | M22: 10 | N22: 27 | O22: 22 | P22: 27 | Q22: 24 | R22: 15 | S22: 23 | T22: 22 | U22: 20 | V22: 25 | W22: 8 | X22: 15 | Y22: 11 | Z22: 4 | AA22: 39 | AB22: 25 | AI22: 合計 / 家事（食事,洗濯,金銭管理など）ができない
B23: 家族が退院に反対している | C23: =IFERROR(INDEX(阻害要因×在院期間区分[#All],MATCH($AI24,阻害要因×在院期間区分[[#All],[値]],0),MATCH($AJ$4,阻害要因×在院期間区分[#Headers],0)),0)+IFERROR(INDEX(阻害要因×在院期間区分[#All],MATCH($AI24,阻害要因×在院期間区分[[#All],[値]],0),MATCH($AK$4,阻害要因×在院期間区分[#Headers],0)),0)+IFERROR(INDEX(阻害要因×在院期間区分[#All],MATCH($AI24,阻害要因×在院期間区分[[#All],[値]],0),MATCH($AL$4,阻害要因×在院期間区分[#Headers],0)),0)+IFERROR(INDEX(阻害要因×在院期間区分[#All],MATCH($AI24,阻害要因×在院期間区分[[#All],[値]],0),MATCH($AM$4,阻害要因×在院期間区分[#Headers],0)),0) -> 111 | D23: 0.1669172932 | E23: =IFERROR(INDEX(阻害要因×在院期間区分[#All],MATCH($AI24,阻害要因×在院期間区分[[#All],[値]],0),MATCH($AN$4,阻害要因×在院期間区分[#Headers],0)),0)+IFERROR(INDEX(阻害要因×在院期間区分[#All],MATCH($AI24,阻害要因×在院期間区分[[#All],[値]],0),MATCH($AO$4,阻害要因×在院期間区分[#Headers],0)),0)+IFERROR(INDEX(阻害要因×在院期間区分[#All],MATCH($AI24,阻害要因×在院期間区分[[#All],[値]],0),MATCH($AP$4,阻害要因×在院期間区分[#Headers],0)),0)+IFERROR(INDEX(阻害要因×在院期間区分[#All],MATCH($AI24,阻害要因×在院期間区分[[#All],[値]],0),MATCH($AQ$4,阻害要因×在院期間区分[#Headers],0)),0)+IFERROR(INDEX(阻害要因×在院期間区分[#All],MATCH($AI24,阻害要因×在院期間区分[[#All],[値]],0),MATCH($AR$4,阻害要因×在院期間区分[#Headers],0)),0) -> 170 | F23: 0.2526002972 | G23: =IFERROR(INDEX(阻害要因×在院期間区分[#All],MATCH($AI24,阻害要因×在院期間区分[[#All],[値]],0),MATCH($AS$4,阻害要因×在院期間区分[#Headers],0)),0)+IFERROR(INDEX(阻害要因×在院期間区分[#All],MATCH($AI24,阻害要因×在院期間区分[[#All],[値]],0),MATCH($AT$4,阻害要因×在院期間区分[#Headers],0)),0)+IFERROR(INDEX(阻害要因×在院期間区分[#All],MATCH($AI24,阻害要因×在院期間区分[[#All],[値]],0),MATCH($AU$4,阻害要因×在院期間区分[#Headers],0)),0)+IFERROR(INDEX(阻害要因×在院期間区分[#All],MATCH($AI24,阻害要因×在院期間区分[[#All],[値]],0),MATCH($AV$4,阻害要因×在院期間区分[#Headers],0)),0)+IFERROR(INDEX(阻害要因×在院期間区分[#All],MATCH($AI24,阻害要因×在院期間区分[[#All],[値]],0),MATCH($AW$4,阻害要因×在院期間区分[#Headers],0)),0) -> 74 | H23: 0.252559727 | I23: =IFERROR(INDEX(阻害要因×在院期間区分[#All],MATCH($AI24,阻害要因×在院期間区分[[#All],[値]],0),MATCH($AX$4,阻害要因×在院期間区分[#Headers],0)),0)+IFERROR(INDEX(阻害要因×在院期間区分[#All],MATCH($AI24,阻害要因×在院期間区分[[#All],[値]],0),MATCH($AY$4,阻害要因×在院期間区分[#Headers],0)),0) -> 65 | J23: 0.2 | K23: 420 | L23: 合計 / 家族から退院に反対がある | M23: 18 | N23: 23 | O23: 28 | P23: 42 | Q23: 33 | R23: 31 | S23: 42 | T23: 36 | U23: 28 | V23: 20 | W23: 18 | X23: 11 | Y23: 17 | Z23: 8 | AA23: 46 | AB23: 19 | AI23: 合計 / 家族がいない、本人をサポートする機能が実質ない
B24: 住まいの確保ができない | C24: =IFERROR(INDEX(阻害要因×在院期間区分[#All],MATCH($AI25,阻害要因×在院期間区分[[#All],[値]],0),MATCH($AJ$4,阻害要因×在院期間区分[#Headers],0)),0)+IFERROR(INDEX(阻害要因×在院期間区分[#All],MATCH($AI25,阻害要因×在院期間区分[[#All],[値]],0),MATCH($AK$4,阻害要因×在院期間区分[#Headers],0)),0)+IFERROR(INDEX(阻害要因×在院期間区分[#All],MATCH($AI25,阻害要因×在院期間区分[[#All],[値]],0),MATCH($AL$4,阻害要因×在院期間区分[#Headers],0)),0)+IFERROR(INDEX(阻害要因×在院期間区分[#All],MATCH($AI25,阻害要因×在院期間区分[[#All],[値]],0),MATCH($AM$4,阻害要因×在院期間区分[#Headers],0)),0) -> 258 | D24: 0.3879699248 | E24: =IFERROR(INDEX(阻害要因×在院期間区分[#All],MATCH($AI25,阻害要因×在院期間区分[[#All],[値]],0),MATCH($AN$4,阻害要因×在院期間区分[#Headers],0)),0)+IFERROR(INDEX(阻害要因×在院期間区分[#All],MATCH($AI25,阻害要因×在院期間区分[[#All],[値]],0),MATCH($AO$4,阻害要因×在院期間区分[#Headers],0)),0)+IFERROR(INDEX(阻害要因×在院期間区分[#All],MATCH($AI25,阻害要因×在院期間区分[[#All],[値]],0),MATCH($AP$4,阻害要因×在院期間区分[#Headers],0)),0)+IFERROR(INDEX(阻害要因×在院期間区分[#All],MATCH($AI25,阻害要因×在院期間区分[[#All],[値]],0),MATCH($AQ$4,阻害要因×在院期間区分[#Headers],0)),0)+IFERROR(INDEX(阻害要因×在院期間区分[#All],MATCH($AI25,阻害要因×在院期間区分[[#All],[値]],0),MATCH($AR$4,阻害要因×在院期間区分[#Headers],0)),0) -> 207 | F24: 0.3075780089 | G24: =IFERROR(INDEX(阻害要因×在院期間区分[#All],MATCH($AI25,阻害要因×在院期間区分[[#All],[値]],0),MATCH($AS$4,阻害要因×在院期間区分[#Headers],0)),0)+IFERROR(INDEX(阻害要因×在院期間区分[#All],MATCH($AI25,阻害要因×在院期間区分[[#All],[値]],0),MATCH($AT$4,阻害要因×在院期間区分[#Headers],0)),0)+IFERROR(INDEX(阻害要因×在院期間区分[#All],MATCH($AI25,阻害要因×在院期間区分[[#All],[値]],0),MATCH($AU$4,阻害要因×在院期間区分[#Headers],0)),0)+IFERROR(INDEX(阻害要因×在院期間区分[#All],MATCH($AI25,阻害要因×在院期間区分[[#All],[値]],0),MATCH($AV$4,阻害要因×在院期間区分[#Headers],0)),0)+IFERROR(INDEX(阻害要因×在院期間区分[#All],MATCH($AI25,阻害要因×在院期間区分[[#All],[値]],0),MATCH($AW$4,阻害要因×在院期間区分[#Headers],0)),0) -> 86 | H24: 0.2935153584 | I24: =IFERROR(INDEX(阻害要因×在院期間区分[#All],MATCH($AI25,阻害要因×在院期間区分[[#All],[値]],0),MATCH($AX$4,阻害要因×在院期間区分[#Headers],0)),0)+IFERROR(INDEX(阻害要因×在院期間区分[#All],MATCH($AI25,阻害要因×在院期間区分[[#All],[値]],0),MATCH($AY$4,阻害要因×在院期間区分[#Headers],0)),0) -> 64 | J24: 0.1969230769 | K24: 615 | L24: 合計 / 住まいの確保ができない | M24: 38 | N24: 81 | O24: 73 | P24: 66 | Q24: 45 | R24: 36 | S24: 52 | T24: 41 | U24: 33 | V24: 26 | W24: 10 | X24: 23 | Y24: 15 | Z24: 12 | AA24: 45 | AB24: 19 | AI24: 合計 / 家族から退院に反対がある
B25: 生活費の確保ができない | C25: =IFERROR(INDEX(阻害要因×在院期間区分[#All],MATCH($AI26,阻害要因×在院期間区分[[#All],[値]],0),MATCH($AJ$4,阻害要因×在院期間区分[#Headers],0)),0)+IFERROR(INDEX(阻害要因×在院期間区分[#All],MATCH($AI26,阻害要因×在院期間区分[[#All],[値]],0),MATCH($AK$4,阻害要因×在院期間区分[#Headers],0)),0)+IFERROR(INDEX(阻害要因×在院期間区分[#All],MATCH($AI26,阻害要因×在院期間区分[[#All],[値]],0),MATCH($AL$4,阻害要因×在院期間区分[#Headers],0)),0)+IFERROR(INDEX(阻害要因×在院期間区分[#All],MATCH($AI26,阻害要因×在院期間区分[[#All],[値]],0),MATCH($AM$4,阻害要因×在院期間区分[#Headers],0)),0) -> 43 | D25: 0.06466165414 | E25: =IFERROR(INDEX(阻害要因×在院期間区分[#All],MATCH($AI26,阻害要因×在院期間区分[[#All],[値]],0),MATCH($AN$4,阻害要因×在院期間区分[#Headers],0)),0)+IFERROR(INDEX(阻害要因×在院期間区分[#All],MATCH($AI26,阻害要因×在院期間区分[[#All],[値]],0),MATCH($AO$4,阻害要因×在院期間区分[#Headers],0)),0)+IFERROR(INDEX(阻害要因×在院期間区分[#All],MATCH($AI26,阻害要因×在院期間区分[[#All],[値]],0),MATCH($AP$4,阻害要因×在院期間区分[#Headers],0)),0)+IFERROR(INDEX(阻害要因×在院期間区分[#All],MATCH($AI26,阻害要因×在院期間区分[[#All],[値]],0),MATCH($AQ$4,阻害要因×在院期間区分[#Headers],0)),0)+IFERROR(INDEX(阻害要因×在院期間区分[#All],MATCH($AI26,阻害要因×在院期間区分[[#All],[値]],0),MATCH($AR$4,阻害要因×在院期間区分[#Headers],0)),0) -> 40 | F25: 0.05943536404 | G25: =IFERROR(INDEX(阻害要因×在院期間区分[#All],MATCH($AI26,阻害要因×在院期間区分[[#All],[値]],0),MATCH($AS$4,阻害要因×在院期間区分[#Headers],0)),0)+IFERROR(INDEX(阻害要因×在院期間区分[#All],MATCH($AI26,阻害要因×在院期間区分[[#All],[値]],0),MATCH($AT$4,阻害要因×在院期間区分[#Headers],0)),0)+IFERROR(INDEX(阻害要因×在院期間区分[#All],MATCH($AI26,阻害要因×在院期間区分[[#All],[値]],0),MATCH($AU$4,阻害要因×在院期間区分[#Headers],0)),0)+IFERROR(INDEX(阻害要因×在院期間区分[#All],MATCH($AI26,阻害要因×在院期間区分[[#All],[値]],0),MATCH($AV$4,阻害要因×在院期間区分[#Headers],0)),0)+IFERROR(INDEX(阻害要因×在院期間区分[#All],MATCH($AI26,阻害要因×在院期間区分[[#All],[値]],0),MATCH($AW$4,阻害要因×在院期間区分[#Headers],0)),0) -> 23 | H25: 0.07849829352 | I25: =IFERROR(INDEX(阻害要因×在院期間区分[#All],MATCH($AI26,阻害要因×在院期間区分[[#All],[値]],0),MATCH($AX$4,阻害要因×在院期間区分[#Headers],0)),0)+IFERROR(INDEX(阻害要因×在院期間区分[#All],MATCH($AI26,阻害要因×在院期間区分[[#All],[値]],0),MATCH($AY$4,阻害要因×在院期間区分[#Headers],0)),0) -> 8 | J25: 0.02461538462 | K25: 114 | L25: 合計 / 生活費の確保ができない | M25: 8 | N25: 11 | O25: 6 | P25: 18 | Q25: 12 | R25: 8 | S25: 10 | T25: 8 | U25: 2 | V25: 8 | W25: 3 | X25: 5 | Y25: 5 | Z25: 2 | AA25: 6 | AB25: 2 | AI25: 合計 / 住まいの確保ができない
B26: 日常生活を支える制度がない | C26: =IFERROR(INDEX(阻害要因×在院期間区分[#All],MATCH($AI27,阻害要因×在院期間区分[[#All],[値]],0),MATCH($AJ$4,阻害要因×在院期間区分[#Headers],0)),0)+IFERROR(INDEX(阻害要因×在院期間区分[#All],MATCH($AI27,阻害要因×在院期間区分[[#All],[値]],0),MATCH($AK$4,阻害要因×在院期間区分[#Headers],0)),0)+IFERROR(INDEX(阻害要因×在院期間区分[#All],MATCH($AI27,阻害要因×在院期間区分[[#All],[値]],0),MATCH($AL$4,阻害要因×在院期間区分[#Headers],0)),0)+IFERROR(INDEX(阻害要因×在院期間区分[#All],MATCH($AI27,阻害要因×在院期間区分[[#All],[値]],0),MATCH($AM$4,阻害要因×在院期間区分[#Headers],0)),0) -> 53 | D26: 0.07969924812 | E26: =IFERROR(INDEX(阻害要因×在院期間区分[#All],MATCH($AI27,阻害要因×在院期間区分[[#All],[値]],0),MATCH($AN$4,阻害要因×在院期間区分[#Headers],0)),0)+IFERROR(INDEX(阻害要因×在院期間区分[#All],MATCH($AI27,阻害要因×在院期間区分[[#All],[値]],0),MATCH($AO$4,阻害要因×在院期間区分[#Headers],0)),0)+IFERROR(INDEX(阻害要因×在院期間区分[#All],MATCH($AI27,阻害要因×在院期間区分[[#All],[値]],0),MATCH($AP$4,阻害要因×在院期間区分[#Headers],0)),0)+IFERROR(INDEX(阻害要因×在院期間区分[#All],MATCH($AI27,阻害要因×在院期間区分[[#All],[値]],0),MATCH($AQ$4,阻害要因×在院期間区分[#Headers],0)),0)+IFERROR(INDEX(阻害要因×在院期間区分[#All],MATCH($AI27,阻害要因×在院期間区分[[#All],[値]],0),MATCH($AR$4,阻害要因×在院期間区分[#Headers],0)),0) -> 40 | F26: 0.05943536404 | G26: =IFERROR(INDEX(阻害要因×在院期間区分[#All],MATCH($AI27,阻害要因×在院期間区分[[#All],[値]],0),MATCH($AS$4,阻害要因×在院期間区分[#Headers],0)),0)+IFERROR(INDEX(阻害要因×在院期間区分[#All],MATCH($AI27,阻害要因×在院期間区分[[#All],[値]],0),MATCH($AT$4,阻害要因×在院期間区分[#Headers],0)),0)+IFERROR(INDEX(阻害要因×在院期間区分[#All],MATCH($AI27,阻害要因×在院期間区分[[#All],[値]],0),MATCH($AU$4,阻害要因×在院期間区分[#Headers],0)),0)+IFERROR(INDEX(阻害要因×在院期間区分[#All],MATCH($AI27,阻害要因×在院期間区分[[#All],[値]],0),MATCH($AV$4,阻害要因×在院期間区分[#Headers],0)),0)+IFERROR(INDEX(阻害要因×在院期間区分[#All],MATCH($AI27,阻害要因×在院期間区分[[#All],[値]],0),MATCH($AW$4,阻害要因×在院期間区分[#Headers],0)),0) -> 20 | H26: 0.06825938567 | I26: =IFERROR(INDEX(阻害要因×在院期間区分[#All],MATCH($AI27,阻害要因×在院期間区分[[#All],[値]],0),MATCH($AX$4,阻害要因×在院期間区分[#Headers],0)),0)+IFERROR(INDEX(阻害要因×在院期間区分[#All],MATCH($AI27,阻害要因×在院期間区分[[#All],[値]],0),MATCH($AY$4,阻害要因×在院期間区分[#Headers],0)),0) -> 19 | J26: 0.05846153846 | K26: 132 | L26: 合計 / 日常生活を支える制度がない | M26: 12 | N26: 18 | O26: 10 | P26: 13 | Q26: 8 | R26: 2 | S26: 11 | T26: 12 | U26: 7 | V26: 5 | W26: 4 | X26: 4 | Y26: 5 | Z26: 2 | AA26: 12 | AB26: 7 | AI26: 合計 / 生活費の確保ができない
B27: 救急診療体制がない | C27: =IFERROR(INDEX(阻害要因×在院期間区分[#All],MATCH($AI28,阻害要因×在院期間区分[[#All],[値]],0),MATCH($AJ$4,阻害要因×在院期間区分[#Headers],0)),0)+IFERROR(INDEX(阻害要因×在院期間区分[#All],MATCH($AI28,阻害要因×在院期間区分[[#All],[値]],0),MATCH($AK$4,阻害要因×在院期間区分[#Headers],0)),0)+IFERROR(INDEX(阻害要因×在院期間区分[#All],MATCH($AI28,阻害要因×在院期間区分[[#All],[値]],0),MATCH($AL$4,阻害要因×在院期間区分[#Headers],0)),0)+IFERROR(INDEX(阻害要因×在院期間区分[#All],MATCH($AI28,阻害要因×在院期間区分[[#All],[値]],0),MATCH($AM$4,阻害要因×在院期間区分[#Headers],0)),0) -> 0 | D27: 0 | E27: =IFERROR(INDEX(阻害要因×在院期間区分[#All],MATCH($AI28,阻害要因×在院期間区分[[#All],[値]],0),MATCH($AN$4,阻害要因×在院期間区分[#Headers],0)),0)+IFERROR(INDEX(阻害要因×在院期間区分[#All],MATCH($AI28,阻害要因×在院期間区分[[#All],[値]],0),MATCH($AO$4,阻害要因×在院期間区分[#Headers],0)),0)+IFERROR(INDEX(阻害要因×在院期間区分[#All],MATCH($AI28,阻害要因×在院期間区分[[#All],[値]],0),MATCH($AP$4,阻害要因×在院期間区分[#Headers],0)),0)+IFERROR(INDEX(阻害要因×在院期間区分[#All],MATCH($AI28,阻害要因×在院期間区分[[#All],[値]],0),MATCH($AQ$4,阻害要因×在院期間区分[#Headers],0)),0)+IFERROR(INDEX(阻害要因×在院期間区分[#All],MATCH($AI28,阻害要因×在院期間区分[[#All],[値]],0),MATCH($AR$4,阻害要因×在院期間区分[#Headers],0)),0) -> 2 | F27: 0.002971768202 | G27: =IFERROR(INDEX(阻害要因×在院期間区分[#All],MATCH($AI28,阻害要因×在院期間区分[[#All],[値]],0),MATCH($AS$4,阻害要因×在院期間区分[#Headers],0)),0)+IFERROR(INDEX(阻害要因×在院期間区分[#All],MATCH($AI28,阻害要因×在院期間区分[[#All],[値]],0),MATCH($AT$4,阻害要因×在院期間区分[#Headers],0)),0)+IFERROR(INDEX(阻害要因×在院期間区分[#All],MATCH($AI28,阻害要因×在院期間区分[[#All],[値]],0),MATCH($AU$4,阻害要因×在院期間区分[#Headers],0)),0)+IFERROR(INDEX(阻害要因×在院期間区分[#All],MATCH($AI28,阻害要因×在院期間区分[[#All],[値]],0),MATCH($AV$4,阻害要因×在院期間区分[#Headers],0)),0)+IFERROR(INDEX(阻害要因×在院期間区分[#All],MATCH($AI28,阻害要因×在院期間区分[[#All],[値]],0),MATCH($AW$4,阻害要因×在院期間区分[#Headers],0)),0) -> 2 | H27: 0.006825938567 | I27: =IFERROR(INDEX(阻害要因×在院期間区分[#All],MATCH($AI28,阻害要因×在院期間区分[[#All],[値]],0),MATCH($AX$4,阻害要因×在院期間区分[#Headers],0)),0)+IFERROR(INDEX(阻害要因×在院期間区分[#All],MATCH($AI28,阻害要因×在院期間区分[[#All],[値]],0),MATCH($AY$4,阻害要因×在院期間区分[#Headers],0)),0) -> 1 | J27: 0.003076923077 | K27: 5 | L27: 合計 / 救急診療体制がない | M27: 0 | N27: 0 | O27: 0 | P27: 0 | Q27: 1 | R27: 0 | S27: 1 | T27: 0 | U27: 0 | V27: 0 | W27: 0 | X27: 1 | Y27: 1 | Z27: 0 | AA27: 1 | AB27: 0 | AI27: 合計 / 日常生活を支える制度がない
B28: 退院に向けてサポートする人的資源が乏しい | C28: =IFERROR(INDEX(阻害要因×在院期間区分[#All],MATCH($AI29,阻害要因×在院期間区分[[#All],[値]],0),MATCH($AJ$4,阻害要因×在院期間区分[#Headers],0)),0)+IFERROR(INDEX(阻害要因×在院期間区分[#All],MATCH($AI29,阻害要因×在院期間区分[[#All],[値]],0),MATCH($AK$4,阻害要因×在院期間区分[#Headers],0)),0)+IFERROR(INDEX(阻害要因×在院期間区分[#All],MATCH($AI29,阻害要因×在院期間区分[[#All],[値]],0),MATCH($AL$4,阻害要因×在院期間区分[#Headers],0)),0)+IFERROR(INDEX(阻害要因×在院期間区分[#All],MATCH($AI29,阻害要因×在院期間区分[[#All],[値]],0),MATCH($AM$4,阻害要因×在院期間区分[#Headers],0)),0) -> 39 | D28: 0.05864661654 | E28: =IFERROR(INDEX(阻害要因×在院期間区分[#All],MATCH($AI29,阻害要因×在院期間区分[[#All],[値]],0),MATCH($AN$4,阻害要因×在院期間区分[#Headers],0)),0)+IFERROR(INDEX(阻害要因×在院期間区分[#All],MATCH($AI29,阻害要因×在院期間区分[[#All],[値]],0),MATCH($AO$4,阻害要因×在院期間区分[#Headers],0)),0)+IFERROR(INDEX(阻害要因×在院期間区分[#All],MATCH($AI29,阻害要因×在院期間区分[[#All],[値]],0),MATCH($AP$4,阻害要因×在院期間区分[#Headers],0)),0)+IFERROR(INDEX(阻害要因×在院期間区分[#All],MATCH($AI29,阻害要因×在院期間区分[[#All],[値]],0),MATCH($AQ$4,阻害要因×在院期間区分[#Headers],0)),0)+IFERROR(INDEX(阻害要因×在院期間区分[#All],MATCH($AI29,阻害要因×在院期間区分[[#All],[値]],0),MATCH($AR$4,阻害要因×在院期間区分[#Headers],0)),0) -> 58 | F28: 0.08618127786 | G28: =IFERROR(INDEX(阻害要因×在院期間区分[#All],MATCH($AI29,阻害要因×在院期間区分[[#All],[値]],0),MATCH($AS$4,阻害要因×在院期間区分[#Headers],0)),0)+IFERROR(INDEX(阻害要因×在院期間区分[#All],MATCH($AI29,阻害要因×在院期間区分[[#All],[値]],0),MATCH($AT$4,阻害要因×在院期間区分[#Headers],0)),0)+IFERROR(INDEX(阻害要因×在院期間区分[#All],MATCH($AI29,阻害要因×在院期間区分[[#All],[値]],0),MATCH($AU$4,阻害要因×在院期間区分[#Headers],0)),0)+IFERROR(INDEX(阻害要因×在院期間区分[#All],MATCH($AI29,阻害要因×在院期間区分[[#All],[値]],0),MATCH($AV$4,阻害要因×在院期間区分[#Headers],0)),0)+IFERROR(INDEX(阻害要因×在院期間区分[#All],MATCH($AI29,阻害要因×在院期間区分[[#All],[値]],0),MATCH($AW$4,阻害要因×在院期間区分[#Headers],0)),0) -> 26 | H28: 0.08873720137 | I28: =IFERROR(INDEX(阻害要因×在院期間区分[#All],MATCH($AI29,阻害要因×在院期間区分[[#All],[値]],0),MATCH($AX$4,阻害要因×在院期間区分[#Headers],0)),0)+IFERROR(INDEX(阻害要因×在院期間区分[#All],MATCH($AI29,阻害要因×在院期間区分[[#All],[値]],0),MATCH($AY$4,阻害要因×在院期間区分[#Headers],0)),0) -> 23 | J28: 0.07076923077 | K28: 146 | L28: 合計 / 退院に向けてサポートする人的資源が乏しい | M28: 7 | N28: 13 | O28: 8 | P28: 11 | Q28: 9 | R28: 9 | S28: 15 | T28: 11 | U28: 14 | V28: 9 | W28: 2 | X28: 7 | Y28: 3 | Z28: 5 | AA28: 19 | AB28: 4 | AI28: 合計 / 救急診療体制がない
B29: 退院後サポート・マネジメントする人的資源が乏しい | C29: =IFERROR(INDEX(阻害要因×在院期間区分[#All],MATCH($AI30,阻害要因×在院期間区分[[#All],[値]],0),MATCH($AJ$4,阻害要因×在院期間区分[#Headers],0)),0)+IFERROR(INDEX(阻害要因×在院期間区分[#All],MATCH($AI30,阻害要因×在院期間区分[[#All],[値]],0),MATCH($AK$4,阻害要因×在院期間区分[#Headers],0)),0)+IFERROR(INDEX(阻害要因×在院期間区分[#All],MATCH($AI30,阻害要因×在院期間区分[[#All],[値]],0),MATCH($AL$4,阻害要因×在院期間区分[#Headers],0)),0)+IFERROR(INDEX(阻害要因×在院期間区分[#All],MATCH($AI30,阻害要因×在院期間区分[[#All],[値]],0),MATCH($AM$4,阻害要因×在院期間区分[#Headers],0)),0) -> 34 | D29: 0.05112781955 | E29: =IFERROR(INDEX(阻害要因×在院期間区分[#All],MATCH($AI30,阻害要因×在院期間区分[[#All],[値]],0),MATCH($AN$4,阻害要因×在院期間区分[#Headers],0)),0)+IFERROR(INDEX(阻害要因×在院期間区分[#All],MATCH($AI30,阻害要因×在院期間区分[[#All],[値]],0),MATCH($AO$4,阻害要因×在院期間区分[#Headers],0)),0)+IFERROR(INDEX(阻害要因×在院期間区分[#All],MATCH($AI30,阻害要因×在院期間区分[[#All],[値]],0),MATCH($AP$4,阻害要因×在院期間区分[#Headers],0)),0)+IFERROR(INDEX(阻害要因×在院期間区分[#All],MATCH($AI30,阻害要因×在院期間区分[[#All],[値]],0),MATCH($AQ$4,阻害要因×在院期間区分[#Headers],0)),0)+IFERROR(INDEX(阻害要因×在院期間区分[#All],MATCH($AI30,阻害要因×在院期間区分[[#All],[値]],0),MATCH($AR$4,阻害要因×在院期間区分[#Headers],0)),0) -> 34 | F29: 0.05052005944 | G29: =IFERROR(INDEX(阻害要因×在院期間区分[#All],MATCH($AI30,阻害要因×在院期間区分[[#All],[値]],0),MATCH($AS$4,阻害要因×在院期間区分[#Headers],0)),0)+IFERROR(INDEX(阻害要因×在院期間区分[#All],MATCH($AI30,阻害要因×在院期間区分[[#All],[値]],0),MATCH($AT$4,阻害要因×在院期間区分[#Headers],0)),0)+IFERROR(INDEX(阻害要因×在院期間区分[#All],MATCH($AI30,阻害要因×在院期間区分[[#All],[値]],0),MATCH($AU$4,阻害要因×在院期間区分[#Headers],0)),0)+IFERROR(INDEX(阻害要因×在院期間区分[#All],MATCH($AI30,阻害要因×在院期間区分[[#All],[値]],0),MATCH($AV$4,阻害要因×在院期間区分[#Headers],0)),0)+IFERROR(INDEX(阻害要因×在院期間区分[#All],MATCH($AI30,阻害要因×在院期間区分[[#All],[値]],0),MATCH($AW$4,阻害要因×在院期間区分[#Headers],0)),0) -> 16 | H29: 0.05460750853 | I29: =IFERROR(INDEX(阻害要因×在院期間区分[#All],MATCH($AI30,阻害要因×在院期間区分[[#All],[値]],0),MATCH($AX$4,阻害要因×在院期間区分[#Headers],0)),0)+IFERROR(INDEX(阻害要因×在院期間区分[#All],MATCH($AI30,阻害要因×在院期間区分[[#All],[値]],0),MATCH($AY$4,阻害要因×在院期間区分[#Headers],0)),0) -> 26 | J29: 0.08 | K29: 110 | L29: 合計 / 退院後サポート・マネジメントする人的資源が乏しい | M29: 2 | N29: 14 | O29: 6 | P29: 12 | Q29: 9 | R29: 7 | S29: 6 | T29: 6 | U29: 6 | V29: 6 | W29: 2 | X29: 3 | Y29: 2 | Z29: 3 | AA29: 14 | AB29: 12 | AI29: 合計 / 退院に向けてサポートする人的資源が乏しい
B30: 住所地と入院先の距離があり支援体制がとりにくい | C30: =IFERROR(INDEX(阻害要因×在院期間区分[#All],MATCH($AI31,阻害要因×在院期間区分[[#All],[値]],0),MATCH($AJ$4,阻害要因×在院期間区分[#Headers],0)),0)+IFERROR(INDEX(阻害要因×在院期間区分[#All],MATCH($AI31,阻害要因×在院期間区分[[#All],[値]],0),MATCH($AK$4,阻害要因×在院期間区分[#Headers],0)),0)+IFERROR(INDEX(阻害要因×在院期間区分[#All],MATCH($AI31,阻害要因×在院期間区分[[#All],[値]],0),MATCH($AL$4,阻害要因×在院期間区分[#Headers],0)),0)+IFERROR(INDEX(阻害要因×在院期間区分[#All],MATCH($AI31,阻害要因×在院期間区分[[#All],[値]],0),MATCH($AM$4,阻害要因×在院期間区分[#Headers],0)),0) -> 12 | D30: 0.01804511278 | E30: =IFERROR(INDEX(阻害要因×在院期間区分[#All],MATCH($AI31,阻害要因×在院期間区分[[#All],[値]],0),MATCH($AN$4,阻害要因×在院期間区分[#Headers],0)),0)+IFERROR(INDEX(阻害要因×在院期間区分[#All],MATCH($AI31,阻害要因×在院期間区分[[#All],[値]],0),MATCH($AO$4,阻害要因×在院期間区分[#Headers],0)),0)+IFERROR(INDEX(阻害要因×在院期間区分[#All],MATCH($AI31,阻害要因×在院期間区分[[#All],[値]],0),MATCH($AP$4,阻害要因×在院期間区分[#Headers],0)),0)+IFERROR(INDEX(阻害要因×在院期間区分[#All],MATCH($AI31,阻害要因×在院期間区分[[#All],[値]],0),MATCH($AQ$4,阻害要因×在院期間区分[#Headers],0)),0)+IFERROR(INDEX(阻害要因×在院期間区分[#All],MATCH($AI31,阻害要因×在院期間区分[[#All],[値]],0),MATCH($AR$4,阻害要因×在院期間区分[#Headers],0)),0) -> 10 | F30: 0.01485884101 | G30: =IFERROR(INDEX(阻害要因×在院期間区分[#All],MATCH($AI31,阻害要因×在院期間区分[[#All],[値]],0),MATCH($AS$4,阻害要因×在院期間区分[#Headers],0)),0)+IFERROR(INDEX(阻害要因×在院期間区分[#All],MATCH($AI31,阻害要因×在院期間区分[[#All],[値]],0),MATCH($AT$4,阻害要因×在院期間区分[#Headers],0)),0)+IFERROR(INDEX(阻害要因×在院期間区分[#All],MATCH($AI31,阻害要因×在院期間区分[[#All],[値]],0),MATCH($AU$4,阻害要因×在院期間区分[#Headers],0)),0)+IFERROR(INDEX(阻害要因×在院期間区分[#All],MATCH($AI31,阻害要因×在院期間区分[[#All],[値]],0),MATCH($AV$4,阻害要因×在院期間区分[#Headers],0)),0)+IFERROR(INDEX(阻害要因×在院期間区分[#All],MATCH($AI31,阻害要因×在院期間区分[[#All],[値]],0),MATCH($AW$4,阻害要因×在院期間区分[#Headers],0)),0) -> 4 | H30: 0.01365187713 | I30: =IFERROR(INDEX(阻害要因×在院期間区分[#All],MATCH($AI31,阻害要因×在院期間区分[[#All],[値]],0),MATCH($AX$4,阻害要因×在院期間区分[#Headers],0)),0)+IFERROR(INDEX(阻害要因×在院期間区分[#All],MATCH($AI31,阻害要因×在院期間区分[[#All],[値]],0),MATCH($AY$4,阻害要因×在院期間区分[#Headers],0)),0) -> 4 | J30: 0.01230769231 | K30: =SUM(C30,E30,G30,I30) -> 30 | L30: 合計 / 住所地と入院先の距離があり支援体制をとりにくい | M30: 3 | N30: 3 | O30: 2 | P30: 4 | Q30: 4 | R30: 0 | S30: 1 | T30: 1 | U30: 4 | V30: 0 | W30: 1 | X30: 2 | Y30: 0 | Z30: 1 | AA30: 2 | AB30: 2 | AI30: 合計 / 退院後サポート・マネジメントする人的資源が乏しい
B31: 身体的機能や状態を原因としたADLの低下がある | C31: =IFERROR(INDEX(阻害要因×在院期間区分[#All],MATCH($AI32,阻害要因×在院期間区分[[#All],[値]],0),MATCH($AJ$4,阻害要因×在院期間区分[#Headers],0)),0)+IFERROR(INDEX(阻害要因×在院期間区分[#All],MATCH($AI32,阻害要因×在院期間区分[[#All],[値]],0),MATCH($AK$4,阻害要因×在院期間区分[#Headers],0)),0)+IFERROR(INDEX(阻害要因×在院期間区分[#All],MATCH($AI32,阻害要因×在院期間区分[[#All],[値]],0),MATCH($AL$4,阻害要因×在院期間区分[#Headers],0)),0)+IFERROR(INDEX(阻害要因×在院期間区分[#All],MATCH($AI32,阻害要因×在院期間区分[[#All],[値]],0),MATCH($AM$4,阻害要因×在院期間区分[#Headers],0)),0) -> 115 | D31: =IFERROR(C31/C$10,"-") -> 0.1729323308 | E31: =IFERROR(INDEX(阻害要因×在院期間区分[#All],MATCH($AI32,阻害要因×在院期間区分[[#All],[値]],0),MATCH($AN$4,阻害要因×在院期間区分[#Headers],0)),0)+IFERROR(INDEX(阻害要因×在院期間区分[#All],MATCH($AI32,阻害要因×在院期間区分[[#All],[値]],0),MATCH($AO$4,阻害要因×在院期間区分[#Headers],0)),0)+IFERROR(INDEX(阻害要因×在院期間区分[#All],MATCH($AI32,阻害要因×在院期間区分[[#All],[値]],0),MATCH($AP$4,阻害要因×在院期間区分[#Headers],0)),0)+IFERROR(INDEX(阻害要因×在院期間区分[#All],MATCH($AI32,阻害要因×在院期間区分[[#All],[値]],0),MATCH($AQ$4,阻害要因×在院期間区分[#Headers],0)),0)+IFERROR(INDEX(阻害要因×在院期間区分[#All],MATCH($AI32,阻害要因×在院期間区分[[#All],[値]],0),MATCH($AR$4,阻害要因×在院期間区分[#Headers],0)),0) -> 124 | F31: =IFERROR(E31/E$10,"-") -> 0.1842496285 | G31: =IFERROR(INDEX(阻害要因×在院期間区分[#All],MATCH($AI32,阻害要因×在院期間区分[[#All],[値]],0),MATCH($AS$4,阻害要因×在院期間区分[#Headers],0)),0)+IFERROR(INDEX(阻害要因×在院期間区分[#All],MATCH($AI32,阻害要因×在院期間区分[[#All],[値]],0),MATCH($AT$4,阻害要因×在院期間区分[#Headers],0)),0)+IFERROR(INDEX(阻害要因×在院期間区分[#All],MATCH($AI32,阻害要因×在院期間区分[[#All],[値]],0),MATCH($AU$4,阻害要因×在院期間区分[#Headers],0)),0)+IFERROR(INDEX(阻害要因×在院期間区分[#All],MATCH($AI32,阻害要因×在院期間区分[[#All],[値]],0),MATCH($AV$4,阻害要因×在院期間区分[#Headers],0)),0)+IFERROR(INDEX(阻害要因×在院期間区分[#All],MATCH($AI32,阻害要因×在院期間区分[[#All],[値]],0),MATCH($AW$4,阻害要因×在院期間区分[#Headers],0)),0) -> 42 | H31: =IFERROR(G31/G$10,"-") -> 0.1433447099 | I31: =IFERROR(INDEX(阻害要因×在院期間区分[#All],MATCH($AI32,阻害要因×在院期間区分[[#All],[値]],0),MATCH($AX$4,阻害要因×在院期間区分[#Headers],0)),0)+IFERROR(INDEX(阻害要因×在院期間区分[#All],MATCH($AI32,阻害要因×在院期間区分[[#All],[値]],0),MATCH($AY$4,阻害要因×在院期間区分[#Headers],0)),0) -> 50 | J31: =IFERROR(I31/I$10,"-") -> 0.1538461538 | K31: =SUM(C31,E31,G31,I31) -> 331 | L31: 合計 / 身体的機能や状態を原因としたADLの低下がある | M31: 21 | N31: 34 | O31: 29 | P31: 31 | Q31: 34 | R31: 24 | S31: 33 | T31: 18 | U31: 15 | V31: 13 | W31: 10 | X31: 9 | Y31: 7 | Z31: 3 | AA31: 26 | AB31: 24 | AI31: 合計 / 住所地と入院先の距離があり支援体制をとりにくい
B32: 身体合併症の程度が重いなど身体面のフォローが必要であり、地域での生活が困難 | C32: =IFERROR(INDEX(阻害要因×在院期間区分[#All],MATCH($AI33,阻害要因×在院期間区分[[#All],[値]],0),MATCH($AJ$4,阻害要因×在院期間区分[#Headers],0)),0)+IFERROR(INDEX(阻害要因×在院期間区分[#All],MATCH($AI33,阻害要因×在院期間区分[[#All],[値]],0),MATCH($AK$4,阻害要因×在院期間区分[#Headers],0)),0)+IFERROR(INDEX(阻害要因×在院期間区分[#All],MATCH($AI33,阻害要因×在院期間区分[[#All],[値]],0),MATCH($AL$4,阻害要因×在院期間区分[#Headers],0)),0)+IFERROR(INDEX(阻害要因×在院期間区分[#All],MATCH($AI33,阻害要因×在院期間区分[[#All],[値]],0),MATCH($AM$4,阻害要因×在院期間区分[#Headers],0)),0) -> 76 | D32: 0.1142857143 | E32: =IFERROR(INDEX(阻害要因×在院期間区分[#All],MATCH($AI33,阻害要因×在院期間区分[[#All],[値]],0),MATCH($AN$4,阻害要因×在院期間区分[#Headers],0)),0)+IFERROR(INDEX(阻害要因×在院期間区分[#All],MATCH($AI33,阻害要因×在院期間区分[[#All],[値]],0),MATCH($AO$4,阻害要因×在院期間区分[#Headers],0)),0)+IFERROR(INDEX(阻害要因×在院期間区分[#All],MATCH($AI33,阻害要因×在院期間区分[[#All],[値]],0),MATCH($AP$4,阻害要因×在院期間区分[#Headers],0)),0)+IFERROR(INDEX(阻害要因×在院期間区分[#All],MATCH($AI33,阻害要因×在院期間区分[[#All],[値]],0),MATCH($AQ$4,阻害要因×在院期間区分[#Headers],0)),0)+IFERROR(INDEX(阻害要因×在院期間区分[#All],MATCH($AI33,阻害要因×在院期間区分[[#All],[値]],0),MATCH($AR$4,阻害要因×在院期間区分[#Headers],0)),0) -> 68 | F32: 0.1010401189 | G32: =IFERROR(INDEX(阻害要因×在院期間区分[#All],MATCH($AI33,阻害要因×在院期間区分[[#All],[値]],0),MATCH($AS$4,阻害要因×在院期間区分[#Headers],0)),0)+IFERROR(INDEX(阻害要因×在院期間区分[#All],MATCH($AI33,阻害要因×在院期間区分[[#All],[値]],0),MATCH($AT$4,阻害要因×在院期間区分[#Headers],0)),0)+IFERROR(INDEX(阻害要因×在院期間区分[#All],MATCH($AI33,阻害要因×在院期間区分[[#All],[値]],0),MATCH($AU$4,阻害要因×在院期間区分[#Headers],0)),0)+IFERROR(INDEX(阻害要因×在院期間区分[#All],MATCH($AI33,阻害要因×在院期間区分[[#All],[値]],0),MATCH($AV$4,阻害要因×在院期間区分[#Headers],0)),0)+IFERROR(INDEX(阻害要因×在院期間区分[#All],MATCH($AI33,阻害要因×在院期間区分[[#All],[値]],0),MATCH($AW$4,阻害要因×在院期間区分[#Headers],0)),0) -> 30 | H32: 0.1023890785 | I32: =IFERROR(INDEX(阻害要因×在院期間区分[#All],MATCH($AI33,阻害要因×在院期間区分[[#All],[値]],0),MATCH($AX$4,阻害要因×在院期間区分[#Headers],0)),0)+IFERROR(INDEX(阻害要因×在院期間区分[#All],MATCH($AI33,阻害要因×在院期間区分[[#All],[値]],0),MATCH($AY$4,阻害要因×在院期間区分[#Headers],0)),0) -> 37 | J32: 0.1138461538 | K32: 211 | L32: 合計 / 身体合併症の程度が重いなど身体面のフォローが必要であり、地域での生活が困難 | M32: 16 | N32: 18 | O32: 13 | P32: 29 | Q32: 19 | R32: 15 | S32: 21 | T32: 7 | U32: 6 | V32: 11 | W32: 8 | X32: 5 | Y32: 3 | Z32: 3 | AA32: 18 | AB32: 19 | AI32: 合計 / 身体的機能や状態を原因としたADLの低下がある
B33: その他の退院阻害要因がある | C33: =IFERROR(INDEX(阻害要因×在院期間区分[#All],MATCH($AI34,阻害要因×在院期間区分[[#All],[値]],0),MATCH($AJ$4,阻害要因×在院期間区分[#Headers],0)),0)+IFERROR(INDEX(阻害要因×在院期間区分[#All],MATCH($AI34,阻害要因×在院期間区分[[#All],[値]],0),MATCH($AK$4,阻害要因×在院期間区分[#Headers],0)),0)+IFERROR(INDEX(阻害要因×在院期間区分[#All],MATCH($AI34,阻害要因×在院期間区分[[#All],[値]],0),MATCH($AL$4,阻害要因×在院期間区分[#Headers],0)),0)+IFERROR(INDEX(阻害要因×在院期間区分[#All],MATCH($AI34,阻害要因×在院期間区分[[#All],[値]],0),MATCH($AM$4,阻害要因×在院期間区分[#Headers],0)),0) -> 28 | D33: 0.04210526316 | E33: =IFERROR(INDEX(阻害要因×在院期間区分[#All],MATCH($AI34,阻害要因×在院期間区分[[#All],[値]],0),MATCH($AN$4,阻害要因×在院期間区分[#Headers],0)),0)+IFERROR(INDEX(阻害要因×在院期間区分[#All],MATCH($AI34,阻害要因×在院期間区分[[#All],[値]],0),MATCH($AO$4,阻害要因×在院期間区分[#Headers],0)),0)+IFERROR(INDEX(阻害要因×在院期間区分[#All],MATCH($AI34,阻害要因×在院期間区分[[#All],[値]],0),MATCH($AP$4,阻害要因×在院期間区分[#Headers],0)),0)+IFERROR(INDEX(阻害要因×在院期間区分[#All],MATCH($AI34,阻害要因×在院期間区分[[#All],[値]],0),MATCH($AQ$4,阻害要因×在院期間区分[#Headers],0)),0)+IFERROR(INDEX(阻害要因×在院期間区分[#All],MATCH($AI34,阻害要因×在院期間区分[[#All],[値]],0),MATCH($AR$4,阻害要因×在院期間区分[#Headers],0)),0) -> 10 | F33: 0.01485884101 | G33: =IFERROR(INDEX(阻害要因×在院期間区分[#All],MATCH($AI34,阻害要因×在院期間区分[[#All],[値]],0),MATCH($AS$4,阻害要因×在院期間区分[#Headers],0)),0)+IFERROR(INDEX(阻害要因×在院期間区分[#All],MATCH($AI34,阻害要因×在院期間区分[[#All],[値]],0),MATCH($AT$4,阻害要因×在院期間区分[#Headers],0)),0)+IFERROR(INDEX(阻害要因×在院期間区分[#All],MATCH($AI34,阻害要因×在院期間区分[[#All],[値]],0),MATCH($AU$4,阻害要因×在院期間区分[#Headers],0)),0)+IFERROR(INDEX(阻害要因×在院期間区分[#All],MATCH($AI34,阻害要因×在院期間区分[[#All],[値]],0),MATCH($AV$4,阻害要因×在院期間区分[#Headers],0)),0)+IFERROR(INDEX(阻害要因×在院期間区分[#All],MATCH($AI34,阻害要因×在院期間区分[[#All],[値]],0),MATCH($AW$4,阻害要因×在院期間区分[#Headers],0)),0) -> 4 | H33: 0.01365187713 | I33: =IFERROR(INDEX(阻害要因×在院期間区分[#All],MATCH($AI34,阻害要因×在院期間区分[[#All],[値]],0),MATCH($AX$4,阻害要因×在院期間区分[#Headers],0)),0)+IFERROR(INDEX(阻害要因×在院期間区分[#All],MATCH($AI34,阻害要因×在院期間区分[[#All],[値]],0),MATCH($AY$4,阻害要因×在院期間区分[#Headers],0)),0) -> 2 | J33: 0.006153846154 | K33: 44 | L33: 合計 / その他の退院阻害要因がある | M33: 4 | N33: 7 | O33: 8 | P33: 9 | Q33: 3 | R33: 1 | S33: 3 | T33: 2 | U33: 1 | V33: 0 | W33: 0 | X33: 1 | Y33: 2 | Z33: 1 | AA33: 2 | AB33: 0 | AI33: 合計 / 身体合併症の程度が重いなど身体面のフォローが必要であり、地域での生活が困難
AI34: 合計 / その他の退院阻害要因がある
B35: 【退院阻害要因×在院期間区分】〔寛解・院内寛解群〕
B36: 退院予定の有無 | C36: 在院期間区分 | L36: データ貼り付け箇所
C37: 1年未満 | E37: 1年以上5年未満 | G37: 5年以上10年未満 | I37: 10年以上 | L37: 行ラベル | M37: 01_1ヶ月未満 | N37: 02_1ヶ月～3ヶ月未満 | O37: 03_3ヶ月～6ヶ月未満 | P37: 04_6ヶ月～1年未満 | Q37: 05_1年～1年6ヶ月未満 | R37: 06_1年6ヶ月～2年未満 | S37: 07_2年～3年未満 | T37: 08_3年～4年未満 | U37: 09_4年～5年未満 | V37: 10_5年～6年未満 | W37: 11_6年～7年未満 | X37: 12_7年～8年未満 | Y37: 13_8年～9年未満 | Z37: 14_9年～10年未満 | AA37: 15_10年～20年未満 | AB37: 16_ 20年以上
B38: 病状（主症状）が落ち着き、入院によらない形で治療ができるまで回復 | C38: =IFERROR(INDEX(退院予定有無×在院期間区分＿寛解・院内寛解[#All],MATCH($AI39,退院予定有無×在院期間区分＿寛解・院内寛解[[#All],[行ラベル]],0),MATCH($AJ$4,退院予定有無×在院期間区分＿寛解・院内寛解[#Headers],0)),0)+IFERROR(INDEX(退院予定有無×在院期間区分＿寛解・院内寛解[#All],MATCH($AI39,退院予定有無×在院期間区分＿寛解・院内寛解[[#All],[行ラベル]],0),MATCH($AK$4,退院予定有無×在院期間区分＿寛解・院内寛解[#Headers],0)),0)+IFERROR(INDEX(退院予定有無×在院期間区分＿寛解・院内寛解[#All],MATCH($AI39,退院予定有無×在院期間区分＿寛解・院内寛解[[#All],[行ラベル]],0),MATCH($AL$4,退院予定有無×在院期間区分＿寛解・院内寛解[#Headers],0)),0)+IFERROR(INDEX(退院予定有無×在院期間区分＿寛解・院内寛解[#All],MATCH($AI39,退院予定有無×在院期間区分＿寛解・院内寛解[[#All],[行ラベル]],0),MATCH($AM$4,退院予定有無×在院期間区分＿寛解・院内寛解[#Headers],0)),0) -> 291 | D38: =IFERROR(C38/C$41,"-") -> 0.2395061728 | E38: =IFERROR(INDEX(退院予定有無×在院期間区分＿寛解・院内寛解[#All],MATCH($AI39,退院予定有無×在院期間区分＿寛解・院内寛解[[#All],[行ラベル]],0),MATCH($AN$4,退院予定有無×在院期間区分＿寛解・院内寛解[#Headers],0)),0)+IFERROR(INDEX(退院予定有無×在院期間区分＿寛解・院内寛解[#All],MATCH($AI39,退院予定有無×在院期間区分＿寛解・院内寛解[[#All],[行ラベル]],0),MATCH($AO$4,退院予定有無×在院期間区分＿寛解・院内寛解[#Headers],0)),0)+IFERROR(INDEX(退院予定有無×在院期間区分＿寛解・院内寛解[#All],MATCH($AI39,退院予定有無×在院期間区分＿寛解・院内寛解[[#All],[行ラベル]],0),MATCH($AP$4,退院予定有無×在院期間区分＿寛解・院内寛解[#Headers],0)),0)+IFERROR(INDEX(退院予定有無×在院期間区分＿寛解・院内寛解[#All],MATCH($AI39,退院予定有無×在院期間区分＿寛解・院内寛解[[#All],[行ラベル]],0),MATCH($AQ$4,退院予定有無×在院期間区分＿寛解・院内寛解[#Headers],0)),0)+IFERROR(INDEX(退院予定有無×在院期間区分＿寛解・院内寛解[#All],MATCH($AI39,退院予定有無×在院期間区分＿寛解・院内寛解[[#All],[行ラベル]],0),MATCH($AR$4,退院予定有無×在院期間区分＿寛解・院内寛解[#Headers],0)),0) -> 197 | F38: =IFERROR(E38/E$41,"-") -> 0.5898203593 | G38: =IFERROR(INDEX(退院予定有無×在院期間区分＿寛解・院内寛解[#All],MATCH($AI39,退院予定有無×在院期間区分＿寛解・院内寛解[[#All],[行ラベル]],0),MATCH($AS$4,退院予定有無×在院期間区分＿寛解・院内寛解[#Headers],0)),0)+IFERROR(INDEX(退院予定有無×在院期間区分＿寛解・院内寛解[#All],MATCH($AI39,退院予定有無×在院期間区分＿寛解・院内寛解[[#All],[行ラベル]],0),MATCH($AT$4,退院予定有無×在院期間区分＿寛解・院内寛解[#Headers],0)),0)+IFERROR(INDEX(退院予定有無×在院期間区分＿寛解・院内寛解[#All],MATCH($AI39,退院予定有無×在院期間区分＿寛解・院内寛解[[#All],[行ラベル]],0),MATCH($AU$4,退院予定有無×在院期間区分＿寛解・院内寛解[#Headers],0)),0)+IFERROR(INDEX(退院予定有無×在院期間区分＿寛解・院内寛解[#All],MATCH($AI39,退院予定有無×在院期間区分＿寛解・院内寛解[[#All],[行ラベル]],0),MATCH($AV$4,退院予定有無×在院期間区分＿寛解・院内寛解[#Headers],0)),0)+IFERROR(INDEX(退院予定有無×在院期間区分＿寛解・院内寛解[#All],MATCH($AI39,退院予定有無×在院期間区分＿寛解・院内寛解[[#All],[行ラベル]],0),MATCH($AW$4,退院予定有無×在院期間区分＿寛解・院内寛解[#Headers],0)),0) -> 67 | H38: =IFERROR(G38/G$41,"-") -> 0.6836734694 | I38: =IFERROR(INDEX(退院予定有無×在院期間区分＿寛解・院内寛解[#All],MATCH($AI39,退院予定有無×在院期間区分＿寛解・院内寛解[[#All],[行ラベル]],0),MATCH($AX$4,退院予定有無×在院期間区分＿寛解・院内寛解[#Headers],0)),0)+IFERROR(INDEX(退院予定有無×在院期間区分＿寛解・院内寛解[#All],MATCH($AI39,退院予定有無×在院期間区分＿寛解・院内寛解[[#All],[行ラベル]],0),MATCH($AY$4,退院予定有無×在院期間区分＿寛解・院内寛解[#Headers],0)),0) -> 81 | J38: =IFERROR(I38/I$41,"-") -> 0.6923076923 | K38: =SUM(C38,E38,G38,I38) -> 636 | L38: 98 | M38: 94 | N38: 107 | O38: 35 | P38: 23 | Q38: 10 | R38: 10 | S38: 17 | T38: 20 | U38: 9 | V38: 2 | W38: 6 | X38: 3 | Y38: 1 | Z38: 2 | AA38: 14 | AB38: 9
B39: 病状（主症状）が不安定で入院による治療が必要 | C39: =IFERROR(INDEX(退院予定有無×在院期間区分＿寛解・院内寛解[#All],MATCH($AI40,退院予定有無×在院期間区分＿寛解・院内寛解[[#All],[行ラベル]],0),MATCH($AJ$4,退院予定有無×在院期間区分＿寛解・院内寛解[#Headers],0)),0)+IFERROR(INDEX(退院予定有無×在院期間区分＿寛解・院内寛解[#All],MATCH($AI40,退院予定有無×在院期間区分＿寛解・院内寛解[[#All],[行ラベル]],0),MATCH($AK$4,退院予定有無×在院期間区分＿寛解・院内寛解[#Headers],0)),0)+IFERROR(INDEX(退院予定有無×在院期間区分＿寛解・院内寛解[#All],MATCH($AI40,退院予定有無×在院期間区分＿寛解・院内寛解[[#All],[行ラベル]],0),MATCH($AL$4,退院予定有無×在院期間区分＿寛解・院内寛解[#Headers],0)),0)+IFERROR(INDEX(退院予定有無×在院期間区分＿寛解・院内寛解[#All],MATCH($AI40,退院予定有無×在院期間区分＿寛解・院内寛解[[#All],[行ラベル]],0),MATCH($AM$4,退院予定有無×在院期間区分＿寛解・院内寛解[#Headers],0)),0) -> 259 | D39: =IFERROR(C39/C$41,"-") -> 0.2131687243 | E39: =IFERROR(INDEX(退院予定有無×在院期間区分＿寛解・院内寛解[#All],MATCH($AI40,退院予定有無×在院期間区分＿寛解・院内寛解[[#All],[行ラベル]],0),MATCH($AN$4,退院予定有無×在院期間区分＿寛解・院内寛解[#Headers],0)),0)+IFERROR(INDEX(退院予定有無×在院期間区分＿寛解・院内寛解[#All],MATCH($AI40,退院予定有無×在院期間区分＿寛解・院内寛解[[#All],[行ラベル]],0),MATCH($AO$4,退院予定有無×在院期間区分＿寛解・院内寛解[#Headers],0)),0)+IFERROR(INDEX(退院予定有無×在院期間区分＿寛解・院内寛解[#All],MATCH($AI40,退院予定有無×在院期間区分＿寛解・院内寛解[[#All],[行ラベル]],0),MATCH($AP$4,退院予定有無×在院期間区分＿寛解・院内寛解[#Headers],0)),0)+IFERROR(INDEX(退院予定有無×在院期間区分＿寛解・院内寛解[#All],MATCH($AI40,退院予定有無×在院期間区分＿寛解・院内寛解[[#All],[行ラベル]],0),MATCH($AQ$4,退院予定有無×在院期間区分＿寛解・院内寛解[#Headers],0)),0)+IFERROR(INDEX(退院予定有無×在院期間区分＿寛解・院内寛解[#All],MATCH($AI40,退院予定有無×在院期間区分＿寛解・院内寛解[[#All],[行ラベル]],0),MATCH($AR$4,退院予定有無×在院期間区分＿寛解・院内寛解[#Headers],0)),0) -> 66 | F39: =IFERROR(E39/E$41,"-") -> 0.1976047904 | G39: =IFERROR(INDEX(退院予定有無×在院期間区分＿寛解・院内寛解[#All],MATCH($AI40,退院予定有無×在院期間区分＿寛解・院内寛解[[#All],[行ラベル]],0),MATCH($AS$4,退院予定有無×在院期間区分＿寛解・院内寛解[#Headers],0)),0)+IFERROR(INDEX(退院予定有無×在院期間区分＿寛解・院内寛解[#All],MATCH($AI40,退院予定有無×在院期間区分＿寛解・院内寛解[[#All],[行ラベル]],0),MATCH($AT$4,退院予定有無×在院期間区分＿寛解・院内寛解[#Headers],0)),0)+IFERROR(INDEX(退院予定有無×在院期間区分＿寛解・院内寛解[#All],MATCH($AI40,退院予定有無×在院期間区分＿寛解・院内寛解[[#All],[行ラベル]],0),MATCH($AU$4,退院予定有無×在院期間区分＿寛解・院内寛解[#Headers],0)),0)+IFERROR(INDEX(退院予定有無×在院期間区分＿寛解・院内寛解[#All],MATCH($AI40,退院予定有無×在院期間区分＿寛解・院内寛解[[#All],[行ラベル]],0),MATCH($AV$4,退院予定有無×在院期間区分＿寛解・院内寛解[#Headers],0)),0)+IFERROR(INDEX(退院予定有無×在院期間区分＿寛解・院内寛解[#All],MATCH($AI40,退院予定有無×在院期間区分＿寛解・院内寛解[[#All],[行ラベル]],0),MATCH($AW$4,退院予定有無×在院期間区分＿寛解・院内寛解[#Headers],0)),0) -> 14 | H39: =IFERROR(G39/G$41,"-") -> 0.1428571429 | I39: =IFERROR(INDEX(退院予定有無×在院期間区分＿寛解・院内寛解[#All],MATCH($AI40,退院予定有無×在院期間区分＿寛解・院内寛解[[#All],[行ラベル]],0),MATCH($AX$4,退院予定有無×在院期間区分＿寛解・院内寛解[#Headers],0)),0)+IFERROR(INDEX(退院予定有無×在院期間区分＿寛解・院内寛解[#All],MATCH($AI40,退院予定有無×在院期間区分＿寛解・院内寛解[[#All],[行ラベル]],0),MATCH($AY$4,退院予定有無×在院期間区分＿寛解・院内寛解[#Headers],0)),0) -> 23 | J39: =IFERROR(I39/I$41,"-") -> 0.1965811966 | K39: =SUM(C39,E39,G39,I39) -> 362 | L39: 97 | M39: 50 | N39: 102 | O39: 66 | P39: 73 | Q39: 44 | R39: 39 | S39: 42 | T39: 38 | U39: 34 | V39: 16 | W39: 16 | X39: 15 | Y39: 12 | Z39: 8 | AA39: 50 | AB39: 31 | AI39: 97
B40: 退院予定 | C40: =IFERROR(INDEX(退院予定有無×在院期間区分＿寛解・院内寛解[#All],MATCH($AI41,退院予定有無×在院期間区分＿寛解・院内寛解[[#All],[行ラベル]],0),MATCH($AJ$4,退院予定有無×在院期間区分＿寛解・院内寛解[#Headers],0)),0)+IFERROR(INDEX(退院予定有無×在院期間区分＿寛解・院内寛解[#All],MATCH($AI41,退院予定有無×在院期間区分＿寛解・院内寛解[[#All],[行ラベル]],0),MATCH($AK$4,退院予定有無×在院期間区分＿寛解・院内寛解[#Headers],0)),0)+IFERROR(INDEX(退院予定有無×在院期間区分＿寛解・院内寛解[#All],MATCH($AI41,退院予定有無×在院期間区分＿寛解・院内寛解[[#All],[行ラベル]],0),MATCH($AL$4,退院予定有無×在院期間区分＿寛解・院内寛解[#Headers],0)),0)+IFERROR(INDEX(退院予定有無×在院期間区分＿寛解・院内寛解[#All],MATCH($AI41,退院予定有無×在院期間区分＿寛解・院内寛解[[#All],[行ラベル]],0),MATCH($AM$4,退院予定有無×在院期間区分＿寛解・院内寛解[#Headers],0)),0) -> 665 | D40: =IFERROR(C40/C$41,"-") -> 0.5473251029 | E40: =IFERROR(INDEX(退院予定有無×在院期間区分＿寛解・院内寛解[#All],MATCH($AI41,退院予定有無×在院期間区分＿寛解・院内寛解[[#All],[行ラベル]],0),MATCH($AN$4,退院予定有無×在院期間区分＿寛解・院内寛解[#Headers],0)),0)+IFERROR(INDEX(退院予定有無×在院期間区分＿寛解・院内寛解[#All],MATCH($AI41,退院予定有無×在院期間区分＿寛解・院内寛解[[#All],[行ラベル]],0),MATCH($AO$4,退院予定有無×在院期間区分＿寛解・院内寛解[#Headers],0)),0)+IFERROR(INDEX(退院予定有無×在院期間区分＿寛解・院内寛解[#All],MATCH($AI41,退院予定有無×在院期間区分＿寛解・院内寛解[[#All],[行ラベル]],0),MATCH($AP$4,退院予定有無×在院期間区分＿寛解・院内寛解[#Headers],0)),0)+IFERROR(INDEX(退院予定有無×在院期間区分＿寛解・院内寛解[#All],MATCH($AI41,退院予定有無×在院期間区分＿寛解・院内寛解[[#All],[行ラベル]],0),MATCH($AQ$4,退院予定有無×在院期間区分＿寛解・院内寛解[#Headers],0)),0)+IFERROR(INDEX(退院予定有無×在院期間区分＿寛解・院内寛解[#All],MATCH($AI41,退院予定有無×在院期間区分＿寛解・院内寛解[[#All],[行ラベル]],0),MATCH($AR$4,退院予定有無×在院期間区分＿寛解・院内寛解[#Headers],0)),0) -> 71 | F40: =IFERROR(E40/E$41,"-") -> 0.2125748503 | G40: =IFERROR(INDEX(退院予定有無×在院期間区分＿寛解・院内寛解[#All],MATCH($AI41,退院予定有無×在院期間区分＿寛解・院内寛解[[#All],[行ラベル]],0),MATCH($AS$4,退院予定有無×在院期間区分＿寛解・院内寛解[#Headers],0)),0)+IFERROR(INDEX(退院予定有無×在院期間区分＿寛解・院内寛解[#All],MATCH($AI41,退院予定有無×在院期間区分＿寛解・院内寛解[[#All],[行ラベル]],0),MATCH($AT$4,退院予定有無×在院期間区分＿寛解・院内寛解[#Headers],0)),0)+IFERROR(INDEX(退院予定有無×在院期間区分＿寛解・院内寛解[#All],MATCH($AI41,退院予定有無×在院期間区分＿寛解・院内寛解[[#All],[行ラベル]],0),MATCH($AU$4,退院予定有無×在院期間区分＿寛解・院内寛解[#Headers],0)),0)+IFERROR(INDEX(退院予定有無×在院期間区分＿寛解・院内寛解[#All],MATCH($AI41,退院予定有無×在院期間区分＿寛解・院内寛解[[#All],[行ラベル]],0),MATCH($AV$4,退院予定有無×在院期間区分＿寛解・院内寛解[#Headers],0)),0)+IFERROR(INDEX(退院予定有無×在院期間区分＿寛解・院内寛解[#All],MATCH($AI41,退院予定有無×在院期間区分＿寛解・院内寛解[[#All],[行ラベル]],0),MATCH($AW$4,退院予定有無×在院期間区分＿寛解・院内寛解[#Headers],0)),0) -> 17 | H40: =IFERROR(G40/G$41,"-") -> 0.1734693878 | I40: =IFERROR(INDEX(退院予定有無×在院期間区分＿寛解・院内寛解[#All],MATCH($AI41,退院予定有無×在院期間区分＿寛解・院内寛解[[#All],[行ラベル]],0),MATCH($AX$4,退院予定有無×在院期間区分＿寛解・院内寛解[#Headers],0)),0)+IFERROR(INDEX(退院予定有無×在院期間区分＿寛解・院内寛解[#All],MATCH($AI41,退院予定有無×在院期間区分＿寛解・院内寛解[[#All],[行ラベル]],0),MATCH($AY$4,退院予定有無×在院期間区分＿寛解・院内寛解[#Headers],0)),0) -> 13 | J40: =IFERROR(I40/I$41,"-") -> 0.1111111111 | K40: =SUM(C40,E40,G40,I40) -> 766 | L40: 99 | M40: 241 | N40: 282 | O40: 87 | P40: 55 | Q40: 27 | R40: 10 | S40: 13 | T40: 14 | U40: 7 | V40: 6 | W40: 6 | X40: 2 | Y40: 3 | Z40: 0 | AA40: 9 | AB40: 4 | AI40: 98
B41: 総計 | C41: =SUM(C38:C40) -> 1215 | D41: 1 | E41: 334 | F41: 1 | G41: 98 | H41: 1 | I41: 117 | J41: 1 | K41: =SUM(C41,E41,G41,I41) -> 1764 | AI41: 99
B43: 退院阻害要因 | L43: 行ラベル | M43: 01_1ヶ月未満 | N43: 02_1ヶ月～3ヶ月未満 | O43: 03_3ヶ月～6ヶ月未満 | P43: 04_6ヶ月～1年未満 | Q43: 05_1年～1年6ヶ月未満 | R43: 06_1年6ヶ月～2年未満 | S43: 07_2年～3年未満 | T43: 08_3年～4年未満 | U43: 09_4年～5年未満 | V43: 10_5年～6年未満 | W43: 11_6年～7年未満 | X43: 12_7年～8年未満 | Y43: 13_8年～9年未満 | Z43: 14_9年～10年未満 | AA43: 15_10年～20年未満 | AB43: 16_ 20年以上
B44: 退院阻害要因がある | C44: =IFERROR(INDEX(阻害要因有無×在院期間区分＿寛解・院内寛解[#All],MATCH($AI45,阻害要因有無×在院期間区分＿寛解・院内寛解[[#All],[行ラベル]],0),MATCH($AJ$4,阻害要因有無×在院期間区分＿寛解・院内寛解[#Headers],0)),0)+IFERROR(INDEX(阻害要因有無×在院期間区分＿寛解・院内寛解[#All],MATCH($AI45,阻害要因有無×在院期間区分＿寛解・院内寛解[[#All],[行ラベル]],0),MATCH($AK$4,阻害要因有無×在院期間区分＿寛解・院内寛解[#Headers],0)),0)+IFERROR(INDEX(阻害要因有無×在院期間区分＿寛解・院内寛解[#All],MATCH($AI45,阻害要因有無×在院期間区分＿寛解・院内寛解[[#All],[行ラベル]],0),MATCH($AL$4,阻害要因有無×在院期間区分＿寛解・院内寛解[#Headers],0)),0)+IFERROR(INDEX(阻害要因有無×在院期間区分＿寛解・院内寛解[#All],MATCH($AI45,阻害要因有無×在院期間区分＿寛解・院内寛解[[#All],[行ラベル]],0),MATCH($AM$4,阻害要因有無×在院期間区分＿寛解・院内寛解[#Headers],0)),0) -> 227 | D44: =IFERROR(C44/C$38,"-") -> 0.7800687285 | E44: =IFERROR(INDEX(阻害要因有無×在院期間区分＿寛解・院内寛解[#All],MATCH($AI45,阻害要因有無×在院期間区分＿寛解・院内寛解[[#All],[行ラベル]],0),MATCH($AN$4,阻害要因有無×在院期間区分＿寛解・院内寛解[#Headers],0)),0)+IFERROR(INDEX(阻害要因有無×在院期間区分＿寛解・院内寛解[#All],MATCH($AI45,阻害要因有無×在院期間区分＿寛解・院内寛解[[#All],[行ラベル]],0),MATCH($AO$4,阻害要因有無×在院期間区分＿寛解・院内寛解[#Headers],0)),0)+IFERROR(INDEX(阻害要因有無×在院期間区分＿寛解・院内寛解[#All],MATCH($AI45,阻害要因有無×在院期間区分＿寛解・院内寛解[[#All],[行ラベル]],0),MATCH($AP$4,阻害要因有無×在院期間区分＿寛解・院内寛解[#Headers],0)),0)+IFERROR(INDEX(阻害要因有無×在院期間区分＿寛解・院内寛解[#All],MATCH($AI45,阻害要因有無×在院期間区分＿寛解・院内寛解[[#All],[行ラベル]],0),MATCH($AQ$4,阻害要因有無×在院期間区分＿寛解・院内寛解[#Headers],0)),0)+IFERROR(INDEX(阻害要因有無×在院期間区分＿寛解・院内寛解[#All],MATCH($AI45,阻害要因有無×在院期間区分＿寛解・院内寛解[[#All],[行ラベル]],0),MATCH($AR$4,阻害要因有無×在院期間区分＿寛解・院内寛解[#Headers],0)),0) -> 190 | F44: =IFERROR(E44/E$38,"-") -> 0.9644670051 | G44: =IFERROR(INDEX(阻害要因有無×在院期間区分＿寛解・院内寛解[#All],MATCH($AI45,阻害要因有無×在院期間区分＿寛解・院内寛解[[#All],[行ラベル]],0),MATCH($AS$4,阻害要因有無×在院期間区分＿寛解・院内寛解[#Headers],0)),0)+IFERROR(INDEX(阻害要因有無×在院期間区分＿寛解・院内寛解[#All],MATCH($AI45,阻害要因有無×在院期間区分＿寛解・院内寛解[[#All],[行ラベル]],0),MATCH($AT$4,阻害要因有無×在院期間区分＿寛解・院内寛解[#Headers],0)),0)+IFERROR(INDEX(阻害要因有無×在院期間区分＿寛解・院内寛解[#All],MATCH($AI45,阻害要因有無×在院期間区分＿寛解・院内寛解[[#All],[行ラベル]],0),MATCH($AU$4,阻害要因有無×在院期間区分＿寛解・院内寛解[#Headers],0)),0)+IFERROR(INDEX(阻害要因有無×在院期間区分＿寛解・院内寛解[#All],MATCH($AI45,阻害要因有無×在院期間区分＿寛解・院内寛解[[#All],[行ラベル]],0),MATCH($AV$4,阻害要因有無×在院期間区分＿寛解・院内寛解[#Headers],0)),0)+IFERROR(INDEX(阻害要因有無×在院期間区分＿寛解・院内寛解[#All],MATCH($AI45,阻害要因有無×在院期間区分＿寛解・院内寛解[[#All],[行ラベル]],0),MATCH($AW$4,阻害要因有無×在院期間区分＿寛解・院内寛解[#Headers],0)),0) -> 65 | H44: =IFERROR(G44/G$38,"-") -> 0.9701492537 | I44: =IFERROR(INDEX(阻害要因有無×在院期間区分＿寛解・院内寛解[#All],MATCH($AI45,阻害要因有無×在院期間区分＿寛解・院内寛解[[#All],[行ラベル]],0),MATCH($AX$4,阻害要因有無×在院期間区分＿寛解・院内寛解[#Headers],0)),0)+IFERROR(INDEX(阻害要因有無×在院期間区分＿寛解・院内寛解[#All],MATCH($AI45,阻害要因有無×在院期間区分＿寛解・院内寛解[[#All],[行ラベル]],0),MATCH($AY$4,阻害要因有無×在院期間区分＿寛解・院内寛解[#Headers],0)),0) -> 78 | J44: =IFERROR(I44/I$38,"-") -> 0.962962963 | K44: =SUM(C44,E44,G44,I44) -> 560 | L44: 91 | M44: 38 | N44: 67 | O44: 60 | P44: 62 | Q44: 42 | R44: 38 | S44: 40 | T44: 38 | U44: 32 | V44: 16 | W44: 15 | X44: 15 | Y44: 11 | Z44: 8 | AA44: 47 | AB44: 31
B45: 退院阻害要因はない | C45: =IFERROR(INDEX(阻害要因有無×在院期間区分＿寛解・院内寛解[#All],MATCH($AI46,阻害要因有無×在院期間区分＿寛解・院内寛解[[#All],[行ラベル]],0),MATCH($AJ$4,阻害要因有無×在院期間区分＿寛解・院内寛解[#Headers],0)),0)+IFERROR(INDEX(阻害要因有無×在院期間区分＿寛解・院内寛解[#All],MATCH($AI46,阻害要因有無×在院期間区分＿寛解・院内寛解[[#All],[行ラベル]],0),MATCH($AK$4,阻害要因有無×在院期間区分＿寛解・院内寛解[#Headers],0)),0)+IFERROR(INDEX(阻害要因有無×在院期間区分＿寛解・院内寛解[#All],MATCH($AI46,阻害要因有無×在院期間区分＿寛解・院内寛解[[#All],[行ラベル]],0),MATCH($AL$4,阻害要因有無×在院期間区分＿寛解・院内寛解[#Headers],0)),0)+IFERROR(INDEX(阻害要因有無×在院期間区分＿寛解・院内寛解[#All],MATCH($AI46,阻害要因有無×在院期間区分＿寛解・院内寛解[[#All],[行ラベル]],0),MATCH($AM$4,阻害要因有無×在院期間区分＿寛解・院内寛解[#Headers],0)),0) -> 64 | D45: =IFERROR(C45/C$38,"-") -> 0.2199312715 | E45: =IFERROR(INDEX(阻害要因有無×在院期間区分＿寛解・院内寛解[#All],MATCH($AI46,阻害要因有無×在院期間区分＿寛解・院内寛解[[#All],[行ラベル]],0),MATCH($AN$4,阻害要因有無×在院期間区分＿寛解・院内寛解[#Headers],0)),0)+IFERROR(INDEX(阻害要因有無×在院期間区分＿寛解・院内寛解[#All],MATCH($AI46,阻害要因有無×在院期間区分＿寛解・院内寛解[[#All],[行ラベル]],0),MATCH($AO$4,阻害要因有無×在院期間区分＿寛解・院内寛解[#Headers],0)),0)+IFERROR(INDEX(阻害要因有無×在院期間区分＿寛解・院内寛解[#All],MATCH($AI46,阻害要因有無×在院期間区分＿寛解・院内寛解[[#All],[行ラベル]],0),MATCH($AP$4,阻害要因有無×在院期間区分＿寛解・院内寛解[#Headers],0)),0)+IFERROR(INDEX(阻害要因有無×在院期間区分＿寛解・院内寛解[#All],MATCH($AI46,阻害要因有無×在院期間区分＿寛解・院内寛解[[#All],[行ラベル]],0),MATCH($AQ$4,阻害要因有無×在院期間区分＿寛解・院内寛解[#Headers],0)),0)+IFERROR(INDEX(阻害要因有無×在院期間区分＿寛解・院内寛解[#All],MATCH($AI46,阻害要因有無×在院期間区分＿寛解・院内寛解[[#All],[行ラベル]],0),MATCH($AR$4,阻害要因有無×在院期間区分＿寛解・院内寛解[#Headers],0)),0) -> 7 | F45: =IFERROR(E45/E$38,"-") -> 0.03553299492 | G45: =IFERROR(INDEX(阻害要因有無×在院期間区分＿寛解・院内寛解[#All],MATCH($AI46,阻害要因有無×在院期間区分＿寛解・院内寛解[[#All],[行ラベル]],0),MATCH($AS$4,阻害要因有無×在院期間区分＿寛解・院内寛解[#Headers],0)),0)+IFERROR(INDEX(阻害要因有無×在院期間区分＿寛解・院内寛解[#All],MATCH($AI46,阻害要因有無×在院期間区分＿寛解・院内寛解[[#All],[行ラベル]],0),MATCH($AT$4,阻害要因有無×在院期間区分＿寛解・院内寛解[#Headers],0)),0)+IFERROR(INDEX(阻害要因有無×在院期間区分＿寛解・院内寛解[#All],MATCH($AI46,阻害要因有無×在院期間区分＿寛解・院内寛解[[#All],[行ラベル]],0),MATCH($AU$4,阻害要因有無×在院期間区分＿寛解・院内寛解[#Headers],0)),0)+IFERROR(INDEX(阻害要因有無×在院期間区分＿寛解・院内寛解[#All],MATCH($AI46,阻害要因有無×在院期間区分＿寛解・院内寛解[[#All],[行ラベル]],0),MATCH($AV$4,阻害要因有無×在院期間区分＿寛解・院内寛解[#Headers],0)),0)+IFERROR(INDEX(阻害要因有無×在院期間区分＿寛解・院内寛解[#All],MATCH($AI46,阻害要因有無×在院期間区分＿寛解・院内寛解[[#All],[行ラベル]],0),MATCH($AW$4,阻害要因有無×在院期間区分＿寛解・院内寛解[#Headers],0)),0) -> 2 | H45: =IFERROR(G45/G$38,"-") -> 0.02985074627 | I45: =IFERROR(INDEX(阻害要因有無×在院期間区分＿寛解・院内寛解[#All],MATCH($AI46,阻害要因有無×在院期間区分＿寛解・院内寛解[[#All],[行ラベル]],0),MATCH($AX$4,阻害要因有無×在院期間区分＿寛解・院内寛解[#Headers],0)),0)+IFERROR(INDEX(阻害要因有無×在院期間区分＿寛解・院内寛解[#All],MATCH($AI46,阻害要因有無×在院期間区分＿寛解・院内寛解[[#All],[行ラベル]],0),MATCH($AY$4,阻害要因有無×在院期間区分＿寛解・院内寛解[#Headers],0)),0) -> 3 | J45: =IFERROR(I45/I$38,"-") -> 0.03703703704 | K45: =SUM(C45,E45,G45,I45) -> 76 | L45: 90 | M45: 12 | N45: 35 | O45: 6 | P45: 11 | Q45: 2 | R45: 1 | S45: 2 | T45: 0 | U45: 2 | V45: 0 | W45: 1 | X45: 0 | Y45: 1 | Z45: 0 | AA45: 3 | AB45: 0 | AI45: 91
B46: ＜複数回答＞ | M46: 334 | N46: 389 | O46: 122 | P46: 77 | Q46: 37 | R46: 19 | S46: 30 | T46: 33 | U46: 16 | V46: 8 | W46: 12 | X46: 5 | Y46: 4 | Z46: 2 | AA46: 23 | AB46: 13 | AI46: 90
B47: 割合には「退院阻害要因がある」それぞれの人数に対する割合を表示しています。 | K47: =SUM(C48,E48,G48,I48) -> 163 | L47: 値 | M47: 01_1ヶ月未満 | N47: 02_1ヶ月～3ヶ月未満 | O47: 03_3ヶ月～6ヶ月未満 | P47: 04_6ヶ月～1年未満 | Q47: 05_1年～1年6ヶ月未満 | R47: 06_1年6ヶ月～2年未満 | S47: 07_2年～3年未満 | T47: 08_3年～4年未満 | U47: 09_4年～5年未満 | V47: 10_5年～6年未満 | W47: 11_6年～7年未満 | X47: 12_7年～8年未満 | Y47: 13_8年～9年未満 | Z47: 14_9年～10年未満 | AA47: 15_10年～20年未満 | AB47: 16_ 20年以上
B48: 病状は落ち着いているが、ときどき不安定な病状が見られ、そのことが退院を阻害する要因になっている | C48: =IFERROR(INDEX(阻害要因×在院期間区分＿寛解・院内寛解[#All],MATCH($AI49,阻害要因×在院期間区分＿寛解・院内寛解[[#All],[値]],0),MATCH($AJ$4,阻害要因×在院期間区分＿寛解・院内寛解[#Headers],0)),0)+IFERROR(INDEX(阻害要因×在院期間区分＿寛解・院内寛解[#All],MATCH($AI49,阻害要因×在院期間区分＿寛解・院内寛解[[#All],[値]],0),MATCH($AK$4,阻害要因×在院期間区分＿寛解・院内寛解[#Headers],0)),0)+IFERROR(INDEX(阻害要因×在院期間区分＿寛解・院内寛解[#All],MATCH($AI49,阻害要因×在院期間区分＿寛解・院内寛解[[#All],[値]],0),MATCH($AL$4,阻害要因×在院期間区分＿寛解・院内寛解[#Headers],0)),0)+IFERROR(INDEX(阻害要因×在院期間区分＿寛解・院内寛解[#All],MATCH($AI49,阻害要因×在院期間区分＿寛解・院内寛解[[#All],[値]],0),MATCH($AM$4,阻害要因×在院期間区分＿寛解・院内寛解[#Headers],0)),0) -> 73 | D48: =IFERROR(C48/C$44,"-") -> 0.3215859031 | E48: =IFERROR(INDEX(阻害要因×在院期間区分＿寛解・院内寛解[#All],MATCH($AI49,阻害要因×在院期間区分＿寛解・院内寛解[[#All],[値]],0),MATCH($AN$4,阻害要因×在院期間区分＿寛解・院内寛解[#Headers],0)),0)+IFERROR(INDEX(阻害要因×在院期間区分＿寛解・院内寛解[#All],MATCH($AI49,阻害要因×在院期間区分＿寛解・院内寛解[[#All],[値]],0),MATCH($AO$4,阻害要因×在院期間区分＿寛解・院内寛解[#Headers],0)),0)+IFERROR(INDEX(阻害要因×在院期間区分＿寛解・院内寛解[#All],MATCH($AI49,阻害要因×在院期間区分＿寛解・院内寛解[[#All],[値]],0),MATCH($AP$4,阻害要因×在院期間区分＿寛解・院内寛解[#Headers],0)),0)+IFERROR(INDEX(阻害要因×在院期間区分＿寛解・院内寛解[#All],MATCH($AI49,阻害要因×在院期間区分＿寛解・院内寛解[[#All],[値]],0),MATCH($AQ$4,阻害要因×在院期間区分＿寛解・院内寛解[#Headers],0)),0)+IFERROR(INDEX(阻害要因×在院期間区分＿寛解・院内寛解[#All],MATCH($AI49,阻害要因×在院期間区分＿寛解・院内寛解[[#All],[値]],0),MATCH($AR$4,阻害要因×在院期間区分＿寛解・院内寛解[#Headers],0)),0) -> 50 | F48: =IFERROR(E48/E$44,"-") -> 0.2631578947 | G48: =IFERROR(INDEX(阻害要因×在院期間区分＿寛解・院内寛解[#All],MATCH($AI49,阻害要因×在院期間区分＿寛解・院内寛解[[#All],[値]],0),MATCH($AS$4,阻害要因×在院期間区分＿寛解・院内寛解[#Headers],0)),0)+IFERROR(INDEX(阻害要因×在院期間区分＿寛解・院内寛解[#All],MATCH($AI49,阻害要因×在院期間区分＿寛解・院内寛解[[#All],[値]],0),MATCH($AT$4,阻害要因×在院期間区分＿寛解・院内寛解[#Headers],0)),0)+IFERROR(INDEX(阻害要因×在院期間区分＿寛解・院内寛解[#All],MATCH($AI49,阻害要因×在院期間区分＿寛解・院内寛解[[#All],[値]],0),MATCH($AU$4,阻害要因×在院期間区分＿寛解・院内寛解[#Headers],0)),0)+IFERROR(INDEX(阻害要因×在院期間区分＿寛解・院内寛解[#All],MATCH($AI49,阻害要因×在院期間区分＿寛解・院内寛解[[#All],[値]],0),MATCH($AV$4,阻害要因×在院期間区分＿寛解・院内寛解[#Headers],0)),0)+IFERROR(INDEX(阻害要因×在院期間区分＿寛解・院内寛解[#All],MATCH($AI49,阻害要因×在院期間区分＿寛解・院内寛解[[#All],[値]],0),MATCH($AW$4,阻害要因×在院期間区分＿寛解・院内寛解[#Headers],0)),0) -> 21 | H48: =IFERROR(G48/G$44,"-") -> 0.3230769231 | I48: =IFERROR(INDEX(阻害要因×在院期間区分＿寛解・院内寛解[#All],MATCH($AI49,阻害要因×在院期間区分＿寛解・院内寛解[[#All],[値]],0),MATCH($AX$4,阻害要因×在院期間区分＿寛解・院内寛解[#Headers],0)),0)+IFERROR(INDEX(阻害要因×在院期間区分＿寛解・院内寛解[#All],MATCH($AI49,阻害要因×在院期間区分＿寛解・院内寛解[[#All],[値]],0),MATCH($AY$4,阻害要因×在院期間区分＿寛解・院内寛解[#Headers],0)),0) -> 19 | J48: =IFERROR(I48/I$44,"-") -> 0.2435897436 | K48: =SUM(C48,E48,G48,I48) -> 163 | L48: 合計 / 病状は落ち着いているが、ときどき不安定な病状が見られ、そのことが退院を阻害する要因になっている | M48: 14 | N48: 23 | O48: 22 | P48: 14 | Q48: 10 | R48: 14 | S48: 9 | T48: 8 | U48: 9 | V48: 5 | W48: 6 | X48: 6 | Y48: 3 | Z48: 1 | AA48: 11 | AB48: 8
B49: 病識がなく通院服薬の中断が予測される | C49: =IFERROR(INDEX(阻害要因×在院期間区分＿寛解・院内寛解[#All],MATCH($AI50,阻害要因×在院期間区分＿寛解・院内寛解[[#All],[値]],0),MATCH($AJ$4,阻害要因×在院期間区分＿寛解・院内寛解[#Headers],0)),0)+IFERROR(INDEX(阻害要因×在院期間区分＿寛解・院内寛解[#All],MATCH($AI50,阻害要因×在院期間区分＿寛解・院内寛解[[#All],[値]],0),MATCH($AK$4,阻害要因×在院期間区分＿寛解・院内寛解[#Headers],0)),0)+IFERROR(INDEX(阻害要因×在院期間区分＿寛解・院内寛解[#All],MATCH($AI50,阻害要因×在院期間区分＿寛解・院内寛解[[#All],[値]],0),MATCH($AL$4,阻害要因×在院期間区分＿寛解・院内寛解[#Headers],0)),0)+IFERROR(INDEX(阻害要因×在院期間区分＿寛解・院内寛解[#All],MATCH($AI50,阻害要因×在院期間区分＿寛解・院内寛解[[#All],[値]],0),MATCH($AM$4,阻害要因×在院期間区分＿寛解・院内寛解[#Headers],0)),0) -> 46 | D49: 0.2026431718 | E49: =IFERROR(INDEX(阻害要因×在院期間区分＿寛解・院内寛解[#All],MATCH($AI50,阻害要因×在院期間区分＿寛解・院内寛解[[#All],[値]],0),MATCH($AN$4,阻害要因×在院期間区分＿寛解・院内寛解[#Headers],0)),0)+IFERROR(INDEX(阻害要因×在院期間区分＿寛解・院内寛解[#All],MATCH($AI50,阻害要因×在院期間区分＿寛解・院内寛解[[#All],[値]],0),MATCH($AO$4,阻害要因×在院期間区分＿寛解・院内寛解[#Headers],0)),0)+IFERROR(INDEX(阻害要因×在院期間区分＿寛解・院内寛解[#All],MATCH($AI50,阻害要因×在院期間区分＿寛解・院内寛解[[#All],[値]],0),MATCH($AP$4,阻害要因×在院期間区分＿寛解・院内寛解[#Headers],0)),0)+IFERROR(INDEX(阻害要因×在院期間区分＿寛解・院内寛解[#All],MATCH($AI50,阻害要因×在院期間区分＿寛解・院内寛解[[#All],[値]],0),MATCH($AQ$4,阻害要因×在院期間区分＿寛解・院内寛解[#Headers],0)),0)+IFERROR(INDEX(阻害要因×在院期間区分＿寛解・院内寛解[#All],MATCH($AI50,阻害要因×在院期間区分＿寛解・院内寛解[[#All],[値]],0),MATCH($AR$4,阻害要因×在院期間区分＿寛解・院内寛解[#Headers],0)),0) -> 39 | F49: 0.2052631579 | G49: =IFERROR(INDEX(阻害要因×在院期間区分＿寛解・院内寛解[#All],MATCH($AI50,阻害要因×在院期間区分＿寛解・院内寛解[[#All],[値]],0),MATCH($AS$4,阻害要因×在院期間区分＿寛解・院内寛解[#Headers],0)),0)+IFERROR(INDEX(阻害要因×在院期間区分＿寛解・院内寛解[#All],MATCH($AI50,阻害要因×在院期間区分＿寛解・院内寛解[[#All],[値]],0),MATCH($AT$4,阻害要因×在院期間区分＿寛解・院内寛解[#Headers],0)),0)+IFERROR(INDEX(阻害要因×在院期間区分＿寛解・院内寛解[#All],MATCH($AI50,阻害要因×在院期間区分＿寛解・院内寛解[[#All],[値]],0),MATCH($AU$4,阻害要因×在院期間区分＿寛解・院内寛解[#Headers],0)),0)+IFERROR(INDEX(阻害要因×在院期間区分＿寛解・院内寛解[#All],MATCH($AI50,阻害要因×在院期間区分＿寛解・院内寛解[[#All],[値]],0),MATCH($AV$4,阻害要因×在院期間区分＿寛解・院内寛解[#Headers],0)),0)+IFERROR(INDEX(阻害要因×在院期間区分＿寛解・院内寛解[#All],MATCH($AI50,阻害要因×在院期間区分＿寛解・院内寛解[[#All],[値]],0),MATCH($AW$4,阻害要因×在院期間区分＿寛解・院内寛解[#Headers],0)),0) -> 8 | H49: 0.1230769231 | I49: =IFERROR(INDEX(阻害要因×在院期間区分＿寛解・院内寛解[#All],MATCH($AI50,阻害要因×在院期間区分＿寛解・院内寛解[[#All],[値]],0),MATCH($AX$4,阻害要因×在院期間区分＿寛解・院内寛解[#Headers],0)),0)+IFERROR(INDEX(阻害要因×在院期間区分＿寛解・院内寛解[#All],MATCH($AI50,阻害要因×在院期間区分＿寛解・院内寛解[[#All],[値]],0),MATCH($AY$4,阻害要因×在院期間区分＿寛解・院内寛解[#Headers],0)),0) -> 10 | J49: 0.1282051282 | K49: =SUM(C49,E49,G49,I49) -> 103 | L49: 合計 / 病識がなく通院服薬の中断が予測される | M49: 5 | N49: 12 | O49: 10 | P49: 19 | Q49: 7 | R49: 11 | S49: 7 | T49: 7 | U49: 7 | V49: 2 | W49: 3 | X49: 2 | Y49: 0 | Z49: 1 | AA49: 3 | AB49: 7 | AI49: 合計 / 病状は落ち着いているが、ときどき不安定な病状が見られ、そのことが退院を阻害する要因になっている
B50: 反社会的行動が予測される | C50: =IFERROR(INDEX(阻害要因×在院期間区分＿寛解・院内寛解[#All],MATCH($AI51,阻害要因×在院期間区分＿寛解・院内寛解[[#All],[値]],0),MATCH($AJ$4,阻害要因×在院期間区分＿寛解・院内寛解[#Headers],0)),0)+IFERROR(INDEX(阻害要因×在院期間区分＿寛解・院内寛解[#All],MATCH($AI51,阻害要因×在院期間区分＿寛解・院内寛解[[#All],[値]],0),MATCH($AK$4,阻害要因×在院期間区分＿寛解・院内寛解[#Headers],0)),0)+IFERROR(INDEX(阻害要因×在院期間区分＿寛解・院内寛解[#All],MATCH($AI51,阻害要因×在院期間区分＿寛解・院内寛解[[#All],[値]],0),MATCH($AL$4,阻害要因×在院期間区分＿寛解・院内寛解[#Headers],0)),0)+IFERROR(INDEX(阻害要因×在院期間区分＿寛解・院内寛解[#All],MATCH($AI51,阻害要因×在院期間区分＿寛解・院内寛解[[#All],[値]],0),MATCH($AM$4,阻害要因×在院期間区分＿寛解・院内寛解[#Headers],0)),0) -> 7 | D50: 0.03083700441 | E50: =IFERROR(INDEX(阻害要因×在院期間区分＿寛解・院内寛解[#All],MATCH($AI51,阻害要因×在院期間区分＿寛解・院内寛解[[#All],[値]],0),MATCH($AN$4,阻害要因×在院期間区分＿寛解・院内寛解[#Headers],0)),0)+IFERROR(INDEX(阻害要因×在院期間区分＿寛解・院内寛解[#All],MATCH($AI51,阻害要因×在院期間区分＿寛解・院内寛解[[#All],[値]],0),MATCH($AO$4,阻害要因×在院期間区分＿寛解・院内寛解[#Headers],0)),0)+IFERROR(INDEX(阻害要因×在院期間区分＿寛解・院内寛解[#All],MATCH($AI51,阻害要因×在院期間区分＿寛解・院内寛解[[#All],[値]],0),MATCH($AP$4,阻害要因×在院期間区分＿寛解・院内寛解[#Headers],0)),0)+IFERROR(INDEX(阻害要因×在院期間区分＿寛解・院内寛解[#All],MATCH($AI51,阻害要因×在院期間区分＿寛解・院内寛解[[#All],[値]],0),MATCH($AQ$4,阻害要因×在院期間区分＿寛解・院内寛解[#Headers],0)),0)+IFERROR(INDEX(阻害要因×在院期間区分＿寛解・院内寛解[#All],MATCH($AI51,阻害要因×在院期間区分＿寛解・院内寛解[[#All],[値]],0),MATCH($AR$4,阻害要因×在院期間区分＿寛解・院内寛解[#Headers],0)),0) -> 4 | F50: 0.02105263158 | G50: =IFERROR(INDEX(阻害要因×在院期間区分＿寛解・院内寛解[#All],MATCH($AI51,阻害要因×在院期間区分＿寛解・院内寛解[[#All],[値]],0),MATCH($AS$4,阻害要因×在院期間区分＿寛解・院内寛解[#Headers],0)),0)+IFERROR(INDEX(阻害要因×在院期間区分＿寛解・院内寛解[#All],MATCH($AI51,阻害要因×在院期間区分＿寛解・院内寛解[[#All],[値]],0),MATCH($AT$4,阻害要因×在院期間区分＿寛解・院内寛解[#Headers],0)),0)+IFERROR(INDEX(阻害要因×在院期間区分＿寛解・院内寛解[#All],MATCH($AI51,阻害要因×在院期間区分＿寛解・院内寛解[[#All],[値]],0),MATCH($AU$4,阻害要因×在院期間区分＿寛解・院内寛解[#Headers],0)),0)+IFERROR(INDEX(阻害要因×在院期間区分＿寛解・院内寛解[#All],MATCH($AI51,阻害要因×在院期間区分＿寛解・院内寛解[[#All],[値]],0),MATCH($AV$4,阻害要因×在院期間区分＿寛解・院内寛解[#Headers],0)),0)+IFERROR(INDEX(阻害要因×在院期間区分＿寛解・院内寛解[#All],MATCH($AI51,阻害要因×在院期間区分＿寛解・院内寛解[[#All],[値]],0),MATCH($AW$4,阻害要因×在院期間区分＿寛解・院内寛解[#Headers],0)),0) -> 2 | H50: 0.03076923077 | I50: =IFERROR(INDEX(阻害要因×在院期間区分＿寛解・院内寛解[#All],MATCH($AI51,阻害要因×在院期間区分＿寛解・院内寛解[[#All],[値]],0),MATCH($AX$4,阻害要因×在院期間区分＿寛解・院内寛解[#Headers],0)),0)+IFERROR(INDEX(阻害要因×在院期間区分＿寛解・院内寛解[#All],MATCH($AI51,阻害要因×在院期間区分＿寛解・院内寛解[[#All],[値]],0),MATCH($AY$4,阻害要因×在院期間区分＿寛解・院内寛解[#Headers],0)),0) -> 0 | J50: 0 | K50: 13 | L50: 合計 / 反社会的行動が予測される | M50: 1 | N50: 2 | O50: 0 | P50: 4 | Q50: 1 | R50: 2 | S50: 0 | T50: 0 | U50: 1 | V50: 1 | W50: 0 | X50: 0 | Y50: 1 | Z50: 0 | AA50: 0 | AB50: 0 | AI50: 合計 / 病識がなく通院服薬の中断が予測される
B51: 退院意欲が乏しい | C51: =IFERROR(INDEX(阻害要因×在院期間区分＿寛解・院内寛解[#All],MATCH($AI52,阻害要因×在院期間区分＿寛解・院内寛解[[#All],[値]],0),MATCH($AJ$4,阻害要因×在院期間区分＿寛解・院内寛解[#Headers],0)),0)+IFERROR(INDEX(阻害要因×在院期間区分＿寛解・院内寛解[#All],MATCH($AI52,阻害要因×在院期間区分＿寛解・院内寛解[[#All],[値]],0),MATCH($AK$4,阻害要因×在院期間区分＿寛解・院内寛解[#Headers],0)),0)+IFERROR(INDEX(阻害要因×在院期間区分＿寛解・院内寛解[#All],MATCH($AI52,阻害要因×在院期間区分＿寛解・院内寛解[[#All],[値]],0),MATCH($AL$4,阻害要因×在院期間区分＿寛解・院内寛解[#Headers],0)),0)+IFERROR(INDEX(阻害要因×在院期間区分＿寛解・院内寛解[#All],MATCH($AI52,阻害要因×在院期間区分＿寛解・院内寛解[[#All],[値]],0),MATCH($AM$4,阻害要因×在院期間区分＿寛解・院内寛解[#Headers],0)),0) -> 45 | D51: 0.1982378855 | E51: =IFERROR(INDEX(阻害要因×在院期間区分＿寛解・院内寛解[#All],MATCH($AI52,阻害要因×在院期間区分＿寛解・院内寛解[[#All],[値]],0),MATCH($AN$4,阻害要因×在院期間区分＿寛解・院内寛解[#Headers],0)),0)+IFERROR(INDEX(阻害要因×在院期間区分＿寛解・院内寛解[#All],MATCH($AI52,阻害要因×在院期間区分＿寛解・院内寛解[[#All],[値]],0),MATCH($AO$4,阻害要因×在院期間区分＿寛解・院内寛解[#Headers],0)),0)+IFERROR(INDEX(阻害要因×在院期間区分＿寛解・院内寛解[#All],MATCH($AI52,阻害要因×在院期間区分＿寛解・院内寛解[[#All],[値]],0),MATCH($AP$4,阻害要因×在院期間区分＿寛解・院内寛解[#Headers],0)),0)+IFERROR(INDEX(阻害要因×在院期間区分＿寛解・院内寛解[#All],MATCH($AI52,阻害要因×在院期間区分＿寛解・院内寛解[[#All],[値]],0),MATCH($AQ$4,阻害要因×在院期間区分＿寛解・院内寛解[#Headers],0)),0)+IFERROR(INDEX(阻害要因×在院期間区分＿寛解・院内寛解[#All],MATCH($AI52,阻害要因×在院期間区分＿寛解・院内寛解[[#All],[値]],0),MATCH($AR$4,阻害要因×在院期間区分＿寛解・院内寛解[#Headers],0)),0) -> 74 | F51: 0.3894736842 | G51: =IFERROR(INDEX(阻害要因×在院期間区分＿寛解・院内寛解[#All],MATCH($AI52,阻害要因×在院期間区分＿寛解・院内寛解[[#All],[値]],0),MATCH($AS$4,阻害要因×在院期間区分＿寛解・院内寛解[#Headers],0)),0)+IFERROR(INDEX(阻害要因×在院期間区分＿寛解・院内寛解[#All],MATCH($AI52,阻害要因×在院期間区分＿寛解・院内寛解[[#All],[値]],0),MATCH($AT$4,阻害要因×在院期間区分＿寛解・院内寛解[#Headers],0)),0)+IFERROR(INDEX(阻害要因×在院期間区分＿寛解・院内寛解[#All],MATCH($AI52,阻害要因×在院期間区分＿寛解・院内寛解[[#All],[値]],0),MATCH($AU$4,阻害要因×在院期間区分＿寛解・院内寛解[#Headers],0)),0)+IFERROR(INDEX(阻害要因×在院期間区分＿寛解・院内寛解[#All],MATCH($AI52,阻害要因×在院期間区分＿寛解・院内寛解[[#All],[値]],0),MATCH($AV$4,阻害要因×在院期間区分＿寛解・院内寛解[#Headers],0)),0)+IFERROR(INDEX(阻害要因×在院期間区分＿寛解・院内寛解[#All],MATCH($AI52,阻害要因×在院期間区分＿寛解・院内寛解[[#All],[値]],0),MATCH($AW$4,阻害要因×在院期間区分＿寛解・院内寛解[#Headers],0)),0) -> 32 | H51: 0.4923076923 | I51: =IFERROR(INDEX(阻害要因×在院期間区分＿寛解・院内寛解[#All],MATCH($AI52,阻害要因×在院期間区分＿寛解・院内寛解[[#All],[値]],0),MATCH($AX$4,阻害要因×在院期間区分＿寛解・院内寛解[#Headers],0)),0)+IFERROR(INDEX(阻害要因×在院期間区分＿寛解・院内寛解[#All],MATCH($AI52,阻害要因×在院期間区分＿寛解・院内寛解[[#All],[値]],0),MATCH($AY$4,阻害要因×在院期間区分＿寛解・院内寛解[#Headers],0)),0) -> 45 | J51: 0.5769230769 | K51: 196 | L51: 合計 / 退院意欲が乏しい | M51: 5 | N51: 10 | O51: 11 | P51: 19 | Q51: 13 | R51: 13 | S51: 24 | T51: 11 | U51: 13 | V51: 9 | W51: 10 | X51: 5 | Y51: 5 | Z51: 3 | AA51: 27 | AB51: 18 | AI51: 合計 / 反社会的行動が予測される
B52: 現実認識が乏しい | C52: =IFERROR(INDEX(阻害要因×在院期間区分＿寛解・院内寛解[#All],MATCH($AI53,阻害要因×在院期間区分＿寛解・院内寛解[[#All],[値]],0),MATCH($AJ$4,阻害要因×在院期間区分＿寛解・院内寛解[#Headers],0)),0)+IFERROR(INDEX(阻害要因×在院期間区分＿寛解・院内寛解[#All],MATCH($AI53,阻害要因×在院期間区分＿寛解・院内寛解[[#All],[値]],0),MATCH($AK$4,阻害要因×在院期間区分＿寛解・院内寛解[#Headers],0)),0)+IFERROR(INDEX(阻害要因×在院期間区分＿寛解・院内寛解[#All],MATCH($AI53,阻害要因×在院期間区分＿寛解・院内寛解[[#All],[値]],0),MATCH($AL$4,阻害要因×在院期間区分＿寛解・院内寛解[#Headers],0)),0)+IFERROR(INDEX(阻害要因×在院期間区分＿寛解・院内寛解[#All],MATCH($AI53,阻害要因×在院期間区分＿寛解・院内寛解[[#All],[値]],0),MATCH($AM$4,阻害要因×在院期間区分＿寛解・院内寛解[#Headers],0)),0) -> 56 | D52: 0.2466960352 | E52: =IFERROR(INDEX(阻害要因×在院期間区分＿寛解・院内寛解[#All],MATCH($AI53,阻害要因×在院期間区分＿寛解・院内寛解[[#All],[値]],0),MATCH($AN$4,阻害要因×在院期間区分＿寛解・院内寛解[#Headers],0)),0)+IFERROR(INDEX(阻害要因×在院期間区分＿寛解・院内寛解[#All],MATCH($AI53,阻害要因×在院期間区分＿寛解・院内寛解[[#All],[値]],0),MATCH($AO$4,阻害要因×在院期間区分＿寛解・院内寛解[#Headers],0)),0)+IFERROR(INDEX(阻害要因×在院期間区分＿寛解・院内寛解[#All],MATCH($AI53,阻害要因×在院期間区分＿寛解・院内寛解[[#All],[値]],0),MATCH($AP$4,阻害要因×在院期間区分＿寛解・院内寛解[#Headers],0)),0)+IFERROR(INDEX(阻害要因×在院期間区分＿寛解・院内寛解[#All],MATCH($AI53,阻害要因×在院期間区分＿寛解・院内寛解[[#All],[値]],0),MATCH($AQ$4,阻害要因×在院期間区分＿寛解・院内寛解[#Headers],0)),0)+IFERROR(INDEX(阻害要因×在院期間区分＿寛解・院内寛解[#All],MATCH($AI53,阻害要因×在院期間区分＿寛解・院内寛解[[#All],[値]],0),MATCH($AR$4,阻害要因×在院期間区分＿寛解・院内寛解[#Headers],0)),0) -> 46 | F52: 0.2421052632 | G52: =IFERROR(INDEX(阻害要因×在院期間区分＿寛解・院内寛解[#All],MATCH($AI53,阻害要因×在院期間区分＿寛解・院内寛解[[#All],[値]],0),MATCH($AS$4,阻害要因×在院期間区分＿寛解・院内寛解[#Headers],0)),0)+IFERROR(INDEX(阻害要因×在院期間区分＿寛解・院内寛解[#All],MATCH($AI53,阻害要因×在院期間区分＿寛解・院内寛解[[#All],[値]],0),MATCH($AT$4,阻害要因×在院期間区分＿寛解・院内寛解[#Headers],0)),0)+IFERROR(INDEX(阻害要因×在院期間区分＿寛解・院内寛解[#All],MATCH($AI53,阻害要因×在院期間区分＿寛解・院内寛解[[#All],[値]],0),MATCH($AU$4,阻害要因×在院期間区分＿寛解・院内寛解[#Headers],0)),0)+IFERROR(INDEX(阻害要因×在院期間区分＿寛解・院内寛解[#All],MATCH($AI53,阻害要因×在院期間区分＿寛解・院内寛解[[#All],[値]],0),MATCH($AV$4,阻害要因×在院期間区分＿寛解・院内寛解[#Headers],0)),0)+IFERROR(INDEX(阻害要因×在院期間区分＿寛解・院内寛解[#All],MATCH($AI53,阻害要因×在院期間区分＿寛解・院内寛解[[#All],[値]],0),MATCH($AW$4,阻害要因×在院期間区分＿寛解・院内寛解[#Headers],0)),0) -> 22 | H52: 0.3384615385 | I52: =IFERROR(INDEX(阻害要因×在院期間区分＿寛解・院内寛解[#All],MATCH($AI53,阻害要因×在院期間区分＿寛解・院内寛解[[#All],[値]],0),MATCH($AX$4,阻害要因×在院期間区分＿寛解・院内寛解[#Headers],0)),0)+IFERROR(INDEX(阻害要因×在院期間区分＿寛解・院内寛解[#All],MATCH($AI53,阻害要因×在院期間区分＿寛解・院内寛解[[#All],[値]],0),MATCH($AY$4,阻害要因×在院期間区分＿寛解・院内寛解[#Headers],0)),0) -> 27 | J52: 0.3461538462 | K52: 151 | L52: 合計 / 現実認識が乏しい | M52: 7 | N52: 19 | O52: 14 | P52: 16 | Q52: 11 | R52: 9 | S52: 8 | T52: 9 | U52: 9 | V52: 10 | W52: 5 | X52: 4 | Y52: 2 | Z52: 1 | AA52: 15 | AB52: 12 | AI52: 合計 / 退院意欲が乏しい
B53: 退院による環境変化への不安が強い | C53: =IFERROR(INDEX(阻害要因×在院期間区分＿寛解・院内寛解[#All],MATCH($AI54,阻害要因×在院期間区分＿寛解・院内寛解[[#All],[値]],0),MATCH($AJ$4,阻害要因×在院期間区分＿寛解・院内寛解[#Headers],0)),0)+IFERROR(INDEX(阻害要因×在院期間区分＿寛解・院内寛解[#All],MATCH($AI54,阻害要因×在院期間区分＿寛解・院内寛解[[#All],[値]],0),MATCH($AK$4,阻害要因×在院期間区分＿寛解・院内寛解[#Headers],0)),0)+IFERROR(INDEX(阻害要因×在院期間区分＿寛解・院内寛解[#All],MATCH($AI54,阻害要因×在院期間区分＿寛解・院内寛解[[#All],[値]],0),MATCH($AL$4,阻害要因×在院期間区分＿寛解・院内寛解[#Headers],0)),0)+IFERROR(INDEX(阻害要因×在院期間区分＿寛解・院内寛解[#All],MATCH($AI54,阻害要因×在院期間区分＿寛解・院内寛解[[#All],[値]],0),MATCH($AM$4,阻害要因×在院期間区分＿寛解・院内寛解[#Headers],0)),0) -> 56 | D53: 0.2466960352 | E53: =IFERROR(INDEX(阻害要因×在院期間区分＿寛解・院内寛解[#All],MATCH($AI54,阻害要因×在院期間区分＿寛解・院内寛解[[#All],[値]],0),MATCH($AN$4,阻害要因×在院期間区分＿寛解・院内寛解[#Headers],0)),0)+IFERROR(INDEX(阻害要因×在院期間区分＿寛解・院内寛解[#All],MATCH($AI54,阻害要因×在院期間区分＿寛解・院内寛解[[#All],[値]],0),MATCH($AO$4,阻害要因×在院期間区分＿寛解・院内寛解[#Headers],0)),0)+IFERROR(INDEX(阻害要因×在院期間区分＿寛解・院内寛解[#All],MATCH($AI54,阻害要因×在院期間区分＿寛解・院内寛解[[#All],[値]],0),MATCH($AP$4,阻害要因×在院期間区分＿寛解・院内寛解[#Headers],0)),0)+IFERROR(INDEX(阻害要因×在院期間区分＿寛解・院内寛解[#All],MATCH($AI54,阻害要因×在院期間区分＿寛解・院内寛解[[#All],[値]],0),MATCH($AQ$4,阻害要因×在院期間区分＿寛解・院内寛解[#Headers],0)),0)+IFERROR(INDEX(阻害要因×在院期間区分＿寛解・院内寛解[#All],MATCH($AI54,阻害要因×在院期間区分＿寛解・院内寛解[[#All],[値]],0),MATCH($AR$4,阻害要因×在院期間区分＿寛解・院内寛解[#Headers],0)),0) -> 43 | F53: 0.2263157895 | G53: =IFERROR(INDEX(阻害要因×在院期間区分＿寛解・院内寛解[#All],MATCH($AI54,阻害要因×在院期間区分＿寛解・院内寛解[[#All],[値]],0),MATCH($AS$4,阻害要因×在院期間区分＿寛解・院内寛解[#Headers],0)),0)+IFERROR(INDEX(阻害要因×在院期間区分＿寛解・院内寛解[#All],MATCH($AI54,阻害要因×在院期間区分＿寛解・院内寛解[[#All],[値]],0),MATCH($AT$4,阻害要因×在院期間区分＿寛解・院内寛解[#Headers],0)),0)+IFERROR(INDEX(阻害要因×在院期間区分＿寛解・院内寛解[#All],MATCH($AI54,阻害要因×在院期間区分＿寛解・院内寛解[[#All],[値]],0),MATCH($AU$4,阻害要因×在院期間区分＿寛解・院内寛解[#Headers],0)),0)+IFERROR(INDEX(阻害要因×在院期間区分＿寛解・院内寛解[#All],MATCH($AI54,阻害要因×在院期間区分＿寛解・院内寛解[[#All],[値]],0),MATCH($AV$4,阻害要因×在院期間区分＿寛解・院内寛解[#Headers],0)),0)+IFERROR(INDEX(阻害要因×在院期間区分＿寛解・院内寛解[#All],MATCH($AI54,阻害要因×在院期間区分＿寛解・院内寛解[[#All],[値]],0),MATCH($AW$4,阻害要因×在院期間区分＿寛解・院内寛解[#Headers],0)),0) -> 20 | H53: 0.3076923077 | I53: =IFERROR(INDEX(阻害要因×在院期間区分＿寛解・院内寛解[#All],MATCH($AI54,阻害要因×在院期間区分＿寛解・院内寛解[[#All],[値]],0),MATCH($AX$4,阻害要因×在院期間区分＿寛解・院内寛解[#Headers],0)),0)+IFERROR(INDEX(阻害要因×在院期間区分＿寛解・院内寛解[#All],MATCH($AI54,阻害要因×在院期間区分＿寛解・院内寛解[[#All],[値]],0),MATCH($AY$4,阻害要因×在院期間区分＿寛解・院内寛解[#Headers],0)),0) -> 27 | J53: 0.3461538462 | K53: 146 | L53: 合計 / 退院による環境変化への不安が強い | M53: 10 | N53: 13 | O53: 17 | P53: 16 | Q53: 12 | R53: 8 | S53: 10 | T53: 3 | U53: 10 | V53: 5 | W53: 7 | X53: 5 | Y53: 2 | Z53: 1 | AA53: 14 | AB53: 13 | AI53: 合計 / 現実認識が乏しい
B54: 援助者との対人関係がもてない | C54: =IFERROR(INDEX(阻害要因×在院期間区分＿寛解・院内寛解[#All],MATCH($AI55,阻害要因×在院期間区分＿寛解・院内寛解[[#All],[値]],0),MATCH($AJ$4,阻害要因×在院期間区分＿寛解・院内寛解[#Headers],0)),0)+IFERROR(INDEX(阻害要因×在院期間区分＿寛解・院内寛解[#All],MATCH($AI55,阻害要因×在院期間区分＿寛解・院内寛解[[#All],[値]],0),MATCH($AK$4,阻害要因×在院期間区分＿寛解・院内寛解[#Headers],0)),0)+IFERROR(INDEX(阻害要因×在院期間区分＿寛解・院内寛解[#All],MATCH($AI55,阻害要因×在院期間区分＿寛解・院内寛解[[#All],[値]],0),MATCH($AL$4,阻害要因×在院期間区分＿寛解・院内寛解[#Headers],0)),0)+IFERROR(INDEX(阻害要因×在院期間区分＿寛解・院内寛解[#All],MATCH($AI55,阻害要因×在院期間区分＿寛解・院内寛解[[#All],[値]],0),MATCH($AM$4,阻害要因×在院期間区分＿寛解・院内寛解[#Headers],0)),0) -> 9 | D54: 0.03964757709 | E54: =IFERROR(INDEX(阻害要因×在院期間区分＿寛解・院内寛解[#All],MATCH($AI55,阻害要因×在院期間区分＿寛解・院内寛解[[#All],[値]],0),MATCH($AN$4,阻害要因×在院期間区分＿寛解・院内寛解[#Headers],0)),0)+IFERROR(INDEX(阻害要因×在院期間区分＿寛解・院内寛解[#All],MATCH($AI55,阻害要因×在院期間区分＿寛解・院内寛解[[#All],[値]],0),MATCH($AO$4,阻害要因×在院期間区分＿寛解・院内寛解[#Headers],0)),0)+IFERROR(INDEX(阻害要因×在院期間区分＿寛解・院内寛解[#All],MATCH($AI55,阻害要因×在院期間区分＿寛解・院内寛解[[#All],[値]],0),MATCH($AP$4,阻害要因×在院期間区分＿寛解・院内寛解[#Headers],0)),0)+IFERROR(INDEX(阻害要因×在院期間区分＿寛解・院内寛解[#All],MATCH($AI55,阻害要因×在院期間区分＿寛解・院内寛解[[#All],[値]],0),MATCH($AQ$4,阻害要因×在院期間区分＿寛解・院内寛解[#Headers],0)),0)+IFERROR(INDEX(阻害要因×在院期間区分＿寛解・院内寛解[#All],MATCH($AI55,阻害要因×在院期間区分＿寛解・院内寛解[[#All],[値]],0),MATCH($AR$4,阻害要因×在院期間区分＿寛解・院内寛解[#Headers],0)),0) -> 8 | F54: 0.04210526316 | G54: =IFERROR(INDEX(阻害要因×在院期間区分＿寛解・院内寛解[#All],MATCH($AI55,阻害要因×在院期間区分＿寛解・院内寛解[[#All],[値]],0),MATCH($AS$4,阻害要因×在院期間区分＿寛解・院内寛解[#Headers],0)),0)+IFERROR(INDEX(阻害要因×在院期間区分＿寛解・院内寛解[#All],MATCH($AI55,阻害要因×在院期間区分＿寛解・院内寛解[[#All],[値]],0),MATCH($AT$4,阻害要因×在院期間区分＿寛解・院内寛解[#Headers],0)),0)+IFERROR(INDEX(阻害要因×在院期間区分＿寛解・院内寛解[#All],MATCH($AI55,阻害要因×在院期間区分＿寛解・院内寛解[[#All],[値]],0),MATCH($AU$4,阻害要因×在院期間区分＿寛解・院内寛解[#Headers],0)),0)+IFERROR(INDEX(阻害要因×在院期間区分＿寛解・院内寛解[#All],MATCH($AI55,阻害要因×在院期間区分＿寛解・院内寛解[[#All],[値]],0),MATCH($AV$4,阻害要因×在院期間区分＿寛解・院内寛解[#Headers],0)),0)+IFERROR(INDEX(阻害要因×在院期間区分＿寛解・院内寛解[#All],MATCH($AI55,阻害要因×在院期間区分＿寛解・院内寛解[[#All],[値]],0),MATCH($AW$4,阻害要因×在院期間区分＿寛解・院内寛解[#Headers],0)),0) -> 2 | H54: 0.03076923077 | I54: =IFERROR(INDEX(阻害要因×在院期間区分＿寛解・院内寛解[#All],MATCH($AI55,阻害要因×在院期間区分＿寛解・院内寛解[[#All],[値]],0),MATCH($AX$4,阻害要因×在院期間区分＿寛解・院内寛解[#Headers],0)),0)+IFERROR(INDEX(阻害要因×在院期間区分＿寛解・院内寛解[#All],MATCH($AI55,阻害要因×在院期間区分＿寛解・院内寛解[[#All],[値]],0),MATCH($AY$4,阻害要因×在院期間区分＿寛解・院内寛解[#Headers],0)),0) -> 2 | J54: 0.02564102564 | K54: 21 | L54: 合計 / 援助者との対人関係がもてない | M54: 3 | N54: 3 | O54: 2 | P54: 1 | Q54: 2 | R54: 2 | S54: 0 | T54: 2 | U54: 2 | V54: 1 | W54: 0 | X54: 1 | Y54: 0 | Z54: 0 | AA54: 1 | AB54: 1 | AI54: 合計 / 退院による環境変化への不安が強い
B55: 家事（食事・洗濯・金銭管理など）ができない | C55: =IFERROR(INDEX(阻害要因×在院期間区分＿寛解・院内寛解[#All],MATCH($AI56,阻害要因×在院期間区分＿寛解・院内寛解[[#All],[値]],0),MATCH($AJ$4,阻害要因×在院期間区分＿寛解・院内寛解[#Headers],0)),0)+IFERROR(INDEX(阻害要因×在院期間区分＿寛解・院内寛解[#All],MATCH($AI56,阻害要因×在院期間区分＿寛解・院内寛解[[#All],[値]],0),MATCH($AK$4,阻害要因×在院期間区分＿寛解・院内寛解[#Headers],0)),0)+IFERROR(INDEX(阻害要因×在院期間区分＿寛解・院内寛解[#All],MATCH($AI56,阻害要因×在院期間区分＿寛解・院内寛解[[#All],[値]],0),MATCH($AL$4,阻害要因×在院期間区分＿寛解・院内寛解[#Headers],0)),0)+IFERROR(INDEX(阻害要因×在院期間区分＿寛解・院内寛解[#All],MATCH($AI56,阻害要因×在院期間区分＿寛解・院内寛解[[#All],[値]],0),MATCH($AM$4,阻害要因×在院期間区分＿寛解・院内寛解[#Headers],0)),0) -> 50 | D55: 0.2202643172 | E55: =IFERROR(INDEX(阻害要因×在院期間区分＿寛解・院内寛解[#All],MATCH($AI56,阻害要因×在院期間区分＿寛解・院内寛解[[#All],[値]],0),MATCH($AN$4,阻害要因×在院期間区分＿寛解・院内寛解[#Headers],0)),0)+IFERROR(INDEX(阻害要因×在院期間区分＿寛解・院内寛解[#All],MATCH($AI56,阻害要因×在院期間区分＿寛解・院内寛解[[#All],[値]],0),MATCH($AO$4,阻害要因×在院期間区分＿寛解・院内寛解[#Headers],0)),0)+IFERROR(INDEX(阻害要因×在院期間区分＿寛解・院内寛解[#All],MATCH($AI56,阻害要因×在院期間区分＿寛解・院内寛解[[#All],[値]],0),MATCH($AP$4,阻害要因×在院期間区分＿寛解・院内寛解[#Headers],0)),0)+IFERROR(INDEX(阻害要因×在院期間区分＿寛解・院内寛解[#All],MATCH($AI56,阻害要因×在院期間区分＿寛解・院内寛解[[#All],[値]],0),MATCH($AQ$4,阻害要因×在院期間区分＿寛解・院内寛解[#Headers],0)),0)+IFERROR(INDEX(阻害要因×在院期間区分＿寛解・院内寛解[#All],MATCH($AI56,阻害要因×在院期間区分＿寛解・院内寛解[[#All],[値]],0),MATCH($AR$4,阻害要因×在院期間区分＿寛解・院内寛解[#Headers],0)),0) -> 49 | F55: 0.2578947368 | G55: =IFERROR(INDEX(阻害要因×在院期間区分＿寛解・院内寛解[#All],MATCH($AI56,阻害要因×在院期間区分＿寛解・院内寛解[[#All],[値]],0),MATCH($AS$4,阻害要因×在院期間区分＿寛解・院内寛解[#Headers],0)),0)+IFERROR(INDEX(阻害要因×在院期間区分＿寛解・院内寛解[#All],MATCH($AI56,阻害要因×在院期間区分＿寛解・院内寛解[[#All],[値]],0),MATCH($AT$4,阻害要因×在院期間区分＿寛解・院内寛解[#Headers],0)),0)+IFERROR(INDEX(阻害要因×在院期間区分＿寛解・院内寛解[#All],MATCH($AI56,阻害要因×在院期間区分＿寛解・院内寛解[[#All],[値]],0),MATCH($AU$4,阻害要因×在院期間区分＿寛解・院内寛解[#Headers],0)),0)+IFERROR(INDEX(阻害要因×在院期間区分＿寛解・院内寛解[#All],MATCH($AI56,阻害要因×在院期間区分＿寛解・院内寛解[[#All],[値]],0),MATCH($AV$4,阻害要因×在院期間区分＿寛解・院内寛解[#Headers],0)),0)+IFERROR(INDEX(阻害要因×在院期間区分＿寛解・院内寛解[#All],MATCH($AI56,阻害要因×在院期間区分＿寛解・院内寛解[[#All],[値]],0),MATCH($AW$4,阻害要因×在院期間区分＿寛解・院内寛解[#Headers],0)),0) -> 19 | H55: 0.2923076923 | I55: =IFERROR(INDEX(阻害要因×在院期間区分＿寛解・院内寛解[#All],MATCH($AI56,阻害要因×在院期間区分＿寛解・院内寛解[[#All],[値]],0),MATCH($AX$4,阻害要因×在院期間区分＿寛解・院内寛解[#Headers],0)),0)+IFERROR(INDEX(阻害要因×在院期間区分＿寛解・院内寛解[#All],MATCH($AI56,阻害要因×在院期間区分＿寛解・院内寛解[[#All],[値]],0),MATCH($AY$4,阻害要因×在院期間区分＿寛解・院内寛解[#Headers],0)),0) -> 15 | J55: 0.1923076923 | K55: 133 | L55: 合計 / 家事（食事,洗濯,金銭管理など）ができない | M55: 4 | N55: 16 | O55: 14 | P55: 16 | Q55: 13 | R55: 10 | S55: 13 | T55: 7 | U55: 6 | V55: 5 | W55: 6 | X55: 5 | Y55: 2 | Z55: 1 | AA55: 6 | AB55: 9 | AI55: 合計 / 援助者との対人関係がもてない
B56: 家族がいない、本人をサポートする機能が実質ない | C56: =IFERROR(INDEX(阻害要因×在院期間区分＿寛解・院内寛解[#All],MATCH($AI57,阻害要因×在院期間区分＿寛解・院内寛解[[#All],[値]],0),MATCH($AJ$4,阻害要因×在院期間区分＿寛解・院内寛解[#Headers],0)),0)+IFERROR(INDEX(阻害要因×在院期間区分＿寛解・院内寛解[#All],MATCH($AI57,阻害要因×在院期間区分＿寛解・院内寛解[[#All],[値]],0),MATCH($AK$4,阻害要因×在院期間区分＿寛解・院内寛解[#Headers],0)),0)+IFERROR(INDEX(阻害要因×在院期間区分＿寛解・院内寛解[#All],MATCH($AI57,阻害要因×在院期間区分＿寛解・院内寛解[[#All],[値]],0),MATCH($AL$4,阻害要因×在院期間区分＿寛解・院内寛解[#Headers],0)),0)+IFERROR(INDEX(阻害要因×在院期間区分＿寛解・院内寛解[#All],MATCH($AI57,阻害要因×在院期間区分＿寛解・院内寛解[[#All],[値]],0),MATCH($AM$4,阻害要因×在院期間区分＿寛解・院内寛解[#Headers],0)),0) -> 38 | D56: 0.1674008811 | E56: =IFERROR(INDEX(阻害要因×在院期間区分＿寛解・院内寛解[#All],MATCH($AI57,阻害要因×在院期間区分＿寛解・院内寛解[[#All],[値]],0),MATCH($AN$4,阻害要因×在院期間区分＿寛解・院内寛解[#Headers],0)),0)+IFERROR(INDEX(阻害要因×在院期間区分＿寛解・院内寛解[#All],MATCH($AI57,阻害要因×在院期間区分＿寛解・院内寛解[[#All],[値]],0),MATCH($AO$4,阻害要因×在院期間区分＿寛解・院内寛解[#Headers],0)),0)+IFERROR(INDEX(阻害要因×在院期間区分＿寛解・院内寛解[#All],MATCH($AI57,阻害要因×在院期間区分＿寛解・院内寛解[[#All],[値]],0),MATCH($AP$4,阻害要因×在院期間区分＿寛解・院内寛解[#Headers],0)),0)+IFERROR(INDEX(阻害要因×在院期間区分＿寛解・院内寛解[#All],MATCH($AI57,阻害要因×在院期間区分＿寛解・院内寛解[[#All],[値]],0),MATCH($AQ$4,阻害要因×在院期間区分＿寛解・院内寛解[#Headers],0)),0)+IFERROR(INDEX(阻害要因×在院期間区分＿寛解・院内寛解[#All],MATCH($AI57,阻害要因×在院期間区分＿寛解・院内寛解[[#All],[値]],0),MATCH($AR$4,阻害要因×在院期間区分＿寛解・院内寛解[#Headers],0)),0) -> 24 | F56: 0.1263157895 | G56: =IFERROR(INDEX(阻害要因×在院期間区分＿寛解・院内寛解[#All],MATCH($AI57,阻害要因×在院期間区分＿寛解・院内寛解[[#All],[値]],0),MATCH($AS$4,阻害要因×在院期間区分＿寛解・院内寛解[#Headers],0)),0)+IFERROR(INDEX(阻害要因×在院期間区分＿寛解・院内寛解[#All],MATCH($AI57,阻害要因×在院期間区分＿寛解・院内寛解[[#All],[値]],0),MATCH($AT$4,阻害要因×在院期間区分＿寛解・院内寛解[#Headers],0)),0)+IFERROR(INDEX(阻害要因×在院期間区分＿寛解・院内寛解[#All],MATCH($AI57,阻害要因×在院期間区分＿寛解・院内寛解[[#All],[値]],0),MATCH($AU$4,阻害要因×在院期間区分＿寛解・院内寛解[#Headers],0)),0)+IFERROR(INDEX(阻害要因×在院期間区分＿寛解・院内寛解[#All],MATCH($AI57,阻害要因×在院期間区分＿寛解・院内寛解[[#All],[値]],0),MATCH($AV$4,阻害要因×在院期間区分＿寛解・院内寛解[#Headers],0)),0)+IFERROR(INDEX(阻害要因×在院期間区分＿寛解・院内寛解[#All],MATCH($AI57,阻害要因×在院期間区分＿寛解・院内寛解[[#All],[値]],0),MATCH($AW$4,阻害要因×在院期間区分＿寛解・院内寛解[#Headers],0)),0) -> 13 | H56: 0.2 | I56: =IFERROR(INDEX(阻害要因×在院期間区分＿寛解・院内寛解[#All],MATCH($AI57,阻害要因×在院期間区分＿寛解・院内寛解[[#All],[値]],0),MATCH($AX$4,阻害要因×在院期間区分＿寛解・院内寛解[#Headers],0)),0)+IFERROR(INDEX(阻害要因×在院期間区分＿寛解・院内寛解[#All],MATCH($AI57,阻害要因×在院期間区分＿寛解・院内寛解[[#All],[値]],0),MATCH($AY$4,阻害要因×在院期間区分＿寛解・院内寛解[#Headers],0)),0) -> 15 | J56: 0.1923076923 | K56: 90 | L56: 合計 / 家族がいない、本人をサポートする機能が実質ない | M56: 6 | N56: 12 | O56: 10 | P56: 10 | Q56: 8 | R56: 3 | S56: 5 | T56: 5 | U56: 3 | V56: 4 | W56: 1 | X56: 4 | Y56: 3 | Z56: 1 | AA56: 5 | AB56: 10 | AI56: 合計 / 家事（食事,洗濯,金銭管理など）ができない
B57: 家族が退院に反対している | C57: =IFERROR(INDEX(阻害要因×在院期間区分＿寛解・院内寛解[#All],MATCH($AI58,阻害要因×在院期間区分＿寛解・院内寛解[[#All],[値]],0),MATCH($AJ$4,阻害要因×在院期間区分＿寛解・院内寛解[#Headers],0)),0)+IFERROR(INDEX(阻害要因×在院期間区分＿寛解・院内寛解[#All],MATCH($AI58,阻害要因×在院期間区分＿寛解・院内寛解[[#All],[値]],0),MATCH($AK$4,阻害要因×在院期間区分＿寛解・院内寛解[#Headers],0)),0)+IFERROR(INDEX(阻害要因×在院期間区分＿寛解・院内寛解[#All],MATCH($AI58,阻害要因×在院期間区分＿寛解・院内寛解[[#All],[値]],0),MATCH($AL$4,阻害要因×在院期間区分＿寛解・院内寛解[#Headers],0)),0)+IFERROR(INDEX(阻害要因×在院期間区分＿寛解・院内寛解[#All],MATCH($AI58,阻害要因×在院期間区分＿寛解・院内寛解[[#All],[値]],0),MATCH($AM$4,阻害要因×在院期間区分＿寛解・院内寛解[#Headers],0)),0) -> 41 | D57: 0.1806167401 | E57: =IFERROR(INDEX(阻害要因×在院期間区分＿寛解・院内寛解[#All],MATCH($AI58,阻害要因×在院期間区分＿寛解・院内寛解[[#All],[値]],0),MATCH($AN$4,阻害要因×在院期間区分＿寛解・院内寛解[#Headers],0)),0)+IFERROR(INDEX(阻害要因×在院期間区分＿寛解・院内寛解[#All],MATCH($AI58,阻害要因×在院期間区分＿寛解・院内寛解[[#All],[値]],0),MATCH($AO$4,阻害要因×在院期間区分＿寛解・院内寛解[#Headers],0)),0)+IFERROR(INDEX(阻害要因×在院期間区分＿寛解・院内寛解[#All],MATCH($AI58,阻害要因×在院期間区分＿寛解・院内寛解[[#All],[値]],0),MATCH($AP$4,阻害要因×在院期間区分＿寛解・院内寛解[#Headers],0)),0)+IFERROR(INDEX(阻害要因×在院期間区分＿寛解・院内寛解[#All],MATCH($AI58,阻害要因×在院期間区分＿寛解・院内寛解[[#All],[値]],0),MATCH($AQ$4,阻害要因×在院期間区分＿寛解・院内寛解[#Headers],0)),0)+IFERROR(INDEX(阻害要因×在院期間区分＿寛解・院内寛解[#All],MATCH($AI58,阻害要因×在院期間区分＿寛解・院内寛解[[#All],[値]],0),MATCH($AR$4,阻害要因×在院期間区分＿寛解・院内寛解[#Headers],0)),0) -> 44 | F57: 0.2315789474 | G57: =IFERROR(INDEX(阻害要因×在院期間区分＿寛解・院内寛解[#All],MATCH($AI58,阻害要因×在院期間区分＿寛解・院内寛解[[#All],[値]],0),MATCH($AS$4,阻害要因×在院期間区分＿寛解・院内寛解[#Headers],0)),0)+IFERROR(INDEX(阻害要因×在院期間区分＿寛解・院内寛解[#All],MATCH($AI58,阻害要因×在院期間区分＿寛解・院内寛解[[#All],[値]],0),MATCH($AT$4,阻害要因×在院期間区分＿寛解・院内寛解[#Headers],0)),0)+IFERROR(INDEX(阻害要因×在院期間区分＿寛解・院内寛解[#All],MATCH($AI58,阻害要因×在院期間区分＿寛解・院内寛解[[#All],[値]],0),MATCH($AU$4,阻害要因×在院期間区分＿寛解・院内寛解[#Headers],0)),0)+IFERROR(INDEX(阻害要因×在院期間区分＿寛解・院内寛解[#All],MATCH($AI58,阻害要因×在院期間区分＿寛解・院内寛解[[#All],[値]],0),MATCH($AV$4,阻害要因×在院期間区分＿寛解・院内寛解[#Headers],0)),0)+IFERROR(INDEX(阻害要因×在院期間区分＿寛解・院内寛解[#All],MATCH($AI58,阻害要因×在院期間区分＿寛解・院内寛解[[#All],[値]],0),MATCH($AW$4,阻害要因×在院期間区分＿寛解・院内寛解[#Headers],0)),0) -> 18 | H57: 0.2769230769 | I57: =IFERROR(INDEX(阻害要因×在院期間区分＿寛解・院内寛解[#All],MATCH($AI58,阻害要因×在院期間区分＿寛解・院内寛解[[#All],[値]],0),MATCH($AX$4,阻害要因×在院期間区分＿寛解・院内寛解[#Headers],0)),0)+IFERROR(INDEX(阻害要因×在院期間区分＿寛解・院内寛解[#All],MATCH($AI58,阻害要因×在院期間区分＿寛解・院内寛解[[#All],[値]],0),MATCH($AY$4,阻害要因×在院期間区分＿寛解・院内寛解[#Headers],0)),0) -> 17 | J57: 0.2179487179 | K57: 120 | L57: 合計 / 家族から退院に反対がある | M57: 7 | N57: 6 | O57: 13 | P57: 15 | Q57: 11 | R57: 3 | S57: 8 | T57: 12 | U57: 10 | V57: 3 | W57: 7 | X57: 2 | Y57: 4 | Z57: 2 | AA57: 11 | AB57: 6 | AI57: 合計 / 家族がいない、本人をサポートする機能が実質ない
B58: 住まいの確保ができない | C58: =IFERROR(INDEX(阻害要因×在院期間区分＿寛解・院内寛解[#All],MATCH($AI59,阻害要因×在院期間区分＿寛解・院内寛解[[#All],[値]],0),MATCH($AJ$4,阻害要因×在院期間区分＿寛解・院内寛解[#Headers],0)),0)+IFERROR(INDEX(阻害要因×在院期間区分＿寛解・院内寛解[#All],MATCH($AI59,阻害要因×在院期間区分＿寛解・院内寛解[[#All],[値]],0),MATCH($AK$4,阻害要因×在院期間区分＿寛解・院内寛解[#Headers],0)),0)+IFERROR(INDEX(阻害要因×在院期間区分＿寛解・院内寛解[#All],MATCH($AI59,阻害要因×在院期間区分＿寛解・院内寛解[[#All],[値]],0),MATCH($AL$4,阻害要因×在院期間区分＿寛解・院内寛解[#Headers],0)),0)+IFERROR(INDEX(阻害要因×在院期間区分＿寛解・院内寛解[#All],MATCH($AI59,阻害要因×在院期間区分＿寛解・院内寛解[[#All],[値]],0),MATCH($AM$4,阻害要因×在院期間区分＿寛解・院内寛解[#Headers],0)),0) -> 91 | D58: 0.4008810573 | E58: =IFERROR(INDEX(阻害要因×在院期間区分＿寛解・院内寛解[#All],MATCH($AI59,阻害要因×在院期間区分＿寛解・院内寛解[[#All],[値]],0),MATCH($AN$4,阻害要因×在院期間区分＿寛解・院内寛解[#Headers],0)),0)+IFERROR(INDEX(阻害要因×在院期間区分＿寛解・院内寛解[#All],MATCH($AI59,阻害要因×在院期間区分＿寛解・院内寛解[[#All],[値]],0),MATCH($AO$4,阻害要因×在院期間区分＿寛解・院内寛解[#Headers],0)),0)+IFERROR(INDEX(阻害要因×在院期間区分＿寛解・院内寛解[#All],MATCH($AI59,阻害要因×在院期間区分＿寛解・院内寛解[[#All],[値]],0),MATCH($AP$4,阻害要因×在院期間区分＿寛解・院内寛解[#Headers],0)),0)+IFERROR(INDEX(阻害要因×在院期間区分＿寛解・院内寛解[#All],MATCH($AI59,阻害要因×在院期間区分＿寛解・院内寛解[[#All],[値]],0),MATCH($AQ$4,阻害要因×在院期間区分＿寛解・院内寛解[#Headers],0)),0)+IFERROR(INDEX(阻害要因×在院期間区分＿寛解・院内寛解[#All],MATCH($AI59,阻害要因×在院期間区分＿寛解・院内寛解[[#All],[値]],0),MATCH($AR$4,阻害要因×在院期間区分＿寛解・院内寛解[#Headers],0)),0) -> 57 | F58: 0.3 | G58: =IFERROR(INDEX(阻害要因×在院期間区分＿寛解・院内寛解[#All],MATCH($AI59,阻害要因×在院期間区分＿寛解・院内寛解[[#All],[値]],0),MATCH($AS$4,阻害要因×在院期間区分＿寛解・院内寛解[#Headers],0)),0)+IFERROR(INDEX(阻害要因×在院期間区分＿寛解・院内寛解[#All],MATCH($AI59,阻害要因×在院期間区分＿寛解・院内寛解[[#All],[値]],0),MATCH($AT$4,阻害要因×在院期間区分＿寛解・院内寛解[#Headers],0)),0)+IFERROR(INDEX(阻害要因×在院期間区分＿寛解・院内寛解[#All],MATCH($AI59,阻害要因×在院期間区分＿寛解・院内寛解[[#All],[値]],0),MATCH($AU$4,阻害要因×在院期間区分＿寛解・院内寛解[#Headers],0)),0)+IFERROR(INDEX(阻害要因×在院期間区分＿寛解・院内寛解[#All],MATCH($AI59,阻害要因×在院期間区分＿寛解・院内寛解[[#All],[値]],0),MATCH($AV$4,阻害要因×在院期間区分＿寛解・院内寛解[#Headers],0)),0)+IFERROR(INDEX(阻害要因×在院期間区分＿寛解・院内寛解[#All],MATCH($AI59,阻害要因×在院期間区分＿寛解・院内寛解[[#All],[値]],0),MATCH($AW$4,阻害要因×在院期間区分＿寛解・院内寛解[#Headers],0)),0) -> 20 | H58: 0.3076923077 | I58: =IFERROR(INDEX(阻害要因×在院期間区分＿寛解・院内寛解[#All],MATCH($AI59,阻害要因×在院期間区分＿寛解・院内寛解[[#All],[値]],0),MATCH($AX$4,阻害要因×在院期間区分＿寛解・院内寛解[#Headers],0)),0)+IFERROR(INDEX(阻害要因×在院期間区分＿寛解・院内寛解[#All],MATCH($AI59,阻害要因×在院期間区分＿寛解・院内寛解[[#All],[値]],0),MATCH($AY$4,阻害要因×在院期間区分＿寛解・院内寛解[#Headers],0)),0) -> 15 | J58: 0.1923076923 | K58: 183 | L58: 合計 / 住まいの確保ができない | M58: 13 | N58: 27 | O58: 28 | P58: 23 | Q58: 15 | R58: 7 | S58: 13 | T58: 13 | U58: 9 | V58: 3 | W58: 3 | X58: 8 | Y58: 1 | Z58: 5 | AA58: 7 | AB58: 8 | AI58: 合計 / 家族から退院に反対がある
B59: 生活費の確保ができない | C59: =IFERROR(INDEX(阻害要因×在院期間区分＿寛解・院内寛解[#All],MATCH($AI60,阻害要因×在院期間区分＿寛解・院内寛解[[#All],[値]],0),MATCH($AJ$4,阻害要因×在院期間区分＿寛解・院内寛解[#Headers],0)),0)+IFERROR(INDEX(阻害要因×在院期間区分＿寛解・院内寛解[#All],MATCH($AI60,阻害要因×在院期間区分＿寛解・院内寛解[[#All],[値]],0),MATCH($AK$4,阻害要因×在院期間区分＿寛解・院内寛解[#Headers],0)),0)+IFERROR(INDEX(阻害要因×在院期間区分＿寛解・院内寛解[#All],MATCH($AI60,阻害要因×在院期間区分＿寛解・院内寛解[[#All],[値]],0),MATCH($AL$4,阻害要因×在院期間区分＿寛解・院内寛解[#Headers],0)),0)+IFERROR(INDEX(阻害要因×在院期間区分＿寛解・院内寛解[#All],MATCH($AI60,阻害要因×在院期間区分＿寛解・院内寛解[[#All],[値]],0),MATCH($AM$4,阻害要因×在院期間区分＿寛解・院内寛解[#Headers],0)),0) -> 15 | D59: 0.06607929515 | E59: =IFERROR(INDEX(阻害要因×在院期間区分＿寛解・院内寛解[#All],MATCH($AI60,阻害要因×在院期間区分＿寛解・院内寛解[[#All],[値]],0),MATCH($AN$4,阻害要因×在院期間区分＿寛解・院内寛解[#Headers],0)),0)+IFERROR(INDEX(阻害要因×在院期間区分＿寛解・院内寛解[#All],MATCH($AI60,阻害要因×在院期間区分＿寛解・院内寛解[[#All],[値]],0),MATCH($AO$4,阻害要因×在院期間区分＿寛解・院内寛解[#Headers],0)),0)+IFERROR(INDEX(阻害要因×在院期間区分＿寛解・院内寛解[#All],MATCH($AI60,阻害要因×在院期間区分＿寛解・院内寛解[[#All],[値]],0),MATCH($AP$4,阻害要因×在院期間区分＿寛解・院内寛解[#Headers],0)),0)+IFERROR(INDEX(阻害要因×在院期間区分＿寛解・院内寛解[#All],MATCH($AI60,阻害要因×在院期間区分＿寛解・院内寛解[[#All],[値]],0),MATCH($AQ$4,阻害要因×在院期間区分＿寛解・院内寛解[#Headers],0)),0)+IFERROR(INDEX(阻害要因×在院期間区分＿寛解・院内寛解[#All],MATCH($AI60,阻害要因×在院期間区分＿寛解・院内寛解[[#All],[値]],0),MATCH($AR$4,阻害要因×在院期間区分＿寛解・院内寛解[#Headers],0)),0) -> 8 | F59: 0.04210526316 | G59: =IFERROR(INDEX(阻害要因×在院期間区分＿寛解・院内寛解[#All],MATCH($AI60,阻害要因×在院期間区分＿寛解・院内寛解[[#All],[値]],0),MATCH($AS$4,阻害要因×在院期間区分＿寛解・院内寛解[#Headers],0)),0)+IFERROR(INDEX(阻害要因×在院期間区分＿寛解・院内寛解[#All],MATCH($AI60,阻害要因×在院期間区分＿寛解・院内寛解[[#All],[値]],0),MATCH($AT$4,阻害要因×在院期間区分＿寛解・院内寛解[#Headers],0)),0)+IFERROR(INDEX(阻害要因×在院期間区分＿寛解・院内寛解[#All],MATCH($AI60,阻害要因×在院期間区分＿寛解・院内寛解[[#All],[値]],0),MATCH($AU$4,阻害要因×在院期間区分＿寛解・院内寛解[#Headers],0)),0)+IFERROR(INDEX(阻害要因×在院期間区分＿寛解・院内寛解[#All],MATCH($AI60,阻害要因×在院期間区分＿寛解・院内寛解[[#All],[値]],0),MATCH($AV$4,阻害要因×在院期間区分＿寛解・院内寛解[#Headers],0)),0)+IFERROR(INDEX(阻害要因×在院期間区分＿寛解・院内寛解[#All],MATCH($AI60,阻害要因×在院期間区分＿寛解・院内寛解[[#All],[値]],0),MATCH($AW$4,阻害要因×在院期間区分＿寛解・院内寛解[#Headers],0)),0) -> 7 | H59: 0.1076923077 | I59: =IFERROR(INDEX(阻害要因×在院期間区分＿寛解・院内寛解[#All],MATCH($AI60,阻害要因×在院期間区分＿寛解・院内寛解[[#All],[値]],0),MATCH($AX$4,阻害要因×在院期間区分＿寛解・院内寛解[#Headers],0)),0)+IFERROR(INDEX(阻害要因×在院期間区分＿寛解・院内寛解[#All],MATCH($AI60,阻害要因×在院期間区分＿寛解・院内寛解[[#All],[値]],0),MATCH($AY$4,阻害要因×在院期間区分＿寛解・院内寛解[#Headers],0)),0) -> 3 | J59: 0.03846153846 | K59: 33 | L59: 合計 / 生活費の確保ができない | M59: 1 | N59: 5 | O59: 3 | P59: 6 | Q59: 4 | R59: 0 | S59: 2 | T59: 2 | U59: 0 | V59: 1 | W59: 0 | X59: 3 | Y59: 2 | Z59: 1 | AA59: 1 | AB59: 2 | AI59: 合計 / 住まいの確保ができない
B60: 日常生活を支える制度がない | C60: =IFERROR(INDEX(阻害要因×在院期間区分＿寛解・院内寛解[#All],MATCH($AI61,阻害要因×在院期間区分＿寛解・院内寛解[[#All],[値]],0),MATCH($AJ$4,阻害要因×在院期間区分＿寛解・院内寛解[#Headers],0)),0)+IFERROR(INDEX(阻害要因×在院期間区分＿寛解・院内寛解[#All],MATCH($AI61,阻害要因×在院期間区分＿寛解・院内寛解[[#All],[値]],0),MATCH($AK$4,阻害要因×在院期間区分＿寛解・院内寛解[#Headers],0)),0)+IFERROR(INDEX(阻害要因×在院期間区分＿寛解・院内寛解[#All],MATCH($AI61,阻害要因×在院期間区分＿寛解・院内寛解[[#All],[値]],0),MATCH($AL$4,阻害要因×在院期間区分＿寛解・院内寛解[#Headers],0)),0)+IFERROR(INDEX(阻害要因×在院期間区分＿寛解・院内寛解[#All],MATCH($AI61,阻害要因×在院期間区分＿寛解・院内寛解[[#All],[値]],0),MATCH($AM$4,阻害要因×在院期間区分＿寛解・院内寛解[#Headers],0)),0) -> 10 | D60: 0.04405286344 | E60: =IFERROR(INDEX(阻害要因×在院期間区分＿寛解・院内寛解[#All],MATCH($AI61,阻害要因×在院期間区分＿寛解・院内寛解[[#All],[値]],0),MATCH($AN$4,阻害要因×在院期間区分＿寛解・院内寛解[#Headers],0)),0)+IFERROR(INDEX(阻害要因×在院期間区分＿寛解・院内寛解[#All],MATCH($AI61,阻害要因×在院期間区分＿寛解・院内寛解[[#All],[値]],0),MATCH($AO$4,阻害要因×在院期間区分＿寛解・院内寛解[#Headers],0)),0)+IFERROR(INDEX(阻害要因×在院期間区分＿寛解・院内寛解[#All],MATCH($AI61,阻害要因×在院期間区分＿寛解・院内寛解[[#All],[値]],0),MATCH($AP$4,阻害要因×在院期間区分＿寛解・院内寛解[#Headers],0)),0)+IFERROR(INDEX(阻害要因×在院期間区分＿寛解・院内寛解[#All],MATCH($AI61,阻害要因×在院期間区分＿寛解・院内寛解[[#All],[値]],0),MATCH($AQ$4,阻害要因×在院期間区分＿寛解・院内寛解[#Headers],0)),0)+IFERROR(INDEX(阻害要因×在院期間区分＿寛解・院内寛解[#All],MATCH($AI61,阻害要因×在院期間区分＿寛解・院内寛解[[#All],[値]],0),MATCH($AR$4,阻害要因×在院期間区分＿寛解・院内寛解[#Headers],0)),0) -> 6 | F60: 0.03157894737 | G60: =IFERROR(INDEX(阻害要因×在院期間区分＿寛解・院内寛解[#All],MATCH($AI61,阻害要因×在院期間区分＿寛解・院内寛解[[#All],[値]],0),MATCH($AS$4,阻害要因×在院期間区分＿寛解・院内寛解[#Headers],0)),0)+IFERROR(INDEX(阻害要因×在院期間区分＿寛解・院内寛解[#All],MATCH($AI61,阻害要因×在院期間区分＿寛解・院内寛解[[#All],[値]],0),MATCH($AT$4,阻害要因×在院期間区分＿寛解・院内寛解[#Headers],0)),0)+IFERROR(INDEX(阻害要因×在院期間区分＿寛解・院内寛解[#All],MATCH($AI61,阻害要因×在院期間区分＿寛解・院内寛解[[#All],[値]],0),MATCH($AU$4,阻害要因×在院期間区分＿寛解・院内寛解[#Headers],0)),0)+IFERROR(INDEX(阻害要因×在院期間区分＿寛解・院内寛解[#All],MATCH($AI61,阻害要因×在院期間区分＿寛解・院内寛解[[#All],[値]],0),MATCH($AV$4,阻害要因×在院期間区分＿寛解・院内寛解[#Headers],0)),0)+IFERROR(INDEX(阻害要因×在院期間区分＿寛解・院内寛解[#All],MATCH($AI61,阻害要因×在院期間区分＿寛解・院内寛解[[#All],[値]],0),MATCH($AW$4,阻害要因×在院期間区分＿寛解・院内寛解[#Headers],0)),0) -> 6 | H60: 0.09230769231 | I60: =IFERROR(INDEX(阻害要因×在院期間区分＿寛解・院内寛解[#All],MATCH($AI61,阻害要因×在院期間区分＿寛解・院内寛解[[#All],[値]],0),MATCH($AX$4,阻害要因×在院期間区分＿寛解・院内寛解[#Headers],0)),0)+IFERROR(INDEX(阻害要因×在院期間区分＿寛解・院内寛解[#All],MATCH($AI61,阻害要因×在院期間区分＿寛解・院内寛解[[#All],[値]],0),MATCH($AY$4,阻害要因×在院期間区分＿寛解・院内寛解[#Headers],0)),0) -> 2 | J60: 0.02564102564 | K60: 24 | L60: 合計 / 日常生活を支える制度がない | M60: 2 | N60: 3 | O60: 3 | P60: 2 | Q60: 1 | R60: 1 | S60: 1 | T60: 2 | U60: 1 | V60: 1 | W60: 1 | X60: 2 | Y60: 2 | Z60: 0 | AA60: 1 | AB60: 1 | AI60: 合計 / 生活費の確保ができない
B61: 救急診療体制がない | C61: =IFERROR(INDEX(阻害要因×在院期間区分＿寛解・院内寛解[#All],MATCH($AI62,阻害要因×在院期間区分＿寛解・院内寛解[[#All],[値]],0),MATCH($AJ$4,阻害要因×在院期間区分＿寛解・院内寛解[#Headers],0)),0)+IFERROR(INDEX(阻害要因×在院期間区分＿寛解・院内寛解[#All],MATCH($AI62,阻害要因×在院期間区分＿寛解・院内寛解[[#All],[値]],0),MATCH($AK$4,阻害要因×在院期間区分＿寛解・院内寛解[#Headers],0)),0)+IFERROR(INDEX(阻害要因×在院期間区分＿寛解・院内寛解[#All],MATCH($AI62,阻害要因×在院期間区分＿寛解・院内寛解[[#All],[値]],0),MATCH($AL$4,阻害要因×在院期間区分＿寛解・院内寛解[#Headers],0)),0)+IFERROR(INDEX(阻害要因×在院期間区分＿寛解・院内寛解[#All],MATCH($AI62,阻害要因×在院期間区分＿寛解・院内寛解[[#All],[値]],0),MATCH($AM$4,阻害要因×在院期間区分＿寛解・院内寛解[#Headers],0)),0) -> 0 | D61: 0 | E61: =IFERROR(INDEX(阻害要因×在院期間区分＿寛解・院内寛解[#All],MATCH($AI62,阻害要因×在院期間区分＿寛解・院内寛解[[#All],[値]],0),MATCH($AN$4,阻害要因×在院期間区分＿寛解・院内寛解[#Headers],0)),0)+IFERROR(INDEX(阻害要因×在院期間区分＿寛解・院内寛解[#All],MATCH($AI62,阻害要因×在院期間区分＿寛解・院内寛解[[#All],[値]],0),MATCH($AO$4,阻害要因×在院期間区分＿寛解・院内寛解[#Headers],0)),0)+IFERROR(INDEX(阻害要因×在院期間区分＿寛解・院内寛解[#All],MATCH($AI62,阻害要因×在院期間区分＿寛解・院内寛解[[#All],[値]],0),MATCH($AP$4,阻害要因×在院期間区分＿寛解・院内寛解[#Headers],0)),0)+IFERROR(INDEX(阻害要因×在院期間区分＿寛解・院内寛解[#All],MATCH($AI62,阻害要因×在院期間区分＿寛解・院内寛解[[#All],[値]],0),MATCH($AQ$4,阻害要因×在院期間区分＿寛解・院内寛解[#Headers],0)),0)+IFERROR(INDEX(阻害要因×在院期間区分＿寛解・院内寛解[#All],MATCH($AI62,阻害要因×在院期間区分＿寛解・院内寛解[[#All],[値]],0),MATCH($AR$4,阻害要因×在院期間区分＿寛解・院内寛解[#Headers],0)),0) -> 1 | F61: 0.005263157895 | G61: =IFERROR(INDEX(阻害要因×在院期間区分＿寛解・院内寛解[#All],MATCH($AI62,阻害要因×在院期間区分＿寛解・院内寛解[[#All],[値]],0),MATCH($AS$4,阻害要因×在院期間区分＿寛解・院内寛解[#Headers],0)),0)+IFERROR(INDEX(阻害要因×在院期間区分＿寛解・院内寛解[#All],MATCH($AI62,阻害要因×在院期間区分＿寛解・院内寛解[[#All],[値]],0),MATCH($AT$4,阻害要因×在院期間区分＿寛解・院内寛解[#Headers],0)),0)+IFERROR(INDEX(阻害要因×在院期間区分＿寛解・院内寛解[#All],MATCH($AI62,阻害要因×在院期間区分＿寛解・院内寛解[[#All],[値]],0),MATCH($AU$4,阻害要因×在院期間区分＿寛解・院内寛解[#Headers],0)),0)+IFERROR(INDEX(阻害要因×在院期間区分＿寛解・院内寛解[#All],MATCH($AI62,阻害要因×在院期間区分＿寛解・院内寛解[[#All],[値]],0),MATCH($AV$4,阻害要因×在院期間区分＿寛解・院内寛解[#Headers],0)),0)+IFERROR(INDEX(阻害要因×在院期間区分＿寛解・院内寛解[#All],MATCH($AI62,阻害要因×在院期間区分＿寛解・院内寛解[[#All],[値]],0),MATCH($AW$4,阻害要因×在院期間区分＿寛解・院内寛解[#Headers],0)),0) -> 0 | H61: 0 | I61: =IFERROR(INDEX(阻害要因×在院期間区分＿寛解・院内寛解[#All],MATCH($AI62,阻害要因×在院期間区分＿寛解・院内寛解[[#All],[値]],0),MATCH($AX$4,阻害要因×在院期間区分＿寛解・院内寛解[#Headers],0)),0)+IFERROR(INDEX(阻害要因×在院期間区分＿寛解・院内寛解[#All],MATCH($AI62,阻害要因×在院期間区分＿寛解・院内寛解[[#All],[値]],0),MATCH($AY$4,阻害要因×在院期間区分＿寛解・院内寛解[#Headers],0)),0) -> 0 | J61: 0 | K61: 1 | L61: 合計 / 救急診療体制がない | M61: 0 | N61: 0 | O61: 0 | P61: 0 | Q61: 0 | R61: 0 | S61: 1 | T61: 0 | U61: 0 | V61: 0 | W61: 0 | X61: 0 | Y61: 0 | Z61: 0 | AA61: 0 | AB61: 0 | AI61: 合計 / 日常生活を支える制度がない
B62: 退院に向けてサポートする人的資源が乏しい | C62: =IFERROR(INDEX(阻害要因×在院期間区分＿寛解・院内寛解[#All],MATCH($AI63,阻害要因×在院期間区分＿寛解・院内寛解[[#All],[値]],0),MATCH($AJ$4,阻害要因×在院期間区分＿寛解・院内寛解[#Headers],0)),0)+IFERROR(INDEX(阻害要因×在院期間区分＿寛解・院内寛解[#All],MATCH($AI63,阻害要因×在院期間区分＿寛解・院内寛解[[#All],[値]],0),MATCH($AK$4,阻害要因×在院期間区分＿寛解・院内寛解[#Headers],0)),0)+IFERROR(INDEX(阻害要因×在院期間区分＿寛解・院内寛解[#All],MATCH($AI63,阻害要因×在院期間区分＿寛解・院内寛解[[#All],[値]],0),MATCH($AL$4,阻害要因×在院期間区分＿寛解・院内寛解[#Headers],0)),0)+IFERROR(INDEX(阻害要因×在院期間区分＿寛解・院内寛解[#All],MATCH($AI63,阻害要因×在院期間区分＿寛解・院内寛解[[#All],[値]],0),MATCH($AM$4,阻害要因×在院期間区分＿寛解・院内寛解[#Headers],0)),0) -> 17 | D62: 0.07488986784 | E62: =IFERROR(INDEX(阻害要因×在院期間区分＿寛解・院内寛解[#All],MATCH($AI63,阻害要因×在院期間区分＿寛解・院内寛解[[#All],[値]],0),MATCH($AN$4,阻害要因×在院期間区分＿寛解・院内寛解[#Headers],0)),0)+IFERROR(INDEX(阻害要因×在院期間区分＿寛解・院内寛解[#All],MATCH($AI63,阻害要因×在院期間区分＿寛解・院内寛解[[#All],[値]],0),MATCH($AO$4,阻害要因×在院期間区分＿寛解・院内寛解[#Headers],0)),0)+IFERROR(INDEX(阻害要因×在院期間区分＿寛解・院内寛解[#All],MATCH($AI63,阻害要因×在院期間区分＿寛解・院内寛解[[#All],[値]],0),MATCH($AP$4,阻害要因×在院期間区分＿寛解・院内寛解[#Headers],0)),0)+IFERROR(INDEX(阻害要因×在院期間区分＿寛解・院内寛解[#All],MATCH($AI63,阻害要因×在院期間区分＿寛解・院内寛解[[#All],[値]],0),MATCH($AQ$4,阻害要因×在院期間区分＿寛解・院内寛解[#Headers],0)),0)+IFERROR(INDEX(阻害要因×在院期間区分＿寛解・院内寛解[#All],MATCH($AI63,阻害要因×在院期間区分＿寛解・院内寛解[[#All],[値]],0),MATCH($AR$4,阻害要因×在院期間区分＿寛解・院内寛解[#Headers],0)),0) -> 16 | F62: 0.08421052632 | G62: =IFERROR(INDEX(阻害要因×在院期間区分＿寛解・院内寛解[#All],MATCH($AI63,阻害要因×在院期間区分＿寛解・院内寛解[[#All],[値]],0),MATCH($AS$4,阻害要因×在院期間区分＿寛解・院内寛解[#Headers],0)),0)+IFERROR(INDEX(阻害要因×在院期間区分＿寛解・院内寛解[#All],MATCH($AI63,阻害要因×在院期間区分＿寛解・院内寛解[[#All],[値]],0),MATCH($AT$4,阻害要因×在院期間区分＿寛解・院内寛解[#Headers],0)),0)+IFERROR(INDEX(阻害要因×在院期間区分＿寛解・院内寛解[#All],MATCH($AI63,阻害要因×在院期間区分＿寛解・院内寛解[[#All],[値]],0),MATCH($AU$4,阻害要因×在院期間区分＿寛解・院内寛解[#Headers],0)),0)+IFERROR(INDEX(阻害要因×在院期間区分＿寛解・院内寛解[#All],MATCH($AI63,阻害要因×在院期間区分＿寛解・院内寛解[[#All],[値]],0),MATCH($AV$4,阻害要因×在院期間区分＿寛解・院内寛解[#Headers],0)),0)+IFERROR(INDEX(阻害要因×在院期間区分＿寛解・院内寛解[#All],MATCH($AI63,阻害要因×在院期間区分＿寛解・院内寛解[[#All],[値]],0),MATCH($AW$4,阻害要因×在院期間区分＿寛解・院内寛解[#Headers],0)),0) -> 6 | H62: 0.09230769231 | I62: =IFERROR(INDEX(阻害要因×在院期間区分＿寛解・院内寛解[#All],MATCH($AI63,阻害要因×在院期間区分＿寛解・院内寛解[[#All],[値]],0),MATCH($AX$4,阻害要因×在院期間区分＿寛解・院内寛解[#Headers],0)),0)+IFERROR(INDEX(阻害要因×在院期間区分＿寛解・院内寛解[#All],MATCH($AI63,阻害要因×在院期間区分＿寛解・院内寛解[[#All],[値]],0),MATCH($AY$4,阻害要因×在院期間区分＿寛解・院内寛解[#Headers],0)),0) -> 7 | J62: 0.08974358974 | K62: 46 | L62: 合計 / 退院に向けてサポートする人的資源が乏しい | M62: 5 | N62: 7 | O62: 1 | P62: 4 | Q62: 2 | R62: 4 | S62: 4 | T62: 3 | U62: 3 | V62: 1 | W62: 1 | X62: 3 | Y62: 0 | Z62: 1 | AA62: 6 | AB62: 1 | AI62: 合計 / 救急診療体制がない
B63: 退院後サポート・マネジメントする人的資源が乏しい | C63: =IFERROR(INDEX(阻害要因×在院期間区分＿寛解・院内寛解[#All],MATCH($AI64,阻害要因×在院期間区分＿寛解・院内寛解[[#All],[値]],0),MATCH($AJ$4,阻害要因×在院期間区分＿寛解・院内寛解[#Headers],0)),0)+IFERROR(INDEX(阻害要因×在院期間区分＿寛解・院内寛解[#All],MATCH($AI64,阻害要因×在院期間区分＿寛解・院内寛解[[#All],[値]],0),MATCH($AK$4,阻害要因×在院期間区分＿寛解・院内寛解[#Headers],0)),0)+IFERROR(INDEX(阻害要因×在院期間区分＿寛解・院内寛解[#All],MATCH($AI64,阻害要因×在院期間区分＿寛解・院内寛解[[#All],[値]],0),MATCH($AL$4,阻害要因×在院期間区分＿寛解・院内寛解[#Headers],0)),0)+IFERROR(INDEX(阻害要因×在院期間区分＿寛解・院内寛解[#All],MATCH($AI64,阻害要因×在院期間区分＿寛解・院内寛解[[#All],[値]],0),MATCH($AM$4,阻害要因×在院期間区分＿寛解・院内寛解[#Headers],0)),0) -> 17 | D63: 0.07488986784 | E63: =IFERROR(INDEX(阻害要因×在院期間区分＿寛解・院内寛解[#All],MATCH($AI64,阻害要因×在院期間区分＿寛解・院内寛解[[#All],[値]],0),MATCH($AN$4,阻害要因×在院期間区分＿寛解・院内寛解[#Headers],0)),0)+IFERROR(INDEX(阻害要因×在院期間区分＿寛解・院内寛解[#All],MATCH($AI64,阻害要因×在院期間区分＿寛解・院内寛解[[#All],[値]],0),MATCH($AO$4,阻害要因×在院期間区分＿寛解・院内寛解[#Headers],0)),0)+IFERROR(INDEX(阻害要因×在院期間区分＿寛解・院内寛解[#All],MATCH($AI64,阻害要因×在院期間区分＿寛解・院内寛解[[#All],[値]],0),MATCH($AP$4,阻害要因×在院期間区分＿寛解・院内寛解[#Headers],0)),0)+IFERROR(INDEX(阻害要因×在院期間区分＿寛解・院内寛解[#All],MATCH($AI64,阻害要因×在院期間区分＿寛解・院内寛解[[#All],[値]],0),MATCH($AQ$4,阻害要因×在院期間区分＿寛解・院内寛解[#Headers],0)),0)+IFERROR(INDEX(阻害要因×在院期間区分＿寛解・院内寛解[#All],MATCH($AI64,阻害要因×在院期間区分＿寛解・院内寛解[[#All],[値]],0),MATCH($AR$4,阻害要因×在院期間区分＿寛解・院内寛解[#Headers],0)),0) -> 10 | F63: 0.05263157895 | G63: =IFERROR(INDEX(阻害要因×在院期間区分＿寛解・院内寛解[#All],MATCH($AI64,阻害要因×在院期間区分＿寛解・院内寛解[[#All],[値]],0),MATCH($AS$4,阻害要因×在院期間区分＿寛解・院内寛解[#Headers],0)),0)+IFERROR(INDEX(阻害要因×在院期間区分＿寛解・院内寛解[#All],MATCH($AI64,阻害要因×在院期間区分＿寛解・院内寛解[[#All],[値]],0),MATCH($AT$4,阻害要因×在院期間区分＿寛解・院内寛解[#Headers],0)),0)+IFERROR(INDEX(阻害要因×在院期間区分＿寛解・院内寛解[#All],MATCH($AI64,阻害要因×在院期間区分＿寛解・院内寛解[[#All],[値]],0),MATCH($AU$4,阻害要因×在院期間区分＿寛解・院内寛解[#Headers],0)),0)+IFERROR(INDEX(阻害要因×在院期間区分＿寛解・院内寛解[#All],MATCH($AI64,阻害要因×在院期間区分＿寛解・院内寛解[[#All],[値]],0),MATCH($AV$4,阻害要因×在院期間区分＿寛解・院内寛解[#Headers],0)),0)+IFERROR(INDEX(阻害要因×在院期間区分＿寛解・院内寛解[#All],MATCH($AI64,阻害要因×在院期間区分＿寛解・院内寛解[[#All],[値]],0),MATCH($AW$4,阻害要因×在院期間区分＿寛解・院内寛解[#Headers],0)),0) -> 4 | H63: 0.06153846154 | I63: =IFERROR(INDEX(阻害要因×在院期間区分＿寛解・院内寛解[#All],MATCH($AI64,阻害要因×在院期間区分＿寛解・院内寛解[[#All],[値]],0),MATCH($AX$4,阻害要因×在院期間区分＿寛解・院内寛解[#Headers],0)),0)+IFERROR(INDEX(阻害要因×在院期間区分＿寛解・院内寛解[#All],MATCH($AI64,阻害要因×在院期間区分＿寛解・院内寛解[[#All],[値]],0),MATCH($AY$4,阻害要因×在院期間区分＿寛解・院内寛解[#Headers],0)),0) -> 5 | J63: 0.0641025641 | K63: 36 | L63: 合計 / 退院後サポート・マネジメントする人的資源が乏しい | M63: 1 | N63: 7 | O63: 3 | P63: 6 | Q63: 3 | R63: 2 | S63: 2 | T63: 1 | U63: 2 | V63: 2 | W63: 0 | X63: 0 | Y63: 1 | Z63: 1 | AA63: 3 | AB63: 2 | AI63: 合計 / 退院に向けてサポートする人的資源が乏しい
B64: 住所地と入院先の距離があり支援体制がとりにくい | C64: =IFERROR(INDEX(阻害要因×在院期間区分＿寛解・院内寛解[#All],MATCH($AI65,阻害要因×在院期間区分＿寛解・院内寛解[[#All],[値]],0),MATCH($AJ$4,阻害要因×在院期間区分＿寛解・院内寛解[#Headers],0)),0)+IFERROR(INDEX(阻害要因×在院期間区分＿寛解・院内寛解[#All],MATCH($AI65,阻害要因×在院期間区分＿寛解・院内寛解[[#All],[値]],0),MATCH($AK$4,阻害要因×在院期間区分＿寛解・院内寛解[#Headers],0)),0)+IFERROR(INDEX(阻害要因×在院期間区分＿寛解・院内寛解[#All],MATCH($AI65,阻害要因×在院期間区分＿寛解・院内寛解[[#All],[値]],0),MATCH($AL$4,阻害要因×在院期間区分＿寛解・院内寛解[#Headers],0)),0)+IFERROR(INDEX(阻害要因×在院期間区分＿寛解・院内寛解[#All],MATCH($AI65,阻害要因×在院期間区分＿寛解・院内寛解[[#All],[値]],0),MATCH($AM$4,阻害要因×在院期間区分＿寛解・院内寛解[#Headers],0)),0) -> 5 | D64: 0.02202643172 | E64: =IFERROR(INDEX(阻害要因×在院期間区分＿寛解・院内寛解[#All],MATCH($AI65,阻害要因×在院期間区分＿寛解・院内寛解[[#All],[値]],0),MATCH($AN$4,阻害要因×在院期間区分＿寛解・院内寛解[#Headers],0)),0)+IFERROR(INDEX(阻害要因×在院期間区分＿寛解・院内寛解[#All],MATCH($AI65,阻害要因×在院期間区分＿寛解・院内寛解[[#All],[値]],0),MATCH($AO$4,阻害要因×在院期間区分＿寛解・院内寛解[#Headers],0)),0)+IFERROR(INDEX(阻害要因×在院期間区分＿寛解・院内寛解[#All],MATCH($AI65,阻害要因×在院期間区分＿寛解・院内寛解[[#All],[値]],0),MATCH($AP$4,阻害要因×在院期間区分＿寛解・院内寛解[#Headers],0)),0)+IFERROR(INDEX(阻害要因×在院期間区分＿寛解・院内寛解[#All],MATCH($AI65,阻害要因×在院期間区分＿寛解・院内寛解[[#All],[値]],0),MATCH($AQ$4,阻害要因×在院期間区分＿寛解・院内寛解[#Headers],0)),0)+IFERROR(INDEX(阻害要因×在院期間区分＿寛解・院内寛解[#All],MATCH($AI65,阻害要因×在院期間区分＿寛解・院内寛解[[#All],[値]],0),MATCH($AR$4,阻害要因×在院期間区分＿寛解・院内寛解[#Headers],0)),0) -> 5 | F64: 0.02631578947 | G64: =IFERROR(INDEX(阻害要因×在院期間区分＿寛解・院内寛解[#All],MATCH($AI65,阻害要因×在院期間区分＿寛解・院内寛解[[#All],[値]],0),MATCH($AS$4,阻害要因×在院期間区分＿寛解・院内寛解[#Headers],0)),0)+IFERROR(INDEX(阻害要因×在院期間区分＿寛解・院内寛解[#All],MATCH($AI65,阻害要因×在院期間区分＿寛解・院内寛解[[#All],[値]],0),MATCH($AT$4,阻害要因×在院期間区分＿寛解・院内寛解[#Headers],0)),0)+IFERROR(INDEX(阻害要因×在院期間区分＿寛解・院内寛解[#All],MATCH($AI65,阻害要因×在院期間区分＿寛解・院内寛解[[#All],[値]],0),MATCH($AU$4,阻害要因×在院期間区分＿寛解・院内寛解[#Headers],0)),0)+IFERROR(INDEX(阻害要因×在院期間区分＿寛解・院内寛解[#All],MATCH($AI65,阻害要因×在院期間区分＿寛解・院内寛解[[#All],[値]],0),MATCH($AV$4,阻害要因×在院期間区分＿寛解・院内寛解[#Headers],0)),0)+IFERROR(INDEX(阻害要因×在院期間区分＿寛解・院内寛解[#All],MATCH($AI65,阻害要因×在院期間区分＿寛解・院内寛解[[#All],[値]],0),MATCH($AW$4,阻害要因×在院期間区分＿寛解・院内寛解[#Headers],0)),0) -> 1 | H64: 0.01538461538 | I64: =IFERROR(INDEX(阻害要因×在院期間区分＿寛解・院内寛解[#All],MATCH($AI65,阻害要因×在院期間区分＿寛解・院内寛解[[#All],[値]],0),MATCH($AX$4,阻害要因×在院期間区分＿寛解・院内寛解[#Headers],0)),0)+IFERROR(INDEX(阻害要因×在院期間区分＿寛解・院内寛解[#All],MATCH($AI65,阻害要因×在院期間区分＿寛解・院内寛解[[#All],[値]],0),MATCH($AY$4,阻害要因×在院期間区分＿寛解・院内寛解[#Headers],0)),0) -> 0 | J64: 0 | K64: 11 | L64: 合計 / 住所地と入院先の距離があり支援体制をとりにくい | M64: 0 | N64: 1 | O64: 0 | P64: 4 | Q64: 1 | R64: 0 | S64: 1 | T64: 1 | U64: 2 | V64: 0 | W64: 0 | X64: 1 | Y64: 0 | Z64: 0 | AA64: 0 | AB64: 0 | AI64: 合計 / 退院後サポート・マネジメントする人的資源が乏しい
B65: 身体的機能や状態を原因としたADLの低下がある | C65: =IFERROR(INDEX(阻害要因×在院期間区分＿寛解・院内寛解[#All],MATCH($AI66,阻害要因×在院期間区分＿寛解・院内寛解[[#All],[値]],0),MATCH($AJ$4,阻害要因×在院期間区分＿寛解・院内寛解[#Headers],0)),0)+IFERROR(INDEX(阻害要因×在院期間区分＿寛解・院内寛解[#All],MATCH($AI66,阻害要因×在院期間区分＿寛解・院内寛解[[#All],[値]],0),MATCH($AK$4,阻害要因×在院期間区分＿寛解・院内寛解[#Headers],0)),0)+IFERROR(INDEX(阻害要因×在院期間区分＿寛解・院内寛解[#All],MATCH($AI66,阻害要因×在院期間区分＿寛解・院内寛解[[#All],[値]],0),MATCH($AL$4,阻害要因×在院期間区分＿寛解・院内寛解[#Headers],0)),0)+IFERROR(INDEX(阻害要因×在院期間区分＿寛解・院内寛解[#All],MATCH($AI66,阻害要因×在院期間区分＿寛解・院内寛解[[#All],[値]],0),MATCH($AM$4,阻害要因×在院期間区分＿寛解・院内寛解[#Headers],0)),0) -> 22 | D65: =IFERROR(C65/C$44,"-") -> 0.09691629956 | E65: =IFERROR(INDEX(阻害要因×在院期間区分＿寛解・院内寛解[#All],MATCH($AI66,阻害要因×在院期間区分＿寛解・院内寛解[[#All],[値]],0),MATCH($AN$4,阻害要因×在院期間区分＿寛解・院内寛解[#Headers],0)),0)+IFERROR(INDEX(阻害要因×在院期間区分＿寛解・院内寛解[#All],MATCH($AI66,阻害要因×在院期間区分＿寛解・院内寛解[[#All],[値]],0),MATCH($AO$4,阻害要因×在院期間区分＿寛解・院内寛解[#Headers],0)),0)+IFERROR(INDEX(阻害要因×在院期間区分＿寛解・院内寛解[#All],MATCH($AI66,阻害要因×在院期間区分＿寛解・院内寛解[[#All],[値]],0),MATCH($AP$4,阻害要因×在院期間区分＿寛解・院内寛解[#Headers],0)),0)+IFERROR(INDEX(阻害要因×在院期間区分＿寛解・院内寛解[#All],MATCH($AI66,阻害要因×在院期間区分＿寛解・院内寛解[[#All],[値]],0),MATCH($AQ$4,阻害要因×在院期間区分＿寛解・院内寛解[#Headers],0)),0)+IFERROR(INDEX(阻害要因×在院期間区分＿寛解・院内寛解[#All],MATCH($AI66,阻害要因×在院期間区分＿寛解・院内寛解[[#All],[値]],0),MATCH($AR$4,阻害要因×在院期間区分＿寛解・院内寛解[#Headers],0)),0) -> 19 | F65: =IFERROR(E65/E$44,"-") -> 0.1 | G65: =IFERROR(INDEX(阻害要因×在院期間区分＿寛解・院内寛解[#All],MATCH($AI66,阻害要因×在院期間区分＿寛解・院内寛解[[#All],[値]],0),MATCH($AS$4,阻害要因×在院期間区分＿寛解・院内寛解[#Headers],0)),0)+IFERROR(INDEX(阻害要因×在院期間区分＿寛解・院内寛解[#All],MATCH($AI66,阻害要因×在院期間区分＿寛解・院内寛解[[#All],[値]],0),MATCH($AT$4,阻害要因×在院期間区分＿寛解・院内寛解[#Headers],0)),0)+IFERROR(INDEX(阻害要因×在院期間区分＿寛解・院内寛解[#All],MATCH($AI66,阻害要因×在院期間区分＿寛解・院内寛解[[#All],[値]],0),MATCH($AU$4,阻害要因×在院期間区分＿寛解・院内寛解[#Headers],0)),0)+IFERROR(INDEX(阻害要因×在院期間区分＿寛解・院内寛解[#All],MATCH($AI66,阻害要因×在院期間区分＿寛解・院内寛解[[#All],[値]],0),MATCH($AV$4,阻害要因×在院期間区分＿寛解・院内寛解[#Headers],0)),0)+IFERROR(INDEX(阻害要因×在院期間区分＿寛解・院内寛解[#All],MATCH($AI66,阻害要因×在院期間区分＿寛解・院内寛解[[#All],[値]],0),MATCH($AW$4,阻害要因×在院期間区分＿寛解・院内寛解[#Headers],0)),0) -> 7 | H65: =IFERROR(G65/G$44,"-") -> 0.1076923077 | I65: =IFERROR(INDEX(阻害要因×在院期間区分＿寛解・院内寛解[#All],MATCH($AI66,阻害要因×在院期間区分＿寛解・院内寛解[[#All],[値]],0),MATCH($AX$4,阻害要因×在院期間区分＿寛解・院内寛解[#Headers],0)),0)+IFERROR(INDEX(阻害要因×在院期間区分＿寛解・院内寛解[#All],MATCH($AI66,阻害要因×在院期間区分＿寛解・院内寛解[[#All],[値]],0),MATCH($AY$4,阻害要因×在院期間区分＿寛解・院内寛解[#Headers],0)),0) -> 5 | J65: =IFERROR(I65/I$44,"-") -> 0.0641025641 | K65: 53 | L65: 合計 / 身体的機能や状態を原因としたADLの低下がある | M65: 4 | N65: 8 | O65: 6 | P65: 4 | Q65: 7 | R65: 4 | S65: 3 | T65: 2 | U65: 3 | V65: 1 | W65: 3 | X65: 2 | Y65: 1 | Z65: 0 | AA65: 3 | AB65: 2 | AI65: 合計 / 住所地と入院先の距離があり支援体制をとりにくい
B66: 身体合併症の程度が重いなど身体面のフォローが必要であり、地域での生活が困難 | C66: =IFERROR(INDEX(阻害要因×在院期間区分＿寛解・院内寛解[#All],MATCH($AI67,阻害要因×在院期間区分＿寛解・院内寛解[[#All],[値]],0),MATCH($AJ$4,阻害要因×在院期間区分＿寛解・院内寛解[#Headers],0)),0)+IFERROR(INDEX(阻害要因×在院期間区分＿寛解・院内寛解[#All],MATCH($AI67,阻害要因×在院期間区分＿寛解・院内寛解[[#All],[値]],0),MATCH($AK$4,阻害要因×在院期間区分＿寛解・院内寛解[#Headers],0)),0)+IFERROR(INDEX(阻害要因×在院期間区分＿寛解・院内寛解[#All],MATCH($AI67,阻害要因×在院期間区分＿寛解・院内寛解[[#All],[値]],0),MATCH($AL$4,阻害要因×在院期間区分＿寛解・院内寛解[#Headers],0)),0)+IFERROR(INDEX(阻害要因×在院期間区分＿寛解・院内寛解[#All],MATCH($AI67,阻害要因×在院期間区分＿寛解・院内寛解[[#All],[値]],0),MATCH($AM$4,阻害要因×在院期間区分＿寛解・院内寛解[#Headers],0)),0) -> 10 | D66: 0.04405286344 | E66: =IFERROR(INDEX(阻害要因×在院期間区分＿寛解・院内寛解[#All],MATCH($AI67,阻害要因×在院期間区分＿寛解・院内寛解[[#All],[値]],0),MATCH($AN$4,阻害要因×在院期間区分＿寛解・院内寛解[#Headers],0)),0)+IFERROR(INDEX(阻害要因×在院期間区分＿寛解・院内寛解[#All],MATCH($AI67,阻害要因×在院期間区分＿寛解・院内寛解[[#All],[値]],0),MATCH($AO$4,阻害要因×在院期間区分＿寛解・院内寛解[#Headers],0)),0)+IFERROR(INDEX(阻害要因×在院期間区分＿寛解・院内寛解[#All],MATCH($AI67,阻害要因×在院期間区分＿寛解・院内寛解[[#All],[値]],0),MATCH($AP$4,阻害要因×在院期間区分＿寛解・院内寛解[#Headers],0)),0)+IFERROR(INDEX(阻害要因×在院期間区分＿寛解・院内寛解[#All],MATCH($AI67,阻害要因×在院期間区分＿寛解・院内寛解[[#All],[値]],0),MATCH($AQ$4,阻害要因×在院期間区分＿寛解・院内寛解[#Headers],0)),0)+IFERROR(INDEX(阻害要因×在院期間区分＿寛解・院内寛解[#All],MATCH($AI67,阻害要因×在院期間区分＿寛解・院内寛解[[#All],[値]],0),MATCH($AR$4,阻害要因×在院期間区分＿寛解・院内寛解[#Headers],0)),0) -> 5 | F66: 0.02631578947 | G66: =IFERROR(INDEX(阻害要因×在院期間区分＿寛解・院内寛解[#All],MATCH($AI67,阻害要因×在院期間区分＿寛解・院内寛解[[#All],[値]],0),MATCH($AS$4,阻害要因×在院期間区分＿寛解・院内寛解[#Headers],0)),0)+IFERROR(INDEX(阻害要因×在院期間区分＿寛解・院内寛解[#All],MATCH($AI67,阻害要因×在院期間区分＿寛解・院内寛解[[#All],[値]],0),MATCH($AT$4,阻害要因×在院期間区分＿寛解・院内寛解[#Headers],0)),0)+IFERROR(INDEX(阻害要因×在院期間区分＿寛解・院内寛解[#All],MATCH($AI67,阻害要因×在院期間区分＿寛解・院内寛解[[#All],[値]],0),MATCH($AU$4,阻害要因×在院期間区分＿寛解・院内寛解[#Headers],0)),0)+IFERROR(INDEX(阻害要因×在院期間区分＿寛解・院内寛解[#All],MATCH($AI67,阻害要因×在院期間区分＿寛解・院内寛解[[#All],[値]],0),MATCH($AV$4,阻害要因×在院期間区分＿寛解・院内寛解[#Headers],0)),0)+IFERROR(INDEX(阻害要因×在院期間区分＿寛解・院内寛解[#All],MATCH($AI67,阻害要因×在院期間区分＿寛解・院内寛解[[#All],[値]],0),MATCH($AW$4,阻害要因×在院期間区分＿寛解・院内寛解[#Headers],0)),0) -> 0 | H66: 0 | I66: =IFERROR(INDEX(阻害要因×在院期間区分＿寛解・院内寛解[#All],MATCH($AI67,阻害要因×在院期間区分＿寛解・院内寛解[[#All],[値]],0),MATCH($AX$4,阻害要因×在院期間区分＿寛解・院内寛解[#Headers],0)),0)+IFERROR(INDEX(阻害要因×在院期間区分＿寛解・院内寛解[#All],MATCH($AI67,阻害要因×在院期間区分＿寛解・院内寛解[[#All],[値]],0),MATCH($AY$4,阻害要因×在院期間区分＿寛解・院内寛解[#Headers],0)),0) -> 2 | J66: 0.02564102564 | K66: 17 | L66: 合計 / 身体合併症の程度が重いなど身体面のフォローが必要であり、地域での生活が困難 | M66: 3 | N66: 2 | O66: 2 | P66: 3 | Q66: 1 | R66: 3 | S66: 1 | T66: 0 | U66: 0 | V66: 0 | W66: 0 | X66: 0 | Y66: 0 | Z66: 0 | AA66: 1 | AB66: 1 | AI66: 合計 / 身体的機能や状態を原因としたADLの低下がある
B67: その他の退院阻害要因がある | C67: =IFERROR(INDEX(阻害要因×在院期間区分＿寛解・院内寛解[#All],MATCH($AI68,阻害要因×在院期間区分＿寛解・院内寛解[[#All],[値]],0),MATCH($AJ$4,阻害要因×在院期間区分＿寛解・院内寛解[#Headers],0)),0)+IFERROR(INDEX(阻害要因×在院期間区分＿寛解・院内寛解[#All],MATCH($AI68,阻害要因×在院期間区分＿寛解・院内寛解[[#All],[値]],0),MATCH($AK$4,阻害要因×在院期間区分＿寛解・院内寛解[#Headers],0)),0)+IFERROR(INDEX(阻害要因×在院期間区分＿寛解・院内寛解[#All],MATCH($AI68,阻害要因×在院期間区分＿寛解・院内寛解[[#All],[値]],0),MATCH($AL$4,阻害要因×在院期間区分＿寛解・院内寛解[#Headers],0)),0)+IFERROR(INDEX(阻害要因×在院期間区分＿寛解・院内寛解[#All],MATCH($AI68,阻害要因×在院期間区分＿寛解・院内寛解[[#All],[値]],0),MATCH($AM$4,阻害要因×在院期間区分＿寛解・院内寛解[#Headers],0)),0) -> 14 | D67: 0.06167400881 | E67: =IFERROR(INDEX(阻害要因×在院期間区分＿寛解・院内寛解[#All],MATCH($AI68,阻害要因×在院期間区分＿寛解・院内寛解[[#All],[値]],0),MATCH($AN$4,阻害要因×在院期間区分＿寛解・院内寛解[#Headers],0)),0)+IFERROR(INDEX(阻害要因×在院期間区分＿寛解・院内寛解[#All],MATCH($AI68,阻害要因×在院期間区分＿寛解・院内寛解[[#All],[値]],0),MATCH($AO$4,阻害要因×在院期間区分＿寛解・院内寛解[#Headers],0)),0)+IFERROR(INDEX(阻害要因×在院期間区分＿寛解・院内寛解[#All],MATCH($AI68,阻害要因×在院期間区分＿寛解・院内寛解[[#All],[値]],0),MATCH($AP$4,阻害要因×在院期間区分＿寛解・院内寛解[#Headers],0)),0)+IFERROR(INDEX(阻害要因×在院期間区分＿寛解・院内寛解[#All],MATCH($AI68,阻害要因×在院期間区分＿寛解・院内寛解[[#All],[値]],0),MATCH($AQ$4,阻害要因×在院期間区分＿寛解・院内寛解[#Headers],0)),0)+IFERROR(INDEX(阻害要因×在院期間区分＿寛解・院内寛解[#All],MATCH($AI68,阻害要因×在院期間区分＿寛解・院内寛解[[#All],[値]],0),MATCH($AR$4,阻害要因×在院期間区分＿寛解・院内寛解[#Headers],0)),0) -> 2 | F67: 0.01052631579 | G67: =IFERROR(INDEX(阻害要因×在院期間区分＿寛解・院内寛解[#All],MATCH($AI68,阻害要因×在院期間区分＿寛解・院内寛解[[#All],[値]],0),MATCH($AS$4,阻害要因×在院期間区分＿寛解・院内寛解[#Headers],0)),0)+IFERROR(INDEX(阻害要因×在院期間区分＿寛解・院内寛解[#All],MATCH($AI68,阻害要因×在院期間区分＿寛解・院内寛解[[#All],[値]],0),MATCH($AT$4,阻害要因×在院期間区分＿寛解・院内寛解[#Headers],0)),0)+IFERROR(INDEX(阻害要因×在院期間区分＿寛解・院内寛解[#All],MATCH($AI68,阻害要因×在院期間区分＿寛解・院内寛解[[#All],[値]],0),MATCH($AU$4,阻害要因×在院期間区分＿寛解・院内寛解[#Headers],0)),0)+IFERROR(INDEX(阻害要因×在院期間区分＿寛解・院内寛解[#All],MATCH($AI68,阻害要因×在院期間区分＿寛解・院内寛解[[#All],[値]],0),MATCH($AV$4,阻害要因×在院期間区分＿寛解・院内寛解[#Headers],0)),0)+IFERROR(INDEX(阻害要因×在院期間区分＿寛解・院内寛解[#All],MATCH($AI68,阻害要因×在院期間区分＿寛解・院内寛解[[#All],[値]],0),MATCH($AW$4,阻害要因×在院期間区分＿寛解・院内寛解[#Headers],0)),0) -> 1 | H67: 0.01538461538 | I67: =IFERROR(INDEX(阻害要因×在院期間区分＿寛解・院内寛解[#All],MATCH($AI68,阻害要因×在院期間区分＿寛解・院内寛解[[#All],[値]],0),MATCH($AX$4,阻害要因×在院期間区分＿寛解・院内寛解[#Headers],0)),0)+IFERROR(INDEX(阻害要因×在院期間区分＿寛解・院内寛解[#All],MATCH($AI68,阻害要因×在院期間区分＿寛解・院内寛解[[#All],[値]],0),MATCH($AY$4,阻害要因×在院期間区分＿寛解・院内寛解[#Headers],0)),0) -> 1 | J67: 0.01282051282 | K67: 18 | L67: 合計 / その他の退院阻害要因がある | M67: 3 | N67: 4 | O67: 3 | P67: 4 | Q67: 1 | R67: 0 | S67: 0 | T67: 1 | U67: 0 | V67: 0 | W67: 0 | X67: 0 | Y67: 1 | Z67: 0 | AA67: 1 | AB67: 0 | AI67: 合計 / 身体合併症の程度が重いなど身体面のフォローが必要であり、地域での生活が困難
AI68: 合計 / その他の退院阻害要因がある

Sheet ５-Ⅰ③
B1: 【退院阻害要因×疾患名区分（F0,F2,F3）】
B2: 退院予定の有無 | C2: 疾患名区分 | L2: データ貼り付け箇所
C3: 症状性を含む器質性精神障害（F０） | G3: 統合失調症、統合失調症型障害及び妄想性障害（F2） | I3: 気分（感情）障害（F3）
C4: アルツハイマー病型認知症及び血管性認知症（F00-F01） | E4: 左記以外の症状性を含む器質性精神障害（F02-F09） | L4: 行ラベル | M4: F00アルツハイマー病型認知症 | N4: F01血管性認知症 | O4: F02-09上記以外の症状性を含む器質性精神障害 | P4: F10アルコール使用による精神及び行動の障害 | Q4: アルコール覚せい剤を除く精神作用物質使用による精神及び行動の障害※ | R4: 覚せい剤による精神及び行動の障害※ | S4: F2統合失調症、統合失調症型障害及び妄想性障害 | T4: F30‐31 躁病エピソード・双極性感情障害［躁うつ病］ | U4: F32-39 その他の気分障害 | V4: F4神経症性障害、ストレス関連障害及び身体表現性障害 | W4: F5生理的障害及び身体的要因に関連した行動症候群 | X4: F6成人のパーソナリティ及び行動の障害 | Y4: F7精神遅滞〔知的障害〕 | Z4: F8心理的発達の障害 | AA4: F9小児期及び青年期に通常発症する行動及び情緒の障害及び特定不能の精神障害 | AB4: その他 | AC4: てんかん（F0に属さないものを計上する） | AD4: 不明 | AJ4: F00アルツハイマー病型認知症 | AK4: F01血管性認知症 | AL4: F02-09上記以外の症状性を含む器質性精神障害 | AM4: F10アルコール使用による精神及び行動の障害 | AN4: アルコール覚せい剤を除く精神作用物質使用による精神及び行動の障害※ | AO4: 覚せい剤による精神及び行動の障害※ | AP4: F2統合失調症、統合失調症型障害及び妄想性障害 | AQ4: F30‐31 躁病エピソード・双極性感情障害［躁うつ病］ | AR4: F32-39 その他の気分障害 | AS4: F4神経症性障害、ストレス関連障害及び身体表現性障害 | AT4: F5生理的障害及び身体的要因に関連した行動症候群 | AU4: F6成人のパーソナリティ及び行動の障害 | AV4: F7精神遅滞〔知的障害〕 | AW4: F8心理的発達の障害 | AX4: F9小児期及び青年期に通常発症する行動及び情緒の障害及び特定不能の精神障害 | AY4: てんかん（F0に属さないものを計上する） | AZ4: その他
B5: 病状（主症状）が落ち着き、入院によらない形で治療ができるまで回復 | C5: =IFERROR(INDEX(退院予定有無×疾患名[#All],MATCH($AI5,退院予定有無×疾患名[[#All],[行ラベル]],0),MATCH($AJ$4,退院予定有無×疾患名[#Headers],0)),0)+IFERROR(INDEX(退院予定有無×疾患名[#All],MATCH($AI5,退院予定有無×疾患名[[#All],[行ラベル]],0),MATCH($AK$4,退院予定有無×疾患名[#Headers],0)),0) -> 350 | D5: =IFERROR(C5/C$8,"-") -> 0.1386687797 | E5: =IFERROR(INDEX(退院予定有無×疾患名[#All],MATCH($AI5,退院予定有無×疾患名[[#All],[行ラベル]],0),MATCH($AL$4,退院予定有無×疾患名[#Headers],0)),0) -> 270 | F5: =IFERROR(E5/E$8,"-") -> 0.1572510192 | G5: =IFERROR(INDEX(退院予定有無×疾患名[#All],MATCH($AI5,退院予定有無×疾患名[[#All],[行ラベル]],0),MATCH($AP$4,退院予定有無×疾患名[#Headers],0)),0) -> 1061 | H5: =IFERROR(G5/G$8,"-") -> 0.1528377989 | I5: =IFERROR(INDEX(退院予定有無×疾患名[#All],MATCH($AI5,退院予定有無×疾患名[[#All],[行ラベル]],0),MATCH($AQ$4,退院予定有無×疾患名[#Headers],0)),0)+IFERROR(INDEX(退院予定有無×疾患名[#All],MATCH($AI5,退院予定有無×疾患名[[#All],[行ラベル]],0),MATCH($AR$4,退院予定有無×疾患名[#Headers],0)),0) -> 237 | J5: =IFERROR(I5/I$8,"-") -> 0.1560236998 | K5: =C5+E5+G5+I5 -> 1918 | L5: 98 | M5: 1684 | N5: 268 | O5: 1266 | P5: 401 | Q5: 37 | R5: 71 | S5: 5367 | T5: 512 | U5: 488 | V5: 147 | W5: 39 | X5: 22 | Y5: 228 | Z5: 111 | AA5: 39 | AB5: 100 | AC5: 0 | AD5: 1 | AI5: 97
B6: 病状（主症状）が不安定で入院による治療が必要 | C6: =IFERROR(INDEX(退院予定有無×疾患名[#All],MATCH($AI6,退院予定有無×疾患名[[#All],[行ラベル]],0),MATCH($AJ$4,退院予定有無×疾患名[#Headers],0)),0)+IFERROR(INDEX(退院予定有無×疾患名[#All],MATCH($AI6,退院予定有無×疾患名[[#All],[行ラベル]],0),MATCH($AK$4,退院予定有無×疾患名[#Headers],0)),0) -> 1952 | D6: =IFERROR(C6/C$8,"-") -> 0.7733755943 | E6: =IFERROR(INDEX(退院予定有無×疾患名[#All],MATCH($AI6,退院予定有無×疾患名[[#All],[行ラベル]],0),MATCH($AL$4,退院予定有無×疾患名[#Headers],0)),0) -> 1266 | F6: =IFERROR(E6/E$8,"-") -> 0.7373325568 | G6: =IFERROR(INDEX(退院予定有無×疾患名[#All],MATCH($AI6,退院予定有無×疾患名[[#All],[行ラベル]],0),MATCH($AP$4,退院予定有無×疾患名[#Headers],0)),0) -> 5367 | H6: =IFERROR(G6/G$8,"-") -> 0.7731201383 | I6: =IFERROR(INDEX(退院予定有無×疾患名[#All],MATCH($AI6,退院予定有無×疾患名[[#All],[行ラベル]],0),MATCH($AQ$4,退院予定有無×疾患名[#Headers],0)),0)+IFERROR(INDEX(退院予定有無×疾患名[#All],MATCH($AI6,退院予定有無×疾患名[[#All],[行ラベル]],0),MATCH($AR$4,退院予定有無×疾患名[#Headers],0)),0) -> 1000 | J6: =IFERROR(I6/I$8,"-") -> 0.6583278473 | K6: =C6+E6+G6+I6 -> 9585 | L6: 97 | M6: 302 | N6: 48 | O6: 270 | P6: 114 | Q6: 5 | R6: 9 | S6: 1061 | T6: 105 | U6: 132 | V6: 36 | W6: 5 | X6: 9 | Y6: 37 | Z6: 22 | AA6: 8 | AB6: 22 | AC6: 0 | AD6: 0 | AI6: 98
B7: 退院予定 | C7: =IFERROR(INDEX(退院予定有無×疾患名[#All],MATCH($AI7,退院予定有無×疾患名[[#All],[行ラベル]],0),MATCH($AJ$4,退院予定有無×疾患名[#Headers],0)),0)+IFERROR(INDEX(退院予定有無×疾患名[#All],MATCH($AI7,退院予定有無×疾患名[[#All],[行ラベル]],0),MATCH($AK$4,退院予定有無×疾患名[#Headers],0)),0) -> 222 | D7: =IFERROR(C7/C$8,"-") -> 0.08795562599 | E7: =IFERROR(INDEX(退院予定有無×疾患名[#All],MATCH($AI7,退院予定有無×疾患名[[#All],[行ラベル]],0),MATCH($AL$4,退院予定有無×疾患名[#Headers],0)),0) -> 181 | F7: =IFERROR(E7/E$8,"-") -> 0.105416424 | G7: =IFERROR(INDEX(退院予定有無×疾患名[#All],MATCH($AI7,退院予定有無×疾患名[[#All],[行ラベル]],0),MATCH($AP$4,退院予定有無×疾患名[#Headers],0)),0) -> 514 | H7: =IFERROR(G7/G$8,"-") -> 0.07404206281 | I7: =IFERROR(INDEX(退院予定有無×疾患名[#All],MATCH($AI7,退院予定有無×疾患名[[#All],[行ラベル]],0),MATCH($AQ$4,退院予定有無×疾患名[#Headers],0)),0)+IFERROR(INDEX(退院予定有無×疾患名[#All],MATCH($AI7,退院予定有無×疾患名[[#All],[行ラベル]],0),MATCH($AR$4,退院予定有無×疾患名[#Headers],0)),0) -> 282 | J7: =IFERROR(I7/I$8,"-") -> 0.1856484529 | K7: =C7+E7+G7+I7 -> 1199 | L7: 99 | M7: 195 | N7: 27 | O7: 181 | P7: 163 | Q7: 15 | R7: 11 | S7: 514 | T7: 139 | U7: 143 | V7: 55 | W7: 11 | X7: 4 | Y7: 40 | Z7: 29 | AA7: 13 | AB7: 21 | AC7: 0 | AD7: 0 | AI7: 99
B8: 総計 | C8: =SUM(C5:C7) -> 2524 | D8: 1 | E8: 1717 | F8: 1 | G8: 6942 | H8: 1 | I8: 1519 | J8: 1 | K8: =C8+E8+G8+I8 -> 12702
B10: 退院阻害要因 | L10: 行ラベル | M10: F00アルツハイマー病型認知症 | N10: F01血管性認知症 | O10: F02-09上記以外の症状性を含む器質性精神障害 | P10: F10アルコール使用による精神及び行動の障害 | Q10: F2統合失調症、統合失調症型障害及び妄想性障害 | R10: F30‐31 躁病エピソード・双極性感情障害［躁うつ病］ | S10: F32-39 その他の気分障害 | T10: F4神経症性障害、ストレス関連障害及び身体表現性障害 | U10: F5生理的障害及び身体的要因に関連した行動症候群 | V10: F6成人のパーソナリティ及び行動の障害 | W10: F7精神遅滞〔知的障害〕 | X10: F8心理的発達の障害 | Y10: F9小児期及び青年期に通常発症する行動及び情緒の障害及び特定不能の精神障害 | Z10: アルコール覚せい剤を除く精神作用物質使用による精神及び行動の障害※ | AA10: その他 | AB10: てんかん（F0に属さないものを計上する） | AC10: 覚せい剤による精神及び行動の障害※ | AD10: 不明
B11: 退院阻害要因がある | C11: =IFERROR(INDEX(阻害要因有無×疾患名[#All],MATCH($AI11,阻害要因有無×疾患名[[#All],[行ラベル]],0),MATCH($AJ$4,阻害要因有無×疾患名[#Headers],0)),0)+IFERROR(INDEX(阻害要因有無×疾患名[#All],MATCH($AI11,阻害要因有無×疾患名[[#All],[行ラベル]],0),MATCH($AK$4,阻害要因有無×疾患名[#Headers],0)),0) -> 320 | D11: =IFERROR(C11/C$5,"-") -> 0.9142857143 | E11: =IFERROR(INDEX(阻害要因有無×疾患名[#All],MATCH($AI11,阻害要因有無×疾患名[[#All],[行ラベル]],0),MATCH($AL$4,阻害要因有無×疾患名[#Headers],0)),0) -> 232 | F11: =IFERROR(E11/E$5,"-") -> 0.8592592593 | G11: =IFERROR(INDEX(阻害要因有無×疾患名[#All],MATCH($AI11,阻害要因有無×疾患名[[#All],[行ラベル]],0),MATCH($AP$4,阻害要因有無×疾患名[#Headers],0)),0) -> 982 | H11: =IFERROR(G11/G$5,"-") -> 0.9255419416 | I11: =IFERROR(INDEX(阻害要因有無×疾患名[#All],MATCH($AI11,阻害要因有無×疾患名[[#All],[行ラベル]],0),MATCH($AQ$4,阻害要因有無×疾患名[#Headers],0)),0)+IFERROR(INDEX(阻害要因有無×疾患名[#All],MATCH($AI11,阻害要因有無×疾患名[[#All],[行ラベル]],0),MATCH($AR$4,阻害要因有無×疾患名[#Headers],0)),0) -> 196 | J11: =IFERROR(I11/I$5,"-") -> 0.8270042194 | K11: =C11+E11+G11+I11 -> 1730 | L11: 91 | M11: 274 | N11: 46 | O11: 232 | P11: 102 | Q11: 982 | R11: 88 | S11: 108 | T11: 28 | U11: 3 | V11: 7 | W11: 29 | X11: 19 | Y11: 3 | Z11: 4 | AA11: 20 | AB11: 3 | AC11: 8 | AD11: 0 | AI11: 91
B12: 退院阻害要因はない | C12: =IFERROR(INDEX(阻害要因有無×疾患名[#All],MATCH($AI12,阻害要因有無×疾患名[[#All],[行ラベル]],0),MATCH($AJ$4,阻害要因有無×疾患名[#Headers],0)),0)+IFERROR(INDEX(阻害要因有無×疾患名[#All],MATCH($AI12,阻害要因有無×疾患名[[#All],[行ラベル]],0),MATCH($AK$4,阻害要因有無×疾患名[#Headers],0)),0) -> 30 | D12: =IFERROR(C12/C$5,"-") -> 0.08571428571 | E12: =IFERROR(INDEX(阻害要因有無×疾患名[#All],MATCH($AI12,阻害要因有無×疾患名[[#All],[行ラベル]],0),MATCH($AL$4,阻害要因有無×疾患名[#Headers],0)),0) -> 38 | F12: =IFERROR(E12/E$5,"-") -> 0.1407407407 | G12: =IFERROR(INDEX(阻害要因有無×疾患名[#All],MATCH($AI12,阻害要因有無×疾患名[[#All],[行ラベル]],0),MATCH($AP$4,阻害要因有無×疾患名[#Headers],0)),0) -> 79 | H12: =IFERROR(G12/G$5,"-") -> 0.07445805844 | I12: =IFERROR(INDEX(阻害要因有無×疾患名[#All],MATCH($AI12,阻害要因有無×疾患名[[#All],[行ラベル]],0),MATCH($AQ$4,阻害要因有無×疾患名[#Headers],0)),0)+IFERROR(INDEX(阻害要因有無×疾患名[#All],MATCH($AI12,阻害要因有無×疾患名[[#All],[行ラベル]],0),MATCH($AR$4,阻害要因有無×疾患名[#Headers],0)),0) -> 41 | J12: =IFERROR(I12/I$5,"-") -> 0.1729957806 | K12: =C12+E12+G12+I12 -> 188 | L12: 90 | M12: 28 | N12: 2 | O12: 38 | P12: 12 | Q12: 79 | R12: 17 | S12: 24 | T12: 8 | U12: 2 | V12: 2 | W12: 8 | X12: 3 | Y12: 5 | Z12: 1 | AA12: 2 | AB12: 0 | AC12: 1 | AD12: 0 | AI12: 90
B13: ＜複数回答＞
B14: 割合には「退院阻害要因がある」それぞれの人数に対する割合を表示しています。 | L14: 値 | M14: (空白) | N14: F2統合失調症、統合失調症型障害及び妄想性障害 | O14: F30‐31 躁病エピソード・双極性感情障害［躁うつ病］ | P14: F10アルコール使用による精神及び行動の障害 | Q14: F32-39 その他の気分障害 | R14: F02-09上記以外の症状性を含む器質性精神障害 | S14: F00アルツハイマー病型認知症 | T14: F01血管性認知症 | U14: その他 | V14: F7精神遅滞〔知的障害〕 | W14: F4神経症性障害、ストレス関連障害及び身体表現性障害 | X14: F6成人のパーソナリティ及び行動の障害 | Y14: アルコール覚せい剤を除く精神作用物質使用による精神及び行動の障害※ | Z14: てんかん（F0に属さないものを計上する） | AA14: F8心理的発達の障害 | AB14: F5生理的障害及び身体的要因に関連した行動症候群 | AC14: F9小児期及び青年期に通常発症する行動及び情緒の障害及び特定不能の精神障害 | AD14: 覚せい剤による精神及び行動の障害※
B15: 病状は落ち着いているが、ときどき不安定な病状が見られ、そのことが退院を阻害する要因になっている | C15: =IFERROR(INDEX(阻害要因×疾患名[#All],MATCH($AI15,阻害要因×疾患名[[#All],[値]],0),MATCH($AJ$4,阻害要因×疾患名[#Headers],0)),0)+IFERROR(INDEX(阻害要因×疾患名[#All],MATCH($AI15,阻害要因×疾患名[[#All],[値]],0),MATCH($AK$4,阻害要因×疾患名[#Headers],0)),0) -> 96 | D15: =IFERROR(C15/C$11,"-") -> 0.3 | E15: =IFERROR(INDEX(阻害要因×疾患名[#All],MATCH($AI15,阻害要因×疾患名[[#All],[値]],0),MATCH($AL$4,阻害要因×疾患名[#Headers],0)),0) -> 66 | F15: =IFERROR(E15/E$11,"-") -> 0.2844827586 | G15: =IFERROR(INDEX(阻害要因×疾患名[#All],MATCH($AI15,阻害要因×疾患名[[#All],[値]],0),MATCH($AP$4,阻害要因×疾患名[#Headers],0)),0) -> 369 | H15: =IFERROR(G15/G$11,"-") -> 0.3757637475 | I15: =IFERROR(INDEX(阻害要因×疾患名[#All],MATCH($AI15,阻害要因×疾患名[[#All],[値]],0),MATCH($AQ$4,阻害要因×疾患名[#Headers],0)),0)+IFERROR(INDEX(阻害要因×疾患名[#All],MATCH($AI15,阻害要因×疾患名[[#All],[値]],0),MATCH($AR$4,阻害要因×疾患名[#Headers],0)),0) -> 59 | J15: =IFERROR(I15/I$11,"-") -> 0.3010204082 | K15: =C15+E15+G15+I15 -> 590 | L15: 合計 / 病状は落ち着いているが、ときどき不安定な病状が見られ、そのことが退院を阻害する要因になっている | N15: 369 | O15: 28 | P15: 25 | Q15: 31 | R15: 66 | S15: 84 | T15: 12 | U15: 6 | V15: 12 | W15: 10 | X15: 4 | Y15: 2 | Z15: 1 | AA15: 6 | AB15: 1 | AC15: 0 | AD15: 3 | AI15: 合計 / 病状は落ち着いているが、ときどき不安定な病状が見られ、そのことが退院を阻害する要因になっている
B16: 病識がなく通院服薬の中断が予測される | C16: =IFERROR(INDEX(阻害要因×疾患名[#All],MATCH($AI16,阻害要因×疾患名[[#All],[値]],0),MATCH($AJ$4,阻害要因×疾患名[#Headers],0)),0)+IFERROR(INDEX(阻害要因×疾患名[#All],MATCH($AI16,阻害要因×疾患名[[#All],[値]],0),MATCH($AK$4,阻害要因×疾患名[#Headers],0)),0) -> 78 | D16: 0.24375 | E16: =IFERROR(INDEX(阻害要因×疾患名[#All],MATCH($AI16,阻害要因×疾患名[[#All],[値]],0),MATCH($AL$4,阻害要因×疾患名[#Headers],0)),0) -> 56 | F16: 0.2413793103 | G16: =IFERROR(INDEX(阻害要因×疾患名[#All],MATCH($AI16,阻害要因×疾患名[[#All],[値]],0),MATCH($AP$4,阻害要因×疾患名[#Headers],0)),0) -> 294 | H16: 0.299389002 | I16: =IFERROR(INDEX(阻害要因×疾患名[#All],MATCH($AI16,阻害要因×疾患名[[#All],[値]],0),MATCH($AQ$4,阻害要因×疾患名[#Headers],0)),0)+IFERROR(INDEX(阻害要因×疾患名[#All],MATCH($AI16,阻害要因×疾患名[[#All],[値]],0),MATCH($AR$4,阻害要因×疾患名[#Headers],0)),0) -> 24 | J16: 0.1224489796 | K16: =C16+E16+G16+I16 -> 452 | L16: 合計 / 病識がなく通院服薬の中断が予測される | N16: 294 | O16: 15 | P16: 32 | Q16: 9 | R16: 56 | S16: 72 | T16: 6 | U16: 4 | V16: 5 | W16: 3 | X16: 2 | Y16: 3 | Z16: 0 | AA16: 5 | AB16: 0 | AC16: 0 | AD16: 3 | AI16: 合計 / 病識がなく通院服薬の中断が予測される
B17: 反社会的行動が予測される | C17: =IFERROR(INDEX(阻害要因×疾患名[#All],MATCH($AI17,阻害要因×疾患名[[#All],[値]],0),MATCH($AJ$4,阻害要因×疾患名[#Headers],0)),0)+IFERROR(INDEX(阻害要因×疾患名[#All],MATCH($AI17,阻害要因×疾患名[[#All],[値]],0),MATCH($AK$4,阻害要因×疾患名[#Headers],0)),0) -> 3 | D17: 0.009375 | E17: =IFERROR(INDEX(阻害要因×疾患名[#All],MATCH($AI17,阻害要因×疾患名[[#All],[値]],0),MATCH($AL$4,阻害要因×疾患名[#Headers],0)),0) -> 10 | F17: 0.04310344828 | G17: =IFERROR(INDEX(阻害要因×疾患名[#All],MATCH($AI17,阻害要因×疾患名[[#All],[値]],0),MATCH($AP$4,阻害要因×疾患名[#Headers],0)),0) -> 41 | H17: 0.04175152749 | I17: =IFERROR(INDEX(阻害要因×疾患名[#All],MATCH($AI17,阻害要因×疾患名[[#All],[値]],0),MATCH($AQ$4,阻害要因×疾患名[#Headers],0)),0)+IFERROR(INDEX(阻害要因×疾患名[#All],MATCH($AI17,阻害要因×疾患名[[#All],[値]],0),MATCH($AR$4,阻害要因×疾患名[#Headers],0)),0) -> 5 | J17: 0.02551020408 | K17: 59 | L17: 合計 / 反社会的行動が予測される | N17: 41 | O17: 3 | P17: 7 | Q17: 2 | R17: 10 | S17: 2 | T17: 1 | U17: 1 | V17: 7 | W17: 0 | X17: 2 | Y17: 1 | Z17: 0 | AA17: 2 | AB17: 0 | AC17: 0 | AD17: 3 | AI17: 合計 / 反社会的行動が予測される
B18: 退院意欲が乏しい | C18: =IFERROR(INDEX(阻害要因×疾患名[#All],MATCH($AI18,阻害要因×疾患名[[#All],[値]],0),MATCH($AJ$4,阻害要因×疾患名[#Headers],0)),0)+IFERROR(INDEX(阻害要因×疾患名[#All],MATCH($AI18,阻害要因×疾患名[[#All],[値]],0),MATCH($AK$4,阻害要因×疾患名[#Headers],0)),0) -> 98 | D18: 0.30625 | E18: =IFERROR(INDEX(阻害要因×疾患名[#All],MATCH($AI18,阻害要因×疾患名[[#All],[値]],0),MATCH($AL$4,阻害要因×疾患名[#Headers],0)),0) -> 71 | F18: 0.3060344828 | G18: =IFERROR(INDEX(阻害要因×疾患名[#All],MATCH($AI18,阻害要因×疾患名[[#All],[値]],0),MATCH($AP$4,阻害要因×疾患名[#Headers],0)),0) -> 403 | H18: 0.4103869654 | I18: =IFERROR(INDEX(阻害要因×疾患名[#All],MATCH($AI18,阻害要因×疾患名[[#All],[値]],0),MATCH($AQ$4,阻害要因×疾患名[#Headers],0)),0)+IFERROR(INDEX(阻害要因×疾患名[#All],MATCH($AI18,阻害要因×疾患名[[#All],[値]],0),MATCH($AR$4,阻害要因×疾患名[#Headers],0)),0) -> 90 | J18: 0.4591836735 | K18: 662 | L18: 合計 / 退院意欲が乏しい | N18: 403 | O18: 31 | P18: 26 | Q18: 59 | R18: 71 | S18: 83 | T18: 15 | U18: 2 | V18: 9 | W18: 14 | X18: 2 | Y18: 2 | Z18: 0 | AA18: 5 | AB18: 2 | AC18: 0 | AD18: 2 | AI18: 合計 / 退院意欲が乏しい
B19: 現実認識が乏しい | C19: =IFERROR(INDEX(阻害要因×疾患名[#All],MATCH($AI19,阻害要因×疾患名[[#All],[値]],0),MATCH($AJ$4,阻害要因×疾患名[#Headers],0)),0)+IFERROR(INDEX(阻害要因×疾患名[#All],MATCH($AI19,阻害要因×疾患名[[#All],[値]],0),MATCH($AK$4,阻害要因×疾患名[#Headers],0)),0) -> 107 | D19: 0.334375 | E19: =IFERROR(INDEX(阻害要因×疾患名[#All],MATCH($AI19,阻害要因×疾患名[[#All],[値]],0),MATCH($AL$4,阻害要因×疾患名[#Headers],0)),0) -> 79 | F19: 0.3405172414 | G19: =IFERROR(INDEX(阻害要因×疾患名[#All],MATCH($AI19,阻害要因×疾患名[[#All],[値]],0),MATCH($AP$4,阻害要因×疾患名[#Headers],0)),0) -> 422 | H19: 0.4297352342 | I19: =IFERROR(INDEX(阻害要因×疾患名[#All],MATCH($AI19,阻害要因×疾患名[[#All],[値]],0),MATCH($AQ$4,阻害要因×疾患名[#Headers],0)),0)+IFERROR(INDEX(阻害要因×疾患名[#All],MATCH($AI19,阻害要因×疾患名[[#All],[値]],0),MATCH($AR$4,阻害要因×疾患名[#Headers],0)),0) -> 45 | J19: 0.2295918367 | K19: 653 | L19: 合計 / 現実認識が乏しい | N19: 422 | O19: 21 | P19: 42 | Q19: 24 | R19: 79 | S19: 93 | T19: 14 | U19: 7 | V19: 13 | W19: 8 | X19: 2 | Y19: 2 | Z19: 0 | AA19: 6 | AB19: 0 | AC19: 1 | AD19: 3 | AI19: 合計 / 現実認識が乏しい
B20: 退院による環境変化への不安が強い | C20: =IFERROR(INDEX(阻害要因×疾患名[#All],MATCH($AI20,阻害要因×疾患名[[#All],[値]],0),MATCH($AJ$4,阻害要因×疾患名[#Headers],0)),0)+IFERROR(INDEX(阻害要因×疾患名[#All],MATCH($AI20,阻害要因×疾患名[[#All],[値]],0),MATCH($AK$4,阻害要因×疾患名[#Headers],0)),0) -> 33 | D20: 0.103125 | E20: =IFERROR(INDEX(阻害要因×疾患名[#All],MATCH($AI20,阻害要因×疾患名[[#All],[値]],0),MATCH($AL$4,阻害要因×疾患名[#Headers],0)),0) -> 40 | F20: 0.1724137931 | G20: =IFERROR(INDEX(阻害要因×疾患名[#All],MATCH($AI20,阻害要因×疾患名[[#All],[値]],0),MATCH($AP$4,阻害要因×疾患名[#Headers],0)),0) -> 293 | H20: 0.2983706721 | I20: =IFERROR(INDEX(阻害要因×疾患名[#All],MATCH($AI20,阻害要因×疾患名[[#All],[値]],0),MATCH($AQ$4,阻害要因×疾患名[#Headers],0)),0)+IFERROR(INDEX(阻害要因×疾患名[#All],MATCH($AI20,阻害要因×疾患名[[#All],[値]],0),MATCH($AR$4,阻害要因×疾患名[#Headers],0)),0) -> 76 | J20: 0.387755102 | K20: 442 | L20: 合計 / 退院による環境変化への不安が強い | N20: 293 | O20: 32 | P20: 14 | Q20: 44 | R20: 40 | S20: 29 | T20: 4 | U20: 4 | V20: 7 | W20: 14 | X20: 3 | Y20: 1 | Z20: 0 | AA20: 11 | AB20: 1 | AC20: 0 | AD20: 2 | AI20: 合計 / 退院による環境変化への不安が強い
B21: 援助者との対人関係がもてない | C21: =IFERROR(INDEX(阻害要因×疾患名[#All],MATCH($AI21,阻害要因×疾患名[[#All],[値]],0),MATCH($AJ$4,阻害要因×疾患名[#Headers],0)),0)+IFERROR(INDEX(阻害要因×疾患名[#All],MATCH($AI21,阻害要因×疾患名[[#All],[値]],0),MATCH($AK$4,阻害要因×疾患名[#Headers],0)),0) -> 14 | D21: 0.04375 | E21: =IFERROR(INDEX(阻害要因×疾患名[#All],MATCH($AI21,阻害要因×疾患名[[#All],[値]],0),MATCH($AL$4,阻害要因×疾患名[#Headers],0)),0) -> 9 | F21: 0.03879310345 | G21: =IFERROR(INDEX(阻害要因×疾患名[#All],MATCH($AI21,阻害要因×疾患名[[#All],[値]],0),MATCH($AP$4,阻害要因×疾患名[#Headers],0)),0) -> 94 | H21: 0.09572301426 | I21: =IFERROR(INDEX(阻害要因×疾患名[#All],MATCH($AI21,阻害要因×疾患名[[#All],[値]],0),MATCH($AQ$4,阻害要因×疾患名[#Headers],0)),0)+IFERROR(INDEX(阻害要因×疾患名[#All],MATCH($AI21,阻害要因×疾患名[[#All],[値]],0),MATCH($AR$4,阻害要因×疾患名[#Headers],0)),0) -> 15 | J21: 0.07653061224 | K21: 132 | L21: 合計 / 援助者との対人関係がもてない | N21: 94 | O21: 7 | P21: 7 | Q21: 8 | R21: 9 | S21: 12 | T21: 2 | U21: 0 | V21: 5 | W21: 1 | X21: 1 | Y21: 0 | Z21: 0 | AA21: 5 | AB21: 0 | AC21: 0 | AD21: 0 | AI21: 合計 / 援助者との対人関係がもてない
B22: 家事（食事・洗濯・金銭管理など）ができない | C22: =IFERROR(INDEX(阻害要因×疾患名[#All],MATCH($AI22,阻害要因×疾患名[[#All],[値]],0),MATCH($AJ$4,阻害要因×疾患名[#Headers],0)),0)+IFERROR(INDEX(阻害要因×疾患名[#All],MATCH($AI22,阻害要因×疾患名[[#All],[値]],0),MATCH($AK$4,阻害要因×疾患名[#Headers],0)),0) -> 97 | D22: 0.303125 | E22: =IFERROR(INDEX(阻害要因×疾患名[#All],MATCH($AI22,阻害要因×疾患名[[#All],[値]],0),MATCH($AL$4,阻害要因×疾患名[#Headers],0)),0) -> 62 | F22: 0.2672413793 | G22: =IFERROR(INDEX(阻害要因×疾患名[#All],MATCH($AI22,阻害要因×疾患名[[#All],[値]],0),MATCH($AP$4,阻害要因×疾患名[#Headers],0)),0) -> 292 | H22: 0.2973523422 | I22: =IFERROR(INDEX(阻害要因×疾患名[#All],MATCH($AI22,阻害要因×疾患名[[#All],[値]],0),MATCH($AQ$4,阻害要因×疾患名[#Headers],0)),0)+IFERROR(INDEX(阻害要因×疾患名[#All],MATCH($AI22,阻害要因×疾患名[[#All],[値]],0),MATCH($AR$4,阻害要因×疾患名[#Headers],0)),0) -> 57 | J22: 0.2908163265 | K22: 508 | L22: 合計 / 家事（食事,洗濯,金銭管理など）ができない | N22: 292 | O22: 31 | P22: 35 | Q22: 26 | R22: 62 | S22: 84 | T22: 13 | U22: 4 | V22: 12 | W22: 7 | X22: 2 | Y22: 2 | Z22: 0 | AA22: 5 | AB22: 1 | AC22: 1 | AD22: 2 | AI22: 合計 / 家事（食事,洗濯,金銭管理など）ができない
B23: 家族がいない、本人をサポートする機能が実質ない | C23: =IFERROR(INDEX(阻害要因×疾患名[#All],MATCH($AI23,阻害要因×疾患名[[#All],[値]],0),MATCH($AJ$4,阻害要因×疾患名[#Headers],0)),0)+IFERROR(INDEX(阻害要因×疾患名[#All],MATCH($AI23,阻害要因×疾患名[[#All],[値]],0),MATCH($AK$4,阻害要因×疾患名[#Headers],0)),0) -> 23 | D23: 0.071875 | E23: =IFERROR(INDEX(阻害要因×疾患名[#All],MATCH($AI23,阻害要因×疾患名[[#All],[値]],0),MATCH($AL$4,阻害要因×疾患名[#Headers],0)),0) -> 25 | F23: 0.1077586207 | G23: =IFERROR(INDEX(阻害要因×疾患名[#All],MATCH($AI23,阻害要因×疾患名[[#All],[値]],0),MATCH($AP$4,阻害要因×疾患名[#Headers],0)),0) -> 198 | H23: 0.2016293279 | I23: =IFERROR(INDEX(阻害要因×疾患名[#All],MATCH($AI23,阻害要因×疾患名[[#All],[値]],0),MATCH($AQ$4,阻害要因×疾患名[#Headers],0)),0)+IFERROR(INDEX(阻害要因×疾患名[#All],MATCH($AI23,阻害要因×疾患名[[#All],[値]],0),MATCH($AR$4,阻害要因×疾患名[#Headers],0)),0) -> 29 | J23: 0.1479591837 | K23: 275 | L23: 合計 / 家族がいない、本人をサポートする機能が実質ない | N23: 198 | O23: 14 | P23: 18 | Q23: 15 | R23: 25 | S23: 21 | T23: 2 | U23: 2 | V23: 6 | W23: 6 | X23: 2 | Y23: 1 | Z23: 0 | AA23: 4 | AB23: 0 | AC23: 2 | AD23: 1 | AI23: 合計 / 家族がいない、本人をサポートする機能が実質ない
B24: 家族が退院に反対している | C24: =IFERROR(INDEX(阻害要因×疾患名[#All],MATCH($AI24,阻害要因×疾患名[[#All],[値]],0),MATCH($AJ$4,阻害要因×疾患名[#Headers],0)),0)+IFERROR(INDEX(阻害要因×疾患名[#All],MATCH($AI24,阻害要因×疾患名[[#All],[値]],0),MATCH($AK$4,阻害要因×疾患名[#Headers],0)),0) -> 79 | D24: 0.246875 | E24: =IFERROR(INDEX(阻害要因×疾患名[#All],MATCH($AI24,阻害要因×疾患名[[#All],[値]],0),MATCH($AL$4,阻害要因×疾患名[#Headers],0)),0) -> 49 | F24: 0.2112068966 | G24: =IFERROR(INDEX(阻害要因×疾患名[#All],MATCH($AI24,阻害要因×疾患名[[#All],[値]],0),MATCH($AP$4,阻害要因×疾患名[#Headers],0)),0) -> 203 | H24: 0.2067209776 | I24: =IFERROR(INDEX(阻害要因×疾患名[#All],MATCH($AI24,阻害要因×疾患名[[#All],[値]],0),MATCH($AQ$4,阻害要因×疾患名[#Headers],0)),0)+IFERROR(INDEX(阻害要因×疾患名[#All],MATCH($AI24,阻害要因×疾患名[[#All],[値]],0),MATCH($AR$4,阻害要因×疾患名[#Headers],0)),0) -> 33 | J24: 0.1683673469 | K24: 364 | L24: 合計 / 家族から退院に反対がある | N24: 203 | O24: 16 | P24: 31 | Q24: 17 | R24: 49 | S24: 64 | T24: 15 | U24: 5 | V24: 6 | W24: 5 | X24: 1 | Y24: 3 | Z24: 0 | AA24: 0 | AB24: 3 | AC24: 0 | AD24: 2 | AI24: 合計 / 家族から退院に反対がある
B25: 住まいの確保ができない | C25: =IFERROR(INDEX(阻害要因×疾患名[#All],MATCH($AI25,阻害要因×疾患名[[#All],[値]],0),MATCH($AJ$4,阻害要因×疾患名[#Headers],0)),0)+IFERROR(INDEX(阻害要因×疾患名[#All],MATCH($AI25,阻害要因×疾患名[[#All],[値]],0),MATCH($AK$4,阻害要因×疾患名[#Headers],0)),0) -> 124 | D25: 0.3875 | E25: =IFERROR(INDEX(阻害要因×疾患名[#All],MATCH($AI25,阻害要因×疾患名[[#All],[値]],0),MATCH($AL$4,阻害要因×疾患名[#Headers],0)),0) -> 71 | F25: 0.3060344828 | G25: =IFERROR(INDEX(阻害要因×疾患名[#All],MATCH($AI25,阻害要因×疾患名[[#All],[値]],0),MATCH($AP$4,阻害要因×疾患名[#Headers],0)),0) -> 296 | H25: 0.3014256619 | I25: =IFERROR(INDEX(阻害要因×疾患名[#All],MATCH($AI25,阻害要因×疾患名[[#All],[値]],0),MATCH($AQ$4,阻害要因×疾患名[#Headers],0)),0)+IFERROR(INDEX(阻害要因×疾患名[#All],MATCH($AI25,阻害要因×疾患名[[#All],[値]],0),MATCH($AR$4,阻害要因×疾患名[#Headers],0)),0) -> 37 | J25: 0.1887755102 | K25: 528 | L25: 合計 / 住まいの確保ができない | N25: 296 | O25: 22 | P25: 42 | Q25: 15 | R25: 71 | S25: 106 | T25: 18 | U25: 5 | V25: 14 | W25: 8 | X25: 1 | Y25: 2 | Z25: 1 | AA25: 9 | AB25: 0 | AC25: 1 | AD25: 4 | AI25: 合計 / 住まいの確保ができない
B26: 生活費の確保ができない | C26: =IFERROR(INDEX(阻害要因×疾患名[#All],MATCH($AI26,阻害要因×疾患名[[#All],[値]],0),MATCH($AJ$4,阻害要因×疾患名[#Headers],0)),0)+IFERROR(INDEX(阻害要因×疾患名[#All],MATCH($AI26,阻害要因×疾患名[[#All],[値]],0),MATCH($AK$4,阻害要因×疾患名[#Headers],0)),0) -> 28 | D26: 0.0875 | E26: =IFERROR(INDEX(阻害要因×疾患名[#All],MATCH($AI26,阻害要因×疾患名[[#All],[値]],0),MATCH($AL$4,阻害要因×疾患名[#Headers],0)),0) -> 13 | F26: 0.05603448276 | G26: =IFERROR(INDEX(阻害要因×疾患名[#All],MATCH($AI26,阻害要因×疾患名[[#All],[値]],0),MATCH($AP$4,阻害要因×疾患名[#Headers],0)),0) -> 44 | H26: 0.04480651731 | I26: =IFERROR(INDEX(阻害要因×疾患名[#All],MATCH($AI26,阻害要因×疾患名[[#All],[値]],0),MATCH($AQ$4,阻害要因×疾患名[#Headers],0)),0)+IFERROR(INDEX(阻害要因×疾患名[#All],MATCH($AI26,阻害要因×疾患名[[#All],[値]],0),MATCH($AR$4,阻害要因×疾患名[#Headers],0)),0) -> 12 | J26: 0.0612244898 | K26: 97 | L26: 合計 / 生活費の確保ができない | N26: 44 | O26: 7 | P26: 12 | Q26: 5 | R26: 13 | S26: 21 | T26: 7 | U26: 0 | V26: 3 | W26: 1 | X26: 0 | Y26: 0 | Z26: 0 | AA26: 0 | AB26: 0 | AC26: 1 | AD26: 0 | AI26: 合計 / 生活費の確保ができない
B27: 日常生活を支える制度がない | C27: =IFERROR(INDEX(阻害要因×疾患名[#All],MATCH($AI27,阻害要因×疾患名[[#All],[値]],0),MATCH($AJ$4,阻害要因×疾患名[#Headers],0)),0)+IFERROR(INDEX(阻害要因×疾患名[#All],MATCH($AI27,阻害要因×疾患名[[#All],[値]],0),MATCH($AK$4,阻害要因×疾患名[#Headers],0)),0) -> 22 | D27: 0.06875 | E27: =IFERROR(INDEX(阻害要因×疾患名[#All],MATCH($AI27,阻害要因×疾患名[[#All],[値]],0),MATCH($AL$4,阻害要因×疾患名[#Headers],0)),0) -> 18 | F27: 0.0775862069 | G27: =IFERROR(INDEX(阻害要因×疾患名[#All],MATCH($AI27,阻害要因×疾患名[[#All],[値]],0),MATCH($AP$4,阻害要因×疾患名[#Headers],0)),0) -> 55 | H27: 0.05600814664 | I27: =IFERROR(INDEX(阻害要因×疾患名[#All],MATCH($AI27,阻害要因×疾患名[[#All],[値]],0),MATCH($AQ$4,阻害要因×疾患名[#Headers],0)),0)+IFERROR(INDEX(阻害要因×疾患名[#All],MATCH($AI27,阻害要因×疾患名[[#All],[値]],0),MATCH($AR$4,阻害要因×疾患名[#Headers],0)),0) -> 21 | J27: 0.1071428571 | K27: 116 | L27: 合計 / 日常生活を支える制度がない | N27: 55 | O27: 14 | P27: 7 | Q27: 7 | R27: 18 | S27: 21 | T27: 1 | U27: 0 | V27: 3 | W27: 2 | X27: 2 | Y27: 0 | Z27: 0 | AA27: 0 | AB27: 0 | AC27: 2 | AD27: 0 | AI27: 合計 / 日常生活を支える制度がない
B28: 救急診療体制がない | C28: =IFERROR(INDEX(阻害要因×疾患名[#All],MATCH($AI28,阻害要因×疾患名[[#All],[値]],0),MATCH($AJ$4,阻害要因×疾患名[#Headers],0)),0)+IFERROR(INDEX(阻害要因×疾患名[#All],MATCH($AI28,阻害要因×疾患名[[#All],[値]],0),MATCH($AK$4,阻害要因×疾患名[#Headers],0)),0) -> 0 | D28: 0 | E28: =IFERROR(INDEX(阻害要因×疾患名[#All],MATCH($AI28,阻害要因×疾患名[[#All],[値]],0),MATCH($AL$4,阻害要因×疾患名[#Headers],0)),0) -> 0 | F28: 0 | G28: =IFERROR(INDEX(阻害要因×疾患名[#All],MATCH($AI28,阻害要因×疾患名[[#All],[値]],0),MATCH($AP$4,阻害要因×疾患名[#Headers],0)),0) -> 5 | H28: 0.005091649695 | I28: =IFERROR(INDEX(阻害要因×疾患名[#All],MATCH($AI28,阻害要因×疾患名[[#All],[値]],0),MATCH($AQ$4,阻害要因×疾患名[#Headers],0)),0)+IFERROR(INDEX(阻害要因×疾患名[#All],MATCH($AI28,阻害要因×疾患名[[#All],[値]],0),MATCH($AR$4,阻害要因×疾患名[#Headers],0)),0) -> 0 | J28: 0 | K28: 5 | L28: 合計 / 救急診療体制がない | N28: 5 | O28: 0 | P28: 0 | Q28: 0 | R28: 0 | S28: 0 | T28: 0 | U28: 0 | V28: 0 | W28: 0 | X28: 0 | Y28: 0 | Z28: 0 | AA28: 0 | AB28: 0 | AC28: 0 | AD28: 0 | AI28: 合計 / 救急診療体制がない
B29: 退院に向けてサポートする人的資源が乏しい | C29: =IFERROR(INDEX(阻害要因×疾患名[#All],MATCH($AI29,阻害要因×疾患名[[#All],[値]],0),MATCH($AJ$4,阻害要因×疾患名[#Headers],0)),0)+IFERROR(INDEX(阻害要因×疾患名[#All],MATCH($AI29,阻害要因×疾患名[[#All],[値]],0),MATCH($AK$4,阻害要因×疾患名[#Headers],0)),0) -> 20 | D29: 0.0625 | E29: =IFERROR(INDEX(阻害要因×疾患名[#All],MATCH($AI29,阻害要因×疾患名[[#All],[値]],0),MATCH($AL$4,阻害要因×疾患名[#Headers],0)),0) -> 20 | F29: 0.08620689655 | G29: =IFERROR(INDEX(阻害要因×疾患名[#All],MATCH($AI29,阻害要因×疾患名[[#All],[値]],0),MATCH($AP$4,阻害要因×疾患名[#Headers],0)),0) -> 76 | H29: 0.07739307536 | I29: =IFERROR(INDEX(阻害要因×疾患名[#All],MATCH($AI29,阻害要因×疾患名[[#All],[値]],0),MATCH($AQ$4,阻害要因×疾患名[#Headers],0)),0)+IFERROR(INDEX(阻害要因×疾患名[#All],MATCH($AI29,阻害要因×疾患名[[#All],[値]],0),MATCH($AR$4,阻害要因×疾患名[#Headers],0)),0) -> 13 | J29: 0.06632653061 | K29: 129 | L29: 合計 / 退院に向けてサポートする人的資源が乏しい | N29: 76 | O29: 9 | P29: 10 | Q29: 4 | R29: 20 | S29: 17 | T29: 3 | U29: 2 | V29: 0 | W29: 2 | X29: 1 | Y29: 1 | Z29: 0 | AA29: 0 | AB29: 0 | AC29: 1 | AD29: 0 | AI29: 合計 / 退院に向けてサポートする人的資源が乏しい
B30: 退院後サポート・マネジメントする人的資源が乏しい | C30: =IFERROR(INDEX(阻害要因×疾患名[#All],MATCH($AI30,阻害要因×疾患名[[#All],[値]],0),MATCH($AJ$4,阻害要因×疾患名[#Headers],0)),0)+IFERROR(INDEX(阻害要因×疾患名[#All],MATCH($AI30,阻害要因×疾患名[[#All],[値]],0),MATCH($AK$4,阻害要因×疾患名[#Headers],0)),0) -> 8 | D30: 0.025 | E30: =IFERROR(INDEX(阻害要因×疾患名[#All],MATCH($AI30,阻害要因×疾患名[[#All],[値]],0),MATCH($AL$4,阻害要因×疾患名[#Headers],0)),0) -> 16 | F30: 0.06896551724 | G30: =IFERROR(INDEX(阻害要因×疾患名[#All],MATCH($AI30,阻害要因×疾患名[[#All],[値]],0),MATCH($AP$4,阻害要因×疾患名[#Headers],0)),0) -> 64 | H30: 0.06517311609 | I30: =IFERROR(INDEX(阻害要因×疾患名[#All],MATCH($AI30,阻害要因×疾患名[[#All],[値]],0),MATCH($AQ$4,阻害要因×疾患名[#Headers],0)),0)+IFERROR(INDEX(阻害要因×疾患名[#All],MATCH($AI30,阻害要因×疾患名[[#All],[値]],0),MATCH($AR$4,阻害要因×疾患名[#Headers],0)),0) -> 9 | J30: 0.04591836735 | K30: 97 | L30: 合計 / 退院後サポート・マネジメントする人的資源が乏しい | N30: 64 | O30: 4 | P30: 6 | Q30: 5 | R30: 16 | S30: 7 | T30: 1 | U30: 1 | V30: 1 | W30: 0 | X30: 2 | Y30: 0 | Z30: 0 | AA30: 2 | AB30: 0 | AC30: 1 | AD30: 0 | AI30: 合計 / 退院後サポート・マネジメントする人的資源が乏しい
B31: 住所地と入院先の距離があり支援体制がとりにくい | C31: =IFERROR(INDEX(阻害要因×疾患名[#All],MATCH($AI31,阻害要因×疾患名[[#All],[値]],0),MATCH($AJ$4,阻害要因×疾患名[#Headers],0)),0)+IFERROR(INDEX(阻害要因×疾患名[#All],MATCH($AI31,阻害要因×疾患名[[#All],[値]],0),MATCH($AK$4,阻害要因×疾患名[#Headers],0)),0) -> 3 | D31: 0.009375 | E31: =IFERROR(INDEX(阻害要因×疾患名[#All],MATCH($AI31,阻害要因×疾患名[[#All],[値]],0),MATCH($AL$4,阻害要因×疾患名[#Headers],0)),0) -> 4 | F31: 0.01724137931 | G31: =IFERROR(INDEX(阻害要因×疾患名[#All],MATCH($AI31,阻害要因×疾患名[[#All],[値]],0),MATCH($AP$4,阻害要因×疾患名[#Headers],0)),0) -> 17 | H31: 0.01731160896 | I31: =IFERROR(INDEX(阻害要因×疾患名[#All],MATCH($AI31,阻害要因×疾患名[[#All],[値]],0),MATCH($AQ$4,阻害要因×疾患名[#Headers],0)),0)+IFERROR(INDEX(阻害要因×疾患名[#All],MATCH($AI31,阻害要因×疾患名[[#All],[値]],0),MATCH($AR$4,阻害要因×疾患名[#Headers],0)),0) -> 3 | J31: 0.01530612245 | K31: 27 | L31: 合計 / 住所地と入院先の距離があり支援体制をとりにくい | N31: 17 | O31: 3 | P31: 2 | Q31: 0 | R31: 4 | S31: 2 | T31: 1 | U31: 0 | V31: 0 | W31: 0 | X31: 0 | Y31: 0 | Z31: 0 | AA31: 0 | AB31: 0 | AC31: 0 | AD31: 1 | AI31: 合計 / 住所地と入院先の距離があり支援体制をとりにくい
B32: 身体的機能や状態を原因としたADLの低下がある | C32: =IFERROR(INDEX(阻害要因×疾患名[#All],MATCH($AI32,阻害要因×疾患名[[#All],[値]],0),MATCH($AJ$4,阻害要因×疾患名[#Headers],0)),0)+IFERROR(INDEX(阻害要因×疾患名[#All],MATCH($AI32,阻害要因×疾患名[[#All],[値]],0),MATCH($AK$4,阻害要因×疾患名[#Headers],0)),0) -> 85 | D32: =IFERROR(C32/C$11,"-") -> 0.265625 | E32: =IFERROR(INDEX(阻害要因×疾患名[#All],MATCH($AI32,阻害要因×疾患名[[#All],[値]],0),MATCH($AL$4,阻害要因×疾患名[#Headers],0)),0) -> 58 | F32: =IFERROR(E32/E$11,"-") -> 0.25 | G32: =IFERROR(INDEX(阻害要因×疾患名[#All],MATCH($AI32,阻害要因×疾患名[[#All],[値]],0),MATCH($AP$4,阻害要因×疾患名[#Headers],0)),0) -> 117 | H32: =IFERROR(G32/G$11,"-") -> 0.1191446029 | I32: =IFERROR(INDEX(阻害要因×疾患名[#All],MATCH($AI32,阻害要因×疾患名[[#All],[値]],0),MATCH($AQ$4,阻害要因×疾患名[#Headers],0)),0)+IFERROR(INDEX(阻害要因×疾患名[#All],MATCH($AI32,阻害要因×疾患名[[#All],[値]],0),MATCH($AR$4,阻害要因×疾患名[#Headers],0)),0) -> 29 | J32: =IFERROR(I32/I$11,"-") -> 0.1479591837 | K32: 289 | L32: 合計 / 身体的機能や状態を原因としたADLの低下がある | N32: 117 | O32: 10 | P32: 17 | Q32: 19 | R32: 58 | S32: 71 | T32: 14 | U32: 7 | V32: 6 | W32: 6 | X32: 2 | Y32: 0 | Z32: 1 | AA32: 0 | AB32: 1 | AC32: 2 | AD32: 0 | AI32: 合計 / 身体的機能や状態を原因としたADLの低下がある
B33: 身体合併症の程度が重いなど身体面のフォローが必要であり、地域での生活が困難 | C33: =IFERROR(INDEX(阻害要因×疾患名[#All],MATCH($AI33,阻害要因×疾患名[[#All],[値]],0),MATCH($AJ$4,阻害要因×疾患名[#Headers],0)),0)+IFERROR(INDEX(阻害要因×疾患名[#All],MATCH($AI33,阻害要因×疾患名[[#All],[値]],0),MATCH($AK$4,阻害要因×疾患名[#Headers],0)),0) -> 66 | D33: 0.20625 | E33: =IFERROR(INDEX(阻害要因×疾患名[#All],MATCH($AI33,阻害要因×疾患名[[#All],[値]],0),MATCH($AL$4,阻害要因×疾患名[#Headers],0)),0) -> 35 | F33: 0.150862069 | G33: =IFERROR(INDEX(阻害要因×疾患名[#All],MATCH($AI33,阻害要因×疾患名[[#All],[値]],0),MATCH($AP$4,阻害要因×疾患名[#Headers],0)),0) -> 69 | H33: 0.07026476578 | I33: =IFERROR(INDEX(阻害要因×疾患名[#All],MATCH($AI33,阻害要因×疾患名[[#All],[値]],0),MATCH($AQ$4,阻害要因×疾患名[#Headers],0)),0)+IFERROR(INDEX(阻害要因×疾患名[#All],MATCH($AI33,阻害要因×疾患名[[#All],[値]],0),MATCH($AR$4,阻害要因×疾患名[#Headers],0)),0) -> 17 | J33: 0.08673469388 | K33: 187 | L33: 合計 / 身体合併症の程度が重いなど身体面のフォローが必要であり、地域での生活が困難 | N33: 69 | O33: 7 | P33: 11 | Q33: 10 | R33: 35 | S33: 56 | T33: 10 | U33: 7 | V33: 4 | W33: 1 | X33: 0 | Y33: 0 | Z33: 1 | AA33: 0 | AB33: 0 | AC33: 0 | AD33: 0 | AI33: 合計 / 身体合併症の程度が重いなど身体面のフォローが必要であり、地域での生活が困難
B34: その他の退院阻害要因がある | C34: =IFERROR(INDEX(阻害要因×疾患名[#All],MATCH($AI34,阻害要因×疾患名[[#All],[値]],0),MATCH($AJ$4,阻害要因×疾患名[#Headers],0)),0)+IFERROR(INDEX(阻害要因×疾患名[#All],MATCH($AI34,阻害要因×疾患名[[#All],[値]],0),MATCH($AK$4,阻害要因×疾患名[#Headers],0)),0) -> 14 | D34: 0.04375 | E34: =IFERROR(INDEX(阻害要因×疾患名[#All],MATCH($AI34,阻害要因×疾患名[[#All],[値]],0),MATCH($AL$4,阻害要因×疾患名[#Headers],0)),0) -> 8 | F34: 0.03448275862 | G34: =IFERROR(INDEX(阻害要因×疾患名[#All],MATCH($AI34,阻害要因×疾患名[[#All],[値]],0),MATCH($AP$4,阻害要因×疾患名[#Headers],0)),0) -> 14 | H34: 0.01425661914 | I34: =IFERROR(INDEX(阻害要因×疾患名[#All],MATCH($AI34,阻害要因×疾患名[[#All],[値]],0),MATCH($AQ$4,阻害要因×疾患名[#Headers],0)),0)+IFERROR(INDEX(阻害要因×疾患名[#All],MATCH($AI34,阻害要因×疾患名[[#All],[値]],0),MATCH($AR$4,阻害要因×疾患名[#Headers],0)),0) -> 2 | J34: 0.01020408163 | K34: 38 | L34: 合計 / その他の退院阻害要因がある | N34: 14 | O34: 2 | P34: 4 | Q34: 0 | R34: 8 | S34: 14 | T34: 0 | U34: 0 | V34: 1 | W34: 0 | X34: 0 | Y34: 0 | Z34: 0 | AA34: 0 | AB34: 0 | AC34: 1 | AD34: 0 | AI34: 合計 / その他の退院阻害要因がある
B36: 【退院阻害要因×疾患名区分（F0,F2,F3）】〔寛解・院内寛解群〕
B37: 退院予定の有無 | C37: 疾患名区分
C38: 症状性を含む器質性精神障害（F０） | G38: 統合失調症、統合失調症型障害及び妄想性障害（F2） | I38: 気分（感情）障害（F3） | L38: データ貼り付け箇所
C39: アルツハイマー病型認知症及び血管性認知症（F00-F01） | E39: 左記以外の症状性を含む器質性精神障害（F02-F09） | K39: =C40+E40+G40+I40 -> 533 | L39: 行ラベル | M39: F00アルツハイマー病型認知症 | N39: F01血管性認知症 | O39: F02-09上記以外の症状性を含む器質性精神障害 | P39: F10アルコール使用による精神及び行動の障害 | Q39: アルコール覚せい剤を除く精神作用物質使用による精神及び行動の障害※ | R39: 覚せい剤による精神及び行動の障害※ | S39: F2統合失調症、統合失調症型障害及び妄想性障害 | T39: F30‐31 躁病エピソード・双極性感情障害［躁うつ病］ | U39: F32-39 その他の気分障害 | V39: F4神経症性障害、ストレス関連障害及び身体表現性障害 | W39: F5生理的障害及び身体的要因に関連した行動症候群 | X39: F6成人のパーソナリティ及び行動の障害 | Y39: F7精神遅滞〔知的障害〕 | Z39: F8心理的発達の障害 | AA39: F9小児期及び青年期に通常発症する行動及び情緒の障害及び特定不能の精神障害 | AB39: その他 | AC39: てんかん（F0に属さないものを計上する） | AD39: 不明
B40: 病状（主症状）が落ち着き、入院によらない形で治療ができるまで回復 | C40: =IFERROR(INDEX(退院予定有無×疾患名＿寛解・院内寛解[#All],MATCH($AI40,退院予定有無×疾患名＿寛解・院内寛解[[#All],[行ラベル]],0),MATCH($AJ$4,退院予定有無×疾患名＿寛解・院内寛解[#Headers],0)),0)+IFERROR(INDEX(退院予定有無×疾患名＿寛解・院内寛解[#All],MATCH($AI40,退院予定有無×疾患名＿寛解・院内寛解[[#All],[行ラベル]],0),MATCH($AK$4,退院予定有無×疾患名＿寛解・院内寛解[#Headers],0)),0) -> 62 | D40: =IFERROR(C40/C$43,"-") -> 0.2755555556 | E40: =IFERROR(INDEX(退院予定有無×疾患名＿寛解・院内寛解[#All],MATCH($AI40,退院予定有無×疾患名＿寛解・院内寛解[[#All],[行ラベル]],0),MATCH($AL$4,退院予定有無×疾患名＿寛解・院内寛解[#Headers],0)),0) -> 71 | F40: =IFERROR(E40/E$43,"-") -> 0.3717277487 | G40: =IFERROR(INDEX(退院予定有無×疾患名＿寛解・院内寛解[#All],MATCH($AI40,退院予定有無×疾患名＿寛解・院内寛解[[#All],[行ラベル]],0),MATCH($AP$4,退院予定有無×疾患名＿寛解・院内寛解[#Headers],0)),0) -> 296 | H40: =IFERROR(G40/G$43,"-") -> 0.4553846154 | I40: =IFERROR(INDEX(退院予定有無×疾患名＿寛解・院内寛解[#All],MATCH($AI40,退院予定有無×疾患名＿寛解・院内寛解[[#All],[行ラベル]],0),MATCH($AQ$4,退院予定有無×疾患名＿寛解・院内寛解[#Headers],0)),0)+IFERROR(INDEX(退院予定有無×疾患名＿寛解・院内寛解[#All],MATCH($AI40,退院予定有無×疾患名＿寛解・院内寛解[[#All],[行ラベル]],0),MATCH($AR$4,退院予定有無×疾患名＿寛解・院内寛解[#Headers],0)),0) -> 104 | J40: =IFERROR(I40/I$43,"-") -> 0.3239875389 | K40: =C41+E41+G41+I41 -> 273 | L40: 98 | M40: 47 | N40: 10 | O40: 38 | P40: 56 | Q40: 2 | R40: 1 | S40: 115 | T40: 27 | U40: 36 | V40: 10 | W40: 6 | X40: 2 | Y40: 5 | Z40: 2 | AA40: 2 | AB40: 3 | AC40: 0 | AD40: 0 | AI40: 97
B41: 病状（主症状）が不安定で入院による治療が必要 | C41: =IFERROR(INDEX(退院予定有無×疾患名＿寛解・院内寛解[#All],MATCH($AI41,退院予定有無×疾患名＿寛解・院内寛解[[#All],[行ラベル]],0),MATCH($AJ$4,退院予定有無×疾患名＿寛解・院内寛解[#Headers],0)),0)+IFERROR(INDEX(退院予定有無×疾患名＿寛解・院内寛解[#All],MATCH($AI41,退院予定有無×疾患名＿寛解・院内寛解[[#All],[行ラベル]],0),MATCH($AK$4,退院予定有無×疾患名＿寛解・院内寛解[#Headers],0)),0) -> 57 | D41: =IFERROR(C41/C$43,"-") -> 0.2533333333 | E41: =IFERROR(INDEX(退院予定有無×疾患名＿寛解・院内寛解[#All],MATCH($AI41,退院予定有無×疾患名＿寛解・院内寛解[[#All],[行ラベル]],0),MATCH($AL$4,退院予定有無×疾患名＿寛解・院内寛解[#Headers],0)),0) -> 38 | F41: =IFERROR(E41/E$43,"-") -> 0.1989528796 | G41: =IFERROR(INDEX(退院予定有無×疾患名＿寛解・院内寛解[#All],MATCH($AI41,退院予定有無×疾患名＿寛解・院内寛解[[#All],[行ラベル]],0),MATCH($AP$4,退院予定有無×疾患名＿寛解・院内寛解[#Headers],0)),0) -> 115 | H41: =IFERROR(G41/G$43,"-") -> 0.1769230769 | I41: =IFERROR(INDEX(退院予定有無×疾患名＿寛解・院内寛解[#All],MATCH($AI41,退院予定有無×疾患名＿寛解・院内寛解[[#All],[行ラベル]],0),MATCH($AQ$4,退院予定有無×疾患名＿寛解・院内寛解[#Headers],0)),0)+IFERROR(INDEX(退院予定有無×疾患名＿寛解・院内寛解[#All],MATCH($AI41,退院予定有無×疾患名＿寛解・院内寛解[[#All],[行ラベル]],0),MATCH($AR$4,退院予定有無×疾患名＿寛解・院内寛解[#Headers],0)),0) -> 63 | J41: =IFERROR(I41/I$43,"-") -> 0.1962616822 | K41: =C42+E42+G42+I42 -> 581 | L41: 97 | M41: 51 | N41: 11 | O41: 71 | P41: 55 | Q41: 1 | R41: 3 | S41: 296 | T41: 46 | U41: 58 | V41: 18 | W41: 0 | X41: 3 | Y41: 5 | Z41: 10 | AA41: 2 | AB41: 5 | AC41: 0 | AD41: 0 | AI41: 98
B42: 退院予定 | C42: =IFERROR(INDEX(退院予定有無×疾患名＿寛解・院内寛解[#All],MATCH($AI42,退院予定有無×疾患名＿寛解・院内寛解[[#All],[行ラベル]],0),MATCH($AJ$4,退院予定有無×疾患名＿寛解・院内寛解[#Headers],0)),0)+IFERROR(INDEX(退院予定有無×疾患名＿寛解・院内寛解[#All],MATCH($AI42,退院予定有無×疾患名＿寛解・院内寛解[[#All],[行ラベル]],0),MATCH($AK$4,退院予定有無×疾患名＿寛解・院内寛解[#Headers],0)),0) -> 106 | D42: =IFERROR(C42/C$43,"-") -> 0.4711111111 | E42: =IFERROR(INDEX(退院予定有無×疾患名＿寛解・院内寛解[#All],MATCH($AI42,退院予定有無×疾患名＿寛解・院内寛解[[#All],[行ラベル]],0),MATCH($AL$4,退院予定有無×疾患名＿寛解・院内寛解[#Headers],0)),0) -> 82 | F42: =IFERROR(E42/E$43,"-") -> 0.4293193717 | G42: =IFERROR(INDEX(退院予定有無×疾患名＿寛解・院内寛解[#All],MATCH($AI42,退院予定有無×疾患名＿寛解・院内寛解[[#All],[行ラベル]],0),MATCH($AP$4,退院予定有無×疾患名＿寛解・院内寛解[#Headers],0)),0) -> 239 | H42: =IFERROR(G42/G$43,"-") -> 0.3676923077 | I42: =IFERROR(INDEX(退院予定有無×疾患名＿寛解・院内寛解[#All],MATCH($AI42,退院予定有無×疾患名＿寛解・院内寛解[[#All],[行ラベル]],0),MATCH($AQ$4,退院予定有無×疾患名＿寛解・院内寛解[#Headers],0)),0)+IFERROR(INDEX(退院予定有無×疾患名＿寛解・院内寛解[#All],MATCH($AI42,退院予定有無×疾患名＿寛解・院内寛解[[#All],[行ラベル]],0),MATCH($AR$4,退院予定有無×疾患名＿寛解・院内寛解[#Headers],0)),0) -> 154 | J42: =IFERROR(I42/I$43,"-") -> 0.4797507788 | K42: =C43+E43+G43+I43 -> 1387 | L42: 99 | M42: 89 | N42: 17 | O42: 82 | P42: 82 | Q42: 9 | R42: 6 | S42: 239 | T42: 79 | U42: 75 | V42: 26 | W42: 6 | X42: 3 | Y42: 18 | Z42: 18 | AA42: 6 | AB42: 8 | AC42: 0 | AD42: 0 | AI42: 99
B43: 総計 | C43: =SUM(C40:C42) -> 225 | D43: 1 | E43: 191 | F43: 1 | G43: 650 | H43: 1 | I43: 321 | J43: 1
B45: 退院阻害要因 | K45: =C46+E46+G46+I46 -> 473 | L45: 行ラベル | M45: F00アルツハイマー病型認知症 | N45: F01血管性認知症 | O45: F02-09上記以外の症状性を含む器質性精神障害 | P45: F10アルコール使用による精神及び行動の障害 | Q45: F2統合失調症、統合失調症型障害及び妄想性障害 | R45: F30‐31 躁病エピソード・双極性感情障害［躁うつ病］ | S45: F32-39 その他の気分障害 | T45: F4神経症性障害、ストレス関連障害及び身体表現性障害 | U45: F5生理的障害及び身体的要因に関連した行動症候群 | V45: F6成人のパーソナリティ及び行動の障害 | W45: F7精神遅滞〔知的障害〕 | X45: F8心理的発達の障害 | Y45: F9小児期及び青年期に通常発症する行動及び情緒の障害及び特定不能の精神障害 | Z45: アルコール覚せい剤を除く精神作用物質使用による精神及び行動の障害※ | AA45: その他 | AB45: てんかん（F0に属さないものを計上する） | AC45: 覚せい剤による精神及び行動の障害※ | AD45: 不明
B46: 退院阻害要因がある | C46: =IFERROR(INDEX(阻害要因有無×疾患名＿寛解・院内寛解[#All],MATCH($AI46,阻害要因有無×疾患名＿寛解・院内寛解[[#All],[行ラベル]],0),MATCH($AJ$4,阻害要因有無×疾患名＿寛解・院内寛解[#Headers],0)),0)+IFERROR(INDEX(阻害要因有無×疾患名＿寛解・院内寛解[#All],MATCH($AI46,阻害要因有無×疾患名＿寛解・院内寛解[[#All],[行ラベル]],0),MATCH($AK$4,阻害要因有無×疾患名＿寛解・院内寛解[#Headers],0)),0) -> 59 | D46: =IFERROR(C46/C$40,"-") -> 0.9516129032 | E46: =IFERROR(INDEX(阻害要因有無×疾患名＿寛解・院内寛解[#All],MATCH($AI46,阻害要因有無×疾患名＿寛解・院内寛解[[#All],[行ラベル]],0),MATCH($AL$4,阻害要因有無×疾患名＿寛解・院内寛解[#Headers],0)),0) -> 65 | F46: =IFERROR(E46/E$40,"-") -> 0.9154929577 | G46: =IFERROR(INDEX(阻害要因有無×疾患名＿寛解・院内寛解[#All],MATCH($AI46,阻害要因有無×疾患名＿寛解・院内寛解[[#All],[行ラベル]],0),MATCH($AP$4,阻害要因有無×疾患名＿寛解・院内寛解[#Headers],0)),0) -> 265 | H46: =IFERROR(G46/G$40,"-") -> 0.8952702703 | I46: =IFERROR(INDEX(阻害要因有無×疾患名＿寛解・院内寛解[#All],MATCH($AI46,阻害要因有無×疾患名＿寛解・院内寛解[[#All],[行ラベル]],0),MATCH($AQ$4,阻害要因有無×疾患名＿寛解・院内寛解[#Headers],0)),0)+IFERROR(INDEX(阻害要因有無×疾患名＿寛解・院内寛解[#All],MATCH($AI46,阻害要因有無×疾患名＿寛解・院内寛解[[#All],[行ラベル]],0),MATCH($AR$4,阻害要因有無×疾患名＿寛解・院内寛解[#Headers],0)),0) -> 84 | J46: =IFERROR(I46/I$40,"-") -> 0.8076923077 | K46: =C47+E47+G47+I47 -> 60 | L46: 91 | M46: 49 | N46: 10 | O46: 65 | P46: 48 | Q46: 265 | R46: 40 | S46: 44 | T46: 15 | U46: 0 | V46: 3 | W46: 3 | X46: 9 | Y46: 1 | Z46: 0 | AA46: 4 | AB46: 1 | AC46: 3 | AD46: 0 | AI46: 91
B47: 退院阻害要因はない | C47: =IFERROR(INDEX(阻害要因有無×疾患名＿寛解・院内寛解[#All],MATCH($AI47,阻害要因有無×疾患名＿寛解・院内寛解[[#All],[行ラベル]],0),MATCH($AJ$4,阻害要因有無×疾患名＿寛解・院内寛解[#Headers],0)),0)+IFERROR(INDEX(阻害要因有無×疾患名＿寛解・院内寛解[#All],MATCH($AI47,阻害要因有無×疾患名＿寛解・院内寛解[[#All],[行ラベル]],0),MATCH($AK$4,阻害要因有無×疾患名＿寛解・院内寛解[#Headers],0)),0) -> 3 | D47: =IFERROR(C47/C$40,"-") -> 0.04838709677 | E47: =IFERROR(INDEX(阻害要因有無×疾患名＿寛解・院内寛解[#All],MATCH($AI47,阻害要因有無×疾患名＿寛解・院内寛解[[#All],[行ラベル]],0),MATCH($AL$4,阻害要因有無×疾患名＿寛解・院内寛解[#Headers],0)),0) -> 6 | F47: =IFERROR(E47/E$40,"-") -> 0.08450704225 | G47: =IFERROR(INDEX(阻害要因有無×疾患名＿寛解・院内寛解[#All],MATCH($AI47,阻害要因有無×疾患名＿寛解・院内寛解[[#All],[行ラベル]],0),MATCH($AP$4,阻害要因有無×疾患名＿寛解・院内寛解[#Headers],0)),0) -> 31 | H47: =IFERROR(G47/G$40,"-") -> 0.1047297297 | I47: =IFERROR(INDEX(阻害要因有無×疾患名＿寛解・院内寛解[#All],MATCH($AI47,阻害要因有無×疾患名＿寛解・院内寛解[[#All],[行ラベル]],0),MATCH($AQ$4,阻害要因有無×疾患名＿寛解・院内寛解[#Headers],0)),0)+IFERROR(INDEX(阻害要因有無×疾患名＿寛解・院内寛解[#All],MATCH($AI47,阻害要因有無×疾患名＿寛解・院内寛解[[#All],[行ラベル]],0),MATCH($AR$4,阻害要因有無×疾患名＿寛解・院内寛解[#Headers],0)),0) -> 20 | J47: =IFERROR(I47/I$40,"-") -> 0.1923076923 | L47: 90 | M47: 2 | N47: 1 | O47: 6 | P47: 7 | Q47: 31 | R47: 6 | S47: 14 | T47: 3 | U47: 0 | V47: 0 | W47: 2 | X47: 1 | Y47: 1 | Z47: 1 | AA47: 1 | AB47: 0 | AC47: 0 | AD47: 0 | AI47: 90
B48: ＜複数回答＞ | K48: =C50+E50+G50+I50 -> 145
B49: 割合には「退院阻害要因がある」それぞれの人数に対する割合を表示しています。 | K49: =C51+E51+G51+I51 -> 82 | L49: 値 | M49: F2統合失調症、統合失調症型障害及び妄想性障害 | N49: F30‐31 躁病エピソード・双極性感情障害［躁うつ病］ | O49: F10アルコール使用による精神及び行動の障害 | P49: F32-39 その他の気分障害 | Q49: F02-09上記以外の症状性を含む器質性精神障害 | R49: F00アルツハイマー病型認知症 | S49: F01血管性認知症 | T49: その他 | U49: F7精神遅滞〔知的障害〕 | V49: F4神経症性障害、ストレス関連障害及び身体表現性障害 | W49: F6成人のパーソナリティ及び行動の障害 | X49: アルコール覚せい剤を除く精神作用物質使用による精神及び行動の障害※ | Y49: てんかん（F0に属さないものを計上する） | Z49: F8心理的発達の障害 | AA49: F5生理的障害及び身体的要因に関連した行動症候群 | AB49: F9小児期及び青年期に通常発症する行動及び情緒の障害及び特定不能の精神障害 | AC49: 覚せい剤による精神及び行動の障害※ | AD49: 総計
B50: 病状は落ち着いているが、ときどき不安定な病状が見られ、そのことが退院を阻害する要因になっている | C50: =IFERROR(INDEX(阻害要因×疾患名＿寛解・院内寛解[#All],MATCH($AI50,阻害要因×疾患名＿寛解・院内寛解[[#All],[値]],0),MATCH($AJ$4,阻害要因×疾患名＿寛解・院内寛解[#Headers],0)),0)+IFERROR(INDEX(阻害要因×疾患名＿寛解・院内寛解[#All],MATCH($AI50,阻害要因×疾患名＿寛解・院内寛解[[#All],[値]],0),MATCH($AK$4,阻害要因×疾患名＿寛解・院内寛解[#Headers],0)),0) -> 14 | D50: =IFERROR(C50/C$46,"-") -> 0.2372881356 | E50: =IFERROR(INDEX(阻害要因×疾患名＿寛解・院内寛解[#All],MATCH($AI50,阻害要因×疾患名＿寛解・院内寛解[[#All],[値]],0),MATCH($AL$4,阻害要因×疾患名＿寛解・院内寛解[#Headers],0)),0) -> 15 | F50: =IFERROR(E50/E$46,"-") -> 0.2307692308 | G50: =IFERROR(INDEX(阻害要因×疾患名＿寛解・院内寛解[#All],MATCH($AI50,阻害要因×疾患名＿寛解・院内寛解[[#All],[値]],0),MATCH($AP$4,阻害要因×疾患名＿寛解・院内寛解[#Headers],0)),0) -> 91 | H50: =IFERROR(G50/G$46,"-") -> 0.3433962264 | I50: =IFERROR(INDEX(阻害要因×疾患名＿寛解・院内寛解[#All],MATCH($AI50,阻害要因×疾患名＿寛解・院内寛解[[#All],[値]],0),MATCH($AQ$4,阻害要因×疾患名＿寛解・院内寛解[#Headers],0)),0)+IFERROR(INDEX(阻害要因×疾患名＿寛解・院内寛解[#All],MATCH($AI50,阻害要因×疾患名＿寛解・院内寛解[[#All],[値]],0),MATCH($AR$4,阻害要因×疾患名＿寛解・院内寛解[#Headers],0)),0) -> 25 | J50: =IFERROR(I50/I$46,"-") -> 0.2976190476 | K50: =C50+E50+G50+I50 -> 145 | L50: 合計 / 病状は落ち着いているが、ときどき不安定な病状が見られ、そのことが退院を阻害する要因になっている | M50: 91 | N50: 12 | O50: 7 | P50: 13 | Q50: 15 | R50: 13 | S50: 1 | T50: 1 | U50: 2 | V50: 3 | W50: 0 | X50: 0 | Y50: 0 | Z50: 4 | AA50: 0 | AB50: 0 | AC50: 1 | AD50: 163 | AI50: 合計 / 病状は落ち着いているが、ときどき不安定な病状が見られ、そのことが退院を阻害する要因になっている
B51: 病識がなく通院服薬の中断が予測される | C51: =IFERROR(INDEX(阻害要因×疾患名＿寛解・院内寛解[#All],MATCH($AI51,阻害要因×疾患名＿寛解・院内寛解[[#All],[値]],0),MATCH($AJ$4,阻害要因×疾患名＿寛解・院内寛解[#Headers],0)),0)+IFERROR(INDEX(阻害要因×疾患名＿寛解・院内寛解[#All],MATCH($AI51,阻害要因×疾患名＿寛解・院内寛解[[#All],[値]],0),MATCH($AK$4,阻害要因×疾患名＿寛解・院内寛解[#Headers],0)),0) -> 12 | D51: 0.2033898305 | E51: =IFERROR(INDEX(阻害要因×疾患名＿寛解・院内寛解[#All],MATCH($AI51,阻害要因×疾患名＿寛解・院内寛解[[#All],[値]],0),MATCH($AL$4,阻害要因×疾患名＿寛解・院内寛解[#Headers],0)),0) -> 11 | F51: 0.1692307692 | G51: =IFERROR(INDEX(阻害要因×疾患名＿寛解・院内寛解[#All],MATCH($AI51,阻害要因×疾患名＿寛解・院内寛解[[#All],[値]],0),MATCH($AP$4,阻害要因×疾患名＿寛解・院内寛解[#Headers],0)),0) -> 51 | H51: 0.1924528302 | I51: =IFERROR(INDEX(阻害要因×疾患名＿寛解・院内寛解[#All],MATCH($AI51,阻害要因×疾患名＿寛解・院内寛解[[#All],[値]],0),MATCH($AQ$4,阻害要因×疾患名＿寛解・院内寛解[#Headers],0)),0)+IFERROR(INDEX(阻害要因×疾患名＿寛解・院内寛解[#All],MATCH($AI51,阻害要因×疾患名＿寛解・院内寛解[[#All],[値]],0),MATCH($AR$4,阻害要因×疾患名＿寛解・院内寛解[#Headers],0)),0) -> 8 | J51: 0.09523809524 | K51: =C51+E51+G51+I51 -> 82 | L51: 合計 / 病識がなく通院服薬の中断が予測される | M51: 51 | N51: 6 | O51: 16 | P51: 2 | Q51: 11 | R51: 11 | S51: 1 | T51: 1 | U51: 0 | V51: 0 | W51: 1 | X51: 0 | Y51: 0 | Z51: 2 | AA51: 0 | AB51: 0 | AC51: 1 | AD51: 103 | AI51: 合計 / 病識がなく通院服薬の中断が予測される
B52: 反社会的行動が予測される | C52: =IFERROR(INDEX(阻害要因×疾患名＿寛解・院内寛解[#All],MATCH($AI52,阻害要因×疾患名＿寛解・院内寛解[[#All],[値]],0),MATCH($AJ$4,阻害要因×疾患名＿寛解・院内寛解[#Headers],0)),0)+IFERROR(INDEX(阻害要因×疾患名＿寛解・院内寛解[#All],MATCH($AI52,阻害要因×疾患名＿寛解・院内寛解[[#All],[値]],0),MATCH($AK$4,阻害要因×疾患名＿寛解・院内寛解[#Headers],0)),0) -> 1 | D52: 0.01694915254 | E52: =IFERROR(INDEX(阻害要因×疾患名＿寛解・院内寛解[#All],MATCH($AI52,阻害要因×疾患名＿寛解・院内寛解[[#All],[値]],0),MATCH($AL$4,阻害要因×疾患名＿寛解・院内寛解[#Headers],0)),0) -> 1 | F52: 0.01538461538 | G52: =IFERROR(INDEX(阻害要因×疾患名＿寛解・院内寛解[#All],MATCH($AI52,阻害要因×疾患名＿寛解・院内寛解[[#All],[値]],0),MATCH($AP$4,阻害要因×疾患名＿寛解・院内寛解[#Headers],0)),0) -> 5 | H52: 0.01886792453 | I52: =IFERROR(INDEX(阻害要因×疾患名＿寛解・院内寛解[#All],MATCH($AI52,阻害要因×疾患名＿寛解・院内寛解[[#All],[値]],0),MATCH($AQ$4,阻害要因×疾患名＿寛解・院内寛解[#Headers],0)),0)+IFERROR(INDEX(阻害要因×疾患名＿寛解・院内寛解[#All],MATCH($AI52,阻害要因×疾患名＿寛解・院内寛解[[#All],[値]],0),MATCH($AR$4,阻害要因×疾患名＿寛解・院内寛解[#Headers],0)),0) -> 0 | J52: 0 | K52: 7 | L52: 合計 / 反社会的行動が予測される | M52: 5 | N52: 0 | O52: 4 | P52: 0 | Q52: 1 | R52: 1 | S52: 0 | T52: 0 | U52: 1 | V52: 0 | W52: 0 | X52: 0 | Y52: 0 | Z52: 1 | AA52: 0 | AB52: 0 | AC52: 0 | AD52: 13 | AI52: 合計 / 反社会的行動が予測される
B53: 退院意欲が乏しい | C53: =IFERROR(INDEX(阻害要因×疾患名＿寛解・院内寛解[#All],MATCH($AI53,阻害要因×疾患名＿寛解・院内寛解[[#All],[値]],0),MATCH($AJ$4,阻害要因×疾患名＿寛解・院内寛解[#Headers],0)),0)+IFERROR(INDEX(阻害要因×疾患名＿寛解・院内寛解[#All],MATCH($AI53,阻害要因×疾患名＿寛解・院内寛解[[#All],[値]],0),MATCH($AK$4,阻害要因×疾患名＿寛解・院内寛解[#Headers],0)),0) -> 18 | D53: 0.3050847458 | E53: =IFERROR(INDEX(阻害要因×疾患名＿寛解・院内寛解[#All],MATCH($AI53,阻害要因×疾患名＿寛解・院内寛解[[#All],[値]],0),MATCH($AL$4,阻害要因×疾患名＿寛解・院内寛解[#Headers],0)),0) -> 23 | F53: 0.3538461538 | G53: =IFERROR(INDEX(阻害要因×疾患名＿寛解・院内寛解[#All],MATCH($AI53,阻害要因×疾患名＿寛解・院内寛解[[#All],[値]],0),MATCH($AP$4,阻害要因×疾患名＿寛解・院内寛解[#Headers],0)),0) -> 99 | H53: 0.3735849057 | I53: =IFERROR(INDEX(阻害要因×疾患名＿寛解・院内寛解[#All],MATCH($AI53,阻害要因×疾患名＿寛解・院内寛解[[#All],[値]],0),MATCH($AQ$4,阻害要因×疾患名＿寛解・院内寛解[#Headers],0)),0)+IFERROR(INDEX(阻害要因×疾患名＿寛解・院内寛解[#All],MATCH($AI53,阻害要因×疾患名＿寛解・院内寛解[[#All],[値]],0),MATCH($AR$4,阻害要因×疾患名＿寛解・院内寛解[#Headers],0)),0) -> 37 | J53: 0.4404761905 | K53: 177 | L53: 合計 / 退院意欲が乏しい | M53: 99 | N53: 13 | O53: 6 | P53: 24 | Q53: 23 | R53: 13 | S53: 5 | T53: 0 | U53: 1 | V53: 7 | W53: 1 | X53: 0 | Y53: 0 | Z53: 4 | AA53: 0 | AB53: 0 | AC53: 0 | AD53: 196 | AI53: 合計 / 退院意欲が乏しい
B54: 現実認識が乏しい | C54: =IFERROR(INDEX(阻害要因×疾患名＿寛解・院内寛解[#All],MATCH($AI54,阻害要因×疾患名＿寛解・院内寛解[[#All],[値]],0),MATCH($AJ$4,阻害要因×疾患名＿寛解・院内寛解[#Headers],0)),0)+IFERROR(INDEX(阻害要因×疾患名＿寛解・院内寛解[#All],MATCH($AI54,阻害要因×疾患名＿寛解・院内寛解[[#All],[値]],0),MATCH($AK$4,阻害要因×疾患名＿寛解・院内寛解[#Headers],0)),0) -> 20 | D54: 0.3389830508 | E54: =IFERROR(INDEX(阻害要因×疾患名＿寛解・院内寛解[#All],MATCH($AI54,阻害要因×疾患名＿寛解・院内寛解[[#All],[値]],0),MATCH($AL$4,阻害要因×疾患名＿寛解・院内寛解[#Headers],0)),0) -> 15 | F54: 0.2307692308 | G54: =IFERROR(INDEX(阻害要因×疾患名＿寛解・院内寛解[#All],MATCH($AI54,阻害要因×疾患名＿寛解・院内寛解[[#All],[値]],0),MATCH($AP$4,阻害要因×疾患名＿寛解・院内寛解[#Headers],0)),0) -> 79 | H54: 0.2981132075 | I54: =IFERROR(INDEX(阻害要因×疾患名＿寛解・院内寛解[#All],MATCH($AI54,阻害要因×疾患名＿寛解・院内寛解[[#All],[値]],0),MATCH($AQ$4,阻害要因×疾患名＿寛解・院内寛解[#Headers],0)),0)+IFERROR(INDEX(阻害要因×疾患名＿寛解・院内寛解[#All],MATCH($AI54,阻害要因×疾患名＿寛解・院内寛解[[#All],[値]],0),MATCH($AR$4,阻害要因×疾患名＿寛解・院内寛解[#Headers],0)),0) -> 16 | J54: 0.1904761905 | K54: 130 | L54: 合計 / 現実認識が乏しい | M54: 79 | N54: 8 | O54: 12 | P54: 8 | Q54: 15 | R54: 17 | S54: 3 | T54: 1 | U54: 2 | V54: 1 | W54: 1 | X54: 0 | Y54: 0 | Z54: 3 | AA54: 0 | AB54: 0 | AC54: 1 | AD54: 151 | AI54: 合計 / 現実認識が乏しい
B55: 退院による環境変化への不安が強い | C55: =IFERROR(INDEX(阻害要因×疾患名＿寛解・院内寛解[#All],MATCH($AI55,阻害要因×疾患名＿寛解・院内寛解[[#All],[値]],0),MATCH($AJ$4,阻害要因×疾患名＿寛解・院内寛解[#Headers],0)),0)+IFERROR(INDEX(阻害要因×疾患名＿寛解・院内寛解[#All],MATCH($AI55,阻害要因×疾患名＿寛解・院内寛解[[#All],[値]],0),MATCH($AK$4,阻害要因×疾患名＿寛解・院内寛解[#Headers],0)),0) -> 10 | D55: 0.1694915254 | E55: =IFERROR(INDEX(阻害要因×疾患名＿寛解・院内寛解[#All],MATCH($AI55,阻害要因×疾患名＿寛解・院内寛解[[#All],[値]],0),MATCH($AL$4,阻害要因×疾患名＿寛解・院内寛解[#Headers],0)),0) -> 8 | F55: 0.1230769231 | G55: =IFERROR(INDEX(阻害要因×疾患名＿寛解・院内寛解[#All],MATCH($AI55,阻害要因×疾患名＿寛解・院内寛解[[#All],[値]],0),MATCH($AP$4,阻害要因×疾患名＿寛解・院内寛解[#Headers],0)),0) -> 73 | H55: 0.2754716981 | I55: =IFERROR(INDEX(阻害要因×疾患名＿寛解・院内寛解[#All],MATCH($AI55,阻害要因×疾患名＿寛解・院内寛解[[#All],[値]],0),MATCH($AQ$4,阻害要因×疾患名＿寛解・院内寛解[#Headers],0)),0)+IFERROR(INDEX(阻害要因×疾患名＿寛解・院内寛解[#All],MATCH($AI55,阻害要因×疾患名＿寛解・院内寛解[[#All],[値]],0),MATCH($AR$4,阻害要因×疾患名＿寛解・院内寛解[#Headers],0)),0) -> 35 | J55: 0.4166666667 | K55: 126 | L55: 合計 / 退院による環境変化への不安が強い | M55: 73 | N55: 16 | O55: 3 | P55: 19 | Q55: 8 | R55: 9 | S55: 1 | T55: 1 | U55: 1 | V55: 7 | W55: 1 | X55: 0 | Y55: 0 | Z55: 7 | AA55: 0 | AB55: 0 | AC55: 0 | AD55: 146 | AI55: 合計 / 退院による環境変化への不安が強い
B56: 援助者との対人関係がもてない | C56: =IFERROR(INDEX(阻害要因×疾患名＿寛解・院内寛解[#All],MATCH($AI56,阻害要因×疾患名＿寛解・院内寛解[[#All],[値]],0),MATCH($AJ$4,阻害要因×疾患名＿寛解・院内寛解[#Headers],0)),0)+IFERROR(INDEX(阻害要因×疾患名＿寛解・院内寛解[#All],MATCH($AI56,阻害要因×疾患名＿寛解・院内寛解[[#All],[値]],0),MATCH($AK$4,阻害要因×疾患名＿寛解・院内寛解[#Headers],0)),0) -> 0 | D56: 0 | E56: =IFERROR(INDEX(阻害要因×疾患名＿寛解・院内寛解[#All],MATCH($AI56,阻害要因×疾患名＿寛解・院内寛解[[#All],[値]],0),MATCH($AL$4,阻害要因×疾患名＿寛解・院内寛解[#Headers],0)),0) -> 0 | F56: 0 | G56: =IFERROR(INDEX(阻害要因×疾患名＿寛解・院内寛解[#All],MATCH($AI56,阻害要因×疾患名＿寛解・院内寛解[[#All],[値]],0),MATCH($AP$4,阻害要因×疾患名＿寛解・院内寛解[#Headers],0)),0) -> 11 | H56: 0.04150943396 | I56: =IFERROR(INDEX(阻害要因×疾患名＿寛解・院内寛解[#All],MATCH($AI56,阻害要因×疾患名＿寛解・院内寛解[[#All],[値]],0),MATCH($AQ$4,阻害要因×疾患名＿寛解・院内寛解[#Headers],0)),0)+IFERROR(INDEX(阻害要因×疾患名＿寛解・院内寛解[#All],MATCH($AI56,阻害要因×疾患名＿寛解・院内寛解[[#All],[値]],0),MATCH($AR$4,阻害要因×疾患名＿寛解・院内寛解[#Headers],0)),0) -> 3 | J56: 0.03571428571 | K56: 14 | L56: 合計 / 援助者との対人関係がもてない | M56: 11 | N56: 0 | O56: 4 | P56: 3 | Q56: 0 | R56: 0 | S56: 0 | T56: 0 | U56: 1 | V56: 1 | W56: 0 | X56: 0 | Y56: 0 | Z56: 1 | AA56: 0 | AB56: 0 | AC56: 0 | AD56: 21 | AI56: 合計 / 援助者との対人関係がもてない
B57: 家事（食事・洗濯・金銭管理など）ができない | C57: =IFERROR(INDEX(阻害要因×疾患名＿寛解・院内寛解[#All],MATCH($AI57,阻害要因×疾患名＿寛解・院内寛解[[#All],[値]],0),MATCH($AJ$4,阻害要因×疾患名＿寛解・院内寛解[#Headers],0)),0)+IFERROR(INDEX(阻害要因×疾患名＿寛解・院内寛解[#All],MATCH($AI57,阻害要因×疾患名＿寛解・院内寛解[[#All],[値]],0),MATCH($AK$4,阻害要因×疾患名＿寛解・院内寛解[#Headers],0)),0) -> 18 | D57: 0.3050847458 | E57: =IFERROR(INDEX(阻害要因×疾患名＿寛解・院内寛解[#All],MATCH($AI57,阻害要因×疾患名＿寛解・院内寛解[[#All],[値]],0),MATCH($AL$4,阻害要因×疾患名＿寛解・院内寛解[#Headers],0)),0) -> 13 | F57: 0.2 | G57: =IFERROR(INDEX(阻害要因×疾患名＿寛解・院内寛解[#All],MATCH($AI57,阻害要因×疾患名＿寛解・院内寛解[[#All],[値]],0),MATCH($AP$4,阻害要因×疾患名＿寛解・院内寛解[#Headers],0)),0) -> 55 | H57: 0.2075471698 | I57: =IFERROR(INDEX(阻害要因×疾患名＿寛解・院内寛解[#All],MATCH($AI57,阻害要因×疾患名＿寛解・院内寛解[[#All],[値]],0),MATCH($AQ$4,阻害要因×疾患名＿寛解・院内寛解[#Headers],0)),0)+IFERROR(INDEX(阻害要因×疾患名＿寛解・院内寛解[#All],MATCH($AI57,阻害要因×疾患名＿寛解・院内寛解[[#All],[値]],0),MATCH($AR$4,阻害要因×疾患名＿寛解・院内寛解[#Headers],0)),0) -> 24 | J57: 0.2857142857 | K57: 110 | L57: 合計 / 家事（食事,洗濯,金銭管理など）ができない | M57: 55 | N57: 13 | O57: 15 | P57: 11 | Q57: 13 | R57: 16 | S57: 2 | T57: 2 | U57: 2 | V57: 1 | W57: 1 | X57: 0 | Y57: 0 | Z57: 2 | AA57: 0 | AB57: 0 | AC57: 0 | AD57: 133 | AI57: 合計 / 家事（食事,洗濯,金銭管理など）ができない
B58: 家族がいない、本人をサポートする機能が実質ない | C58: =IFERROR(INDEX(阻害要因×疾患名＿寛解・院内寛解[#All],MATCH($AI58,阻害要因×疾患名＿寛解・院内寛解[[#All],[値]],0),MATCH($AJ$4,阻害要因×疾患名＿寛解・院内寛解[#Headers],0)),0)+IFERROR(INDEX(阻害要因×疾患名＿寛解・院内寛解[#All],MATCH($AI58,阻害要因×疾患名＿寛解・院内寛解[[#All],[値]],0),MATCH($AK$4,阻害要因×疾患名＿寛解・院内寛解[#Headers],0)),0) -> 6 | D58: 0.1016949153 | E58: =IFERROR(INDEX(阻害要因×疾患名＿寛解・院内寛解[#All],MATCH($AI58,阻害要因×疾患名＿寛解・院内寛解[[#All],[値]],0),MATCH($AL$4,阻害要因×疾患名＿寛解・院内寛解[#Headers],0)),0) -> 7 | F58: 0.1076923077 | G58: =IFERROR(INDEX(阻害要因×疾患名＿寛解・院内寛解[#All],MATCH($AI58,阻害要因×疾患名＿寛解・院内寛解[[#All],[値]],0),MATCH($AP$4,阻害要因×疾患名＿寛解・院内寛解[#Headers],0)),0) -> 46 | H58: 0.1735849057 | I58: =IFERROR(INDEX(阻害要因×疾患名＿寛解・院内寛解[#All],MATCH($AI58,阻害要因×疾患名＿寛解・院内寛解[[#All],[値]],0),MATCH($AQ$4,阻害要因×疾患名＿寛解・院内寛解[#Headers],0)),0)+IFERROR(INDEX(阻害要因×疾患名＿寛解・院内寛解[#All],MATCH($AI58,阻害要因×疾患名＿寛解・院内寛解[[#All],[値]],0),MATCH($AR$4,阻害要因×疾患名＿寛解・院内寛解[#Headers],0)),0) -> 10 | J58: 0.119047619 | K58: 69 | L58: 合計 / 家族がいない、本人をサポートする機能が実質ない | M58: 46 | N58: 5 | O58: 12 | P58: 5 | Q58: 7 | R58: 6 | S58: 0 | T58: 0 | U58: 1 | V58: 5 | W58: 0 | X58: 0 | Y58: 0 | Z58: 2 | AA58: 0 | AB58: 1 | AC58: 0 | AD58: 90 | AI58: 合計 / 家族がいない、本人をサポートする機能が実質ない
B59: 家族が退院に反対している | C59: =IFERROR(INDEX(阻害要因×疾患名＿寛解・院内寛解[#All],MATCH($AI59,阻害要因×疾患名＿寛解・院内寛解[[#All],[値]],0),MATCH($AJ$4,阻害要因×疾患名＿寛解・院内寛解[#Headers],0)),0)+IFERROR(INDEX(阻害要因×疾患名＿寛解・院内寛解[#All],MATCH($AI59,阻害要因×疾患名＿寛解・院内寛解[[#All],[値]],0),MATCH($AK$4,阻害要因×疾患名＿寛解・院内寛解[#Headers],0)),0) -> 18 | D59: 0.3050847458 | E59: =IFERROR(INDEX(阻害要因×疾患名＿寛解・院内寛解[#All],MATCH($AI59,阻害要因×疾患名＿寛解・院内寛解[[#All],[値]],0),MATCH($AL$4,阻害要因×疾患名＿寛解・院内寛解[#Headers],0)),0) -> 9 | F59: 0.1384615385 | G59: =IFERROR(INDEX(阻害要因×疾患名＿寛解・院内寛解[#All],MATCH($AI59,阻害要因×疾患名＿寛解・院内寛解[[#All],[値]],0),MATCH($AP$4,阻害要因×疾患名＿寛解・院内寛解[#Headers],0)),0) -> 57 | H59: 0.2150943396 | I59: =IFERROR(INDEX(阻害要因×疾患名＿寛解・院内寛解[#All],MATCH($AI59,阻害要因×疾患名＿寛解・院内寛解[[#All],[値]],0),MATCH($AQ$4,阻害要因×疾患名＿寛解・院内寛解[#Headers],0)),0)+IFERROR(INDEX(阻害要因×疾患名＿寛解・院内寛解[#All],MATCH($AI59,阻害要因×疾患名＿寛解・院内寛解[[#All],[値]],0),MATCH($AR$4,阻害要因×疾患名＿寛解・院内寛解[#Headers],0)),0) -> 14 | J59: 0.1666666667 | K59: 98 | L59: 合計 / 家族から退院に反対がある | M59: 57 | N59: 9 | O59: 18 | P59: 5 | Q59: 9 | R59: 13 | S59: 5 | T59: 1 | U59: 1 | V59: 1 | W59: 0 | X59: 0 | Y59: 0 | Z59: 0 | AA59: 0 | AB59: 0 | AC59: 1 | AD59: 120 | AI59: 合計 / 家族から退院に反対がある
B60: 住まいの確保ができない | C60: =IFERROR(INDEX(阻害要因×疾患名＿寛解・院内寛解[#All],MATCH($AI60,阻害要因×疾患名＿寛解・院内寛解[[#All],[値]],0),MATCH($AJ$4,阻害要因×疾患名＿寛解・院内寛解[#Headers],0)),0)+IFERROR(INDEX(阻害要因×疾患名＿寛解・院内寛解[#All],MATCH($AI60,阻害要因×疾患名＿寛解・院内寛解[[#All],[値]],0),MATCH($AK$4,阻害要因×疾患名＿寛解・院内寛解[#Headers],0)),0) -> 23 | D60: 0.3898305085 | E60: =IFERROR(INDEX(阻害要因×疾患名＿寛解・院内寛解[#All],MATCH($AI60,阻害要因×疾患名＿寛解・院内寛解[[#All],[値]],0),MATCH($AL$4,阻害要因×疾患名＿寛解・院内寛解[#Headers],0)),0) -> 24 | F60: 0.3692307692 | G60: =IFERROR(INDEX(阻害要因×疾患名＿寛解・院内寛解[#All],MATCH($AI60,阻害要因×疾患名＿寛解・院内寛解[[#All],[値]],0),MATCH($AP$4,阻害要因×疾患名＿寛解・院内寛解[#Headers],0)),0) -> 79 | H60: 0.2981132075 | I60: =IFERROR(INDEX(阻害要因×疾患名＿寛解・院内寛解[#All],MATCH($AI60,阻害要因×疾患名＿寛解・院内寛解[[#All],[値]],0),MATCH($AQ$4,阻害要因×疾患名＿寛解・院内寛解[#Headers],0)),0)+IFERROR(INDEX(阻害要因×疾患名＿寛解・院内寛解[#All],MATCH($AI60,阻害要因×疾患名＿寛解・院内寛解[[#All],[値]],0),MATCH($AR$4,阻害要因×疾患名＿寛解・院内寛解[#Headers],0)),0) -> 15 | J60: 0.1785714286 | K60: 141 | L60: 合計 / 住まいの確保ができない | M60: 79 | N60: 8 | O60: 28 | P60: 7 | Q60: 24 | R60: 20 | S60: 3 | T60: 3 | U60: 0 | V60: 4 | W60: 0 | X60: 0 | Y60: 0 | Z60: 4 | AA60: 0 | AB60: 1 | AC60: 2 | AD60: 183 | AI60: 合計 / 住まいの確保ができない
B61: 生活費の確保ができない | C61: =IFERROR(INDEX(阻害要因×疾患名＿寛解・院内寛解[#All],MATCH($AI61,阻害要因×疾患名＿寛解・院内寛解[[#All],[値]],0),MATCH($AJ$4,阻害要因×疾患名＿寛解・院内寛解[#Headers],0)),0)+IFERROR(INDEX(阻害要因×疾患名＿寛解・院内寛解[#All],MATCH($AI61,阻害要因×疾患名＿寛解・院内寛解[[#All],[値]],0),MATCH($AK$4,阻害要因×疾患名＿寛解・院内寛解[#Headers],0)),0) -> 3 | D61: 0.05084745763 | E61: =IFERROR(INDEX(阻害要因×疾患名＿寛解・院内寛解[#All],MATCH($AI61,阻害要因×疾患名＿寛解・院内寛解[[#All],[値]],0),MATCH($AL$4,阻害要因×疾患名＿寛解・院内寛解[#Headers],0)),0) -> 3 | F61: 0.04615384615 | G61: =IFERROR(INDEX(阻害要因×疾患名＿寛解・院内寛解[#All],MATCH($AI61,阻害要因×疾患名＿寛解・院内寛解[[#All],[値]],0),MATCH($AP$4,阻害要因×疾患名＿寛解・院内寛解[#Headers],0)),0) -> 10 | H61: 0.03773584906 | I61: =IFERROR(INDEX(阻害要因×疾患名＿寛解・院内寛解[#All],MATCH($AI61,阻害要因×疾患名＿寛解・院内寛解[[#All],[値]],0),MATCH($AQ$4,阻害要因×疾患名＿寛解・院内寛解[#Headers],0)),0)+IFERROR(INDEX(阻害要因×疾患名＿寛解・院内寛解[#All],MATCH($AI61,阻害要因×疾患名＿寛解・院内寛解[[#All],[値]],0),MATCH($AR$4,阻害要因×疾患名＿寛解・院内寛解[#Headers],0)),0) -> 6 | J61: 0.07142857143 | K61: 22 | L61: 合計 / 生活費の確保ができない | M61: 10 | N61: 4 | O61: 9 | P61: 2 | Q61: 3 | R61: 2 | S61: 1 | T61: 0 | U61: 0 | V61: 1 | W61: 0 | X61: 0 | Y61: 0 | Z61: 0 | AA61: 0 | AB61: 1 | AC61: 0 | AD61: 33 | AI61: 合計 / 生活費の確保ができない
B62: 日常生活を支える制度がない | C62: =IFERROR(INDEX(阻害要因×疾患名＿寛解・院内寛解[#All],MATCH($AI62,阻害要因×疾患名＿寛解・院内寛解[[#All],[値]],0),MATCH($AJ$4,阻害要因×疾患名＿寛解・院内寛解[#Headers],0)),0)+IFERROR(INDEX(阻害要因×疾患名＿寛解・院内寛解[#All],MATCH($AI62,阻害要因×疾患名＿寛解・院内寛解[[#All],[値]],0),MATCH($AK$4,阻害要因×疾患名＿寛解・院内寛解[#Headers],0)),0) -> 2 | D62: 0.03389830508 | E62: =IFERROR(INDEX(阻害要因×疾患名＿寛解・院内寛解[#All],MATCH($AI62,阻害要因×疾患名＿寛解・院内寛解[[#All],[値]],0),MATCH($AL$4,阻害要因×疾患名＿寛解・院内寛解[#Headers],0)),0) -> 3 | F62: 0.04615384615 | G62: =IFERROR(INDEX(阻害要因×疾患名＿寛解・院内寛解[#All],MATCH($AI62,阻害要因×疾患名＿寛解・院内寛解[[#All],[値]],0),MATCH($AP$4,阻害要因×疾患名＿寛解・院内寛解[#Headers],0)),0) -> 8 | H62: 0.03018867925 | I62: =IFERROR(INDEX(阻害要因×疾患名＿寛解・院内寛解[#All],MATCH($AI62,阻害要因×疾患名＿寛解・院内寛解[[#All],[値]],0),MATCH($AQ$4,阻害要因×疾患名＿寛解・院内寛解[#Headers],0)),0)+IFERROR(INDEX(阻害要因×疾患名＿寛解・院内寛解[#All],MATCH($AI62,阻害要因×疾患名＿寛解・院内寛解[[#All],[値]],0),MATCH($AR$4,阻害要因×疾患名＿寛解・院内寛解[#Headers],0)),0) -> 6 | J62: 0.07142857143 | K62: 19 | L62: 合計 / 日常生活を支える制度がない | M62: 8 | N62: 4 | O62: 3 | P62: 2 | Q62: 3 | R62: 2 | S62: 0 | T62: 0 | U62: 0 | V62: 1 | W62: 0 | X62: 0 | Y62: 0 | Z62: 0 | AA62: 0 | AB62: 1 | AC62: 0 | AD62: 24 | AI62: 合計 / 日常生活を支える制度がない
B63: 救急診療体制がない | C63: =IFERROR(INDEX(阻害要因×疾患名＿寛解・院内寛解[#All],MATCH($AI63,阻害要因×疾患名＿寛解・院内寛解[[#All],[値]],0),MATCH($AJ$4,阻害要因×疾患名＿寛解・院内寛解[#Headers],0)),0)+IFERROR(INDEX(阻害要因×疾患名＿寛解・院内寛解[#All],MATCH($AI63,阻害要因×疾患名＿寛解・院内寛解[[#All],[値]],0),MATCH($AK$4,阻害要因×疾患名＿寛解・院内寛解[#Headers],0)),0) -> 0 | D63: 0 | E63: =IFERROR(INDEX(阻害要因×疾患名＿寛解・院内寛解[#All],MATCH($AI63,阻害要因×疾患名＿寛解・院内寛解[[#All],[値]],0),MATCH($AL$4,阻害要因×疾患名＿寛解・院内寛解[#Headers],0)),0) -> 0 | F63: 0 | G63: =IFERROR(INDEX(阻害要因×疾患名＿寛解・院内寛解[#All],MATCH($AI63,阻害要因×疾患名＿寛解・院内寛解[[#All],[値]],0),MATCH($AP$4,阻害要因×疾患名＿寛解・院内寛解[#Headers],0)),0) -> 1 | H63: 0.003773584906 | I63: =IFERROR(INDEX(阻害要因×疾患名＿寛解・院内寛解[#All],MATCH($AI63,阻害要因×疾患名＿寛解・院内寛解[[#All],[値]],0),MATCH($AQ$4,阻害要因×疾患名＿寛解・院内寛解[#Headers],0)),0)+IFERROR(INDEX(阻害要因×疾患名＿寛解・院内寛解[#All],MATCH($AI63,阻害要因×疾患名＿寛解・院内寛解[[#All],[値]],0),MATCH($AR$4,阻害要因×疾患名＿寛解・院内寛解[#Headers],0)),0) -> 0 | J63: 0 | K63: 1 | L63: 合計 / 救急診療体制がない | M63: 1 | N63: 0 | O63: 0 | P63: 0 | Q63: 0 | R63: 0 | S63: 0 | T63: 0 | U63: 0 | V63: 0 | W63: 0 | X63: 0 | Y63: 0 | Z63: 0 | AA63: 0 | AB63: 0 | AC63: 0 | AD63: 1 | AI63: 合計 / 救急診療体制がない
B64: 退院に向けてサポートする人的資源が乏しい | C64: =IFERROR(INDEX(阻害要因×疾患名＿寛解・院内寛解[#All],MATCH($AI64,阻害要因×疾患名＿寛解・院内寛解[[#All],[値]],0),MATCH($AJ$4,阻害要因×疾患名＿寛解・院内寛解[#Headers],0)),0)+IFERROR(INDEX(阻害要因×疾患名＿寛解・院内寛解[#All],MATCH($AI64,阻害要因×疾患名＿寛解・院内寛解[[#All],[値]],0),MATCH($AK$4,阻害要因×疾患名＿寛解・院内寛解[#Headers],0)),0) -> 3 | D64: 0.05084745763 | E64: =IFERROR(INDEX(阻害要因×疾患名＿寛解・院内寛解[#All],MATCH($AI64,阻害要因×疾患名＿寛解・院内寛解[[#All],[値]],0),MATCH($AL$4,阻害要因×疾患名＿寛解・院内寛解[#Headers],0)),0) -> 5 | F64: 0.07692307692 | G64: =IFERROR(INDEX(阻害要因×疾患名＿寛解・院内寛解[#All],MATCH($AI64,阻害要因×疾患名＿寛解・院内寛解[[#All],[値]],0),MATCH($AP$4,阻害要因×疾患名＿寛解・院内寛解[#Headers],0)),0) -> 21 | H64: 0.07924528302 | I64: =IFERROR(INDEX(阻害要因×疾患名＿寛解・院内寛解[#All],MATCH($AI64,阻害要因×疾患名＿寛解・院内寛解[[#All],[値]],0),MATCH($AQ$4,阻害要因×疾患名＿寛解・院内寛解[#Headers],0)),0)+IFERROR(INDEX(阻害要因×疾患名＿寛解・院内寛解[#All],MATCH($AI64,阻害要因×疾患名＿寛解・院内寛解[[#All],[値]],0),MATCH($AR$4,阻害要因×疾患名＿寛解・院内寛解[#Headers],0)),0) -> 6 | J64: 0.07142857143 | K64: 35 | L64: 合計 / 退院に向けてサポートする人的資源が乏しい | M64: 21 | N64: 4 | O64: 7 | P64: 2 | Q64: 5 | R64: 3 | S64: 0 | T64: 1 | U64: 0 | V64: 2 | W64: 0 | X64: 0 | Y64: 0 | Z64: 0 | AA64: 0 | AB64: 1 | AC64: 0 | AD64: 46 | AI64: 合計 / 退院に向けてサポートする人的資源が乏しい
B65: 退院後サポート・マネジメントする人的資源が乏しい | C65: =IFERROR(INDEX(阻害要因×疾患名＿寛解・院内寛解[#All],MATCH($AI65,阻害要因×疾患名＿寛解・院内寛解[[#All],[値]],0),MATCH($AJ$4,阻害要因×疾患名＿寛解・院内寛解[#Headers],0)),0)+IFERROR(INDEX(阻害要因×疾患名＿寛解・院内寛解[#All],MATCH($AI65,阻害要因×疾患名＿寛解・院内寛解[[#All],[値]],0),MATCH($AK$4,阻害要因×疾患名＿寛解・院内寛解[#Headers],0)),0) -> 1 | D65: 0.01694915254 | E65: =IFERROR(INDEX(阻害要因×疾患名＿寛解・院内寛解[#All],MATCH($AI65,阻害要因×疾患名＿寛解・院内寛解[[#All],[値]],0),MATCH($AL$4,阻害要因×疾患名＿寛解・院内寛解[#Headers],0)),0) -> 6 | F65: 0.09230769231 | G65: =IFERROR(INDEX(阻害要因×疾患名＿寛解・院内寛解[#All],MATCH($AI65,阻害要因×疾患名＿寛解・院内寛解[[#All],[値]],0),MATCH($AP$4,阻害要因×疾患名＿寛解・院内寛解[#Headers],0)),0) -> 16 | H65: 0.06037735849 | I65: =IFERROR(INDEX(阻害要因×疾患名＿寛解・院内寛解[#All],MATCH($AI65,阻害要因×疾患名＿寛解・院内寛解[[#All],[値]],0),MATCH($AQ$4,阻害要因×疾患名＿寛解・院内寛解[#Headers],0)),0)+IFERROR(INDEX(阻害要因×疾患名＿寛解・院内寛解[#All],MATCH($AI65,阻害要因×疾患名＿寛解・院内寛解[[#All],[値]],0),MATCH($AR$4,阻害要因×疾患名＿寛解・院内寛解[#Headers],0)),0) -> 3 | J65: 0.03571428571 | K65: 26 | L65: 合計 / 退院後サポート・マネジメントする人的資源が乏しい | M65: 16 | N65: 1 | O65: 5 | P65: 2 | Q65: 6 | R65: 0 | S65: 1 | T65: 1 | U65: 0 | V65: 0 | W65: 2 | X65: 0 | Y65: 0 | Z65: 1 | AA65: 0 | AB65: 1 | AC65: 0 | AD65: 36 | AI65: 合計 / 退院後サポート・マネジメントする人的資源が乏しい
B66: 住所地と入院先の距離があり支援体制がとりにくい | C66: =IFERROR(INDEX(阻害要因×疾患名＿寛解・院内寛解[#All],MATCH($AI66,阻害要因×疾患名＿寛解・院内寛解[[#All],[値]],0),MATCH($AJ$4,阻害要因×疾患名＿寛解・院内寛解[#Headers],0)),0)+IFERROR(INDEX(阻害要因×疾患名＿寛解・院内寛解[#All],MATCH($AI66,阻害要因×疾患名＿寛解・院内寛解[[#All],[値]],0),MATCH($AK$4,阻害要因×疾患名＿寛解・院内寛解[#Headers],0)),0) -> 0 | D66: 0 | E66: =IFERROR(INDEX(阻害要因×疾患名＿寛解・院内寛解[#All],MATCH($AI66,阻害要因×疾患名＿寛解・院内寛解[[#All],[値]],0),MATCH($AL$4,阻害要因×疾患名＿寛解・院内寛解[#Headers],0)),0) -> 2 | F66: 0.03076923077 | G66: =IFERROR(INDEX(阻害要因×疾患名＿寛解・院内寛解[#All],MATCH($AI66,阻害要因×疾患名＿寛解・院内寛解[[#All],[値]],0),MATCH($AP$4,阻害要因×疾患名＿寛解・院内寛解[#Headers],0)),0) -> 6 | H66: 0.02264150943 | I66: =IFERROR(INDEX(阻害要因×疾患名＿寛解・院内寛解[#All],MATCH($AI66,阻害要因×疾患名＿寛解・院内寛解[[#All],[値]],0),MATCH($AQ$4,阻害要因×疾患名＿寛解・院内寛解[#Headers],0)),0)+IFERROR(INDEX(阻害要因×疾患名＿寛解・院内寛解[#All],MATCH($AI66,阻害要因×疾患名＿寛解・院内寛解[[#All],[値]],0),MATCH($AR$4,阻害要因×疾患名＿寛解・院内寛解[#Headers],0)),0) -> 2 | J66: 0.02380952381 | K66: 10 | L66: 合計 / 住所地と入院先の距離があり支援体制をとりにくい | M66: 6 | N66: 2 | O66: 1 | P66: 0 | Q66: 2 | R66: 0 | S66: 0 | T66: 0 | U66: 0 | V66: 0 | W66: 0 | X66: 0 | Y66: 0 | Z66: 0 | AA66: 0 | AB66: 0 | AC66: 0 | AD66: 11 | AI66: 合計 / 住所地と入院先の距離があり支援体制をとりにくい
B67: 身体的機能や状態を原因としたADLの低下がある | C67: =IFERROR(INDEX(阻害要因×疾患名＿寛解・院内寛解[#All],MATCH($AI67,阻害要因×疾患名＿寛解・院内寛解[[#All],[値]],0),MATCH($AJ$4,阻害要因×疾患名＿寛解・院内寛解[#Headers],0)),0)+IFERROR(INDEX(阻害要因×疾患名＿寛解・院内寛解[#All],MATCH($AI67,阻害要因×疾患名＿寛解・院内寛解[[#All],[値]],0),MATCH($AK$4,阻害要因×疾患名＿寛解・院内寛解[#Headers],0)),0) -> 9 | D67: =IFERROR(C67/C$46,"-") -> 0.1525423729 | E67: =IFERROR(INDEX(阻害要因×疾患名＿寛解・院内寛解[#All],MATCH($AI67,阻害要因×疾患名＿寛解・院内寛解[[#All],[値]],0),MATCH($AL$4,阻害要因×疾患名＿寛解・院内寛解[#Headers],0)),0) -> 9 | F67: =IFERROR(E67/E$46,"-") -> 0.1384615385 | G67: =IFERROR(INDEX(阻害要因×疾患名＿寛解・院内寛解[#All],MATCH($AI67,阻害要因×疾患名＿寛解・院内寛解[[#All],[値]],0),MATCH($AP$4,阻害要因×疾患名＿寛解・院内寛解[#Headers],0)),0) -> 11 | H67: =IFERROR(G67/G$46,"-") -> 0.04150943396 | I67: =IFERROR(INDEX(阻害要因×疾患名＿寛解・院内寛解[#All],MATCH($AI67,阻害要因×疾患名＿寛解・院内寛解[[#All],[値]],0),MATCH($AQ$4,阻害要因×疾患名＿寛解・院内寛解[#Headers],0)),0)+IFERROR(INDEX(阻害要因×疾患名＿寛解・院内寛解[#All],MATCH($AI67,阻害要因×疾患名＿寛解・院内寛解[[#All],[値]],0),MATCH($AR$4,阻害要因×疾患名＿寛解・院内寛解[#Headers],0)),0) -> 10 | J67: =IFERROR(I67/I$46,"-") -> 0.119047619 | K67: 39 | L67: 合計 / 身体的機能や状態を原因としたADLの低下がある | M67: 11 | N67: 4 | O67: 7 | P67: 6 | Q67: 9 | R67: 7 | S67: 2 | T67: 0 | U67: 0 | V67: 5 | W67: 1 | X67: 0 | Y67: 0 | Z67: 0 | AA67: 0 | AB67: 1 | AC67: 0 | AD67: 53 | AI67: 合計 / 身体的機能や状態を原因としたADLの低下がある
B68: 身体合併症の程度が重いなど身体面のフォローが必要であり、地域での生活が困難 | C68: =IFERROR(INDEX(阻害要因×疾患名＿寛解・院内寛解[#All],MATCH($AI68,阻害要因×疾患名＿寛解・院内寛解[[#All],[値]],0),MATCH($AJ$4,阻害要因×疾患名＿寛解・院内寛解[#Headers],0)),0)+IFERROR(INDEX(阻害要因×疾患名＿寛解・院内寛解[#All],MATCH($AI68,阻害要因×疾患名＿寛解・院内寛解[[#All],[値]],0),MATCH($AK$4,阻害要因×疾患名＿寛解・院内寛解[#Headers],0)),0) -> 3 | D68: 0.05084745763 | E68: =IFERROR(INDEX(阻害要因×疾患名＿寛解・院内寛解[#All],MATCH($AI68,阻害要因×疾患名＿寛解・院内寛解[[#All],[値]],0),MATCH($AL$4,阻害要因×疾患名＿寛解・院内寛解[#Headers],0)),0) -> 2 | F68: 0.03076923077 | G68: =IFERROR(INDEX(阻害要因×疾患名＿寛解・院内寛解[#All],MATCH($AI68,阻害要因×疾患名＿寛解・院内寛解[[#All],[値]],0),MATCH($AP$4,阻害要因×疾患名＿寛解・院内寛解[#Headers],0)),0) -> 8 | H68: 0.03018867925 | I68: =IFERROR(INDEX(阻害要因×疾患名＿寛解・院内寛解[#All],MATCH($AI68,阻害要因×疾患名＿寛解・院内寛解[[#All],[値]],0),MATCH($AQ$4,阻害要因×疾患名＿寛解・院内寛解[#Headers],0)),0)+IFERROR(INDEX(阻害要因×疾患名＿寛解・院内寛解[#All],MATCH($AI68,阻害要因×疾患名＿寛解・院内寛解[[#All],[値]],0),MATCH($AR$4,阻害要因×疾患名＿寛解・院内寛解[#Headers],0)),0) -> 2 | J68: 0.02380952381 | K68: 15 | L68: 合計 / 身体合併症の程度が重いなど身体面のフォローが必要であり、地域での生活が困難 | M68: 8 | N68: 1 | O68: 2 | P68: 1 | Q68: 2 | R68: 3 | S68: 0 | T68: 0 | U68: 0 | V68: 0 | W68: 0 | X68: 0 | Y68: 0 | Z68: 0 | AA68: 0 | AB68: 0 | AC68: 0 | AD68: 17 | AI68: 合計 / 身体合併症の程度が重いなど身体面のフォローが必要であり、地域での生活が困難
B69: その他の退院阻害要因がある | C69: =IFERROR(INDEX(阻害要因×疾患名＿寛解・院内寛解[#All],MATCH($AI69,阻害要因×疾患名＿寛解・院内寛解[[#All],[値]],0),MATCH($AJ$4,阻害要因×疾患名＿寛解・院内寛解[#Headers],0)),0)+IFERROR(INDEX(阻害要因×疾患名＿寛解・院内寛解[#All],MATCH($AI69,阻害要因×疾患名＿寛解・院内寛解[[#All],[値]],0),MATCH($AK$4,阻害要因×疾患名＿寛解・院内寛解[#Headers],0)),0) -> 6 | D69: 0.1016949153 | E69: =IFERROR(INDEX(阻害要因×疾患名＿寛解・院内寛解[#All],MATCH($AI69,阻害要因×疾患名＿寛解・院内寛解[[#All],[値]],0),MATCH($AL$4,阻害要因×疾患名＿寛解・院内寛解[#Headers],0)),0) -> 2 | F69: 0.03076923077 | G69: =IFERROR(INDEX(阻害要因×疾患名＿寛解・院内寛解[#All],MATCH($AI69,阻害要因×疾患名＿寛解・院内寛解[[#All],[値]],0),MATCH($AP$4,阻害要因×疾患名＿寛解・院内寛解[#Headers],0)),0) -> 7 | H69: 0.02641509434 | I69: =IFERROR(INDEX(阻害要因×疾患名＿寛解・院内寛解[#All],MATCH($AI69,阻害要因×疾患名＿寛解・院内寛解[[#All],[値]],0),MATCH($AQ$4,阻害要因×疾患名＿寛解・院内寛解[#Headers],0)),0)+IFERROR(INDEX(阻害要因×疾患名＿寛解・院内寛解[#All],MATCH($AI69,阻害要因×疾患名＿寛解・院内寛解[[#All],[値]],0),MATCH($AR$4,阻害要因×疾患名＿寛解・院内寛解[#Headers],0)),0) -> 1 | J69: 0.0119047619 | K69: 16 | L69: 合計 / その他の退院阻害要因がある | M69: 7 | N69: 1 | O69: 1 | P69: 0 | Q69: 2 | R69: 6 | S69: 0 | T69: 0 | U69: 0 | V69: 0 | W69: 0 | X69: 0 | Y69: 0 | Z69: 0 | AA69: 0 | AB69: 1 | AC69: 0 | AD69: 18 | AI69: 合計 / その他の退院阻害要因がある

Sheet ５-Ⅱ①
B1: 【年齢階層×在院期間区分】〔統合失調症、統合失調症型障害及び妄想性障害（F2）〕
B2: 年齢階層 | C2: 在院期間区分 | O2: データ貼り付け箇所
C3: 1年未満 | E3: 1年以上 5年未満 | G3: 5年以上 10年未満 | I3: 10年以上 | K3: 合計 | O3: 行ラベル | P3: 01_1ヶ月未満 | Q3: 02_1ヶ月～3ヶ月未満 | R3: 03_3ヶ月～6ヶ月未満 | S3: 04_6ヶ月～1年未満 | T3: 05_1年～1年6ヶ月未満 | U3: 06_1年6ヶ月～2年未満 | V3: 07_2年～3年未満 | W3: 08_3年～4年未満 | X3: 09_4年～5年未満 | Y3: 10_5年～6年未満 | Z3: 11_6年～7年未満 | AA3: 12_7年～8年未満 | AB3: 13_8年～9年未満 | AC3: 14_9年～10年未満 | AD3: 15_10年～20年未満 | AE3: 16_ 20年以上 | AF3: 列18 | AI3: 01_1ヶ月未満 | AJ3: 02_1ヶ月～3ヶ月未満 | AK3: 03_3ヶ月～6ヶ月未満 | AL3: 04_6ヶ月～1年未満 | AM3: 05_1年～1年6ヶ月未満 | AN3: 06_1年6ヶ月～2年未満 | AO3: 07_2年～3年未満 | AP3: 08_3年～4年未満 | AQ3: 09_4年～5年未満 | AR3: 10_5年～6年未満 | AS3: 11_6年～7年未満 | AT3: 12_7年～8年未満 | AU3: 13_8年～9年未満 | AV3: 14_9年～10年未満 | AW3: 15_10年～20年未満 | AX3: 16_ 20年以上
B4: 19歳以下 | C4: =IFERROR(INDEX(年齢階層×在院期間区分F2[#All],MATCH($AH4,年齢階層×在院期間区分F2[[#All],[行ラベル]],0),MATCH($AI$3,年齢階層×在院期間区分F2[#Headers],0)),0)+IFERROR(INDEX(年齢階層×在院期間区分F2[#All],MATCH($AH4,年齢階層×在院期間区分F2[[#All],[行ラベル]],0),MATCH($AJ$3,年齢階層×在院期間区分F2[#Headers],0)),0)+IFERROR(INDEX(年齢階層×在院期間区分F2[#All],MATCH($AH4,年齢階層×在院期間区分F2[[#All],[行ラベル]],0),MATCH($AK$3,年齢階層×在院期間区分F2[#Headers],0)),0)+IFERROR(INDEX(年齢階層×在院期間区分F2[#All],MATCH($AH4,年齢階層×在院期間区分F2[[#All],[行ラベル]],0),MATCH($AL$3,年齢階層×在院期間区分F2[#Headers],0)),0) -> 21 | D4: =IFERROR(C4/$C$13,"-") -> 0.009771986971 | E4: =IFERROR(INDEX(年齢階層×在院期間区分F2[#All],MATCH($AH4,年齢階層×在院期間区分F2[[#All],[行ラベル]],0),MATCH($AM$3,年齢階層×在院期間区分F2[#Headers],0)),0)+IFERROR(INDEX(年齢階層×在院期間区分F2[#All],MATCH($AH4,年齢階層×在院期間区分F2[[#All],[行ラベル]],0),MATCH($AN$3,年齢階層×在院期間区分F2[#Headers],0)),0)+IFERROR(INDEX(年齢階層×在院期間区分F2[#All],MATCH($AH4,年齢階層×在院期間区分F2[[#All],[行ラベル]],0),MATCH($AO$3,年齢階層×在院期間区分F2[#Headers],0)),0)+IFERROR(INDEX(年齢階層×在院期間区分F2[#All],MATCH($AH4,年齢階層×在院期間区分F2[[#All],[行ラベル]],0),MATCH($AP$3,年齢階層×在院期間区分F2[#Headers],0)),0)+IFERROR(INDEX(年齢階層×在院期間区分F2[#All],MATCH($AH4,年齢階層×在院期間区分F2[[#All],[行ラベル]],0),MATCH($AQ$3,年齢階層×在院期間区分F2[#Headers],0)),0) -> 0 | F4: =IFERROR(E4/$E$13,"-") -> 0 | G4: =IFERROR(INDEX(年齢階層×在院期間区分F2[#All],MATCH($AH4,年齢階層×在院期間区分F2[[#All],[行ラベル]],0),MATCH($AR$3,年齢階層×在院期間区分F2[#Headers],0)),0)+IFERROR(INDEX(年齢階層×在院期間区分F2[#All],MATCH($AH4,年齢階層×在院期間区分F2[[#All],[行ラベル]],0),MATCH($AS$3,年齢階層×在院期間区分F2[#Headers],0)),0)+IFERROR(INDEX(年齢階層×在院期間区分F2[#All],MATCH($AH4,年齢階層×在院期間区分F2[[#All],[行ラベル]],0),MATCH($AT$3,年齢階層×在院期間区分F2[#Headers],0)),0)+IFERROR(INDEX(年齢階層×在院期間区分F2[#All],MATCH($AH4,年齢階層×在院期間区分F2[[#All],[行ラベル]],0),MATCH($AU$3,年齢階層×在院期間区分F2[#Headers],0)),0)+IFERROR(INDEX(年齢階層×在院期間区分F2[#All],MATCH($AH4,年齢階層×在院期間区分F2[[#All],[行ラベル]],0),MATCH($AV$3,年齢階層×在院期間区分F2[#Headers],0)),0) -> 0 | H4: =IFERROR(G4/$G$13,"-") -> 0 | I4: =IFERROR(INDEX(年齢階層×在院期間区分F2[#All],MATCH($AH4,年齢階層×在院期間区分F2[[#All],[行ラベル]],0),MATCH($AW$3,年齢階層×在院期間区分F2[#Headers],0)),0)+IFERROR(INDEX(年齢階層×在院期間区分F2[#All],MATCH($AH4,年齢階層×在院期間区分F2[[#All],[行ラベル]],0),MATCH($AX$3,年齢階層×在院期間区分F2[#Headers],0)),0) -> 0 | J4: =IFERROR(I4/$I$13,"-") -> 0 | K4: =SUM(C4,E4,G4,I4) -> 21 | L4: =IFERROR(K4/$K$13,"-") -> 0.003025064823 | O4: 19歳以下 | P4: 9 | Q4: 8 | R4: 4 | S4: 0 | T4: 0 | U4: 0 | V4: 0 | W4: 0 | X4: 0 | Y4: 0 | Z4: 0 | AA4: 0 | AB4: 0 | AC4: 0 | AD4: 0 | AE4: 0 | AH4: 19歳以下
B5: 20歳代 | C5: =IFERROR(INDEX(年齢階層×在院期間区分F2[#All],MATCH($AH5,年齢階層×在院期間区分F2[[#All],[行ラベル]],0),MATCH($AI$3,年齢階層×在院期間区分F2[#Headers],0)),0)+IFERROR(INDEX(年齢階層×在院期間区分F2[#All],MATCH($AH5,年齢階層×在院期間区分F2[[#All],[行ラベル]],0),MATCH($AJ$3,年齢階層×在院期間区分F2[#Headers],0)),0)+IFERROR(INDEX(年齢階層×在院期間区分F2[#All],MATCH($AH5,年齢階層×在院期間区分F2[[#All],[行ラベル]],0),MATCH($AK$3,年齢階層×在院期間区分F2[#Headers],0)),0)+IFERROR(INDEX(年齢階層×在院期間区分F2[#All],MATCH($AH5,年齢階層×在院期間区分F2[[#All],[行ラベル]],0),MATCH($AL$3,年齢階層×在院期間区分F2[#Headers],0)),0) -> 93 | D5: 0.0432759423 | E5: =IFERROR(INDEX(年齢階層×在院期間区分F2[#All],MATCH($AH5,年齢階層×在院期間区分F2[[#All],[行ラベル]],0),MATCH($AM$3,年齢階層×在院期間区分F2[#Headers],0)),0)+IFERROR(INDEX(年齢階層×在院期間区分F2[#All],MATCH($AH5,年齢階層×在院期間区分F2[[#All],[行ラベル]],0),MATCH($AN$3,年齢階層×在院期間区分F2[#Headers],0)),0)+IFERROR(INDEX(年齢階層×在院期間区分F2[#All],MATCH($AH5,年齢階層×在院期間区分F2[[#All],[行ラベル]],0),MATCH($AO$3,年齢階層×在院期間区分F2[#Headers],0)),0)+IFERROR(INDEX(年齢階層×在院期間区分F2[#All],MATCH($AH5,年齢階層×在院期間区分F2[[#All],[行ラベル]],0),MATCH($AP$3,年齢階層×在院期間区分F2[#Headers],0)),0)+IFERROR(INDEX(年齢階層×在院期間区分F2[#All],MATCH($AH5,年齢階層×在院期間区分F2[[#All],[行ラベル]],0),MATCH($AQ$3,年齢階層×在院期間区分F2[#Headers],0)),0) -> 19 | F5: 0.01027027027 | G5: =IFERROR(INDEX(年齢階層×在院期間区分F2[#All],MATCH($AH5,年齢階層×在院期間区分F2[[#All],[行ラベル]],0),MATCH($AR$3,年齢階層×在院期間区分F2[#Headers],0)),0)+IFERROR(INDEX(年齢階層×在院期間区分F2[#All],MATCH($AH5,年齢階層×在院期間区分F2[[#All],[行ラベル]],0),MATCH($AS$3,年齢階層×在院期間区分F2[#Headers],0)),0)+IFERROR(INDEX(年齢階層×在院期間区分F2[#All],MATCH($AH5,年齢階層×在院期間区分F2[[#All],[行ラベル]],0),MATCH($AT$3,年齢階層×在院期間区分F2[#Headers],0)),0)+IFERROR(INDEX(年齢階層×在院期間区分F2[#All],MATCH($AH5,年齢階層×在院期間区分F2[[#All],[行ラベル]],0),MATCH($AU$3,年齢階層×在院期間区分F2[#Headers],0)),0)+IFERROR(INDEX(年齢階層×在院期間区分F2[#All],MATCH($AH5,年齢階層×在院期間区分F2[[#All],[行ラベル]],0),MATCH($AV$3,年齢階層×在院期間区分F2[#Headers],0)),0) -> 2 | H5: 0.00163132137 | I5: =IFERROR(INDEX(年齢階層×在院期間区分F2[#All],MATCH($AH5,年齢階層×在院期間区分F2[[#All],[行ラベル]],0),MATCH($AW$3,年齢階層×在院期間区分F2[#Headers],0)),0)+IFERROR(INDEX(年齢階層×在院期間区分F2[#All],MATCH($AH5,年齢階層×在院期間区分F2[[#All],[行ラベル]],0),MATCH($AX$3,年齢階層×在院期間区分F2[#Headers],0)),0) -> 0 | J5: 0 | K5: =SUM(C5,E5,G5,I5) -> 114 | L5: 0.01642178047 | O5: 20歳代 | P5: 29 | Q5: 36 | R5: 17 | S5: 11 | T5: 5 | U5: 7 | V5: 2 | W5: 2 | X5: 3 | Y5: 0 | Z5: 0 | AA5: 1 | AB5: 1 | AC5: 0 | AD5: 0 | AE5: 0 | AH5: 20歳代
B6: 30歳代 | C6: =IFERROR(INDEX(年齢階層×在院期間区分F2[#All],MATCH($AH6,年齢階層×在院期間区分F2[[#All],[行ラベル]],0),MATCH($AI$3,年齢階層×在院期間区分F2[#Headers],0)),0)+IFERROR(INDEX(年齢階層×在院期間区分F2[#All],MATCH($AH6,年齢階層×在院期間区分F2[[#All],[行ラベル]],0),MATCH($AJ$3,年齢階層×在院期間区分F2[#Headers],0)),0)+IFERROR(INDEX(年齢階層×在院期間区分F2[#All],MATCH($AH6,年齢階層×在院期間区分F2[[#All],[行ラベル]],0),MATCH($AK$3,年齢階層×在院期間区分F2[#Headers],0)),0)+IFERROR(INDEX(年齢階層×在院期間区分F2[#All],MATCH($AH6,年齢階層×在院期間区分F2[[#All],[行ラベル]],0),MATCH($AL$3,年齢階層×在院期間区分F2[#Headers],0)),0) -> 184 | D6: 0.08562121917 | E6: =IFERROR(INDEX(年齢階層×在院期間区分F2[#All],MATCH($AH6,年齢階層×在院期間区分F2[[#All],[行ラベル]],0),MATCH($AM$3,年齢階層×在院期間区分F2[#Headers],0)),0)+IFERROR(INDEX(年齢階層×在院期間区分F2[#All],MATCH($AH6,年齢階層×在院期間区分F2[[#All],[行ラベル]],0),MATCH($AN$3,年齢階層×在院期間区分F2[#Headers],0)),0)+IFERROR(INDEX(年齢階層×在院期間区分F2[#All],MATCH($AH6,年齢階層×在院期間区分F2[[#All],[行ラベル]],0),MATCH($AO$3,年齢階層×在院期間区分F2[#Headers],0)),0)+IFERROR(INDEX(年齢階層×在院期間区分F2[#All],MATCH($AH6,年齢階層×在院期間区分F2[[#All],[行ラベル]],0),MATCH($AP$3,年齢階層×在院期間区分F2[#Headers],0)),0)+IFERROR(INDEX(年齢階層×在院期間区分F2[#All],MATCH($AH6,年齢階層×在院期間区分F2[[#All],[行ラベル]],0),MATCH($AQ$3,年齢階層×在院期間区分F2[#Headers],0)),0) -> 72 | F6: 0.03891891892 | G6: =IFERROR(INDEX(年齢階層×在院期間区分F2[#All],MATCH($AH6,年齢階層×在院期間区分F2[[#All],[行ラベル]],0),MATCH($AR$3,年齢階層×在院期間区分F2[#Headers],0)),0)+IFERROR(INDEX(年齢階層×在院期間区分F2[#All],MATCH($AH6,年齢階層×在院期間区分F2[[#All],[行ラベル]],0),MATCH($AS$3,年齢階層×在院期間区分F2[#Headers],0)),0)+IFERROR(INDEX(年齢階層×在院期間区分F2[#All],MATCH($AH6,年齢階層×在院期間区分F2[[#All],[行ラベル]],0),MATCH($AT$3,年齢階層×在院期間区分F2[#Headers],0)),0)+IFERROR(INDEX(年齢階層×在院期間区分F2[#All],MATCH($AH6,年齢階層×在院期間区分F2[[#All],[行ラベル]],0),MATCH($AU$3,年齢階層×在院期間区分F2[#Headers],0)),0)+IFERROR(INDEX(年齢階層×在院期間区分F2[#All],MATCH($AH6,年齢階層×在院期間区分F2[[#All],[行ラベル]],0),MATCH($AV$3,年齢階層×在院期間区分F2[#Headers],0)),0) -> 43 | H6: 0.03507340946 | I6: =IFERROR(INDEX(年齢階層×在院期間区分F2[#All],MATCH($AH6,年齢階層×在院期間区分F2[[#All],[行ラベル]],0),MATCH($AW$3,年齢階層×在院期間区分F2[#Headers],0)),0)+IFERROR(INDEX(年齢階層×在院期間区分F2[#All],MATCH($AH6,年齢階層×在院期間区分F2[[#All],[行ラベル]],0),MATCH($AX$3,年齢階層×在院期間区分F2[#Headers],0)),0) -> 27 | J6: 0.01572510192 | K6: =SUM(C6,E6,G6,I6) -> 326 | L6: 0.04696053011 | O6: 30歳代 | P6: 57 | Q6: 77 | R6: 28 | S6: 22 | T6: 11 | U6: 10 | V6: 16 | W6: 24 | X6: 11 | Y6: 13 | Z6: 9 | AA6: 6 | AB6: 12 | AC6: 3 | AD6: 26 | AE6: 1 | AH6: 30歳代
B7: 40歳代 | C7: =IFERROR(INDEX(年齢階層×在院期間区分F2[#All],MATCH($AH7,年齢階層×在院期間区分F2[[#All],[行ラベル]],0),MATCH($AI$3,年齢階層×在院期間区分F2[#Headers],0)),0)+IFERROR(INDEX(年齢階層×在院期間区分F2[#All],MATCH($AH7,年齢階層×在院期間区分F2[[#All],[行ラベル]],0),MATCH($AJ$3,年齢階層×在院期間区分F2[#Headers],0)),0)+IFERROR(INDEX(年齢階層×在院期間区分F2[#All],MATCH($AH7,年齢階層×在院期間区分F2[[#All],[行ラベル]],0),MATCH($AK$3,年齢階層×在院期間区分F2[#Headers],0)),0)+IFERROR(INDEX(年齢階層×在院期間区分F2[#All],MATCH($AH7,年齢階層×在院期間区分F2[[#All],[行ラベル]],0),MATCH($AL$3,年齢階層×在院期間区分F2[#Headers],0)),0) -> 347 | D7: 0.1614704514 | E7: =IFERROR(INDEX(年齢階層×在院期間区分F2[#All],MATCH($AH7,年齢階層×在院期間区分F2[[#All],[行ラベル]],0),MATCH($AM$3,年齢階層×在院期間区分F2[#Headers],0)),0)+IFERROR(INDEX(年齢階層×在院期間区分F2[#All],MATCH($AH7,年齢階層×在院期間区分F2[[#All],[行ラベル]],0),MATCH($AN$3,年齢階層×在院期間区分F2[#Headers],0)),0)+IFERROR(INDEX(年齢階層×在院期間区分F2[#All],MATCH($AH7,年齢階層×在院期間区分F2[[#All],[行ラベル]],0),MATCH($AO$3,年齢階層×在院期間区分F2[#Headers],0)),0)+IFERROR(INDEX(年齢階層×在院期間区分F2[#All],MATCH($AH7,年齢階層×在院期間区分F2[[#All],[行ラベル]],0),MATCH($AP$3,年齢階層×在院期間区分F2[#Headers],0)),0)+IFERROR(INDEX(年齢階層×在院期間区分F2[#All],MATCH($AH7,年齢階層×在院期間区分F2[[#All],[行ラベル]],0),MATCH($AQ$3,年齢階層×在院期間区分F2[#Headers],0)),0) -> 195 | F7: 0.1054054054 | G7: =IFERROR(INDEX(年齢階層×在院期間区分F2[#All],MATCH($AH7,年齢階層×在院期間区分F2[[#All],[行ラベル]],0),MATCH($AR$3,年齢階層×在院期間区分F2[#Headers],0)),0)+IFERROR(INDEX(年齢階層×在院期間区分F2[#All],MATCH($AH7,年齢階層×在院期間区分F2[[#All],[行ラベル]],0),MATCH($AS$3,年齢階層×在院期間区分F2[#Headers],0)),0)+IFERROR(INDEX(年齢階層×在院期間区分F2[#All],MATCH($AH7,年齢階層×在院期間区分F2[[#All],[行ラベル]],0),MATCH($AT$3,年齢階層×在院期間区分F2[#Headers],0)),0)+IFERROR(INDEX(年齢階層×在院期間区分F2[#All],MATCH($AH7,年齢階層×在院期間区分F2[[#All],[行ラベル]],0),MATCH($AU$3,年齢階層×在院期間区分F2[#Headers],0)),0)+IFERROR(INDEX(年齢階層×在院期間区分F2[#All],MATCH($AH7,年齢階層×在院期間区分F2[[#All],[行ラベル]],0),MATCH($AV$3,年齢階層×在院期間区分F2[#Headers],0)),0) -> 141 | H7: 0.1150081566 | I7: =IFERROR(INDEX(年齢階層×在院期間区分F2[#All],MATCH($AH7,年齢階層×在院期間区分F2[[#All],[行ラベル]],0),MATCH($AW$3,年齢階層×在院期間区分F2[#Headers],0)),0)+IFERROR(INDEX(年齢階層×在院期間区分F2[#All],MATCH($AH7,年齢階層×在院期間区分F2[[#All],[行ラベル]],0),MATCH($AX$3,年齢階層×在院期間区分F2[#Headers],0)),0) -> 149 | J7: 0.08677926616 | K7: 832 | L7: 0.1198501873 | O7: 40歳代 | P7: 112 | Q7: 126 | R7: 59 | S7: 50 | T7: 40 | U7: 32 | V7: 52 | W7: 34 | X7: 37 | Y7: 37 | Z7: 36 | AA7: 24 | AB7: 27 | AC7: 17 | AD7: 116 | AE7: 33 | AH7: 40歳代
B8: 50歳代 | C8: =IFERROR(INDEX(年齢階層×在院期間区分F2[#All],MATCH($AH8,年齢階層×在院期間区分F2[[#All],[行ラベル]],0),MATCH($AI$3,年齢階層×在院期間区分F2[#Headers],0)),0)+IFERROR(INDEX(年齢階層×在院期間区分F2[#All],MATCH($AH8,年齢階層×在院期間区分F2[[#All],[行ラベル]],0),MATCH($AJ$3,年齢階層×在院期間区分F2[#Headers],0)),0)+IFERROR(INDEX(年齢階層×在院期間区分F2[#All],MATCH($AH8,年齢階層×在院期間区分F2[[#All],[行ラベル]],0),MATCH($AK$3,年齢階層×在院期間区分F2[#Headers],0)),0)+IFERROR(INDEX(年齢階層×在院期間区分F2[#All],MATCH($AH8,年齢階層×在院期間区分F2[[#All],[行ラベル]],0),MATCH($AL$3,年齢階層×在院期間区分F2[#Headers],0)),0) -> 511 | D8: 0.2377850163 | E8: =IFERROR(INDEX(年齢階層×在院期間区分F2[#All],MATCH($AH8,年齢階層×在院期間区分F2[[#All],[行ラベル]],0),MATCH($AM$3,年齢階層×在院期間区分F2[#Headers],0)),0)+IFERROR(INDEX(年齢階層×在院期間区分F2[#All],MATCH($AH8,年齢階層×在院期間区分F2[[#All],[行ラベル]],0),MATCH($AN$3,年齢階層×在院期間区分F2[#Headers],0)),0)+IFERROR(INDEX(年齢階層×在院期間区分F2[#All],MATCH($AH8,年齢階層×在院期間区分F2[[#All],[行ラベル]],0),MATCH($AO$3,年齢階層×在院期間区分F2[#Headers],0)),0)+IFERROR(INDEX(年齢階層×在院期間区分F2[#All],MATCH($AH8,年齢階層×在院期間区分F2[[#All],[行ラベル]],0),MATCH($AP$3,年齢階層×在院期間区分F2[#Headers],0)),0)+IFERROR(INDEX(年齢階層×在院期間区分F2[#All],MATCH($AH8,年齢階層×在院期間区分F2[[#All],[行ラベル]],0),MATCH($AQ$3,年齢階層×在院期間区分F2[#Headers],0)),0) -> 420 | F8: 0.227027027 | G8: =IFERROR(INDEX(年齢階層×在院期間区分F2[#All],MATCH($AH8,年齢階層×在院期間区分F2[[#All],[行ラベル]],0),MATCH($AR$3,年齢階層×在院期間区分F2[#Headers],0)),0)+IFERROR(INDEX(年齢階層×在院期間区分F2[#All],MATCH($AH8,年齢階層×在院期間区分F2[[#All],[行ラベル]],0),MATCH($AS$3,年齢階層×在院期間区分F2[#Headers],0)),0)+IFERROR(INDEX(年齢階層×在院期間区分F2[#All],MATCH($AH8,年齢階層×在院期間区分F2[[#All],[行ラベル]],0),MATCH($AT$3,年齢階層×在院期間区分F2[#Headers],0)),0)+IFERROR(INDEX(年齢階層×在院期間区分F2[#All],MATCH($AH8,年齢階層×在院期間区分F2[[#All],[行ラベル]],0),MATCH($AU$3,年齢階層×在院期間区分F2[#Headers],0)),0)+IFERROR(INDEX(年齢階層×在院期間区分F2[#All],MATCH($AH8,年齢階層×在院期間区分F2[[#All],[行ラベル]],0),MATCH($AV$3,年齢階層×在院期間区分F2[#Headers],0)),0) -> 308 | H8: 0.251223491 | I8: =IFERROR(INDEX(年齢階層×在院期間区分F2[#All],MATCH($AH8,年齢階層×在院期間区分F2[[#All],[行ラベル]],0),MATCH($AW$3,年齢階層×在院期間区分F2[#Headers],0)),0)+IFERROR(INDEX(年齢階層×在院期間区分F2[#All],MATCH($AH8,年齢階層×在院期間区分F2[[#All],[行ラベル]],0),MATCH($AX$3,年齢階層×在院期間区分F2[#Headers],0)),0) -> 391 | J8: 0.2277227723 | K8: 1630 | L8: 0.2348026505 | O8: 50歳代 | P8: 156 | Q8: 147 | R8: 83 | S8: 125 | T8: 63 | U8: 67 | V8: 97 | W8: 105 | X8: 88 | Y8: 79 | Z8: 54 | AA8: 63 | AB8: 63 | AC8: 49 | AD8: 247 | AE8: 144 | AH8: 50歳代
B9: 60歳代 | C9: =IFERROR(INDEX(年齢階層×在院期間区分F2[#All],MATCH($AH9,年齢階層×在院期間区分F2[[#All],[行ラベル]],0),MATCH($AI$3,年齢階層×在院期間区分F2[#Headers],0)),0)+IFERROR(INDEX(年齢階層×在院期間区分F2[#All],MATCH($AH9,年齢階層×在院期間区分F2[[#All],[行ラベル]],0),MATCH($AJ$3,年齢階層×在院期間区分F2[#Headers],0)),0)+IFERROR(INDEX(年齢階層×在院期間区分F2[#All],MATCH($AH9,年齢階層×在院期間区分F2[[#All],[行ラベル]],0),MATCH($AK$3,年齢階層×在院期間区分F2[#Headers],0)),0)+IFERROR(INDEX(年齢階層×在院期間区分F2[#All],MATCH($AH9,年齢階層×在院期間区分F2[[#All],[行ラベル]],0),MATCH($AL$3,年齢階層×在院期間区分F2[#Headers],0)),0) -> 404 | D9: 0.187994416 | E9: =IFERROR(INDEX(年齢階層×在院期間区分F2[#All],MATCH($AH9,年齢階層×在院期間区分F2[[#All],[行ラベル]],0),MATCH($AM$3,年齢階層×在院期間区分F2[#Headers],0)),0)+IFERROR(INDEX(年齢階層×在院期間区分F2[#All],MATCH($AH9,年齢階層×在院期間区分F2[[#All],[行ラベル]],0),MATCH($AN$3,年齢階層×在院期間区分F2[#Headers],0)),0)+IFERROR(INDEX(年齢階層×在院期間区分F2[#All],MATCH($AH9,年齢階層×在院期間区分F2[[#All],[行ラベル]],0),MATCH($AO$3,年齢階層×在院期間区分F2[#Headers],0)),0)+IFERROR(INDEX(年齢階層×在院期間区分F2[#All],MATCH($AH9,年齢階層×在院期間区分F2[[#All],[行ラベル]],0),MATCH($AP$3,年齢階層×在院期間区分F2[#Headers],0)),0)+IFERROR(INDEX(年齢階層×在院期間区分F2[#All],MATCH($AH9,年齢階層×在院期間区分F2[[#All],[行ラベル]],0),MATCH($AQ$3,年齢階層×在院期間区分F2[#Headers],0)),0) -> 401 | F9: 0.2167567568 | G9: =IFERROR(INDEX(年齢階層×在院期間区分F2[#All],MATCH($AH9,年齢階層×在院期間区分F2[[#All],[行ラベル]],0),MATCH($AR$3,年齢階層×在院期間区分F2[#Headers],0)),0)+IFERROR(INDEX(年齢階層×在院期間区分F2[#All],MATCH($AH9,年齢階層×在院期間区分F2[[#All],[行ラベル]],0),MATCH($AS$3,年齢階層×在院期間区分F2[#Headers],0)),0)+IFERROR(INDEX(年齢階層×在院期間区分F2[#All],MATCH($AH9,年齢階層×在院期間区分F2[[#All],[行ラベル]],0),MATCH($AT$3,年齢階層×在院期間区分F2[#Headers],0)),0)+IFERROR(INDEX(年齢階層×在院期間区分F2[#All],MATCH($AH9,年齢階層×在院期間区分F2[[#All],[行ラベル]],0),MATCH($AU$3,年齢階層×在院期間区分F2[#Headers],0)),0)+IFERROR(INDEX(年齢階層×在院期間区分F2[#All],MATCH($AH9,年齢階層×在院期間区分F2[[#All],[行ラベル]],0),MATCH($AV$3,年齢階層×在院期間区分F2[#Headers],0)),0) -> 275 | H9: 0.2243066884 | I9: =IFERROR(INDEX(年齢階層×在院期間区分F2[#All],MATCH($AH9,年齢階層×在院期間区分F2[[#All],[行ラベル]],0),MATCH($AW$3,年齢階層×在院期間区分F2[#Headers],0)),0)+IFERROR(INDEX(年齢階層×在院期間区分F2[#All],MATCH($AH9,年齢階層×在院期間区分F2[[#All],[行ラベル]],0),MATCH($AX$3,年齢階層×在院期間区分F2[#Headers],0)),0) -> 425 | J9: 0.2475247525 | K9: 1505 | L9: 0.2167963123 | O9: 60歳代 | P9: 112 | Q9: 131 | R9: 74 | S9: 87 | T9: 62 | U9: 59 | V9: 100 | W9: 102 | X9: 78 | Y9: 76 | Z9: 60 | AA9: 49 | AB9: 52 | AC9: 38 | AD9: 267 | AE9: 158 | AH9: 60歳代
B10: 70歳代 | C10: =IFERROR(INDEX(年齢階層×在院期間区分F2[#All],MATCH($AH10,年齢階層×在院期間区分F2[[#All],[行ラベル]],0),MATCH($AI$3,年齢階層×在院期間区分F2[#Headers],0)),0)+IFERROR(INDEX(年齢階層×在院期間区分F2[#All],MATCH($AH10,年齢階層×在院期間区分F2[[#All],[行ラベル]],0),MATCH($AJ$3,年齢階層×在院期間区分F2[#Headers],0)),0)+IFERROR(INDEX(年齢階層×在院期間区分F2[#All],MATCH($AH10,年齢階層×在院期間区分F2[[#All],[行ラベル]],0),MATCH($AK$3,年齢階層×在院期間区分F2[#Headers],0)),0)+IFERROR(INDEX(年齢階層×在院期間区分F2[#All],MATCH($AH10,年齢階層×在院期間区分F2[[#All],[行ラベル]],0),MATCH($AL$3,年齢階層×在院期間区分F2[#Headers],0)),0) -> 385 | D10: 0.1791530945 | E10: =IFERROR(INDEX(年齢階層×在院期間区分F2[#All],MATCH($AH10,年齢階層×在院期間区分F2[[#All],[行ラベル]],0),MATCH($AM$3,年齢階層×在院期間区分F2[#Headers],0)),0)+IFERROR(INDEX(年齢階層×在院期間区分F2[#All],MATCH($AH10,年齢階層×在院期間区分F2[[#All],[行ラベル]],0),MATCH($AN$3,年齢階層×在院期間区分F2[#Headers],0)),0)+IFERROR(INDEX(年齢階層×在院期間区分F2[#All],MATCH($AH10,年齢階層×在院期間区分F2[[#All],[行ラベル]],0),MATCH($AO$3,年齢階層×在院期間区分F2[#Headers],0)),0)+IFERROR(INDEX(年齢階層×在院期間区分F2[#All],MATCH($AH10,年齢階層×在院期間区分F2[[#All],[行ラベル]],0),MATCH($AP$3,年齢階層×在院期間区分F2[#Headers],0)),0)+IFERROR(INDEX(年齢階層×在院期間区分F2[#All],MATCH($AH10,年齢階層×在院期間区分F2[[#All],[行ラベル]],0),MATCH($AQ$3,年齢階層×在院期間区分F2[#Headers],0)),0) -> 477 | F10: 0.2578378378 | G10: =IFERROR(INDEX(年齢階層×在院期間区分F2[#All],MATCH($AH10,年齢階層×在院期間区分F2[[#All],[行ラベル]],0),MATCH($AR$3,年齢階層×在院期間区分F2[#Headers],0)),0)+IFERROR(INDEX(年齢階層×在院期間区分F2[#All],MATCH($AH10,年齢階層×在院期間区分F2[[#All],[行ラベル]],0),MATCH($AS$3,年齢階層×在院期間区分F2[#Headers],0)),0)+IFERROR(INDEX(年齢階層×在院期間区分F2[#All],MATCH($AH10,年齢階層×在院期間区分F2[[#All],[行ラベル]],0),MATCH($AT$3,年齢階層×在院期間区分F2[#Headers],0)),0)+IFERROR(INDEX(年齢階層×在院期間区分F2[#All],MATCH($AH10,年齢階層×在院期間区分F2[[#All],[行ラベル]],0),MATCH($AU$3,年齢階層×在院期間区分F2[#Headers],0)),0)+IFERROR(INDEX(年齢階層×在院期間区分F2[#All],MATCH($AH10,年齢階層×在院期間区分F2[[#All],[行ラベル]],0),MATCH($AV$3,年齢階層×在院期間区分F2[#Headers],0)),0) -> 312 | H10: 0.2544861338 | I10: =IFERROR(INDEX(年齢階層×在院期間区分F2[#All],MATCH($AH10,年齢階層×在院期間区分F2[[#All],[行ラベル]],0),MATCH($AW$3,年齢階層×在院期間区分F2[#Headers],0)),0)+IFERROR(INDEX(年齢階層×在院期間区分F2[#All],MATCH($AH10,年齢階層×在院期間区分F2[[#All],[行ラベル]],0),MATCH($AX$3,年齢階層×在院期間区分F2[#Headers],0)),0) -> 508 | J10: 0.2958648806 | K10: 1682 | L10: 0.2422932872 | O10: 70歳代 | P10: 57 | Q10: 113 | R10: 98 | S10: 117 | T10: 78 | U10: 68 | V10: 123 | W10: 113 | X10: 95 | Y10: 87 | Z10: 69 | AA10: 56 | AB10: 52 | AC10: 48 | AD10: 262 | AE10: 246 | AH10: 70歳代
B11: 80歳代 | C11: =IFERROR(INDEX(年齢階層×在院期間区分F2[#All],MATCH($AH11,年齢階層×在院期間区分F2[[#All],[行ラベル]],0),MATCH($AI$3,年齢階層×在院期間区分F2[#Headers],0)),0)+IFERROR(INDEX(年齢階層×在院期間区分F2[#All],MATCH($AH11,年齢階層×在院期間区分F2[[#All],[行ラベル]],0),MATCH($AJ$3,年齢階層×在院期間区分F2[#Headers],0)),0)+IFERROR(INDEX(年齢階層×在院期間区分F2[#All],MATCH($AH11,年齢階層×在院期間区分F2[[#All],[行ラベル]],0),MATCH($AK$3,年齢階層×在院期間区分F2[#Headers],0)),0)+IFERROR(INDEX(年齢階層×在院期間区分F2[#All],MATCH($AH11,年齢階層×在院期間区分F2[[#All],[行ラベル]],0),MATCH($AL$3,年齢階層×在院期間区分F2[#Headers],0)),0) -> 183 | D11: 0.08515588646 | E11: =IFERROR(INDEX(年齢階層×在院期間区分F2[#All],MATCH($AH11,年齢階層×在院期間区分F2[[#All],[行ラベル]],0),MATCH($AM$3,年齢階層×在院期間区分F2[#Headers],0)),0)+IFERROR(INDEX(年齢階層×在院期間区分F2[#All],MATCH($AH11,年齢階層×在院期間区分F2[[#All],[行ラベル]],0),MATCH($AN$3,年齢階層×在院期間区分F2[#Headers],0)),0)+IFERROR(INDEX(年齢階層×在院期間区分F2[#All],MATCH($AH11,年齢階層×在院期間区分F2[[#All],[行ラベル]],0),MATCH($AO$3,年齢階層×在院期間区分F2[#Headers],0)),0)+IFERROR(INDEX(年齢階層×在院期間区分F2[#All],MATCH($AH11,年齢階層×在院期間区分F2[[#All],[行ラベル]],0),MATCH($AP$3,年齢階層×在院期間区分F2[#Headers],0)),0)+IFERROR(INDEX(年齢階層×在院期間区分F2[#All],MATCH($AH11,年齢階層×在院期間区分F2[[#All],[行ラベル]],0),MATCH($AQ$3,年齢階層×在院期間区分F2[#Headers],0)),0) -> 240 | F11: 0.1297297297 | G11: =IFERROR(INDEX(年齢階層×在院期間区分F2[#All],MATCH($AH11,年齢階層×在院期間区分F2[[#All],[行ラベル]],0),MATCH($AR$3,年齢階層×在院期間区分F2[#Headers],0)),0)+IFERROR(INDEX(年齢階層×在院期間区分F2[#All],MATCH($AH11,年齢階層×在院期間区分F2[[#All],[行ラベル]],0),MATCH($AS$3,年齢階層×在院期間区分F2[#Headers],0)),0)+IFERROR(INDEX(年齢階層×在院期間区分F2[#All],MATCH($AH11,年齢階層×在院期間区分F2[[#All],[行ラベル]],0),MATCH($AT$3,年齢階層×在院期間区分F2[#Headers],0)),0)+IFERROR(INDEX(年齢階層×在院期間区分F2[#All],MATCH($AH11,年齢階層×在院期間区分F2[[#All],[行ラベル]],0),MATCH($AU$3,年齢階層×在院期間区分F2[#Headers],0)),0)+IFERROR(INDEX(年齢階層×在院期間区分F2[#All],MATCH($AH11,年齢階層×在院期間区分F2[[#All],[行ラベル]],0),MATCH($AV$3,年齢階層×在院期間区分F2[#Headers],0)),0) -> 130 | H11: 0.1060358891 | I11: =IFERROR(INDEX(年齢階層×在院期間区分F2[#All],MATCH($AH11,年齢階層×在院期間区分F2[[#All],[行ラベル]],0),MATCH($AW$3,年齢階層×在院期間区分F2[#Headers],0)),0)+IFERROR(INDEX(年齢階層×在院期間区分F2[#All],MATCH($AH11,年齢階層×在院期間区分F2[[#All],[行ラベル]],0),MATCH($AX$3,年齢階層×在院期間区分F2[#Headers],0)),0) -> 191 | J11: 0.1112405358 | K11: 744 | L11: 0.1071737252 | O11: 80歳代 | P11: 38 | Q11: 56 | R11: 37 | S11: 52 | T11: 36 | U11: 43 | V11: 59 | W11: 51 | X11: 51 | Y11: 47 | Z11: 26 | AA11: 21 | AB11: 20 | AC11: 16 | AD11: 97 | AE11: 94 | AH11: 80歳代
